Workbook

Sheet Directions
A1: Directions for LW Stability Analysis Tool
A3: This design tool may be used by practitioners if they cite the developer on each sheet.
A5: Disclaimer:
A6: This Microsoft Excel 2010 spreadsheet tool is provided free of charge. Use this tool at your own risk. In offering this tool, the author, the U.S. Forest Service, and Colorado State University do not accept any responsibility or liability for the tool's use by third parties. This tool has specific uses and limits of applicability. Design practitioners shall take full responsibility for the final large wood structure design and performance. Designers are expected to verify the calculated values and validity of the design method. Designers should be qualified to work in river environments, and depending on the State, they may be required to be licensed as a professional engineer to design large wood structures. You cannot be sure the tool is authentic and unmolested unless downloaded from the following website:
A14: http://www.fs.fed.us/biology/nsaec/products-tools.html
A16: DATA INPUT
A18: Order of Input
B19: Update the worksheets from "left to right"
B20: Update the spreadsheet cells from "left to right" and "top to bottom"
A22: IMPORTANT - User should only edit the following cells:
B24: Cell Format | D24: Directions
B25: Dropdown List | D25: Select value from dropdown list
B27: User Input | D27: Type value into cell
B29: User Verify | D29: Verify value in cell (edit if necessary)
A31: User should verify, but not edit the following cells because these cells contain formulas or headings:
B33: Cell Format | D33: Directions
B34: Heading | D34: Table Heading (Scroll over sample heading for description of comments)
B36: Automatic Value | D36: Verify value in cell which is automatically calculated by formulas
B38: Key Value | D38: Verify value of force calculation
B40: Solution | D40: Verify value of force balance or factor of safety calculation
B42: Background Value | D42: Optional - Verify value of background calculation (outside of print area)
A44: The "Single Log" and "Multi-Log" spreadsheets have several built-in error messages (in column 'K'):
B46: Error Message
B47: "CHECK" | D47: Prompts user to check a specific input
B49: "ERROR" | D49: Prompts user to change a specific input
A51: User Input Note 1 - Several worksheets have a built in "clear inputs" button linked to a macro (these are the only macros built into the tool). Be aware that you can't undo the "clear input" command.
A54: User Input Note 2 - User may enter a custom "bank soil type", "wood species", or "anchor type" by scrolling over to the right to find the lookup table and editing the "custom" cells.
A57: User Input Note 3 - The spreadsheet is not locked, and therefore every cell can be manually edited. However, the user is encouraged to exercise caution to avoid unintended consequences of changing reference formulas.
A60: User Input Note 4 - User should also be very careful when removing or adding cells (at least scroll over and down to see what other cells may be impacted). Hiding unused rows or columns is recommended instead of deleting them. If the user needs to add cells on the "Single Log Design" spreadsheet, they should add a row of cells for all columns between 'A' and 'J'. Important: Adding cells will break the code in the "Clear Inputs" macro, and cause it to clear the wrong cells.
A66: User Input Note 5 - To avoid compounding potential errors, the user should use the original download version of the spreadsheet (without personal edits) at the beginning of each design.
A69: User Input Note 6 - Input values should be in English units, with one exception: D50 for the bed substrate gradation (mm).
A72: ANALYSIS OF MULTIPLE LOG STRUCTURES
A74: The LW Stability Analysis Tool can also be used to design multiple log structures. The user must manually translate the resulting vertical and horizontal forces from one log design sheet into another (or write their own formulas). This data should be entered in the "Interaction Forces with Adjacent Logs" section of the "Single Log Design" worksheet. In theory, there is no limit to the number of logs that can be considered, although the force balance accounting may become cumbersome beyond a few logs. The general procedure is as follows:
A79: Step 1 | B79: Begin by creating a preliminary structure layout (in AutoCAD or similar) to define the quantity of logs, locate intersect points, and identify key members. Key members are typically the largest logs (or the logs that are going to be have anchors attached).
A82: Step 2 | B82: Fill out Sheets 1 through 5 of this tool. Next, input the channel geometry in a blank "Single Log Design" worksheet (Sheet 6), and then make copies for analysis of each log.
L83: (Example) Required Resisting Forces for Stacked and Wracked Members (to be supplied by Key Members)
A84: Step 3 | B84: Complete a preliminary force balance analysis for each stacked member log, ignoring the "Interaction Forces with Adjacent Logs" and "Anchor Forces" sections. The user should manually record the resisting forces required to stabilize each stacked member in a table. The required vertical force can be found in cell 'K61' of the "Single Log Design" worksheet, and the required horizontal force can be found in cell 'K72'. If the log is already vertically or horizontally stable, record the excess force that may be applied to resist driving forces of the adjacent log(s). This information can be found in cell 'K62' and 'K73'. An example table is shown to the right of these directions →
L85: Log ID | M85: FV (lbf) | N85: FV (per"key log) | O85: FH (lbf) | P85: FH (per key log)
L86: Top #1 | M86: 7278 | N86: =M86/2 -> 3639 | O86: 1872 | P86: =O86/2 -> 936
L87: Top #2 | M87: 7113 | N87: =M87/2 -> 3556.5 | O87: 1087 | P87: 543.5
L88: Top #3 | M88: 5323 | N88: 2661.5 | O88: -3547 | P88: -1773.5
L89: * In this example, the required resisting forces for the 3 stacked members are divided between 2 proposed key members. Note that the log identified as "Top #3" is horizontally stable (hence, listed as a negative number), with an excess resisting force of 3,547 lbf. This excess force may be applied to resist the driving horizontal forces of the key members, provided the logs are pinned together. These values in the columns highlighted in light yellow should be entered exactly as shown in the "Interaction Forces with Adjacent Logs" section of the "Single Log Design" worksheet for each key member.
A91: Step 4 | B91: Complete a force balance analysis for the key members. In the "Interaction Forces with Adjacent Logs" section on the force balance sheet, enter the relative position of each adjacent stacked log in contact with the key member, the connection type (gravity or pinned), the intersection point, and the required vertical and horizontal forces to achieve stability for each stacked member. If the load from the adjacent logs is spread over multiple key members, divide the required forces by the number of key members sharing the load (note--these loads do not need to be evenly distributed between key members). If an adjacent log is either horizontally or vertically stable, then enter any excess force (see Step 3 above) value as a negative number in the key member design spreadsheet. The tool will automatically determine which loads are transferable to the next layer of logs. For instance, a non-pinned log situated above the key member will not transfer buoyancy force to the key member.
A101: Step 5 | B101: Add "Anchor Forces" as necessary to stabilize the key members.
A102: Step 6 | B102: Return to the stacked member log worksheets and in the "Interaction Forces with Adjacent Logs" section, input the forces that were resisted by the stability analysis of the key members. Add additional "Anchor Forces" as necessary to stabilize the forces that were not resisted by the design of the key members. It is advisable to create a copy of the "preliminary" design worksheets for the stacked member logs to create a separate "final" design worksheet. This will make it easier for the user to review the interaction forces between logs or make necessary edits.
A108: Tip 1: It is recommended that the user creates a spreadsheet to tally the transferred forces for each log.
A109: Tip 2: The design of multiple log structures should initially focus on achieving vertical stability, before moving on to horizontal stability, and finally the moment analysis.
A111: Note 1: Most design procedures for larger wood jams (ELJ's) typically ignore the lift and moment forces, and the drag coefficient may be assumed to be between 0.6 and 0.7 for the entire structure (plus corrections for constriction, or blockage, of the channel). Therefore, the analysis procedure described above is likely conservative for larger structures.
A115: Note 2: The designer should also perform scour computations and consider the structure's potential to trap mobile wood. The design and/or factor of safety may need modified accordingly.
A118: TO PRINT WORKBOOK
A119: Highlight tabs numbered 1 through 7, and click "Print". Pages are pre-formatted except the "Anchors" Lookup sheet, which is not intended to be printed.
A122: User is encouraged to provide comments and feedback for:
A123: Suitability: Range of application or limitations
A124: Ease of use
A125: Results: Are they reasonable and verified?
A126: Any other comments for improvement
A127: E-mail comments to: | E127: michael.rafferty@otak.com
A132: TOOL UPDATES
A134: Version 1.0 July 2, 2013
A136: Version 1.1 January 8, 2016
A137: Sheet, Cell
A138: S1, A42 | B138: Added reference on cover sheet to new companion paper (USFS National Stream and Aquatic Ecology Center Tech Note TN-103.1)
A139: S2, A6,7 | B139: Changed default factor of safety to 1.5 (from 2.0) for horizontal and moment force balances
A140: S6, B6 | B140: Updated log structure types in pull-down list on worksheet for single log design
A141: S6, B9 | B141: Added terminology of "key", "stacked", and "wracked" logs to dropdown list for consistency with guidelines
A142: S6, B25 | B142: Added error message restricting input values for orientation angle (can not equal exactly 0)
A143: S6, B26 | B143: Added error message restricting input values for tilt angle (can not equal exactly 0, 90, 180, 270, or 360)
A144: S6, D83 | B144: Changed soil type from stream bed to bank soils in formula for FA,V applied by additional soil ballast
A145: Multiple | B145: General updates to cell formats
A146: Multiple | B146: Fixed page layouts for printing

Sheet 1-Cover
A1: Sample Multi-Log Structure
A3: Large Wood Structure Stability Analysis
K7: ← (Optional - To change photo, right-click on image and path to new image)
A17: TABLE OF CONTENTS
H18: Sheet
C19: Factors of Safety and Design Constants | H19: 2 | K19: ← (Note - Sheet names and numbering must be manually updated)
C20: Hydrologic and Hydraulic Inputs | H20: 3
C21: Stream Bed Substrate Properties | H21: 4
C22: Bank Soil Properties | H22: 5
C23: Wood Properties | H23: 6
C24: Stability Analysis of Log ID: Foot #1 | H24: 7 - 9
C25: Stability Analysis of Log ID: Foot #2 | H25: 10 - 12
C26: Final Stability Analysis of Log ID: Top #1 | H26: 13 - 15
C27: Final Stability Analysis of Log ID: Top #2 | H27: 16 - 18
C28: Final Stability Analysis of Log ID: Top #3 | H28: 19 - 21
C29: Notation and List of Symbols | H29: 22 - 23
C32: Date of Last Revision: | D32: 2016-01-07
B34: Designer: | F34: Reviewed by:
B35: Michael Rafferty, P.E. | F35: N/A
K36: ← (Optional - Insert P.E. Stamp)
A42: Large Wood Structure Stability Analysis Spreadsheet was developed by Michael Rafferty, P.E. | K42: ← (Note - This design tool may be used by practitioners if they cite the developer on each sheet)
A43: Version 1.1
A45: Reference for Companion Paper:
A46: Rafferty, M. 2016. Computational Design Tool for Evaluating the Stability of Large Wood Structures. Technical Note TN-103.1. Fort Collins, CO: U.S. Department of Agriculture, Forest Service, National Stream & Aquatic Ecology Center.

Sheet 2-Constants
A1: ='1-Cover'!A1 -> Sample Multi-Log Structure | C1: Spreadsheet developed by Michael Rafferty, P.E.
A2: Factors of Safety and Design Constants
A4: Symbol | B4: Description | C4: Value
A5: FSV | B5: Factor of Safety for Vertical Force Balance | C5: 1.5
A6: FSH | B6: Factor of Safety for Horizontal Force Balance | C6: 1.5
A7: FSM | B7: Factor of Safety for Moment Force Balance | C7: 1.5
A9: Symbol | B9: Description | C9: Units | D9: Value
A10: CLrock | B10: Coefficient of lift for submerged boulder (D’Aoust, 2000) | C10: - | D10: 0.17
A11: CDrock | B11: Coefficient of drag for submerged boulder (Schultz, 1954) | C11: - | D11: 0.85
A12: g | B12: Gravitational acceleration constant | C12: ft/s2 | D12: 32.174
A13: DFRW | B13: Diameter factor for rootwad (DFRW = DRW/DTS) | C13: - | D13: 3
A14: LFRW | B14: Length factor for rootwad (LFRW = LRW/DTS) | C14: - | D14: 1.5
A15: SGrock | B15: Specific gravity of quartz particles | C15: - | D15: 2.65
A16: grock | B16: Dry unit weight of boulders | C16: lb/ft3 | D16: 165
A17: gw | B17: Specific weight of water at 50⁰F | C17: lb/ft3 | D17: 62.4
A18: h | B18: Rootwad porosity from NRCS Tech Note 15 (2001) | C18: - | D18: 0.2
A19: n | B19: Kinematic viscosity of water at 50⁰F | C19: ft/s2 | D19: 1.41e-05

Sheet 3-H&H
A1: ='1-Cover'!A1 -> Sample Multi-Log Structure | F1: Spreadsheet developed by Michael Rafferty, P.E.
A2: Hydrologic and Hydraulic Inputs
A4: Average Return Interval (ARI) of Design Discharge: | F4: 50 | G4: yr
A6: Site ID | B6: Proposed Station | C6: Design Discharge, Qdes (cfs) | D6: Maximum Depth, dw (ft) | E6: Average Velocity, uavg (ft/s) | F6: Bankfull Width, WBF (ft) | G6: Wetted Area, AW (ft2) | H6: Radius of Curvature, Rc (ft) | I6: Rc/WBF | J6: Velocity at Outer Meander Bend1, um (ft/s)
A9: Sample1 | B9: 1000 | C9: 3700 | D9: 8.45 | E9: 3.4 | F9: 94 | G9: 1650 | H9: 500 | I9: =IF(OR($F9="",$H9=""),"",$H9/$F9) -> 5.319148936 | J9: =IF(OR(E9="",I9=""),"",IF(I9>26,E9,E9*(1.74-(0.52*LOG(I9))))) -> 4.632711077
J29: 1 Meander velocity, um = | L29: uavg [for Rc/WBF > 26]
L30: uavg(1.74 - 0.52 log (Rc/WBF)) [for Rc/WBF < 26]
J31: Source for meander velocity in channel bends:
J32: US Dept of Transportation. (2009) Hydraulic Engineering Circular No. 23 v2: Bridge Scour and Stream Instability Countermeasures: Experience, Selection, and Design Guidance-Third Edition. Design Guideline 4 Riprap Revetment.

Sheet 4-Soil
C1: ='1-Cover'!A1 -> Sample Multi-Log Structure | G1: Spreadsheet developed by Michael Rafferty, P.E. | I1: ='1-Cover'!A1 -> Sample Multi-Log Structure | L1: Spreadsheet developed by Michael Rafferty, P.E.
C2: Stream Bed Substrate Properties | I2: Bank Soil Properties | P2: Substrate and Soil Properties Lookup Table | V2: Bank Soil Properties Lookup Table
P3: General Substrate and Soil Properties1 | V3: Bank Soil Properties1
A4: Site ID | B4: Proposed Station | C4: Stream bed D50 (mm) | D4: Stream Bed Substrate Grain Size Class | E4: Bed Soil Class | F4: Dry Unit Weight1, gbed (lb/ft3) | G4: Buoyant Unit Weight, g'bed (lb/ft3) | H4: Friction Angle, fbed (deg) | I4: Bank Soils (from field observations) | J4: Bank Soil Class | K4: Dry Unit Weight, gbank (lb/ft3) | L4: Buoyant Unit Weight, g'bank (lb/ft3) | M4: Friction Angle, fbank (deg) | P4: Grain size (mm) | Q4: Stream Substrate Sediment Class | R4: Average Dry Unit Weight, gs (lb/ft3) | S4: Internal Friction Angle, f (deg) | T4: Bed Soil Class | V4: Description (from field observations) | W4: Bank Soil Class | X4: Probe Value (in/lb) | Y4: Average Dry Unit Weight, gbank (lb/ft3) | Z4: Friction Angle, fbank (deg) | AA4: Void ratio2, e (Vv/Vs) | AB4: Porosity, po e/(1+e) | AC4: Saturated Unit Weight3, gbank,sat (lb/ft3) | AD4: Buoyant Unit Weight4, g'bank (lb/ft3)
A7: =IF('3-H&H'!A9="","",'3-H&H'!A9) -> Sample1 | B7: =IF('3-H&H'!B9="","",'3-H&H'!B9) -> 1000 | C7: 88.8 | D7: =IF(C7="","",IF(C7>2048,$Q$7,IF(C7>256,$Q$8,IF(C7>128,$Q$9,IF(C7>64,$Q$10,IF(C7>32,$Q$11,IF(C7>16,$Q$12,IF(C7>8,$Q$13,IF(C7>4,$Q$14,IF(C7>2,$Q$15,IF(C7>1,$Q$16,IF(C7>0.5,$Q$17,IF(C7>0.25,$Q$18,IF(C7>0.125,$Q$19,IF(C7>0.0625,$Q$20,IF(C7>0.004,$Q$21,$Q$22)))))))))))))))) -> Small Cobble | E7: =IF(C7="","",VLOOKUP(D7,$Q$7:$T$22,4,0)) -> 4 | F7: =IF(C7="","",(1600+300*LOG(C7))*$E$30) -> 136.3754574 | G7: =IF(D7="","",(((SG+((SG*SWWater/F7)-1))*SWWater)/(1+((SG*SWWater/F7)-1)))-SWWater) -> 84.91302064 | H7: =IF(C7="","",VLOOKUP(D7,$Q$7:$T$22,3,0)) -> 41 | I7: Gravel/cobble | J7: =IF(I7="","",VLOOKUP(I7,$V$7:$Z$22,2,0)) -> 4 | K7: =IF(I7="","",VLOOKUP(I7,$V$7:$Z$22,4,0)) -> 137 | L7: =IF(I7="","",VLOOKUP(I7,$V$7:$AD$22,9,0)) -> 85.30188679 | M7: =IF(I7="","",VLOOKUP(I7,$V$7:$Z$22,5,0)) -> 41 | P7: Bedrock | Q7: Bedrock | R7: 165 | S7: - | T7: 1 | V7: Gravel/cobble | W7: 4 | X7: 400-500 | Y7: =R10 -> 137 | Z7: =S10 -> 41 | AA7: =((SG*SWWater)/Y7)-1 -> 0.2070072993 | AB7: =AA7/(1+AA7) -> 0.171504596 | AC7: =((SG+AA7)*SWWater)/(1+AA7) -> 147.7018868 | AD7: =AC7-SWWater -> 85.30188679
A8: =IF('3-H&H'!A10="","",'3-H&H'!A10) ->  | B8: =IF('3-H&H'!B10="","",'3-H&H'!B10) ->  | G8: =IF(D8="","",(((SG+((SG*SWWater/F8)-1))*SWWater)/(1+((SG*SWWater/F8)-1)))-SWWater) ->  | P8: 256-2048 | Q8: Boulder | R8: 146 | S8: 42 | T8: 4 | V8: Gravel, dense | W8: 4 | X8: 400-500 | Y8: 131.4 | Z8: 40 | AA8: =((SG*SWWater)/Y8)-1 -> 0.2584474886 | AB8: =AA8/(1+AA8) -> 0.2053701016 | AC8: =((SG+AA8)*SWWater)/(1+AA8) -> 144.2150943 | AD8: =AC8-SWWater -> 81.81509434
A9: =IF('3-H&H'!A11="","",'3-H&H'!A11) ->  | B9: =IF('3-H&H'!B11="","",'3-H&H'!B11) ->  | P9: 128-256 | Q9: Large Cobble | R9: 142.6 | S9: 42 | T9: 4 | V9: Gravel, loose | W9: 5 | X9: 300-400 | Y9: 125.7 | Z9: 36 | AA9: 0.3155131265 | AB9: 0.2398403483 | AC9: 140.6660377 | AD9: 78.26603774
A10: =IF('3-H&H'!A12="","",'3-H&H'!A12) ->  | B10: =IF('3-H&H'!B12="","",'3-H&H'!B12) ->  | P10: 64-128 | Q10: Small Cobble | R10: 137 | S10: 41 | T10: 4 | V10: Gravel/sand | W10: 5 | X10: 400-500 | Y10: 111.65 | Z10: 39 | AA10: 0.4810568742 | AB10: 0.3248064828 | AC10: 131.9179245 | AD10: 69.51792453
A11: =IF('3-H&H'!A13="","",'3-H&H'!A13) ->  | B11: =IF('3-H&H'!B13="","",'3-H&H'!B13) ->  | P11: 32-64 | Q11: Very coarse gravel | R11: 131.4 | S11: 40 | T11: 5 | V11: Coarse sand, dense | W11: 5 | X11: 300-400 | Y11: 120 | Z11: 43 | AA11: 0.378 | AB11: 0.2743105951 | AC11: 137.1169811 | AD11: 74.71698113
A12: =IF('3-H&H'!A14="","",'3-H&H'!A14) ->  | B12: =IF('3-H&H'!B14="","",'3-H&H'!B14) ->  | P12: 16-32 | Q12: Coarse gravel | R12: 125.7 | S12: 38 | T12: 5 | V12: Coarse sand, loose | W12: 6 | X12: 200-300 | Y12: 98 | Z12: 31 | AA12: 0.6873469388 | AB12: 0.4073536526 | AC12: 123.4188679 | AD12: 61.01886792
A13: =IF('3-H&H'!A15="","",'3-H&H'!A15) ->  | B13: =IF('3-H&H'!B15="","",'3-H&H'!B15) ->  | P13: 8-16 | Q13: Medium gravel | R13: 120.1 | S13: 36 | T13: 5 | V13: Fine sand, dense | W13: 6 | X13: 200-300 | Y13: 114 | Z13: 42 | AA13: 0.4505263158 | AB13: 0.3105950653 | AC13: 133.3811321 | AD13: 70.98113208
A14: =IF('3-H&H'!A16="","",'3-H&H'!A16) ->  | B14: =IF('3-H&H'!B16="","",'3-H&H'!B16) ->  | P14: 4-8 | Q14: Fine gravel | R14: 114.5 | S14: 35 | T14: 5 | V14: Fine sand, loose | W14: 7 | X14: 100-200 | Y14: 93 | Z14: 30 | AA14: 0.7780645161 | AB14: 0.4375907112 | AC14: 120.3056604 | AD14: 57.90566038
A15: =IF('3-H&H'!A17="","",'3-H&H'!A17) ->  | B15: =IF('3-H&H'!B17="","",'3-H&H'!B17) ->  | P15: 2-4 | Q15: Very fine gravel | R15: 108.8 | S15: 33 | T15: 6 | V15: Clay, firm | W15: 6 | X15: 200-300 | Y15: 90 | Z15: 27 | AA15: 0.8373333333 | AB15: 0.4557329463 | AC15: 118.4377358 | AD15: 56.03773585
A16: =IF('3-H&H'!A18="","",'3-H&H'!A18) ->  | B16: =IF('3-H&H'!B18="","",'3-H&H'!B18) ->  | P16: 1-2 | Q16: Very course sand | R16: 103.2 | S16: 32 | T16: 6 | V16: Clay, soft | W16: 7 | X16: 100-200 | Y16: 78 | Z16: 25 | AA16: 1.12 | AB16: 0.5283018868 | AC16: 110.9660377 | AD16: 48.56603774
A17: =IF('3-H&H'!A19="","",'3-H&H'!A19) ->  | B17: =IF('3-H&H'!B19="","",'3-H&H'!B19) ->  | P17: 0.5-1 | Q17: Coarse sand | R17: 98 | S17: 31 | T17: 6 | V17: Clayey silt | W17: 6 | X17: 200-300 | Y17: 84 | Z17: 27 | AA17: 0.9685714286 | AB17: 0.4920174165 | AC17: 114.7018868 | AD17: 52.30188679
A18: =IF('3-H&H'!A20="","",'3-H&H'!A20) ->  | B18: =IF('3-H&H'!B20="","",'3-H&H'!B20) ->  | P18: 0.25-0.5 | Q18: Medium sand | R18: 94 | S18: 30 | T18: 7 | V18: Silt, firm | W18: 6 | X18: 200-300 | Y18: 90 | Z18: 32 | AA18: 0.8373333333 | AB18: 0.4557329463 | AC18: 118.4377358 | AD18: 56.03773585
A19: =IF('3-H&H'!A21="","",'3-H&H'!A21) ->  | B19: =IF('3-H&H'!B21="","",'3-H&H'!B21) ->  | P19: 0.125-0.25 | Q19: Fine sand | R19: 93 | S19: 30 | T19: 7 | V19: Silt, soft | W19: 7 | X19: 100-200 | Y19: 82 | Z19: 30 | AA19: 1.016585366 | AB19: 0.50411224 | AC19: 113.4566038 | AD19: 51.05660377
A20: =IF('3-H&H'!A22="","",'3-H&H'!A22) ->  | B20: =IF('3-H&H'!B22="","",'3-H&H'!B22) ->  | P20: 0.063-0.125 | Q20: Very fine sand | R20: 92 | S20: 30 | T20: 7 | V20: Bedrock, solid | W20: 1 | X20: - | Y20: 165 | Z20: - | AA20: - | AB20: - | AC20: - | AD20: -
A21: =IF('3-H&H'!A23="","",'3-H&H'!A23) ->  | B21: =IF('3-H&H'!B23="","",'3-H&H'!B23) ->  | P21: 0.004-0.063 | Q21: Silt | R21: 82 | S21: 30 | T21: 7 | V21: Custom1 (optional) | W21: (input) | X21: (input) | Y21: (input) | Z21: (input) | AA21: =IF(Y21="(input)","",((SG*SWWater)/Y21)-1) ->  | AB21: =IF(Y21="(input)","",AA21/(1+AA21)) ->  | AC21: =IF(Y21="(input)","",((SG+AA21)*SWWater)/(1+AA21)) ->  | AD21: =IF(Y21="(input)","",AC21-SWWater) -> 
A22: =IF('3-H&H'!A24="","",'3-H&H'!A24) ->  | B22: =IF('3-H&H'!B24="","",'3-H&H'!B24) ->  | P22: < 0.004 | Q22: Clay | R22: 78 | S22: 25 | T22: 7 | V22: Custom2 (optional) | W22: (input) | X22: (input) | Y22: (input) | Z22: (input) | AA22: =IF(Y22="(input)","",((SG*SWWater)/Y22)-1) ->  | AB22: =IF(Y22="(input)","",AA22/(1+AA22)) ->  | AC22: =IF(Y22="(input)","",((SG+AA22)*SWWater)/(1+AA22)) ->  | AD22: =IF(Y22="(input)","",AC22-SWWater) -> 
A23: =IF('3-H&H'!A25="","",'3-H&H'!A25) ->  | B23: =IF('3-H&H'!B25="","",'3-H&H'!B25) ->  | P23: 1 Compiled from Julien (2010) and Shen and Julien (1993) | V23: 1 Compiled from NRCS Table TS14E–2 Soil classification and Bowles (2001)
A24: =IF('3-H&H'!A26="","",'3-H&H'!A26) ->  | B24: =IF('3-H&H'!B26="","",'3-H&H'!B26) ->  | V24: 2 Void ratio, e, is backcalculated using the following equation: e = (SGrock*gw/gbank) - 1
A25: =IF('3-H&H'!A27="","",'3-H&H'!A27) ->  | B25: =IF('3-H&H'!B27="","",'3-H&H'!B27) ->  | V25: 3 Saturated Unit Weight of soil, gbank,sat = ((SGrock+e)*gw)/(1+e)
A26: =IF('3-H&H'!A28="","",'3-H&H'!A28) ->  | B26: =IF('3-H&H'!B28="","",'3-H&H'!B28) ->  | V26: 4 Effective Buoyant Unit Weight of soil, g'bank = gbank,sat - gw
C27: Source: | D27: Compiled from Julien (2010) and Shen and Julien (1993); soil classes from NRCS Table TS14E–2 Soil classification
C29: 1 gbed (kg/m3) = 1,600 + 300 log D50 (mm) | G29: (from Julien 2010)
D30: 1 kg/m3 = | E30: 0.062428 | F30: 1 lb/ft3

Sheet 5-Wood
A1: ='1-Cover'!A1 -> Sample Multi-Log Structure | D1: Spreadsheet developed by Michael Rafferty, P.E. | N1: Common Trees in Great Plains Region | U1: Common Trees in Upper Midwest Region | AB1: Common Trees in New England Region
A2: Large Wood Properties | N2: Common Name | O2: Scientific Name | P2: Type | Q2: SGT | R2: gTd (lb/ft3) | S2: gTgr (lb/ft3) | U2: Common Name | V2: Scientific Name | W2: Type | X2: SGT | Y2: gTd (lb/ft3) | Z2: gTgr (lb/ft3) | AB2: Common Name | AC2: Scientific Name | AD2: Type | AE2: SGT | AF2: gTd (lb/ft3) | AG2: gTgr (lb/ft3)
N3: Ash, Black | O3: Fraxinus nigra | P3: Hardwood | Q3: 0.49 | R3: =Q3*62.4*1.12 -> 34.24512 | S3: 52 | U3: Ash, Black | V3: Fraxinus nigra | W3: Hardwood | X3: 0.49 | Y3: =X3*62.4*1.12 -> 34.24512 | Z3: 52 | AB3: Ash, Black | AC3: Fraxinus nigra | AD3: Hardwood | AE3: 0.49 | AF3: =AE3*62.4*1.12 -> 34.24512 | AG3: 52
A4: Project Location: | B4: West Coast | N4: Ash, Blue | O4: Fraxinus quadrangulata | P4: Hardwood | Q4: 0.58 | R4: 40.53504 | S4: 50 | U4: Ash, Blue | V4: Fraxinus quadrangulata | W4: Hardwood | X4: 0.58 | Y4: 40.53504 | Z4: 50 | AB4: Ash, Green | AC4: Fraxinus pennsylvanica | AD4: Hardwood | AE4: 0.56 | AF4: 39.13728 | AG4: 52
N5: Ash, Green | O5: Fraxinus pennsylvanica | P5: Hardwood | Q5: 0.56 | R5: 39.13728 | S5: 52 | U5: Ash, Green | V5: Fraxinus pennsylvanica | W5: Hardwood | X5: 0.56 | Y5: 39.13728 | Z5: 52 | AB5: Ash, White | AC5: Fraxinus americana | AD5: Hardwood | AE5: 0.6 | AF5: 41.9328 | AG5: 50
A6: Timber Unit Weights | D6: Air-dried1 gTd (lb/ft3) | E6: Green2 gTgr (lb/ft3) | N6: Ash, White | O6: Fraxinus americana | P6: Hardwood | Q6: 0.6 | R6: 41.9328 | S6: 50 | U6: Ash, White | V6: Fraxinus americana | W6: Hardwood | X6: 0.6 | Y6: 41.9328 | Z6: 50 | AB6: Aspen, Bigtooth | AC6: Populus grandidentata | AD6: Hardwood | AE6: 0.39 | AF6: 27.25632 | AG6: 43
A7: Selected Species | B7: Common Name | C7: Scientific Name | N7: Aspen, Bigtooth | O7: Populus grandidentata | P7: Hardwood | Q7: 0.39 | R7: 27.25632 | S7: 43 | U7: Aspen, Bigtooth | V7: Populus grandidentata | W7: Hardwood | X7: 0.39 | Y7: 27.25632 | Z7: 43 | AB7: Aspen, Quaking | AC7: Populus tremuloides | AD7: Hardwood | AE7: 0.38 | AF7: 26.55744 | AG7: 50
A8: Tree Type #1: | B8: Douglas-fir, Interior west | C8: =IF($B8="","",IF($B$4="West Coast",VLOOKUP($B8,WCTreesTable,2,0),IF($B$4="Mountain West",VLOOKUP($B8,MWTreesTable,2,0),IF($B$4="Great Plains",VLOOKUP($B8,GPTreesTable,2,0),IF($B$4="South Central",VLOOKUP($B8,SCTreesTable,2,0),IF($B$4="Upper Midwest",VLOOKUP($B8,UMWTreesTable,2,0),IF($B$4="Southeast",VLOOKUP($B8,SETreesTable,2,0),IF($B$4="New England",VLOOKUP($B8,NETreesTable,2,0),IF($B$4="Mid-Atlantic",VLOOKUP($B8,MATreesTable,2,0),""))))))))) -> Pseudotsuga menziesii var. glauca | D8: =IF($B8="","",IF($B$4="West Coast",VLOOKUP($B8,WCTreesTable,5,0),IF($B$4="Mountain West",VLOOKUP($B8,MWTreesTable,5,0),IF($B$4="Great Plains",VLOOKUP($B8,GPTreesTable,5,0),IF($B$4="South Central",VLOOKUP($B8,SCTreesTable,5,0),IF($B$4="Upper Midwest",VLOOKUP($B8,UMWTreesTable,5,0),IF($B$4="Southeast",VLOOKUP($B8,SETreesTable,5,0),IF($B$4="New England",VLOOKUP($B8,NETreesTable,5,0),IF($B$4="Mid-Atlantic",VLOOKUP($B8,MATreesTable,5,0),""))))))))) -> 34.944 | E8: =IF($B8="","",IF($B$4="West Coast",VLOOKUP($B8,WCTreesTable,6,0),IF($B$4="Mountain West",VLOOKUP($B8,MWTreesTable,6,0),IF($B$4="Great Plains",VLOOKUP($B8,GPTreesTable,6,0),IF($B$4="South Central",VLOOKUP($B8,SCTreesTable,6,0),IF($B$4="Upper Midwest",VLOOKUP($B8,UMWTreesTable,6,0),IF($B$4="Southeast",VLOOKUP($B8,SETreesTable,6,0),IF($B$4="New England",VLOOKUP($B8,NETreesTable,6,0),IF($B$4="Mid-Atlantic",VLOOKUP($B8,MATreesTable,6,0),""))))))))) -> 39 | N8: Aspen, Quaking | O8: Populus tremuloides | P8: Hardwood | Q8: 0.38 | R8: 26.55744 | S8: 50 | U8: Aspen, Quaking | V8: Populus tremuloides | W8: Hardwood | X8: 0.38 | Y8: 26.55744 | Z8: 50 | AB8: Balsam poplar (cottonwood) | AC8: Populus balsamifera | AD8: Hardwood | AE8: 0.34 | AF8: 23.76192 | AG8: 40
A9: Tree Type #2: | B9: Cedar, Western redcedar | C9: Thuja plicata | D9: 22.36416 | E9: 27 | N9: Balsam poplar (cottonwood) | O9: Populus balsamifera | P9: Hardwood | Q9: 0.34 | R9: 23.76192 | S9: 40 | U9: Balsam poplar (cottonwood) | V9: Populus balsamifera | W9: Hardwood | X9: 0.34 | Y9: 23.76192 | Z9: 40 | AB9: Basswood, American | AC9: Tilia americana | AD9: Hardwood | AE9: 0.37 | AF9: 25.85856 | AG9: 41
A10: Tree Type #3: | N10: Basswood, American | O10: Tilia americana | P10: Hardwood | Q10: 0.37 | R10: 25.85856 | S10: 41 | U10: Basswood, American | V10: Tilia americana | W10: Hardwood | X10: 0.37 | Y10: 25.85856 | Z10: 41 | AB10: Beech, American | AC10: Fagus grandifolia | AD10: Hardwood | AE10: 0.64 | AF10: 44.72832 | AG10: 54
A11: Tree Type #4: | N11: Birch, Paper | O11: Betula papyrifera | P11: Hardwood | Q11: 0.55 | R11: 38.4384 | S11: 52 | U11: Beech, American | V11: Fagus grandifolia | W11: Hardwood | X11: 0.64 | Y11: 44.72832 | Z11: 54 | AB11: Birch, Paper | AC11: Betula papyrifera | AD11: Hardwood | AE11: 0.55 | AF11: 38.4384 | AG11: 52
A12: Tree Type #5: | N12: Birch, Yellow | O12: Betula alleghaniensis | P12: Hardwood | Q12: 0.62 | R12: 43.33056 | S12: 59 | U12: Birch, Paper | V12: Betula papyrifera | W12: Hardwood | X12: 0.55 | Y12: 38.4384 | Z12: 52 | AB12: Birch, Sweet | AC12: Betula lenta | AD12: Hardwood | AE12: 0.65 | AF12: 45.4272 | AG12: 65
A13: Tree Type #6: | N13: Butternut | O13: Juglans cinerea | P13: Hardwood | Q13: 0.38 | R13: 26.55744 | S13: 46 | U13: Birch, Sweet | V13: Betula lenta | W13: Hardwood | X13: 0.65 | Y13: 45.4272 | Z13: 65 | AB13: Birch, Yellow | AC13: Betula alleghaniensis | AD13: Hardwood | AE13: 0.62 | AF13: 43.33056 | AG13: 59
A14: Tree Type #7: | N14: Cedar, Eastern redcedar | O14: Juniperus virginiana | P14: Softwood | Q14: 0.47 | R14: 32.84736 | S14: 37 | U14: Birch, Yellow | V14: Betula alleghaniensis | W14: Hardwood | X14: 0.62 | Y14: 43.33056 | Z14: 59 | AB14: Butternut | AC14: Juglans cinerea | AD14: Hardwood | AE14: 0.38 | AF14: 26.55744 | AG14: 46
A15: Tree Type #8: | N15: Cedar, Northern white | O15: Thuja occidentalis | P15: Softwood | Q15: 0.31 | R15: 21.66528 | S15: 36 | U15: Butternut | V15: Juglans cinerea | W15: Hardwood | X15: 0.38 | Y15: 26.55744 | Z15: 46 | AB15: Cedar, Atlantic white | AC15: Chamaecyparis thyoides | AD15: Softwood | AE15: 0.32 | AF15: 22.36416 | AG15: 36
A16: Tree Type #9: | N16: Cherry, Black | O16: Prunus serotina | P16: Hardwood | Q16: 0.5 | R16: 34.944 | S16: 45 | U16: Cedar, Eastern redcedar | V16: Juniperus virginiana | W16: Softwood | X16: 0.47 | Y16: 32.84736 | Z16: 37 | AB16: Cedar, Eastern redcedar | AC16: Juniperus virginiana | AD16: Softwood | AE16: 0.47 | AF16: 32.84736 | AG16: 37
A17: Tree Type #10: | N17: Cottonwood, Eastern | O17: Populus deltoides | P17: Hardwood | Q17: 0.4 | R17: 27.9552 | S17: 50 | U17: Cedar, Northern white | V17: Thuja occidentalis | W17: Softwood | X17: 0.31 | Y17: 21.66528 | Z17: 36 | AB17: Cedar, Northern white | AC17: Thuja occidentalis | AD17: Softwood | AE17: 0.31 | AF17: 21.66528 | AG17: 36
A18: 1 Air-dried unit weight, gTd = Average unit weight of wood after exposure to air on a 12% moisture content volume basis. Air-dried unit weight is used in the force balance calculations for the portion of wood that is above the proposed thalweg elevation (assuming unsaturated conditions). | N18: Elm, American | O18: Ulmus americana | P18: Hardwood | Q18: 0.5 | R18: 34.944 | S18: 56 | U18: Cherry, Black | V18: Prunus serotina | W18: Hardwood | X18: 0.5 | Y18: 34.944 | Z18: 45 | AB18: Cherry, Black | AC18: Prunus serotina | AD18: Hardwood | AE18: 0.5 | AF18: 34.944 | AG18: 45
N19: Elm, Rock | O19: Ulmus thomasii | P19: Hardwood | Q19: 0.63 | R19: 44.02944 | S19: 54 | U19: Chestnut, American | V19: Castanea dentata | W19: Hardwood | X19: 0.43 | Y19: 30.05184 | Z19: 55 | AB19: Chestnut, American | AC19: Castanea dentata | AD19: Hardwood | AE19: 0.43 | AF19: 30.05184 | AG19: 55
N20: Elm, Slippery | O20: Ulmus rubra | P20: Hardwood | Q20: 0.53 | R20: 37.04064 | S20: 53 | U20: Cottonwood, Eastern | V20: Populus deltoides | W20: Hardwood | X20: 0.4 | Y20: 27.9552 | Z20: 50 | AB20: Cottonwood, Eastern | AC20: Populus deltoides | AD20: Hardwood | AE20: 0.4 | AF20: 27.9552 | AG20: 50
A21: 2 Green unit weight, gTgr = Average unit weight of freshly sawn wood when the cell walls are completely saturated with water. Green unit weight is used in the force balance calculations as a conservative estimate of the unit weight for the portion of wood that is below the proposed thalweg elevation (assuming saturated conditions). For comparison, Thevenet, Citterio, & Piegay (1998) determined wood unit weight typically increases by more than 100% after less than 24 hours exposure to water. | N21: Fir, Balsam | O21: Abies balsamea | P21: Softwood | Q21: 0.35 | R21: 24.4608 | S21: 45 | U21: Cucumbertree (magnolia) | V21: Magnolia acuminata | W21: Hardwood | X21: 0.48 | Y21: 33.54624 | Z21: 48 | AB21: Cucumbertree (magnolia) | AC21: Magnolia acuminata | AD21: Hardwood | AE21: 0.48 | AF21: 33.54624 | AG21: 48
N22: Hackberry | O22: Celtis occidentalis | P22: Hardwood | Q22: 0.53 | R22: 37.04064 | S22: 50 | U22: Elm, American | V22: Ulmus americana | W22: Hardwood | X22: 0.5 | Y22: 34.944 | Z22: 56 | AB22: Elm, American | AC22: Ulmus americana | AD22: Hardwood | AE22: 0.5 | AF22: 34.944 | AG22: 56
N23: Hickory, Bitternut | O23: Carya cordiformis | P23: Hardwood | Q23: 0.66 | R23: 46.12608 | S23: 64 | U23: Elm, Rock | V23: Ulmus thomasii | W23: Hardwood | X23: 0.63 | Y23: 44.02944 | Z23: 54 | AB23: Elm, Rock | AC23: Ulmus thomasii | AD23: Hardwood | AE23: 0.63 | AF23: 44.02944 | AG23: 54
N24: Hickory, Mockernut | O24: Carya tomentosa | P24: Hardwood | Q24: 0.72 | R24: 50.31936 | S24: 65 | U24: Elm, Slippery | V24: Ulmus rubra | W24: Hardwood | X24: 0.53 | Y24: 37.04064 | Z24: 53 | AB24: Elm, Slippery | AC24: Ulmus rubra | AD24: Hardwood | AE24: 0.53 | AF24: 37.04064 | AG24: 53
N25: Hickory, Pignut | O25: Carya glabra | P25: Hardwood | Q25: 0.75 | R25: 52.416 | S25: 68 | U25: Fir, Balsam | V25: Abies balsamea | W25: Softwood | X25: 0.35 | Y25: 24.4608 | Z25: 45 | AB25: Fir, Balsam | AC25: Abies balsamea | AD25: Softwood | AE25: 0.35 | AF25: 24.4608 | AG25: 45
G26: Common Trees in West Coast Region | N26: Hickory, Shagbark | O26: Carya ovata | P26: Hardwood | Q26: 0.72 | R26: 50.31936 | S26: 64 | U26: Hackberry | V26: Celtis occidentalis | W26: Hardwood | X26: 0.53 | Y26: 37.04064 | Z26: 50 | AB26: Hackberry | AC26: Celtis occidentalis | AD26: Hardwood | AE26: 0.53 | AF26: 37.04064 | AG26: 50
A27: Source for timber unit weights: | G27: Common Name | H27: Scientific Name | I27: Type | J27: SGT | K27: gTd (lb/ft3) | L27: gTgr (lb/ft3) | N27: Hickory, Shellbark | O27: Carya laciniosa | P27: Hardwood | Q27: 0.69 | R27: 48.22272 | S27: 64 | U27: Hemlock, Eastern | V27: Tsuga canadensis | W27: Softwood | X27: 0.4 | Y27: 27.9552 | Z27: 50 | AB27: Hemlock, Eastern | AC27: Tsuga canadensis | AD27: Softwood | AE27: 0.4 | AF27: 27.9552 | AG27: 50
A28: U.S. Department of Agriculture, U.S. Forest Service. (2009) Specific Gravity and Other Properties of Wood and Bark for 156 Tree Species Found in North America. Research Note NRS-38. Table 1A. | G28: Alder, Red | H28: Alnus rubra | I28: Hardwood | J28: 0.41 | K28: =J28*62.4*1.12 -> 28.65408 | L28: 46 | N28: Honey locust | O28: Gleditsia triacanthos | P28: Hardwood | Q28: 0.65 | R28: 45.4272 | S28: 60 | U28: Hickory, Bitternut | V28: Carya cordiformis | W28: Hardwood | X28: 0.66 | Y28: 46.12608 | Z28: 64 | AB28: Hickory, Bitternut | AC28: Carya cordiformis | AD28: Hardwood | AE28: 0.66 | AF28: 46.12608 | AG28: 64
G29: Ash, Oregon | H29: Fraxinus latifolia | I29: Hardwood | J29: 0.55 | K29: 38.4384 | L29: 50 | N29: Locust, Black | O29: Robinia pseudoacacia | P29: Hardwood | Q29: 0.69 | R29: 48.22272 | S29: 58 | U29: Hickory, Mockernut | V29: Carya tomentosa | W29: Hardwood | X29: 0.72 | Y29: 50.31936 | Z29: 65 | AB29: Hickory, Mockernut | AC29: Carya tomentosa | AD29: Hardwood | AE29: 0.72 | AF29: 50.31936 | AG29: 65
G30: Aspen, Quaking | H30: Populus tremuloides | I30: Hardwood | J30: 0.38 | K30: 26.55744 | L30: 50 | N30: Maple, Black | O30: Acer nigrum | P30: Hardwood | Q30: 0.57 | R30: 39.83616 | S30: 55 | U30: Hickory, Pignut | V30: Carya glabra | W30: Hardwood | X30: 0.75 | Y30: 52.416 | Z30: 68 | AB30: Hickory, Pignut | AC30: Carya glabra | AD30: Hardwood | AE30: 0.75 | AF30: 52.416 | AG30: 68
G31: Birch, Paper | H31: Betula papyrifera | I31: Hardwood | J31: 0.55 | K31: 38.4384 | L31: 52 | N31: Maple, Red | O31: Acer rubrum | P31: Hardwood | Q31: 0.54 | R31: 37.73952 | S31: 50 | U31: Hickory, Shagbark | V31: Carya ovata | W31: Hardwood | X31: 0.72 | Y31: 50.31936 | Z31: 64 | AB31: Hickory, Shagbark | AC31: Carya ovata | AD31: Hardwood | AE31: 0.72 | AF31: 50.31936 | AG31: 64
G32: Cedar, Alaska-yellow | H32: Cupressus nootkatensis | I32: Softwood | J32: 0.44 | K32: 30.75072 | L32: 45 | N32: Maple, Silver | O32: Acer saccharinum | P32: Hardwood | Q32: 0.47 | R32: 32.84736 | S32: 46 | U32: Hickory, Shellbark | V32: Carya laciniosa | W32: Hardwood | X32: 0.69 | Y32: 48.22272 | Z32: 64 | AB32: Hickory, Shellbark | AC32: Carya laciniosa | AD32: Hardwood | AE32: 0.69 | AF32: 48.22272 | AG32: 64
G33: Cedar, Incense | H33: Calocedrus decurrens | I33: Softwood | J33: 0.37 | K33: 25.85856 | L33: 45 | N33: Maple, Sugar | O33: Acer saccharum | P33: Hardwood | Q33: 0.63 | R33: 44.02944 | S33: 55 | U33: Honey locust | V33: Gleditsia triacanthos | W33: Hardwood | X33: 0.65 | Y33: 45.4272 | Z33: 60 | AB33: Honey locust | AC33: Gleditsia triacanthos | AD33: Hardwood | AE33: 0.65 | AF33: 45.4272 | AG33: 60
G34: Cedar, Port-Orford | H34: Chamaecyparis lawsoniana | I34: Softwood | J34: 0.43 | K34: 30.05184 | L34: 42 | N34: Oak, Black | O34: Quercus velutina | P34: Hardwood | Q34: 0.61 | R34: 42.63168 | S34: 64 | U34: Locust, Black | V34: Robinia pseudoacacia | W34: Hardwood | X34: 0.69 | Y34: 48.22272 | Z34: 58 | AB34: Locust, Black | AC34: Robinia pseudoacacia | AD34: Hardwood | AE34: 0.69 | AF34: 48.22272 | AG34: 58
G35: Cedar, Western redcedar | H35: Thuja plicata | I35: Softwood | J35: 0.32 | K35: 22.36416 | L35: 27 | N35: Oak, Bur | O35: Quercus macrocarpa | P35: Hardwood | Q35: 0.64 | R35: =Q35*62.4*1.12 -> 44.72832 | S35: 63 | U35: Maple, Black | V35: Acer nigrum | W35: Hardwood | X35: 0.57 | Y35: =X35*62.4*1.12 -> 39.83616 | Z35: 55 | AB35: Maple, Black | AC35: Acer nigrum | AD35: Hardwood | AE35: 0.57 | AF35: =AE35*62.4*1.12 -> 39.83616 | AG35: 55
G36: Cottonwood, Black | H36: Populus trichocarpa | I36: Hardwood | J36: 0.35 | K36: 24.4608 | L36: 46 | N36: Oak, Cherrybark | O36: Quercus pagoda | P36: Hardwood | Q36: 0.69 | R36: 48.22272 | S36: 64 | U36: Maple, Red | V36: Acer rubrum | W36: Hardwood | X36: 0.54 | Y36: 37.73952 | Z36: 50 | AB36: Maple, Red | AC36: Acer rubrum | AD36: Hardwood | AE36: 0.54 | AF36: 37.73952 | AG36: 50
G37: Douglas-fir, Coast | H37: Pseudotsuga menziesii var. menzi. | I37: Softwood | J37: 0.48 | K37: 33.54624 | L37: 38 | N37: Oak, Northern red | O37: Quercus rubra | P37: Hardwood | Q37: 0.63 | R37: 44.02944 | S37: 64 | U37: Maple, Silver | V37: Acer saccharinum | W37: Hardwood | X37: 0.47 | Y37: 32.84736 | Z37: 46 | AB37: Maple, Silver | AC37: Acer saccharinum | AD37: Hardwood | AE37: 0.47 | AF37: 32.84736 | AG37: 46
G38: Douglas-fir, Interior west | H38: Pseudotsuga menziesii var. glauca | I38: Softwood | J38: 0.5 | K38: 34.944 | L38: 39 | N38: Oak, Pin | O38: Quercus palustris | P38: Hardwood | Q38: 0.63 | R38: 44.02944 | S38: 64 | U38: Maple, Sugar | V38: Acer saccharum | W38: Hardwood | X38: 0.63 | Y38: 44.02944 | Z38: 55 | AB38: Maple, Sugar | AC38: Acer saccharum | AD38: Hardwood | AE38: 0.63 | AF38: 44.02944 | AG38: 55
G39: Fir, California red | H39: Abies magnifica | I39: Softwood | J39: 0.38 | K39: 26.55744 | L39: 48 | N39: Oak, Post | O39: Quercus stellata | P39: Hardwood | Q39: 0.67 | R39: 46.82496 | S39: 64 | U39: Oak, Black | V39: Quercus velutina | W39: Hardwood | X39: 0.61 | Y39: 42.63168 | Z39: 64 | AB39: Oak, Black | AC39: Quercus velutina | AD39: Hardwood | AE39: 0.61 | AF39: 42.63168 | AG39: 64
G40: Fir, Grand | H40: Abies grandis | I40: Softwood | J40: 0.37 | K40: 25.85856 | L40: 45 | N40: Oak, Scarlet | O40: Quercus coccinea | P40: Hardwood | Q40: 0.67 | R40: 46.82496 | S40: 64 | U40: Oak, Bur | V40: Quercus macrocarpa | W40: Hardwood | X40: 0.64 | Y40: 44.72832 | Z40: 63 | AB40: Oak, Bur | AC40: Quercus macrocarpa | AD40: Hardwood | AE40: 0.64 | AF40: 44.72832 | AG40: 63
G41: Fir, Noble | H41: Abies procera | I41: Softwood | J41: 0.39 | K41: 27.25632 | L41: 30 | N41: Oak, Southern red | O41: Quercus falcata | P41: Hardwood | Q41: 0.59 | R41: 41.23392 | S41: 64 | U41: Oak, Cherrybark | V41: Quercus pagoda | W41: Hardwood | X41: 0.69 | Y41: 48.22272 | Z41: 64 | AB41: Oak, Chestnut | AC41: Quercus prinus | AD41: Hardwood | AE41: 0.66 | AF41: 46.12608 | AG41: 63
G42: Fir, Pacific silver | H42: Abies amabilis | I42: Softwood | J42: 0.43 | K42: 30.05184 | L42: 42 | N42: Oak, Swamp white | O42: Quercus bicolor | P42: Hardwood | Q42: 0.72 | R42: 50.31936 | S42: 63 | U42: Oak, Chestnut | V42: Quercus prinus | W42: Hardwood | X42: 0.66 | Y42: 46.12608 | Z42: 63 | AB42: Oak, Northern red | AC42: Quercus rubra | AD42: Hardwood | AE42: 0.63 | AF42: 44.02944 | AG42: 64
G43: Fir, Subalpine | H43: Abies lasiocarpa | I43: Softwood | J43: 0.32 | K43: 22.36416 | L43: 28 | N43: Oak, White | O43: Quercus alba | P43: Hardwood | Q43: 0.68 | R43: 47.52384 | S43: 63 | U43: Oak, Northern red | V43: Quercus rubra | W43: Hardwood | X43: 0.63 | Y43: 44.02944 | Z43: 64 | AB43: Oak, Pin | AC43: Quercus palustris | AD43: Hardwood | AE43: 0.63 | AF43: 44.02944 | AG43: 64
G44: Fir, White | H44: Abies concolor | I44: Softwood | J44: 0.39 | K44: 27.25632 | L44: 47 | N44: Pecan (hickory) | O44: Carya illinoinensis | P44: Hardwood | Q44: 0.66 | R44: 46.12608 | S44: 62 | U44: Oak, Overcup | V44: Quercus lyrata | W44: Hardwood | X44: 0.63 | Y44: 44.02944 | Z44: 63 | AB44: Oak, Post | AC44: Quercus stellata | AD44: Hardwood | AE44: 0.67 | AF44: 46.82496 | AG44: 64
G45: Hemlock, Mountain | H45: Tsuga mertensiana | I45: Softwood | J45: 0.45 | K45: 31.4496 | L45: 44 | N45: Pine, Eastern white | O45: Pinus strobus | P45: Softwood | Q45: 0.35 | R45: 24.4608 | S45: 35 | U45: Oak, Pin | V45: Quercus palustris | W45: Hardwood | X45: 0.63 | Y45: 44.02944 | Z45: 64 | AB45: Oak, Scarlet | AC45: Quercus coccinea | AD45: Hardwood | AE45: 0.67 | AF45: 46.82496 | AG45: 64
G46: Hemlock, Western | H46: Tsuga heterophylla | I46: Softwood | J46: 0.45 | K46: 31.4496 | L46: 41 | N46: Pine, Jack | O46: Pinus banksiana | P46: Softwood | Q46: 0.43 | R46: 30.05184 | S46: 50 | U46: Oak, Post | V46: Quercus stellata | W46: Hardwood | X46: 0.67 | Y46: 46.82496 | Z46: 64 | AB46: Oak, Swamp white | AC46: Quercus bicolor | AD46: Hardwood | AE46: 0.72 | AF46: 50.31936 | AG46: 63
G47: Larch, Western | H47: Larix occidentalis | I47: Softwood | J47: 0.52 | K47: 36.34176 | L47: 48 | N47: Pine, Red | O47: Pinus resinosa | P47: Softwood | Q47: 0.46 | R47: 32.14848 | S47: 42 | U47: Oak, Scarlet | V47: Quercus coccinea | W47: Hardwood | X47: 0.67 | Y47: 46.82496 | Z47: 64 | AB47: Oak, White | AC47: Quercus alba | AD47: Hardwood | AE47: 0.68 | AF47: 47.52384 | AG47: 63
G48: Maple, Bigleaf | H48: Acer macrophyllum | I48: Hardwood | J48: 0.48 | K48: 33.54624 | L48: 47 | N48: Pine, Shortleaf | O48: Pinus echinata | P48: Softwood | Q48: 0.51 | R48: 35.64288 | S48: 52 | U48: Oak, Southern red | V48: Quercus falcata | W48: Hardwood | X48: 0.59 | Y48: 41.23392 | Z48: 64 | AB48: Pine, Eastern white | AC48: Pinus strobus | AD48: Softwood | AE48: 0.35 | AF48: 24.4608 | AG48: 35
G49: Pine, Lodgepole | H49: Pinus contorta | I49: Softwood | J49: 0.41 | K49: 28.65408 | L49: 39 | N49: Spruce, Black | O49: Picea mariana | P49: Softwood | Q49: 0.46 | R49: 32.14848 | S49: 35 | U49: Oak, Swamp chestnut | V49: Quercus michauxii | W49: Hardwood | X49: 0.67 | Y49: 46.82496 | Z49: 63 | AB49: Pine, Jack | AC49: Pinus banksiana | AD49: Softwood | AE49: 0.43 | AF49: 30.05184 | AG49: 50
G50: Pine, Ponderosa | H50: Pinus ponderosa | I50: Softwood | J50: 0.4 | K50: 27.9552 | L50: 45 | N50: Spruce, White | O50: Picea glauca | P50: Softwood | Q50: 0.4 | R50: 27.9552 | S50: 35 | U50: Oak, Swamp white | V50: Quercus bicolor | W50: Hardwood | X50: 0.72 | Y50: 50.31936 | Z50: 63 | AB50: Pine, Pitch | AC50: Pinus rigida | AD50: Softwood | AE50: 0.52 | AF50: 36.34176 | AG50: 50
G51: Pine, Sugar | H51: Pinus lambertiana | I51: Softwood | J51: 0.36 | K51: 25.15968 | L51: 49 | N51: Sycamore, American | O51: Platanus occidentalis | P51: Hardwood | Q51: 0.49 | R51: 34.24512 | S51: 52 | U51: Oak, White | V51: Quercus alba | W51: Hardwood | X51: 0.68 | Y51: 47.52384 | Z51: 63 | AB51: Pine, Red | AC51: Pinus resinosa | AD51: Softwood | AE51: 0.46 | AF51: 32.14848 | AG51: 42
G52: Pine, Western white | H52: Pinus monticola | I52: Softwood | J52: 0.38 | K52: 26.55744 | L52: 35 | N52: Tamarack | O52: Larix laricina | P52: Softwood | Q52: 0.53 | R52: 37.04064 | S52: 47 | U52: Pecan (hickory) | V52: Carya illinoinensis | W52: Hardwood | X52: 0.66 | Y52: 46.12608 | Z52: 62 | AB52: Pine, Shortleaf | AC52: Pinus echinata | AD52: Softwood | AE52: 0.51 | AF52: 35.64288 | AG52: 52
G53: Redwood, Coast (Old) | H53: Sequoia sempervirens | I53: Softwood | J53: 0.4 | K53: 27.9552 | L53: 50 | N53: Tupelo, Black | O53: Nyssa sylvatica | P53: Hardwood | Q53: 0.5 | R53: 34.944 | S53: 56 | U53: Pine, Eastern white | V53: Pinus strobus | W53: Softwood | X53: 0.35 | Y53: 24.4608 | Z53: 35 | AB53: Pine, Virginia | AC53: Pinus virginiana | AD53: Softwood | AE53: 0.48 | AF53: 33.54624 | AG53: 50
G54: Redwood, Coast (young) | H54: Sequoia sempervirens | I54: Softwood | J54: 0.35 | K54: 24.4608 | L54: 50 | N54: Walnut, Black | O54: Juglans nigra | P54: Hardwood | Q54: 0.55 | R54: 38.4384 | S54: 57 | U54: Pine, Jack | V54: Pinus banksiana | W54: Softwood | X54: 0.43 | Y54: 30.05184 | Z54: 50 | AB54: Spruce, Black | AC54: Picea mariana | AD54: Softwood | AE54: 0.46 | AF54: 32.14848 | AG54: 35
G55: Spruce, Engelmann | H55: Picea engelmannii | I55: Softwood | J55: 0.35 | K55: 24.4608 | L55: 39 | N55: Willow, Black | O55: Salix nigra | P55: Hardwood | Q55: 0.39 | R55: 27.25632 | S55: 51 | U55: Pine, Pitch | V55: Pinus rigida | W55: Softwood | X55: 0.52 | Y55: 36.34176 | Z55: 50 | AB55: Spruce, Red | AC55: Picea rubens | AD55: Softwood | AE55: 0.4 | AF55: 27.9552 | AG55: 34
G56: Spruce, Sitka | H56: Picea sitchensis | I56: Softwood | J56: 0.36 | K56: 25.15968 | L56: 33 | N56: Custom (optional) | O56: (user selection in input table) | P56: (input) | Q56: (input) | R56: (input) | S56: (input) | U56: Pine, Red | V56: Pinus resinosa | W56: Softwood | X56: 0.46 | Y56: 32.14848 | Z56: 42 | AB56: Spruce, White | AC56: Picea glauca | AD56: Softwood | AE56: 0.4 | AF56: 27.9552 | AG56: 35
G57: Tanoak | H57: Notholithocarpus densiflorus | I57: Hardwood | J57: 0.62 | K57: 43.33056 | L57: 65 | U57: Pine, Virginia | V57: Pinus virginiana | W57: Softwood | X57: 0.48 | Y57: 33.54624 | Z57: 50 | AB57: Sycamore, American | AC57: Platanus occidentalis | AD57: Hardwood | AE57: 0.49 | AF57: 34.24512 | AG57: 52
G58: Willow, Black | H58: Salix nigra | I58: Hardwood | J58: 0.39 | K58: 27.25632 | L58: 51 | U58: Spruce, Black | V58: Picea mariana | W58: Softwood | X58: 0.46 | Y58: 32.14848 | Z58: 35 | AB58: Tamarack | AC58: Larix laricina | AD58: Softwood | AE58: 0.53 | AF58: 37.04064 | AG58: 47
G59: Custom (optional) | H59: (user selection in input table) | I59: (input) | J59: (input) | K59: (input) | L59: (input) | N59: Common Trees in South Central Region | U59: Spruce, White | V59: Picea glauca | W59: Softwood | X59: 0.4 | Y59: 27.9552 | Z59: 35 | AB59: Tupelo, Black | AC59: Nyssa sylvatica | AD59: Hardwood | AE59: 0.5 | AF59: 34.944 | AG59: 56
N60: Common Name | O60: Scientific Name | P60: Type | Q60: SGT | R60: gTd (lb/ft3) | S60: gTgr (lb/ft3) | U60: Sweetgum, American | V60: Liquidambar styraciflua | W60: Hardwood | X60: 0.52 | Y60: 36.34176 | Z60: 50 | AB60: Walnut, Black | AC60: Juglans nigra | AD60: Hardwood | AE60: 0.55 | AF60: 38.4384 | AG60: 57
N61: Ash, Blue | O61: Fraxinus quadrangulata | P61: Hardwood | Q61: 0.58 | R61: =Q61*62.4*1.12 -> 40.53504 | S61: 50 | U61: Sycamore, American | V61: Platanus occidentalis | W61: Hardwood | X61: 0.49 | Y61: 34.24512 | Z61: 52 | AB61: Willow, Black | AC61: Salix nigra | AD61: Hardwood | AE61: 0.39 | AF61: 27.25632 | AG61: 51
G62: Common Trees in Mountain West Region | N62: Ash, Green | O62: Fraxinus pennsylvanica | P62: Hardwood | Q62: 0.56 | R62: 39.13728 | S62: 52 | U62: Tamarack | V62: Larix laricina | W62: Softwood | X62: 0.53 | Y62: 37.04064 | Z62: 47 | AB62: Custom (optional) | AC62: (user selection in input table) | AD62: (input) | AE62: (input) | AF62: (input) | AG62: (input)
G63: Common Name | H63: Scientific Name | I63: Type | J63: SGT | K63: gTd (lb/ft3) | L63: gTgr (lb/ft3) | N63: Ash, White | O63: Fraxinus americana | P63: Hardwood | Q63: 0.6 | R63: 41.9328 | S63: 50 | U63: Tupelo, Black | V63: Nyssa sylvatica | W63: Hardwood | X63: 0.5 | Y63: 34.944 | Z63: 56
G64: Ash, Green | H64: Fraxinus pennsylvanica | I64: Hardwood | J64: 0.56 | K64: =J64*62.4*1.12 -> 39.13728 | L64: 52 | N64: Aspen, Bigtooth | O64: Populus grandidentata | P64: Hardwood | Q64: 0.39 | R64: 27.25632 | S64: 43 | U64: Walnut, Black | V64: Juglans nigra | W64: Hardwood | X64: 0.55 | Y64: 38.4384 | Z64: 57
G65: Aspen, Quaking | H65: Populus tremuloides | I65: Hardwood | J65: 0.38 | K65: 26.55744 | L65: 50 | N65: Baldcypress | O65: Taxodium distichum | P65: Softwood | Q65: 0.46 | R65: 32.14848 | S65: 51 | U65: Willow, Black | V65: Salix nigra | W65: Hardwood | X65: 0.39 | Y65: 27.25632 | Z65: 51 | AB65: Common Trees in Mid-Atlantic Region
G66: Balsam poplar (cottonwood) | H66: Populus balsamifera | I66: Hardwood | J66: 0.34 | K66: 23.76192 | L66: 40 | N66: Basswood, American | O66: Tilia americana | P66: Hardwood | Q66: 0.37 | R66: 25.85856 | S66: 41 | U66: Custom (optional) | V66: (user selection in input table) | W66: (input) | X66: (input) | Y66: (input) | Z66: (input) | AB66: Common Name | AC66: Scientific Name | AD66: Type | AE66: SGT | AF66: gTd (lb/ft3) | AG66: gTgr (lb/ft3)
G67: Birch, Paper | H67: Betula papyrifera | I67: Hardwood | J67: 0.55 | K67: 38.4384 | L67: 52 | N67: Beech, American | O67: Fagus grandifolia | P67: Hardwood | Q67: 0.64 | R67: 44.72832 | S67: 54 | AB67: Ash, Green | AC67: Fraxinus pennsylvanica | AD67: Hardwood | AE67: 0.56 | AF67: =AE67*62.4*1.12 -> 39.13728 | AG67: 52
G68: Cedar, Western redcedar | H68: Thuja plicata | I68: Softwood | J68: 0.32 | K68: 22.36416 | L68: 27 | N68: Birch, Sweet | O68: Betula lenta | P68: Hardwood | Q68: 0.65 | R68: 45.4272 | S68: 65 | AB68: Ash, White | AC68: Fraxinus americana | AD68: Hardwood | AE68: 0.6 | AF68: 41.9328 | AG68: 50
G69: Cherry, Black | H69: Prunus serotina | I69: Hardwood | J69: 0.5 | K69: 34.944 | L69: 45 | N69: Birch, Yellow | O69: Betula alleghaniensis | P69: Hardwood | Q69: 0.62 | R69: 43.33056 | S69: 59 | U69: Common Trees in Southeast Region | AB69: Aspen, Bigtooth | AC69: Populus grandidentata | AD69: Hardwood | AE69: 0.39 | AF69: 27.25632 | AG69: 43
G70: Cottonwood, Black | H70: Populus trichocarpa | I70: Hardwood | J70: 0.35 | K70: 24.4608 | L70: 46 | N70: Butternut | O70: Juglans cinerea | P70: Hardwood | Q70: 0.38 | R70: 26.55744 | S70: 46 | U70: Common Name | V70: Scientific Name | W70: Type | X70: SGT | Y70: gTd (lb/ft3) | Z70: gTgr (lb/ft3) | AB70: Aspen, Quaking | AC70: Populus tremuloides | AD70: Hardwood | AE70: 0.38 | AF70: 26.55744 | AG70: 50
G71: Cottonwood, Eastern | H71: Populus deltoides | I71: Hardwood | J71: 0.4 | K71: 27.9552 | L71: 50 | N71: Cedar, Eastern redcedar | O71: Juniperus virginiana | P71: Softwood | Q71: 0.47 | R71: 32.84736 | S71: 37 | U71: Ash, Green | V71: Fraxinus pennsylvanica | W71: Hardwood | X71: 0.56 | Y71: =X71*62.4*1.12 -> 39.13728 | Z71: 52 | AB71: Baldcypress | AC71: Taxodium distichum | AD71: Softwood | AE71: 0.46 | AF71: 32.14848 | AG71: 51
G72: Douglas-fir, Interior north | H72: Pseudotsuga menziesii var. glauca | I72: Softwood | J72: 0.48 | K72: 33.54624 | L72: 38 | N72: Cherry, Black | O72: Prunus serotina | P72: Hardwood | Q72: 0.5 | R72: 34.944 | S72: 45 | U72: Ash, White | V72: Fraxinus americana | W72: Hardwood | X72: 0.6 | Y72: 41.9328 | Z72: 50 | AB72: Basswood, American | AC72: Tilia americana | AD72: Hardwood | AE72: 0.37 | AF72: 25.85856 | AG72: 41
G73: Douglas-fir, Interior south | H73: Pseudotsuga menziesii var. glauca | I73: Softwood | J73: 0.46 | K73: 32.14848 | L73: 37 | N73: Chestnut, American | O73: Castanea dentata | P73: Hardwood | Q73: 0.43 | R73: 30.05184 | S73: 55 | U73: Baldcypress | V73: Taxodium distichum | W73: Softwood | X73: 0.46 | Y73: 32.14848 | Z73: 51 | AB73: Beech, American | AC73: Fagus grandifolia | AD73: Hardwood | AE73: 0.64 | AF73: 44.72832 | AG73: 54
G74: Fir, Grand | H74: Abies grandis | I74: Softwood | J74: 0.37 | K74: 25.85856 | L74: 45 | N74: Cottonwood, Eastern | O74: Populus deltoides | P74: Hardwood | Q74: 0.4 | R74: 27.9552 | S74: 50 | U74: Basswood, American | V74: Tilia americana | W74: Hardwood | X74: 0.37 | Y74: 25.85856 | Z74: 41 | AB74: Birch, Sweet | AC74: Betula lenta | AD74: Hardwood | AE74: 0.65 | AF74: 45.4272 | AG74: 65
G75: Fir, Subalpine | H75: Abies lasiocarpa | I75: Softwood | J75: 0.32 | K75: 22.36416 | L75: 28 | N75: Cucumbertree (magnolia) | O75: Magnolia acuminata | P75: Hardwood | Q75: 0.48 | R75: 33.54624 | S75: 48 | U75: Beech, American | V75: Fagus grandifolia | W75: Hardwood | X75: 0.64 | Y75: 44.72832 | Z75: 54 | AB75: Birch, Yellow | AC75: Betula alleghaniensis | AD75: Hardwood | AE75: 0.62 | AF75: 43.33056 | AG75: 59
G76: Fir, White | H76: Abies concolor | I76: Softwood | J76: 0.39 | K76: 27.25632 | L76: 47 | N76: Elm, American | O76: Ulmus americana | P76: Hardwood | Q76: 0.5 | R76: 34.944 | S76: 56 | U76: Birch, Sweet | V76: Betula lenta | W76: Hardwood | X76: 0.65 | Y76: 45.4272 | Z76: 65 | AB76: Butternut | AC76: Juglans cinerea | AD76: Hardwood | AE76: 0.38 | AF76: 26.55744 | AG76: 46
G77: Hemlock, Mountain | H77: Tsuga mertensiana | I77: Softwood | J77: 0.45 | K77: 31.4496 | L77: 44 | N77: Elm, Rock | O77: Ulmus thomasii | P77: Hardwood | Q77: 0.63 | R77: 44.02944 | S77: 54 | U77: Birch, Yellow | V77: Betula alleghaniensis | W77: Hardwood | X77: 0.62 | Y77: 43.33056 | Z77: 59 | AB77: Cedar, Atlantic white | AC77: Chamaecyparis thyoides | AD77: Softwood | AE77: 0.32 | AF77: 22.36416 | AG77: 36
G78: Hemlock, Western | H78: Tsuga heterophylla | I78: Softwood | J78: 0.45 | K78: 31.4496 | L78: 41 | N78: Elm, Slippery | O78: Ulmus rubra | P78: Hardwood | Q78: 0.53 | R78: 37.04064 | S78: 53 | U78: Butternut | V78: Juglans cinerea | W78: Hardwood | X78: 0.38 | Y78: 26.55744 | Z78: 46 | AB78: Cedar, Eastern redcedar | AC78: Juniperus virginiana | AD78: Softwood | AE78: 0.47 | AF78: 32.84736 | AG78: 37
G79: Larch, Western | H79: Larix occidentalis | I79: Softwood | J79: 0.52 | K79: 36.34176 | L79: 48 | N79: Hackberry | O79: Celtis occidentalis | P79: Hardwood | Q79: 0.53 | R79: 37.04064 | S79: 50 | U79: Cedar, Atlantic white | V79: Chamaecyparis thyoides | W79: Softwood | X79: 0.32 | Y79: 22.36416 | Z79: 36 | AB79: Cherry, Black | AC79: Prunus serotina | AD79: Hardwood | AE79: 0.5 | AF79: 34.944 | AG79: 45
G80: Pine, Lodgepole | H80: Pinus contorta | I80: Softwood | J80: 0.41 | K80: 28.65408 | L80: 39 | N80: Hemlock, Eastern | O80: Tsuga canadensis | P80: Softwood | Q80: 0.4 | R80: 27.9552 | S80: 50 | U80: Cedar, Eastern redcedar | V80: Juniperus virginiana | W80: Softwood | X80: 0.47 | Y80: 32.84736 | Z80: 37 | AB80: Chestnut, American | AC80: Castanea dentata | AD80: Hardwood | AE80: 0.43 | AF80: 30.05184 | AG80: 55
G81: Pine, Ponderosa | H81: Pinus ponderosa | I81: Softwood | J81: 0.4 | K81: 27.9552 | L81: 45 | N81: Hickory, Bitternut | O81: Carya cordiformis | P81: Hardwood | Q81: 0.66 | R81: 46.12608 | S81: 64 | U81: Cherry, Black | V81: Prunus serotina | W81: Hardwood | X81: 0.5 | Y81: 34.944 | Z81: 45 | AB81: Cottonwood, Eastern | AC81: Populus deltoides | AD81: Hardwood | AE81: 0.4 | AF81: 27.9552 | AG81: 50
G82: Pine, Western white | H82: Pinus monticola | I82: Softwood | J82: 0.38 | K82: 26.55744 | L82: 35 | N82: Hickory, Mockernut | O82: Carya tomentosa | P82: Hardwood | Q82: 0.72 | R82: 50.31936 | S82: 65 | U82: Chestnut, American | V82: Castanea dentata | W82: Hardwood | X82: 0.43 | Y82: 30.05184 | Z82: 55 | AB82: Cucumbertree (magnolia) | AC82: Magnolia acuminata | AD82: Hardwood | AE82: 0.48 | AF82: 33.54624 | AG82: 48
G83: Spruce, Engelmann | H83: Picea engelmannii | I83: Softwood | J83: 0.35 | K83: 24.4608 | L83: 39 | N83: Hickory, Nutmeg | O83: Carya myristiciformis | P83: Hardwood | Q83: 0.6 | R83: 41.9328 | S83: 62 | U83: Cottonwood, Eastern | V83: Populus deltoides | W83: Hardwood | X83: 0.4 | Y83: 27.9552 | Z83: 50 | AB83: Elm, American | AC83: Ulmus americana | AD83: Hardwood | AE83: 0.5 | AF83: 34.944 | AG83: 56
G84: Willow, Black | H84: Salix nigra | I84: Hardwood | J84: 0.39 | K84: 27.25632 | L84: 51 | N84: Hickory, Pignut | O84: Carya glabra | P84: Hardwood | Q84: 0.75 | R84: 52.416 | S84: 68 | U84: Cucumbertree (magnolia) | V84: Magnolia acuminata | W84: Hardwood | X84: 0.48 | Y84: 33.54624 | Z84: 48 | AB84: Elm, Slippery | AC84: Ulmus rubra | AD84: Hardwood | AE84: 0.53 | AF84: 37.04064 | AG84: 53
G85: Custom (optional) | H85: (user selection in input table) | I85: (input) | J85: (input) | K85: (input) | L85: (input) | N85: Hickory, Shagbark | O85: Carya ovata | P85: Hardwood | Q85: 0.72 | R85: 50.31936 | S85: 64 | U85: Elm, American | V85: Ulmus americana | W85: Hardwood | X85: 0.5 | Y85: 34.944 | Z85: 56 | AB85: Hackberry | AC85: Celtis occidentalis | AD85: Hardwood | AE85: 0.53 | AF85: 37.04064 | AG85: 50
N86: Hickory, Shellbark | O86: Carya laciniosa | P86: Hardwood | Q86: 0.69 | R86: 48.22272 | S86: 64 | U86: Elm, Slippery | V86: Ulmus rubra | W86: Hardwood | X86: 0.53 | Y86: 37.04064 | Z86: 53 | AB86: Hemlock, Eastern | AC86: Tsuga canadensis | AD86: Softwood | AE86: 0.4 | AF86: 27.9552 | AG86: 50
N87: Hickory, Water | O87: Carya aquatica | P87: Hardwood | Q87: 0.62 | R87: 43.33056 | S87: 70 | U87: Hackberry | V87: Celtis occidentalis | W87: Hardwood | X87: 0.53 | Y87: 37.04064 | Z87: 50 | AB87: Hickory, Bitternut | AC87: Carya cordiformis | AD87: Hardwood | AE87: 0.66 | AF87: 46.12608 | AG87: 64
N88: Honey locust | O88: Gleditsia triacanthos | P88: Hardwood | Q88: 0.65 | R88: 45.4272 | S88: 60 | U88: Hemlock, Eastern | V88: Tsuga canadensis | W88: Softwood | X88: 0.4 | Y88: 27.9552 | Z88: 50 | AB88: Hickory, Mockernut | AC88: Carya tomentosa | AD88: Hardwood | AE88: 0.72 | AF88: 50.31936 | AG88: 65
N89: Locust, Black | O89: Robinia pseudoacacia | P89: Hardwood | Q89: 0.69 | R89: 48.22272 | S89: 58 | U89: Hickory, Bitternut | V89: Carya cordiformis | W89: Hardwood | X89: 0.66 | Y89: 46.12608 | Z89: 64 | AB89: Hickory, Pignut | AC89: Carya glabra | AD89: Hardwood | AE89: 0.75 | AF89: 52.416 | AG89: 68
N90: Magnolia, Southern | O90: Magnolia grandiflora | P90: Hardwood | Q90: 0.5 | R90: 34.944 | S90: 59 | U90: Hickory, Mockernut | V90: Carya tomentosa | W90: Hardwood | X90: 0.72 | Y90: 50.31936 | Z90: 65 | AB90: Hickory, Shagbark | AC90: Carya ovata | AD90: Hardwood | AE90: 0.72 | AF90: 50.31936 | AG90: 64
N91: Maple, Black | O91: Acer nigrum | P91: Hardwood | Q91: 0.57 | R91: 39.83616 | S91: 55 | U91: Hickory, Nutmeg | V91: Carya myristiciformis | W91: Hardwood | X91: 0.6 | Y91: 41.9328 | Z91: 62 | AB91: Locust, Black | AC91: Robinia pseudoacacia | AD91: Hardwood | AE91: 0.69 | AF91: 48.22272 | AG91: 58
N92: Maple, Red | O92: Acer rubrum | P92: Hardwood | Q92: 0.54 | R92: 37.73952 | S92: 50 | U92: Hickory, Pignut | V92: Carya glabra | W92: Hardwood | X92: 0.75 | Y92: 52.416 | Z92: 68 | AB92: Maple, Red | AC92: Acer rubrum | AD92: Hardwood | AE92: 0.54 | AF92: 37.73952 | AG92: 50
N93: Maple, Silver | O93: Acer saccharinum | P93: Hardwood | Q93: 0.47 | R93: =Q93*62.4*1.12 -> 32.84736 | S93: 46 | U93: Hickory, Shagbark | V93: Carya ovata | W93: Hardwood | X93: 0.72 | Y93: 50.31936 | Z93: 64 | AB93: Maple, Silver | AC93: Acer saccharinum | AD93: Hardwood | AE93: 0.47 | AF93: 32.84736 | AG93: 46
N94: Maple, Sugar | O94: Acer saccharum | P94: Hardwood | Q94: 0.63 | R94: 44.02944 | S94: 55 | U94: Hickory, Water | V94: Carya aquatica | W94: Hardwood | X94: 0.62 | Y94: 43.33056 | Z94: 70 | AB94: Maple, Sugar | AC94: Acer saccharum | AD94: Hardwood | AE94: 0.63 | AF94: 44.02944 | AG94: 55
N95: Oak, Black | O95: Quercus velutina | P95: Hardwood | Q95: 0.61 | R95: 42.63168 | S95: 64 | U95: Locust, Black | V95: Robinia pseudoacacia | W95: Hardwood | X95: 0.69 | Y95: 48.22272 | Z95: 58 | AB95: Oak, Black | AC95: Quercus velutina | AD95: Hardwood | AE95: 0.61 | AF95: 42.63168 | AG95: 64
N96: Oak, Bur | O96: Quercus macrocarpa | P96: Hardwood | Q96: 0.64 | R96: 44.72832 | S96: 63 | U96: Magnolia, Southern | V96: Magnolia grandiflora | W96: Hardwood | X96: 0.5 | Y96: 34.944 | Z96: 59 | AB96: Oak, Cherrybark | AC96: Quercus pagoda | AD96: Hardwood | AE96: 0.69 | AF96: 48.22272 | AG96: 64
N97: Oak, Cherrybark | O97: Quercus pagoda | P97: Hardwood | Q97: 0.69 | R97: 48.22272 | S97: 64 | U97: Maple, Red | V97: Acer rubrum | W97: Hardwood | X97: 0.54 | Y97: 37.73952 | Z97: 50 | AB97: Oak, Chestnut | AC97: Quercus prinus | AD97: Hardwood | AE97: 0.66 | AF97: 46.12608 | AG97: 63
N98: Oak, Chestnut | O98: Quercus prinus | P98: Hardwood | Q98: 0.66 | R98: 46.12608 | S98: 63 | U98: Maple, Silver | V98: Acer saccharinum | W98: Hardwood | X98: 0.47 | Y98: 32.84736 | Z98: 46 | AB98: Oak, Laurel | AC98: Quercus laurifolia | AD98: Hardwood | AE98: 0.63 | AF98: 44.02944 | AG98: 64
N99: Oak, Laurel | O99: Quercus laurifolia | P99: Hardwood | Q99: 0.63 | R99: 44.02944 | S99: 64 | U99: Oak, Black | V99: Quercus velutina | W99: Hardwood | X99: 0.61 | Y99: 42.63168 | Z99: 64 | AB99: Oak, Northern red | AC99: Quercus rubra | AD99: Hardwood | AE99: 0.63 | AF99: =AE99*62.4*1.12 -> 44.02944 | AG99: 64
N100: Oak, Northern red | O100: Quercus rubra | P100: Hardwood | Q100: 0.63 | R100: 44.02944 | S100: 64 | U100: Oak, Cherrybark | V100: Quercus pagoda | W100: Hardwood | X100: 0.69 | Y100: 48.22272 | Z100: 64 | AB100: Oak, Overcup | AC100: Quercus lyrata | AD100: Hardwood | AE100: 0.63 | AF100: 44.02944 | AG100: 63
N101: Oak, Overcup | O101: Quercus lyrata | P101: Hardwood | Q101: 0.63 | R101: 44.02944 | S101: 63 | U101: Oak, Chestnut | V101: Quercus prinus | W101: Hardwood | X101: 0.66 | Y101: 46.12608 | Z101: 63 | AB101: Oak, Pin | AC101: Quercus palustris | AD101: Hardwood | AE101: 0.63 | AF101: 44.02944 | AG101: 64
N102: Oak, Pin | O102: Quercus palustris | P102: Hardwood | Q102: 0.63 | R102: 44.02944 | S102: 64 | U102: Oak, Laurel | V102: Quercus laurifolia | W102: Hardwood | X102: 0.63 | Y102: 44.02944 | Z102: 64 | AB102: Oak, Post | AC102: Quercus stellata | AD102: Hardwood | AE102: 0.67 | AF102: 46.82496 | AG102: 64
N103: Oak, Post | O103: Quercus stellata | P103: Hardwood | Q103: 0.67 | R103: 46.82496 | S103: 64 | U103: Oak, Northern red | V103: Quercus rubra | W103: Hardwood | X103: 0.63 | Y103: =X103*62.4*1.12 -> 44.02944 | Z103: 64 | AB103: Oak, Scarlet | AC103: Quercus coccinea | AD103: Hardwood | AE103: 0.67 | AF103: 46.82496 | AG103: 64
N104: Oak, Scarlet | O104: Quercus coccinea | P104: Hardwood | Q104: 0.67 | R104: 46.82496 | S104: 64 | U104: Oak, Overcup | V104: Quercus lyrata | W104: Hardwood | X104: 0.63 | Y104: 44.02944 | Z104: 63 | AB104: Oak, Southern red | AC104: Quercus falcata | AD104: Hardwood | AE104: 0.59 | AF104: 41.23392 | AG104: 64
N105: Oak, Southern live | O105: Quercus virginiana | P105: Hardwood | Q105: 0.88 | R105: 61.50144 | S105: 76 | U105: Oak, Pin | V105: Quercus palustris | W105: Hardwood | X105: 0.63 | Y105: 44.02944 | Z105: 64 | AB105: Oak, Swamp chestnut | AC105: Quercus michauxii | AD105: Hardwood | AE105: 0.67 | AF105: 46.82496 | AG105: 63
N106: Oak, Southern red | O106: Quercus falcata | P106: Hardwood | Q106: 0.59 | R106: 41.23392 | S106: 64 | U106: Oak, Post | V106: Quercus stellata | W106: Hardwood | X106: 0.67 | Y106: 46.82496 | Z106: 64 | AB106: Oak, Swamp white | AC106: Quercus bicolor | AD106: Hardwood | AE106: 0.72 | AF106: 50.31936 | AG106: 63
N107: Oak, Swamp chestnut | O107: Quercus michauxii | P107: Hardwood | Q107: 0.67 | R107: 46.82496 | S107: 63 | U107: Oak, Scarlet | V107: Quercus coccinea | W107: Hardwood | X107: 0.67 | Y107: 46.82496 | Z107: 64 | AB107: Oak, Water | AC107: Quercus nigra | AD107: Hardwood | AE107: 0.63 | AF107: 44.02944 | AG107: 64
N108: Oak, Swamp white | O108: Quercus bicolor | P108: Hardwood | Q108: 0.72 | R108: 50.31936 | S108: 63 | U108: Oak, Southern live | V108: Quercus virginiana | W108: Hardwood | X108: 0.88 | Y108: 61.50144 | Z108: 76 | AB108: Oak, White | AC108: Quercus alba | AD108: Hardwood | AE108: 0.68 | AF108: 47.52384 | AG108: 63
N109: Oak, Water | O109: Quercus nigra | P109: Hardwood | Q109: 0.63 | R109: 44.02944 | S109: 64 | U109: Oak, Southern red | V109: Quercus falcata | W109: Hardwood | X109: 0.59 | Y109: 41.23392 | Z109: 64 | AB109: Oak, Willow | AC109: Quercus phellos | AD109: Hardwood | AE109: 0.69 | AF109: 48.22272 | AG109: 64
N110: Oak, White | O110: Quercus alba | P110: Hardwood | Q110: 0.68 | R110: 47.52384 | S110: 63 | U110: Oak, Swamp chestnut | V110: Quercus michauxii | W110: Hardwood | X110: 0.67 | Y110: 46.82496 | Z110: 63 | AB110: Pine, Eastern white | AC110: Pinus strobus | AD110: Softwood | AE110: 0.35 | AF110: 24.4608 | AG110: 35
N111: Oak, Willow | O111: Quercus phellos | P111: Hardwood | Q111: 0.69 | R111: 48.22272 | S111: 64 | U111: Oak, Water | V111: Quercus nigra | W111: Hardwood | X111: 0.63 | Y111: 44.02944 | Z111: 64 | AB111: Pine, Loblolly | AC111: Pinus taeda | AD111: Softwood | AE111: 0.51 | AF111: 35.64288 | AG111: 53
N112: Pecan (hickory) | O112: Carya illinoinensis | P112: Hardwood | Q112: 0.66 | R112: 46.12608 | S112: 62 | U112: Oak, White | V112: Quercus alba | W112: Hardwood | X112: 0.68 | Y112: 47.52384 | Z112: 63 | AB112: Pine, Pitch | AC112: Pinus rigida | AD112: Softwood | AE112: 0.52 | AF112: 36.34176 | AG112: 50
N113: Pine, Eastern white | O113: Pinus strobus | P113: Softwood | Q113: 0.35 | R113: 24.4608 | S113: 35 | U113: Oak, Willow | V113: Quercus phellos | W113: Hardwood | X113: 0.69 | Y113: 48.22272 | Z113: 64 | AB113: Pine, Pond | AC113: Pinus serotina | AD113: Softwood | AE113: 0.56 | AF113: 39.13728 | AG113: 51
N114: Pine, Loblolly | O114: Pinus taeda | P114: Softwood | Q114: 0.51 | R114: 35.64288 | S114: 53 | U114: Pine, Eastern white | V114: Pinus strobus | W114: Softwood | X114: 0.35 | Y114: 24.4608 | Z114: 35 | AB114: Pine, Shortleaf | AC114: Pinus echinata | AD114: Softwood | AE114: 0.51 | AF114: 35.64288 | AG114: 52
N115: Pine, Longleaf | O115: Pinus palustris | P115: Softwood | Q115: 0.59 | R115: 41.23392 | S115: 55 | U115: Pine, Loblolly | V115: Pinus taeda | W115: Softwood | X115: 0.51 | Y115: 35.64288 | Z115: 53 | AB115: Pine, Virginia | AC115: Pinus virginiana | AD115: Softwood | AE115: 0.48 | AF115: 33.54624 | AG115: 50
N116: Pine, Pitch | O116: Pinus rigida | P116: Softwood | Q116: 0.52 | R116: 36.34176 | S116: 50 | U116: Pine, Longleaf | V116: Pinus palustris | W116: Softwood | X116: 0.59 | Y116: 41.23392 | Z116: 55 | AB116: Sweetgum, American | AC116: Liquidambar styraciflua | AD116: Hardwood | AE116: 0.52 | AF116: 36.34176 | AG116: 50
N117: Pine, Shortleaf | O117: Pinus echinata | P117: Softwood | Q117: 0.51 | R117: 35.64288 | S117: 52 | U117: Pine, Pitch | V117: Pinus rigida | W117: Softwood | X117: 0.52 | Y117: 36.34176 | Z117: 50 | AB117: Sycamore, American | AC117: Platanus occidentalis | AD117: Hardwood | AE117: 0.49 | AF117: 34.24512 | AG117: 52
N118: Pine, Slash | O118: Pinus elliottii | P118: Softwood | Q118: 0.59 | R118: 41.23392 | S118: 58 | U118: Pine, Pond | V118: Pinus serotina | W118: Softwood | X118: 0.56 | Y118: 39.13728 | Z118: 51 | AB118: Tupelo, Black | AC118: Nyssa sylvatica | AD118: Hardwood | AE118: 0.5 | AF118: 34.944 | AG118: 56
N119: Pine, Spruce | O119: Pinus glabra | P119: Softwood | Q119: 0.44 | R119: 30.75072 | S119: 45 | U119: Pine, Sand | V119: Pinus clausa | W119: Softwood | X119: 0.48 | Y119: 33.54624 | Z119: 38 | AB119: Walnut, Black | AC119: Juglans nigra | AD119: Hardwood | AE119: 0.55 | AF119: 38.4384 | AG119: 57
N120: Pine, Virginia | O120: Pinus virginiana | P120: Softwood | Q120: 0.48 | R120: 33.54624 | S120: 50 | U120: Pine, Shortleaf | V120: Pinus echinata | W120: Softwood | X120: 0.51 | Y120: 35.64288 | Z120: 52 | AB120: Willow, Black | AC120: Salix nigra | AD120: Hardwood | AE120: 0.39 | AF120: 27.25632 | AG120: 51
N121: Sweetgum, American | O121: Liquidambar styraciflua | P121: Hardwood | Q121: 0.52 | R121: 36.34176 | S121: 50 | U121: Pine, Slash | V121: Pinus elliottii | W121: Softwood | X121: 0.59 | Y121: 41.23392 | Z121: 58 | AB121: Custom (optional) | AC121: (user selection in input table) | AD121: (input) | AE121: (input) | AF121: (input) | AG121: (input)
N122: Sycamore, American | O122: Platanus occidentalis | P122: Hardwood | Q122: 0.49 | R122: 34.24512 | S122: 52 | U122: Pine, Spruce | V122: Pinus glabra | W122: Softwood | X122: 0.44 | Y122: 30.75072 | Z122: 45
N123: Tupelo, Black | O123: Nyssa sylvatica | P123: Hardwood | Q123: 0.5 | R123: 34.944 | S123: 56 | U123: Pine, Virginia | V123: Pinus virginiana | W123: Softwood | X123: 0.48 | Y123: 33.54624 | Z123: 50
N124: Tupelo, Water | O124: Nyssa aquatica | P124: Hardwood | Q124: 0.5 | R124: 34.944 | S124: 56 | U124: Sweetgum, American | V124: Liquidambar styraciflua | W124: Hardwood | X124: 0.52 | Y124: 36.34176 | Z124: 50
N125: Walnut, Black | O125: Juglans nigra | P125: Hardwood | Q125: 0.55 | R125: =Q125*62.4*1.12 -> 38.4384 | S125: 57 | U125: Sycamore, American | V125: Platanus occidentalis | W125: Hardwood | X125: 0.49 | Y125: 34.24512 | Z125: 52
N126: Willow, Black | O126: Salix nigra | P126: Hardwood | Q126: 0.39 | R126: =Q126*62.4*1.12 -> 27.25632 | S126: 51 | U126: Tupelo, Black | V126: Nyssa sylvatica | W126: Hardwood | X126: 0.5 | Y126: 34.944 | Z126: 56
N127: Custom (optional) | O127: (user selection in input table) | P127: (input) | Q127: (input) | R127: (input) | S127: (input) | U127: Tupelo, Water | V127: Nyssa aquatica | W127: Hardwood | X127: 0.5 | Y127: 34.944 | Z127: 56
U128: Walnut, Black | V128: Juglans nigra | W128: Hardwood | X128: 0.55 | Y128: 38.4384 | Z128: 57
U129: Willow, Black | V129: Salix nigra | W129: Hardwood | X129: 0.39 | Y129: 27.25632 | Z129: 51
U130: Custom (optional) | V130: (user selection in input table) | W130: (input) | X130: (input) | Y130: (input) | Z130: (input)

Sheet Prelim-Top#1
A1: ='1-Cover'!A1 -> Sample Multi-Log Structure | I1: Spreadsheet developed by Michael Rafferty, P.E.
A3: Single Log Stability Analysis Model Inputs | K3: ERROR CHECKS
A5: Site ID | B5: Structure Type | D5: Structure Position | F5: Meander | G5: Station | H5: dw (ft) | I5: Rc/WBF | J5: udes (ft/s) | L5: Type Lookup Table | AG5: Tilted Cylindrical (Stem) "Below Water Surface" Volume Calculation (Below High Flow) | AR5: Tilted Cylindrical (Stem) Wet Volume Calculation (Below Channel Thalweg) | BC5: Tilted Frustum (RW) Volume Calculation (Slice Method) | BI5: A = R2 arccos [(R - h)/R] - [(R - h)*SQRT(2Rh - h2)]
A6: Sample1 | B6: Flow Deflection | D6: Left bank | F6: Outside | G6: =IF($A6="","",VLOOKUP($A6,SiteInfo,2,0)) -> 1000 | H6: =IF($A6="","",VLOOKUP($A6,SiteInfo,4,0)) -> 8.45 | I6: =IF($A6="","",VLOOKUP($A6,SiteInfo,9,0)) -> 5.319148936 | J6: =IF(OR($A$6="",$F$6=""),"",IF($F$6="Outside",VLOOKUP($A$6,SiteInfo,10,0),VLOOKUP($A$6,SiteInfo,5,0))) -> 4.632711077 | K6: =IF($F$6="","",IF(AND($I$6<26,$F$6="Straight"),"CHECK - Structure is located on a meander (Rc/WBF < 26)","")) ->  | L6: Structure Types | N6: Description | AC6: Water Surface | BC6: Slice thickness (ft) = | BE6: =IF($G$22="","",$G$22/$BC$39) -> 0.1 | BF6: WSE (ft) = | BG6: =IF($AE$8="","",$AE$8) -> 101.25 | BH6: RRW (ft) = | BI6: =IF($H$22="","",$H$22/2) -> 3 | BJ6: yRW,crown (ft) = | BK6: =IF($U$10="","",$U$10) -> 98.47366809 | BL6: yRW,bot (ft) = | BM6: =IF($U$15="","",$U$15) -> 92.47389655
K7: =IF(OR($F$6="",$I$6=""),"",IF(AND($I$6>26,$F$6<>"Straight"),"CHECK - Structure is not on a meander (Rc/WBF > 26)","")) ->  | L7: Rootwad | N7: Logs buried in bank with rootwads protruding into channel | AD7: x (ft) | AE7: y (ft) | AH7: R = DTS/2 | AI7: =$F$22/2 -> 1 | AJ7: ft | AS7: R = DTS/2 | AT7: =$F$22/2 -> 1 | AU7: ft | BF7: Thalweg Elevation (ft) = | BG7: =$C$16 -> 92.8 | BH7: RTS (ft) = | BI7: =IF($F$22="","",$F$22/2) -> 1 | BJ7: yRC,crown (ft) = | BK7: =IF($U$11="","",$U$11) -> 96.49992385 | BL7: yRC,bot (ft) = | BM7: =IF($U$14="","",$U$14) -> 94.5
A8: Multi-Log Structures | B8: Layer | C8: Log ID | L8: Log Vane | N8: Logs protruding from bank and angled either up- or downstream | S8: Large Wood Coordinates | AC8: WSE | AD8: =IF(OR($A$6="",$C$16=""),0,IF(($H$6+$C$16)>=$C$13,$B$13,IF(AND(($H$6+$C$16)<$C$13,($H$6+$C$16)>=$C$14),((($C$13-($H$6+$C$16))/($C$13-$C$14))*($B$14-$B$13))+$B$13,IF(AND(($H$6+$C$16)<$C$14,($H$6+$C$16)>=$C$15),((($C$14-($H$6+$C$16))/($C$14-$C$15))*($B$15-$B$14))+$B$14,IF(AND(($H$6+$C$16)<$C$15,($H$6+$C$16)>=$C$16),((($C$15-($H$6+$C$16))/($C$15-$C$16))*($B$16-$B$15))+$B$15,""))))) -> 0 | AE8: =IF(OR($A$6="",$C$16=""),$C$13,$H$6+$C$16) -> 101.25 | AH8: b (rad) | AI8: =ABS($C$25)*PI()/180 -> 0.00872664626 | AJ8: rad | AS8: b (rad) | AT8: =ABS($C$25)*PI()/180 -> 0.00872664626 | AU8: rad
B9: Stacked | C9: Top#1 | L9: Log Weir | N9: Weirs spanning small streams comprised of one or more large logs | T9: x (ft) | U9: y (ft) | W9: Large wood check | X9: x (ft) | Z9: y (ft) | AC9: WSE | AD9: =IF(OR($A$6="",$C$16=""),0,IF(($H$6+$C$16)>=$C$19,$B$19,IF(AND(($H$6+$C$16)<$C$19,($H$6+$C$16)>=$C$18),(((($H$6+$C$16)-$C$18)/($C$19-$C$18))*($B$19-$B$18))+$B$18,IF(AND(($H$6+$C$16)<$C$18,($H$6+$C$16)>=$C$17),(((($H$6+$C$16)-$C$17)/($C$18-$C$17))*($B$18-$B$17))+$B$17,IF(AND(($H$6+$C$16)<$C$17,($H$6+$C$16)>=$C$16),(((($H$6+$C$16)-$C$16)/($C$17-$C$16))*($B$17-$B$16))+$B$16,""))))) -> 150 | AE9: =IF(OR($A$6="",$C$16=""),$C$13,$H$6+$C$16) -> 101.25 | AH9: dwet,max | AI9: =IF($AB$23>$AB$24,$AB$23,IF($AB$23<$AB$24,$AB$24,"")) -> 6.75 | AJ9: ft | AS9: dwet,max | AT9: =IF($Z$23>$Z$24,$Z$23,IF($Z$23<$Z$24,$Z$24,"")) ->  | AU9: ft | BC9: Slice # | BD9: xRW,avg (ft) | BE9: RRW,slice (ft) | BF9: Aslice,avg (ft) | BG9: Vslice (ft3) | BH9: ycrown,avg (ft) | BI9: ybot,avg (ft) | BJ9: hRW,cr,↑WSE (ft) | BK9: ARW,↑WSE (ft2) | BL9: VRW,↑WSE (ft3) | BM9: hRW,bot,↓thw (ft) | BN9: ARW,↓thw (ft2) | BO9: VRW,↓thw (ft3)
K10: =IF(OR($C$14="",$C$15=""),"",IF($C$15>=$C$14,"ERROR - LB top elevation must be > LB toe elevation","")) ->  | L10: Tree Revetment | N10: Row of logs secured along the bank and placed parallel to flow | R10: Pt 1 | S10: Rootwad: Crown | T10: =IF($F$25="",0,IF($D$25="Rootwad: Crown",$F$25,IF($D$22="No",$T$15+(($F$22*-$M$20)*$M$17),$T$15+(($H$22*-$M$20)*$M$17)))) -> 64.65286614 | U10: =IF($G$25="",$C$13,IF($D$25="Rootwad: Crown",$G$25,IF($D$22="No",$U$15+($F$22*$M$19),$U$15+($H$22*$M$19)))) -> 98.47366809 | W10: Rootwad: Crown | X10: =IF($D$22="No",$T$15+(($F$22*-$M$20)*$M$17),$T$15+(($H$22*-$M$20)*$M$17)) -> 64.65286614 | Y10: =IF(X10=T10,"OK","ERROR") -> OK | Z10: =IF($D$22="No",$U$15+($F$22*$M$19),$U$15+($H$22*$M$19)) -> 98.47366809 | AA10: =IF(Z10=U10,"OK","ERROR") -> OK | AH10: dwet,avgH | AI10: =IF(AND($AB$23>0,$AB$24>0),(($AB$23/COS($AI$8))+($AB$24/COS($AI$8)))/2,"") -> 6.623717446 | AJ10: ft | AS10: dwet,avgH | AT10: =IF(AND($Z$23>0,$Z$24>0),(($Z$23/COS($AT$8))+($Z$24/COS($AT$8)))/2,"") ->  | AU10: ft | BC10: 1 | BD10: =($BE$6/2)+(($BC10-1)*$BE$6) -> 0.05 | BE10: =(($G$22-$BD10)/$G$22)*($BI$6-$BI$7)+$BI$7 -> 2.966666667 | BF10: =PI()*($BE10^2) -> 27.64950601 | BG10: =$BF10*$BE$6 -> 2.764950601 | BH10: =(($G$22-$BD10)/$G$22)*($BK$6-$BK$7)+$BK$7 -> 98.44077235 | BI10: =(($G$22-$BD10)/$G$22)*($BM$6-$BM$7)+$BM$7 -> 92.50766494 | BJ10: =IF($BH10<=$BG$6,0,IF((($BH10-$BG$6)*$M$19)>=($BE10*2),$BE10*2,($BH10-$BG$6)*$M$19)) -> 0 | BK10: =(($BE10^2)*ACOS(($BE10-$BJ10)/$BE10))-(($BE10-$BJ10)*SQRT(2*$BE10*$BJ10-($BJ10^2))) -> 0 | BL10: =$BK10*$BE$6 -> 0 | BM10: =IF($BI10>=$BG$7,0,IF((($BG$7-$BI10)*$M$19)>=($BE10*2),$BE10*2,($BG$7-$BI10)*$M$19)) -> 0.2923239305 | BN10: =(($BE10^2)*ACOS(($BE10-$BM10)/$BE10))-(($BE10-$BM10)*SQRT(2*$BE10*$BM10-($BM10^2))) -> 0.5056607511 | BO10: =$BN10*$BE$6 -> 0.05056607511
A11: Channel Geometry Coordinates | K11: =IF(OR($C$15="",$C$16="",$C$17=""),"",IF(OR($C$15<$C$16,$C$17<$C$16),"ERROR - Toe elevation must be >= thalweg elevation","")) ->  | L11: Flow Deflection | N11: Partially spanning multiple log structure along the bank | R11: Pt 2 | S11: Root collar: Crown | T11: =IF($F$25="",0,IF($D$25="Root collar: Crown",$F$25,IF($D$22="No",$T$10,$T$10+(($G$22*$M$19)*$M$17)-(((($H$22-$F$22)/2)*-$M$20)*$M$17)))) -> 63.00950562 | U11: =IF($G$25="",$C$13,IF($D$25="Root collar: Crown",$G$25,IF($D$22="No",$U$10,$U$10-($G$22*-$M$20)-((($H$22-$F$22)/2)*$M$19)))) -> 96.49992385 | W11: Root collar: Crown | X11: =IF($D$22="No",$X$10,$T$10+(($G$22*$M$19)*$M$17)-(((($H$22-$F$22)/2)*-$M$20)*$M$17)) -> 63.00950562 | Y11: OK | Z11: =IF($D$22="No",$Z$10,$U$10-($G$22*-$M$20)-((($H$22-$F$22)/2)*$M$19)) -> 96.49992385 | AA11: OK | AC11: Water Surface Label | AH11: hmax,lower | AI11: =IF($AI$9/COS($AI$8)>$F$22,$F$22,$AI$9/COS($AI$8)) -> 2 | AJ11: ft | AS11: hmax,lower | AT11: =IF($AT$9/COS($AT$8)>$F$22,$F$22,$AT$9/COS($AT$8)) ->  | AU11: ft | BC11: 2 | BD11: =($BE$6/2)+(($BC11-1)*$BE$6) -> 0.15 | BE11: 2.9 | BF11: =PI()*($BE11^2) -> 26.42079422 | BG11: =$BF11*$BE$6 -> 2.642079422 | BH11: 98.37498087 | BI11: 92.57520172 | BJ11: =IF($BH11<=$BG$6,0,IF((($BH11-$BG$6)*$M$19)>=($BE11*2),$BE11*2,($BH11-$BG$6)*$M$19)) -> 0 | BK11: =(($BE11^2)*ACOS(($BE11-$BJ11)/$BE11))-(($BE11-$BJ11)*SQRT(2*$BE11*$BJ11-($BJ11^2))) -> 0 | BL11: =$BK11*$BE$6 -> 0 | BM11: =IF($BI11>=$BG$7,0,IF((($BG$7-$BI11)*$M$19)>=($BE11*2),$BE11*2,($BG$7-$BI11)*$M$19)) -> 0.2247897204 | BN11: =(($BE11^2)*ACOS(($BE11-$BM11)/$BE11))-(($BE11-$BM11)*SQRT(2*$BE11*$BM11-($BM11^2))) -> 0.3382223863 | BO11: =$BN11*$BE$6 -> 0.03382223863
A12: Proposed | B12: x (ft) | C12: y (ft) | K12: =IF(OR($C$18="",$C$17=""),"",IF($C$17>=$C$18,"ERROR - RB top elevation must be > RB toe elevation","")) ->  | L12: Mid-Channel | N12: Logs placed at the head of an island or bar | R12: Pt 3 | S12: Stem tip: Crown | T12: =IF($F$25="",0,IF($D$25="Stem tip: Crown",$F$25,$T$11+((($E$22-$G$22)*$M$19)*$M$17))) -> 47.21557502 | U12: =IF($G$25="",$C$13,IF($D$25="Stem tip: Crown",$G$25,$U$11-(($E$22-$G$22)*-$M$20))) -> 96.75299338 | W12: Stem tip: Crown | X12: =$T$11+((($E$22-$G$22)*$M$19)*$M$17) -> 47.21557502 | Y12: OK | Z12: =$U$11-(($E$22-$G$22)*-$M$20) -> 96.75299338 | AA12: OK | AC12: WSE | AD12: =IF($AD$8="","",AVERAGE(AD8:AD9)) -> 75 | AE12: =IF($AE$8="","",AVERAGE(AE8:AE9)) -> 101.25 | AH12: hmax,up,dry | AI12: =IF(AND($AB$23>$F$22,$AB$24>$F$22),0,IF(AND($AB$23>=$F$22,(($F$22-$AB$24)/(COS($AI$8)))>$F$22),$F$22,IF($AB$23>=$F$22,($F$22-$AB$24)/(COS($AI$8)),IF(AND($AB$24>=$F$22,(($F$22-$AB$23)/(COS($AI$8))>$F$22)),$F$22,IF($AB$24>=$F$22,($F$22-$AB$23)/(COS($AI$8)),""))))) -> 0 | AJ12: ft | AS12: hmax,up,dry | AT12: =IF(AND($Z$23>$F$22,$Z$24>$F$22),0,IF(AND($Z$23>=$F$22,(($F$22-$Z$24)/(COS($AT$8)))>$F$22),$F$22,IF($Z$23>=$F$22,($F$22-$Z$24)/(COS($AT$8)),IF(AND($Z$24>=$F$22,(($F$22-$Z$23)/(COS($AT$8))>$F$22)),$F$22,IF($Z$24>=$F$22,($F$22-$Z$23)/(COS($AT$8)),""))))) ->  | AU12: ft | BC12: 3 | BD12: 0.25 | BE12: 2.833333333 | BF12: 25.22000769 | BG12: 2.522000769 | BH12: 98.3091894 | BI12: 92.6427385 | BJ12: 0 | BK12: 0 | BL12: 0 | BM12: 0.1572555102 | BN12: 0.1962738082 | BO12: 0.01962738082
A13: Fldpln LB | B13: 0 | C13: 99.18 | K13: =IF(OR($B$14<$B$13,$B$15<$B$14,$B$16<$B$15,$B$17<$B$16,$B$18<$B$17,$B$19<$B$18),"ERROR - Each 'x' distance must be >= previous point","") ->  | L13: Full-Span | N13: Multiple logs constricting a large portion of the cross-sectional area | R13: Pt 4 | S13: Stem tip: Bottom | T13: =IF($F$25="",0,IF($D$25="Stem tip: Bottom",$F$25,$T$12-(($F$22*-$M$20)*$M$17))) -> 47.20606939 | U13: =IF($G$25="",$C$13,IF($D$25="Stem tip: Bottom",$G$25,$U$12-($F$22*$M$19))) -> 94.75306953 | W13: Stem tip: Bottom | X13: =$T$12-(($F$22*-$M$20)*$M$17) -> 47.20606939 | Y13: OK | Z13: =$U$12-($F$22*$M$19) -> 94.75306953 | AA13: OK | AH13: LTS,bot,wet | AI13: =IF(($AI$9/SIN($AI$8))>($E$22-$G$22),($E$22-$G$22-$AI$14),($AI$9/SIN($AI$8))-$AI$14) -> -515.3255407 | AJ13: ft | AS13: LTS,bot,wet | AT13: =IF(($AT$9/SIN($AT$8))>($E$22-$G$22),($E$22-$G$22-$AT$14),($AT$9/SIN($AT$8))-$AT$14) ->  | AU13: ft | BC13: 4 | BD13: 0.35 | BE13: 2.766666667 | BF13: 24.04714643 | BG13: 2.404714643 | BH13: 98.24339792 | BI13: 92.71027528 | BJ13: 0 | BK13: 0 | BL13: 0 | BM13: 0.08972130004 | BN13: 0.0838786754 | BO13: 0.00838786754
A14: Top LB | B14: 33 | C14: 98.59 | L14: Floodplain | N14: Logs placed outside of the bankfull channel | R14: Pt 5 | S14: Root collar: Bottom | T14: =IF($F$25="",0,IF($D$25="Root collar: Bottom",$F$25,$T$13-((($E$22-$G$22)*$M$19)*$M$17))) -> 63 | U14: =IF($G$25="",$C$13,IF($D$25="Root collar: Bottom",$G$25,$U$13+(($E$22-$G$22)*-$M$20))) -> 94.5 | W14: Root collar: Bottom | X14: =$T$13-((($E$22-$G$22)*$M$19)*$M$17) -> 63 | Y14: OK | Z14: =$U$13+(($E$22-$G$22)*-$M$20) -> 94.5 | AA14: OK | AC14: Bank Labels | AH14: LTS,top,wet | AI14: =IF($AI$11>=$F$22,(($AI$9-($AI$11/(COS($AI$8))))/SIN($AI$8))+($AI$11*TAN($AI$8)),0) -> 544.3255407 | AJ14: ft | AS14: LTS,top,wet | AT14: =IF($AT$11>=$F$22,(($AT$9-($AT$11/(COS($AT$8))))/SIN($AT$8))+($AT$11*TAN($AT$8)),0) ->  | AU14: ft | BC14: 5 | BD14: 0.45 | BE14: 2.7 | BF14: 22.90221044 | BG14: 2.290221044 | BH14: 98.17760645 | BI14: 92.77781207 | BJ14: 0 | BK14: 0 | BL14: 0 | BM14: 0.02218708988 | BN14: 0.01022704315 | BO14: 0.001022704315
A15: Toe LB | B15: 54 | C15: 95.63 | K15: =IF(AND($B$6="Rootwad",$D$22="No"),"ERROR - Rootwad structure type should have a rootwad","") ->  | R15: Pt 6 | S15: Rootwad: Bottom | T15: =IF($F$25="",0,IF($D$25="Rootwad: Bottom",$F$25,IF($D$22="No",$T$14,$T$14-(($G$22*$M$19)*$M$17)-(((($H$22-$F$22)/2)*-$M$20)*$M$17)))) -> 64.62434927 | U15: =IF($G$25="",$C$13,IF($D$25="Rootwad: Bottom",$G$25,IF($D$22="No",$U$14,$U$14+($G$22*-$M$20)-((($H$22-$F$22)/2)*$M$19)))) -> 92.47389655 | W15: Rootwad: Bottom | X15: =IF($D$22="No",$T$14,$T$14-(($G$22*$M$19)*$M$17)-(((($H$22-$F$22)/2)*-$M$20)*$M$17)) -> 64.62434927 | Y15: OK | Z15: =IF($D$22="No",$U$14,$U$14+($G$22*-$M$20)-((($H$22-$F$22)/2)*$M$19)) -> 92.47389655 | AA15: OK | AC15: LB | AD15: =IF(OR($B$13="",$B$14=""),"",AVERAGE($B$13:$B$14)) -> 16.5 | AE15: =IF(OR($C$13="",$C$14=""),"",AVERAGE($C$13:$C$14)) -> 98.885 | AH15: K1 | AI15: =IF(AND(($AI$11-$AI$7)=1,$AH$17="Case 1"),PI(),ACOS(1-($AI$11/$AI$7))) -> 3.141592654 | AJ15: rad | AS15: K1 | AT15: =ACOS(1-($AT$11/$AT$7)) ->  | AU15: rad | BC15: 6 | BD15: 0.55 | BE15: 2.633333333 | BF15: 21.78519972 | BG15: 2.178519972 | BH15: 98.11181498 | BI15: 92.84534885 | BJ15: 0 | BK15: 0 | BL15: 0 | BM15: 0 | BN15: 0 | BO15: 0
A16: Thalweg | B16: 79 | C16: 92.8 | K16: =IF(OR($N$52="",$F$25="",$G$25=""),"",IF(AND($B$6="Rootwad",$N$52<>"Exposed in stream"),"CHECK - Rootwad structure typically has exposed rootwad","")) ->  | AC16: RB | AD16: =IF(OR($B$18="",$B$19=""),"",AVERAGE($B$18:$B$19)) -> 138.5 | AE16: =IF(OR($C$18="",$C$19=""),"",AVERAGE($C$18:$C$19)) -> 98.8 | AH16: K2 | AI16: =IF($AI$12="","",ACOS(1-($AI$12/$AI$7))) -> 0 | AJ16: rad | AS16: K2 | AT16: =IF($AT$12="","",ACOS(1-($AT$12/$AT$7))) ->  | AU16: rad | BC16: 7 | BD16: 0.65 | BE16: 2.566666667 | BF16: 20.69611427 | BG16: 2.069611427 | BH16: 98.0460235 | BI16: 92.91288563 | BJ16: 0 | BK16: 0 | BL16: 0 | BM16: 0 | BN16: 0 | BO16: 0
A17: Toe RB | B17: 108 | C17: 94.94 | L17: cos (q+90) = | M17: =IF($B$25="",0,COS(($B$25+90)*PI()/180)) -> -0.544639035 | S17: Rootwad Coordinates | AG17: check: | AH17: =IF(AND($AA$21="Wet",$AA$22="Wet",$AA$23="Wet",$AA$24="Wet"),"Log is completely submerged",IF(AND($AA$21="Dry",$AA$22="Dry",OR(AND($AA$23="Dry",$AA$24="Wet"),AND($AA$24="Dry",$AA$23="Wet"))),"Case 1",IF(OR(AND($AA$21="Wet",$AA$24="Wet",$AA$22="Dry",$AA$23="Dry"),AND($AA$22="Wet",$AA$23="Wet",$AA$21="Dry",$AA$24="Dry")),"Case 2",IF(AND($AA$22="Dry",$AA$23="Wet",$AA$21="Dry",$AA$24="Wet"),"Case 3",IF(OR(AND($AA$21="Dry",$AA$22="Wet",$AA$23="Wet",$AA$24="Wet"),AND($AA$21="Wet",$AA$22="Dry",$AA$23="Wet",$AA$24="Wet")),"Case 4","Stem is Dry"))))) -> Log is completely submerged | AK17: VTS = | AL17: =PI()*(($F$22/2)^2)*($E$22-$G$22) -> 91.10618695 | AM17: ft3 | AR17: check: | AS17: =IF(AND($Y$21="Wet",$Y$22="Wet",$Y$23="Wet",$Y$24="Wet"),"Log is completely submerged",IF(AND($Y$21="Dry",$Y$22="Dry",OR(AND($Y$23="Dry",$Y$24="Wet"),AND($Y$24="Dry",$Y$23="Wet"))),"Case 1",IF(OR(AND($Y$21="Wet",$Y$24="Wet",$Y$22="Dry",$Y$23="Dry"),AND($Y$22="Wet",$Y$23="Wet",$Y$21="Dry",$Y$24="Dry")),"Case 2",IF(AND($Y$22="Dry",$Y$23="Wet",$Y$21="Dry",$Y$24="Wet"),"Case 3",IF(OR(AND($Y$21="Dry",$Y$22="Wet",$Y$23="Wet",$Y$24="Wet"),AND($Y$21="Wet",$Y$22="Dry",$Y$23="Wet",$Y$24="Wet")),"Case 4","Stem is Dry"))))) -> Stem is Dry | AV17: VTS = | AW17: =PI()*(($F$22/2)^2)*($E$22-$G$22) -> 91.10618695 | AX17: ft3 | BC17: 8 | BD17: 0.75 | BE17: 2.5 | BF17: 19.63495408 | BG17: 1.963495408 | BH17: 97.98023203 | BI17: 92.98042241 | BJ17: 0 | BK17: 0 | BL17: 0 | BM17: 0 | BN17: 0 | BO17: 0
A18: Top RB | B18: 127 | C18: 98.72 | L18: sin (q+90) = | M18: =IF($B$25="",0,SIN(($B$25+90)*PI()/180)) -> 0.8386705679 | T18: x (ft) | U18: y (ft) | W18: Large Wood "Below Thalweg" and "Below Water Surface" Depths | AG18: Case 1 | AR18: Case 1 | BC18: 9 | BD18: 0.85 | BE18: 2.433333333 | BF18: 18.60171917 | BG18: 1.860171917 | BH18: 97.91444055 | BI18: 93.04795919 | BJ18: 0 | BK18: 0 | BL18: 0 | BM18: 0 | BN18: 0 | BO18: 0
A19: Fldpln RB | B19: 150 | C19: 98.88 | K19: =IF($C$25="","", IF($C$25=0,"ERROR - Angle of tilt can not be exactly 0 deg, change to 0.01", IF(OR($C$25>=90,$C$25<=-90),"ERROR - Angle of tilt must be between (-)89.9 and (+)89.9 deg",""))) ->  | L19: cos b = | M19: =IF($C$25="",0,COS($C$25*PI()/180)) -> 0.9999619231 | S19: RW bottom1 | T19: =IF($T$15="","",$T$15) -> 64.62434927 | U19: =IF($U$15="",$C$13,$U$15) -> 92.47389655 | X19: Point | Y19: ↓twCondition | Z19: dT,wet | AA19: ↓WSECondition | AB19: dT↓dw | AI19: V = | AJ19: LTS,bot,wet/hmax,lower*R3*(sin K1 – K1*cos K1 – 1/3*(sin K1)3) | AT19: V = | AU19: LTS,bot,wet/hmax,lower*R3*(sin K1 – K1*cos K1 – 1/3*(sin K1)3) | BC19: 10 | BD19: 0.95 | BE19: 2.366666667 | BF19: 17.59640952 | BG19: 1.759640952 | BH19: 97.84864908 | BI19: 93.11549597 | BJ19: 0 | BK19: 0 | BL19: 0 | BM19: 0 | BN19: 0 | BO19: 0
K20: =IF(OR($B$25="",$A$6=""),"",IF(OR($B$25>360,$B$25<-180),"ERROR - Orientation angle must be (-)180 to (+)360 deg","")) ->  | L20: sin b = | M20: =IF($C$25="",0,SIN($C$25*PI()/180)) -> 0.008726535498 | S20: RW sid1 | T20: =IF($T$19="","",IF($D$22="No",$T$19+((SIN(45*PI()/180))*$M$18),(($T$19+$T$21)/2)+((SIN(45*PI()/180))*$M$18))) -> 66.48251398 | U20: =IF($U$15="",$C$13,($U$21+$U$19)/2) -> 93.97383943 | W20: Rootwad: Crown | X20: Pt 1 | Y20: =IF($U10<$C$16,"Wet","Dry") -> Dry | Z20: =IF($C$16<U10,0,$C$16-U10) -> 0 | AA20: =IF($U10<$AE$8,"Wet","Dry") -> Wet | AB20: =IF(U10>$AE$8,0,$AE$8-U10) -> 2.776331914 | AI20: where: | AJ20: K1 = arccos(1-hmax,lower/R) | AT20: where: | AU20: K1 = arccos(1-hmax,lower/R) | BC20: 11 | BD20: 1.05 | BE20: 2.3 | BF20: 16.61902514 | BG20: 1.661902514 | BH20: 97.7828576 | BI20: 93.18303276 | BJ20: 0 | BK20: 0 | BL20: 0 | BM20: 0 | BN20: 0 | BO20: 0
A21: Wood Species | D21: Rootwad | E21: LT (ft) | F21: DTS (ft) | G21: LRW (ft) | H21: DRW (ft) | I21: gTd (lb/ft3) | J21: gTgr (lb/ft3) | K21: =IF(AND($D$22="No",OR($D$25="Rootwad: Crown",$D$25="Rootwad: Bottom")),"ERROR - No rootwad, define a different starting point","") ->  | L21: typ RW b = | M21: =IF($E$22="",0,ROUND((-ATAN(((($H$22-$F$22)/2))/$E$22)*180/PI()),1)) -> -3.6 | S21: RW sid2 | T21: =IF($T$19="","",IF($D$22="No",(($T$19+$T$23)/2)+($F$22/2*$M$18),(($T$19+$T$23)/2)+($H$22/2*$M$18))) -> 67.15461941 | U21: =IF($U$15="",$C$13,($U$19+$U$23)/2) -> 95.47378232 | W21: Root collar: Crown | X21: Pt 2 | Y21: Dry | Z21: 0 | AA21: Wet | AB21: 4.750076154 | AI21: VTS,wet,C1 | AJ21: =($AI$13/$AI$11)*($AI$7^3)*(SIN($AI$15)-($AI$15*COS($AI$15))-((1/3)*(SIN($AI$15))^3)) -> -809.4714665 | AK21: ft3 | AT21: VTS,wet,C1 | AU21: =($AT$13/$AT$11)*($AT$7^3)*(SIN($AT$15)-($AT$15*COS($AT$15))-((1/3)*(SIN($AT$15))^3)) ->  | AV21: ft3 | BC21: 12 | BD21: 1.15 | BE21: 2.233333333 | BF21: 15.66956602 | BG21: 1.566956602 | BH21: 97.71706613 | BI21: 93.25056954 | BJ21: 0 | BK21: 0 | BL21: 0 | BM21: 0 | BN21: 0 | BO21: 0
A22: Douglas-fir, Interior west | D22: Yes | E22: 32 | F22: 2 | G22: =IF(OR($D$22="No",$D$22=""),0,IF($F$22="",0,$F$22*LFRW)) -> 3 | H22: =IF(OR($D$22="No",$D$22=""),0,IF($F$22="",0,$F$22*DFRW)) -> 6 | I22: =IF($A$22="","",VLOOKUP($A$22,'5-Wood'!$B$8:$E$17,3,0)) -> 34.944 | J22: =IF($A$22="","",VLOOKUP($A$22,'5-Wood'!$B$8:$E$17,4,0)) -> 39 | S22: RW sid3 | T22: =IF($T$19="","",IF($D$22="No",$T$23+((SIN(45*PI()/180))*$M$18),(($T$23+$T$21)/2)+((SIN(45*PI()/180))*$M$18))) -> 66.49677242 | U22: =IF($U$15="",$C$13,($U$21+$U$23)/2) -> 96.9737252 | W22: Stem tip: Crown | X22: Pt 3 | Y22: Dry | Z22: 0 | AA22: Wet | AB22: 4.497006624 | BC22: 13 | BD22: 1.25 | BE22: 2.166666667 | BF22: 14.74803218 | BG22: 1.474803218 | BH22: 97.65127465 | BI22: 93.31810632 | BJ22: 0 | BK22: 0 | BL22: 0 | BM22: 0 | BN22: 0 | BO22: 0
K23: =IF(OR($B$25="",$A$6=""),"",IF(OR($B$25=360,$B$25=270,$B$25=180,$B$25=90,$B$25=0,$B$25=-90,$B$25=-180),"ERROR - Orientation angle can not EXACTLY equal 0, 90, 180, 270, or 360 deg. Change input value to 0.01, 89.99 (or similar)","")) ->  | S23: RW crown | T23: =IF($T$19="","",$T$10) -> 64.65286614 | U23: =IF($U$15="",$C$13,$U$10) -> 98.47366809 | W23: Stem tip: Bottom | X23: Pt 4 | Y23: Dry | Z23: 0 | AA23: Wet | AB23: 6.496930471 | AG23: Case 2 | AR23: Case 2 | BC23: 14 | BD23: 1.35 | BE23: 2.1 | BF23: 13.8544236 | BG23: 1.38544236 | BH23: 97.58548318 | BI23: 93.3856431 | BJ23: 0 | BK23: 0 | BL23: 0 | BM23: 0 | BN23: 0 | BO23: 0
A24: Structure Geometry | B24: q (deg) | C24: b (deg) | D24: Define Fixed Point | F24: xT (ft) | G24: yT (ft) | H24: yT,min (ft) | I24: yT,max (ft) | J24: ATp (ft2) | S24: RW sid4 | T24: =IF($T$19="","",IF($D$22="No",$T$23-((SIN(45*PI()/180))*$M$18),(($T$23+$T$25)/2)-((SIN(45*PI()/180))*$M$18))) -> 62.79470142 | U24: =IF($U$15="",$C$13,($U$25+$U$23)/2) -> 96.9737252 | W24: Root collar: Bottom | X24: Pt 5 | Y24: Dry | Z24: 0 | AA24: Wet | AB24: 6.75 | AI24: V = | AJ24: (p*R2*LTS,top,wet) + (LTS,bot,wet/hmax,lower*R3*(sin K1 – K1*cos K1 – 1/3*(sin K1)3) | AT24: V = | AU24: (p*R2*LTS,top,wet) + (LTS,bot,wet/hmax,lower*R3*(sin K1 – K1*cos K1 – 1/3*(sin K1)3) | BC24: 15 | BD24: 1.45 | BE24: 2.033333333 | BF24: 12.98874029 | BG24: 1.298874029 | BH24: 97.5196917 | BI24: 93.45317988 | BJ24: 0 | BK24: 0 | BL24: 0 | BM24: 0 | BN24: 0 | BO24: 0
B25: 33 | C25: 0.5 | D25: Root collar: Bottom | F25: 63 | G25: 94.5 | H25: =IF(OR($E$22="",$F$22="",$F$25="",$G$25=""),"",MIN($U$10:$U$15)) -> 92.47389655 | I25: =IF(OR($E$22="",$F$22="",$F$25="",$G$25=""),"",MAX($U$10:$U$15)) -> 98.47366809 | J25: =IF(OR($E$22="",$F$22="",$F$25="",$G$25=""),"",IF($T$81<0,$AB$80,IF($T$81>$T$77,$T$77+$AB$80,IF(OR(AND($C$25=0,$D$22="No",$B$25=0),AND($C$25=0,$D$22="No",$B$25=360),AND($C$25=0,$D$22="No",$B$25=180)),PI()*(($F$22/2)^2),$T$81+$AB$80)))) -> 43.42687941 | K25: =IF(OR($B$13="",$B$19="",$U$38=0,$U$39=0),"",IF(OR(MAX($U$38:$U$39)>$B$19,MIN($U$38:$U$39)<$B$13),"ERROR - Log extends beyond limits of floodplain","")) ->  | S25: RW sid5 | T25: =IF($T$19="","",IF($D$22="No",(($T$27+$T$23)/2)-($F$22/2*$M$18),(($T$27+$T$23)/2)-($H$22/2*$M$18))) -> 62.122596 | U25: =IF($U$15="",$C$13,($U$27+$U$23)/2) -> 95.47378232 | W25: Rootwad: Bottom | X25: Pt 6 | Y25: Wet | Z25: 0.3261034526 | AA25: Wet | AB25: 8.776103453 | AI25: where: | AJ25: K1 = arccos(1-hmax,lower/R) | AT25: where: | AU25: K1 = arccos(1-hmax,lower/R) | BC25: 16 | BD25: 1.55 | BE25: 1.966666667 | BF25: 12.15098225 | BG25: 1.215098225 | BH25: 97.45390023 | BI25: 93.52071666 | BJ25: 0 | BK25: 0 | BL25: 0 | BM25: 0 | BN25: 0 | BO25: 0
S26: RW sid6 | T26: =IF($T$19="","",IF($D$22="No",$T$27-((SIN(45*PI()/180))*$M$18),(($T$27+$T$25)/2)-((SIN(45*PI()/180))*$M$18))) -> 62.78044299 | U26: =IF($U$15="",$C$13,($U$25+$U$27)/2) -> 93.97383943 | AI26: VTS,wet,C2 | AJ26: =(PI()*(($AI$7)^2)*($AI$14))+($AI$13/$AI$11)*($AI$7^3)*(SIN($AI$15)-($AI$15*COS($AI$15))-((1/3)*(SIN($AI$15))^3)) -> 900.5776534 | AK26: ft3 | AT26: VTS,wet,C2 | AU26: =(PI()*(($AT$7)^2)*($AT$14))+($AT$13/$AT$11)*($AT$7^3)*(SIN($AT$15)-($AT$15*COS($AT$15))-((1/3)*(SIN($AT$15))^3)) ->  | AV26: ft3 | BC26: 17 | BD26: 1.65 | BE26: 1.9 | BF26: 11.34114948 | BG26: 1.134114948 | BH26: 97.38810875 | BI26: 93.58825345 | BJ26: 0 | BK26: 0 | BL26: 0 | BM26: 0 | BN26: 0 | BO26: 0
A27: Soils | B27: Material | D27: gs (lb/ft3) | E27: g's (lb/ft3) | F27: f (deg) | G27: Soil Class | H27: LT,em (ft) | I27: db,max (ft) | J27: db,avg (ft) | S27: RW bottom2 | T27: =IF($T$19="","",$T$15) -> 64.62434927 | U27: =IF($U$15="",$C$13,$U$15) -> 92.47389655 | BC27: 18 | BD27: 1.75 | BE27: 1.833333333 | BF27: 10.55924197 | BG27: 1.055924197 | BH27: 97.32231728 | BI27: 93.65579023 | BJ27: 0 | BK27: 0 | BL27: 0 | BM27: 0 | BN27: 0 | BO27: 0
A28: Stream Bed | B28: =IF($A$6="","",VLOOKUP($A$6,Soil,4,0)) -> Small Cobble | D28: =IF($A$6="","",VLOOKUP($A$6,Soil,6,0)) -> 136.3754574 | E28: =IF($A$6="","",VLOOKUP($A$6,Soil,7,0)) -> 84.91302064 | F28: =IF($A$6="","",VLOOKUP($A$6,Soil,8,0)) -> 41 | G28: =IF($A$6="","",VLOOKUP($A$6,Soil,5,0)) -> 4 | H28: =IF(OR($E$22="",$F$22="",$F$25="",$G$25=""),"",IF(AND($F$25<=$B$17,$F$25>=$B$15,OR($B$25=0,$B$25=180,$B$25=360)),SUM($X$49:$X$50),$AB$49+$AB$50)) -> 0 | I28: =IF(OR($E$22="",$F$22="",$F$25="",$G$25=""),"",$AT$42) -> 0 | J28: =IF(OR($E$22="",$F$22="",$F$25="",$G$25=""),"",$AT$41) -> 0 | AG28: Case 3 | AR28: Case 3 | BC28: 19 | BD28: 1.85 | BE28: 1.766666667 | BF28: 9.805259738 | BG28: 0.9805259738 | BH28: 97.2565258 | BI28: 93.72332701 | BJ28: 0 | BK28: 0 | BL28: 0 | BM28: 0 | BN28: 0 | BO28: 0
A29: Bank | B29: =IF($A$6="","",VLOOKUP($A$6,Soil,9,0)) -> Gravel/cobble | D29: =IF($A$6="","",VLOOKUP($A$6,Soil,11,0)) -> 137 | E29: =IF($A$6="","",VLOOKUP($A$6,Soil,12,0)) -> 85.30188679 | F29: =IF($A$6="","",VLOOKUP($A$6,Soil,13,0)) -> 41 | G29: =IF($A$6="","",VLOOKUP($A$6,Soil,10,0)) -> 4 | H29: =IF(OR($E$22="",$F$22="",$F$25="",$G$25=""),"",IF(AND(OR($F$25>$B$17,$F$25<$B$15),OR($B$25=0,$B$25=180,$B$25=360)),$X$47+$X$48+$X$51+$X$52,$AB$47+$AB$48+$AB$51+$AB$52)) -> 0 | I29: =IF(OR($E$22="",$F$22="",$F$25="",$G$25=""),"",$AU$42) -> 0 | J29: =IF(OR($E$22="",$F$22="",$F$25="",$G$25=""),"",$AU$41) -> 0 | K29: =IF(OR($E$22="",$F$22="",$F$25="",$G$25=""),"",IF(($H$28+$H$29)>$E$22,"ERROR - Embedded length of log exceeds total length of log","")) ->  | S29: Coordinates of Large Wood Crown at Key Points | AI29: V = | AJ29: LTS*(R2*arccos((R-dwet,avgH)/R)-(R-dwet,avgH)*((2*R*dwet,avgH)-dwet,avgH2)0.5) | AT29: V = | AU29: LTS*(R2*arccos((R-dwet,avgH)/R)-(R-dwet,avgH)*((2*R*dwet,avgH)-dwet,avgH2)0.5) | BC29: 20 | BD29: 1.95 | BE29: 1.7 | BF29: 9.079202769 | BG29: 0.9079202769 | BH29: 97.19073433 | BI29: 93.79086379 | BJ29: 0 | BK29: 0 | BL29: 0 | BM29: 0 | BN29: 0 | BO29: 0
T30: Wood Present? | U30: Large Wood Parameters | Y30: Soil | AA30: Slope | AB30: Bank (ft/ft) | AI30: VTS,wet,C3 | AJ30: =IF($AI$10="","",($E$22-$G$22)*((($AI$7^2)*ACOS(($AI$7-$AI$10)/$AI$7))-(($AI$7-$AI$10)*((2*$AI$7*$AI$10)-($AI$10^2))^0.5))) ->  | AK30: ft3 | AT30: VTS,wet,C3 | AU30: =IF($AT$10="","",($E$22-$G$22)*((($AT$7^2)*ACOS(($AT$7-$AT$10)/$AT$7))-(($AT$7-$AT$10)*((2*$AT$7*$AT$10)-($AT$10^2))^0.5))) ->  | AV30: ft3 | BC30: 21 | BD30: 2.05 | BE30: 1.633333333 | BF30: 8.381071068 | BG30: 0.8381071068 | BH30: 97.12494286 | BI30: 93.85840057 | BJ30: 0 | BK30: =(($BE30^2)*ACOS(($BE30-$BJ30)/$BE30))-(($BE30-$BJ30)*SQRT(2*$BE30*$BJ30-($BJ30^2))) -> 0 | BL30: =$BK30*$BE$6 -> 0 | BM30: 0 | BN30: 0 | BO30: 0
U31: xTS (ft) | V31: Dist (ft) | W31: Adjusted Dist (ft) | X31: yTS (ft) | Y31: ysoil (ft) | AA31: Fldpln LB | AB31: =IF(OR($B$13="",$B$14="",$C$13="",$C$14=""),"",($C$14-$C$13)/($B$14-$B$13)) -> -0.01787878788 | BC31: 22 | BD31: 2.15 | BE31: 1.566666667 | BF31: 7.710864635 | BG31: 0.7710864635 | BH31: 97.05915138 | BI31: 93.92593736 | BJ31: 0 | BK31: 0 | BL31: 0 | BM31: 0 | BN31: 0 | BO31: 0
S32: At Left Bank Top | T32: =IF(OR($F$25="",$G$25=""),"No",IF(MIN($U$38:$U$39)>$B$14,"No",IF(MAX($U$38:$U$39)<$B$14,"No","Yes"))) -> No | U32: =$B$14 -> 33 | V32: =IF(OR($B$25=0,$B$25=180,$B$25=360),0,IF($T$11>$T$12,$G$22+((($T$11-$B$14)/ABS($M$17))/$M$19),(($T$12-$B$14)/ABS($M$17))/$M$19)) -> 58.10190495 | W32: =IF(V32<0,0,IF(V32>$E$22,$E$22,V32)) -> 32 | X32: =IF($T$11>$T$12,$U$11+(($V$32-$G$22)*$M$20),$U$12-($V$32*$M$20)) -> 96.98077258 | Y32: =$C$14 -> 98.59 | AA32: LB | AB32: =IF(OR($B$14="",$B$15="",$C$14="",$C$15=""),"",($C$15-$C$14)/($B$15-$B$14)) -> -0.140952381 | BC32: 23 | BD32: 2.25 | BE32: 1.5 | BF32: 7.068583471 | BG32: 0.7068583471 | BH32: 96.99335991 | BI32: 93.99347414 | BJ32: 0 | BK32: 0 | BL32: 0 | BM32: 0 | BN32: 0 | BO32: 0
S33: At Left Bank Toe | T33: =IF(OR($F$25="",$G$25=""),"No",IF(MIN($U$38:$U$39)>$B$15,"No",IF(MAX($U$38:$U$39)<$B$15,"No","Yes"))) -> Yes | U33: =$B$15 -> 54 | V33: =IF(OR($B$25=0,$B$25=180,$B$25=360),0,IF($T$11>$T$12,$G$22+((($T$11-$B$15)/ABS($M$17))/$M$19),(($T$12-$B$15)/ABS($M$17))/$M$19)) -> 19.5427891 | W33: 19.5427891 | X33: =IF($T$11>$T$12,$U$11+(($V$33-$G$22)*$M$20),$U$12-($V$33*$M$20)) -> 96.64428508 | Y33: =$C$15 -> 95.63 | AA33: Stream L | AB33: =IF(OR($B$15="",$B$16="",$C$15="",$C$16=""),"",($C$16-$C$15)/($B$16-$B$15)) -> -0.1132 | BC33: 24 | BD33: 2.35 | BE33: 1.433333333 | BF33: 6.454227574 | BG33: 0.6454227574 | BH33: 96.92756843 | BI33: 94.06101092 | BJ33: 0 | BK33: 0 | BL33: 0 | BM33: 0 | BN33: 0 | BO33: 0
S34: At Left Thalweg | T34: =IF(OR($F$25="",$G$25=""),"No",IF(AND(MAX($U$38:$U$39)>$B$16,MIN($U$38:$U$39)<$B$16),"Yes","No")) -> No | U34: =$B$16 -> 79 | V34: =IF(OR($B$25=0,$B$25=180,$B$25=360),0,IF($T$11>$T$12,$G$22+((($T$11-$B$16)/ABS($M$17))/$M$19),(($T$12-$B$16)/ABS($M$17))/$M$19)) -> -26.36092024 | W34: 0 | X34: =IF($T$11>$T$12,$U$11+(($V$34-$G$22)*$M$20),$U$12-($V$34*$M$20)) -> 96.24370473 | Y34: =$C$16 -> 92.8 | AA34: Stream R | AB34: =IF(OR($B$17="",$B$16="",$C$17="",$C$16=""),"",($C$16-$C$17)/($B$16-$B$17)) -> 0.07379310345 | AG34: Case 4 | AR34: Case 4 | BC34: 25 | BD34: 2.45 | BE34: 1.366666667 | BF34: 5.867796945 | BG34: 0.5867796945 | BH34: 96.86177696 | BI34: 94.1285477 | BJ34: 0 | BK34: 0 | BL34: 0 | BM34: 0 | BN34: 0 | BO34: 0
S35: At Right Thalweg | T35: =IF(OR($F$25="",$G$25=""),"No",IF(AND(MAX($U$38:$U$39)>$B$16,MIN($U$38:$U$39)<$B$16),"Yes","No")) -> No | U35: =$B$16 -> 79 | V35: =IF(OR($B$25=0,$B$25=180,$B$25=360),0,IF($T$11<$T$12,$G$22+((($B$16-$T$11)/ABS($M$17))/$M$19),(($B$16-$T$12)/ABS($M$17))/$M$19)) -> 58.36092024 | W35: 32 | X35: =IF($T$11<$T$12,$U$11+(($V$35-$G$22)*$M$20),$U$12-($V$35*$M$20)) -> 96.24370473 | Y35: =$C$16 -> 92.8 | AA35: RB | AB35: =IF(OR($B$18="",$B$17="",$C$18="",$C$17=""),"",($C$18-$C$17)/($B$18-$B$17)) -> 0.1989473684 | AI35: V = | AJ35: VTS - (LTS,wet/hmax,up,dry*R3*(sin K2 – K2*cos K2 – 1/3*(sin K2)3) | AT35: V = | AU35: VTS - (LTS,wet/hmax,up,dry*R3*(sin K2 – K2*cos K2 – 1/3*(sin K2)3) | BC35: 26 | BD35: 2.55 | BE35: 1.3 | BF35: 5.309291585 | BG35: 0.5309291585 | BH35: 96.79598548 | BI35: 94.19608448 | BJ35: 0 | BK35: 0 | BL35: 0 | BM35: 0 | BN35: 0 | BO35: 0
S36: At Right Bank Toe | T36: =IF(OR($F$25="",$G$25=""),"No",IF(MAX($U$38:$U$39)<$B$17,"No",IF(MIN($U$38:$U$39)>$B$17,"No","Yes"))) -> No | U36: =$B$17 -> 108 | V36: =IF(OR($B$25=0,$B$25=180,$B$25=360),0,IF($T$11<$T$12,$G$22+((($B$17-$T$11)/ABS($M$17))/$M$19),(($B$17-$T$12)/ABS($M$17))/$M$19)) -> 111.6092231 | W36: 32 | X36: =IF($T$11<$T$12,$U$11+(($V$36-$G$22)*$M$20),$U$12-($V$36*$M$20)) -> 95.77903153 | Y36: =$C$17 -> 94.94 | AA36: Fldpln RB | AB36: =IF(OR($B$19="",$B$18="",$C$19="",$C$18=""),"",($C$19-$C$18)/($B$19-$B$18)) -> 0.006956521739 | AJ36: K2 = arccos(1-hmax,up,dry/R) | AU36: K2 = arccos(1-hmax,up,dry/R) | BC36: 27 | BD36: 2.65 | BE36: 1.233333333 | BF36: 4.778711492 | BG36: 0.4778711492 | BH36: 96.73019401 | BI36: 94.26362126 | BJ36: 0 | BK36: 0 | BL36: 0 | BM36: 0 | BN36: 0 | BO36: 0
S37: At Right Bank Top | T37: =IF(OR($F$25="",$G$25=""),"No",IF(MAX($U$38:$U$39)<$B$18,"No",IF(MIN($U$38:$U$39)>$B$18,"No","Yes"))) -> No | U37: =$B$18 -> 127 | V37: =IF(OR($B$25=0,$B$25=180,$B$25=360),0,IF($T$11<$T$12,$G$22+((($B$18-$T$11)/ABS($M$17))/$M$19),(($B$18-$T$12)/ABS($M$17))/$M$19)) -> 146.4960422 | W37: 32 | X37: =IF($T$11<$T$12,$U$11+(($V$37-$G$22)*$M$20),$U$12-($V$37*$M$20)) -> 95.47459046 | Y37: =$C$18 -> 98.72 | AI37: VTS,wet,C4 | AJ37: =IF($AI$16="","",$AW$17-(($AI$13/$AI$12)*($AI$7^3)*(SIN($AI$16)-($AI$16*COS($AI$16))-((1/3)*(SIN($AI$16))^3)))) ->  | AK37: ft3 | AT37: VTS,wet,C4 | AU37: =IF($AT$16="","",$AW$17-(($AT$13/$AT$12)*($AT$7^3)*(SIN($AT$16)-($AT$16*COS($AT$16))-((1/3)*(SIN($AT$16))^3)))) ->  | AV37: ft3 | BC37: 28 | BD37: 2.75 | BE37: 1.166666667 | BF37: 4.276056667 | BG37: 0.4276056667 | BH37: 96.66440253 | BI37: 94.33115805 | BJ37: 0 | BK37: 0 | BL37: 0 | BM37: 0 | BN37: 0 | BO37: 0
S38: Low Pt on Crown | T38: =IF(OR($F$25="",$G$25=""),"No","Yes") -> Yes | U38: =IF($T$38="No",0,IF($U$12<=$U$11,$T$12,$T$11-($G$22*$M$19*$M$17))) -> 64.64336051 | V38: 0 | W38: 0 | X38: =IF($T$38="No",0,IF($U$12<=$U$11,$U$12,$U$11-($G$22*$M$20))) -> 96.47374424 | Y38: =IF($T$38="","",IF($U$38<$B$14,(($U$38-$B$13)*$AB$31)+$C$13,IF($U$38<$B$15,(($U$38-$B$14)*$AB$32)+$C$14,IF($U$38<$B$16,(($U$38-$B$15)*$AB$33)+$C$15,IF($U$38<$B$17,(($U$38-$B$16)*$AB$34)+$C$16,IF($U$38<$B$18,(($U$38-$B$17)*$AB$35)+$C$17,IF($U$38<$B$19,(($U$38-$B$18)*$AB$36)+$C$18))))))) -> 94.42517159 | AA38: Slope Log (ft/ft) | AB38: Slope Log Face (ft/ft) | BC38: 29 | BD38: 2.85 | BE38: 1.1 | BF38: 3.801327111 | BG38: 0.3801327111 | BH38: 96.59861106 | BI38: 94.39869483 | BJ38: 0 | BK38: 0 | BL38: 0 | BM38: 0 | BN38: 0 | BO38: 0 | BR38: Max | BS38: Min | BT38: cP (ft)
S39: High Pt on Crown | T39: Yes | U39: =IF($T$39="No",0,IF($U$12>$U$11,$T$12,$T$11-($G$22*$M$19*$M$17))) -> 47.21557502 | V39: =IF($T$39="No",0,$E$22) -> 32 | W39: 32 | X39: =IF($T$39="No",0,IF($U$12>=$U$11,$U$12,$U$11-($G$22*$M$20))) -> 96.75299338 | Y39: =IF($T$39="","",IF($U$39<$B$14,(($U$39-$B$13)*$AB$31)+$C$13,IF($U$39<$B$15,(($U$39-$B$14)*$AB$32)+$C$14,IF($U$39<$B$16,(($U$39-$B$15)*$AB$33)+$C$15,IF($U$39<$B$17,(($U$39-$B$16)*$AB$34)+$C$16,IF($U$39<$B$18,(($U$39-$B$17)*$AB$35)+$C$17,IF($U$39<$B$19,(($U$39-$B$18)*$AB$36)+$C$18))))))) -> 96.58628085 | AI39: Free internet tilted cylinder calculator: | AM39: http://planetcalc.com/1442/ | AT39: Free internet tilted cylinder calculator: | AX39: http://planetcalc.com/1442/ | BC39: 30 | BD39: 2.95 | BE39: 1.033333333 | BF39: 3.354522822 | BG39: 0.3354522822 | BH39: 96.53281958 | BI39: 94.46623161 | BJ39: 0 | BK39: 0 | BL39: 0 | BM39: 0 | BN39: 0 | BO39: 0 | BR39: =MAX($BS$45:$BS$245) -> 0 | BS39: =MIN($BS$45:$BS$245) -> 0 | BT39: =IF($BS$43=0,0,IF(AND($BS$39=0,$BR$39=$E$22),($BR$39+$BS$39)/2,IF($BS$39=0,$BR$39-((1/3)*($BR$39-$BS$39)),IF($BR$39=$E$22,$BR$39-((2/3)*($BR$39-$BS$39)),($BR$39+$BS$39)/2)))) -> 0
S40: Low Pt on Bottom | T40: Yes | U40: =IF($T$40="No",0,IF($U$13<=$U$14,$T$13,$T$14-($G$22*$M$19*$M$17))) -> 64.63385489 | V40: 0 | W40: 0 | X40: =IF($T$40="No",0,IF($U$13<=$U$14,$U$13,$U$14-($G$22*$M$20))) -> 94.47382039 | Y40: =IF($T$40="","",IF($U$40<$B$14,(($U$40-$B$13)*$AB$31)+$C$13,IF($U$40<$B$15,(($U$40-$B$14)*$AB$32)+$C$14,IF($U$40<$B$16,(($U$40-$B$15)*$AB$33)+$C$15,IF($U$40<$B$17,(($U$40-$B$16)*$AB$34)+$C$16,IF($U$40<$B$18,(($U$40-$B$17)*$AB$35)+$C$17,IF($U$40<$B$19,(($U$40-$B$18)*$AB$36)+$C$18))))))) -> 94.42624763 | AA40: =IF(OR($B$25=0,$B$25=180,$B$25=360),($U$11-$U$12)/0.001,IF($X$38=$X$39,1E-25,($U$11-$U$12)/($T$11-$T$12))) -> -0.01602321396 | AB40: =IF(OR($B$25=0,$B$25=180,$B$25=360),9999,IF($X$38=$X$39,1E-25,($U$12-$U$13)/($T$12-$T$13))) -> 210.3937521 | BC40: Total | BG40: =SUM(BG10:BG39) -> 40.83721384 | BL40: =SUM($BL$10:$BL$39) -> 0 | BO40: =SUM($BO$10:$BO$39) -> 0.1134262664
S41: High Pt on Bottom | T41: Yes | U41: =IF($T$41="No",0,IF($U$13>$U$14,$T$13,$T$14-($G$22*$M$19*$M$17))) -> 47.20606939 | V41: =IF($T$41="No",0,$E$22) -> 32 | W41: 32 | X41: =IF($T$41="No",0,IF($U$13>=$U$14,$U$13,$U$14-($G$22*$M$20))) -> 94.75306953 | Y41: =IF($T$41="","",IF($U$41<$B$14,(($U$41-$B$13)*$AB$31)+$C$13,IF($U$41<$B$15,(($U$41-$B$14)*$AB$32)+$C$14,IF($U$41<$B$16,(($U$41-$B$15)*$AB$33)+$C$15,IF($U$41<$B$17,(($U$41-$B$16)*$AB$34)+$C$16,IF($U$41<$B$18,(($U$41-$B$17)*$AB$35)+$C$17,IF($U$41<$B$19,(($U$41-$B$18)*$AB$36)+$C$18))))))) -> 96.5876207 | AS41: Average | AT41: =IF(AT42=0,0,AVERAGE(AT45:AT245)) -> 0 | AU41: =IF(AU42=0,0,AVERAGE(AU45:AU245)) -> 0
S42: Low Pt on Centerline | T42: Yes | U42: =IF($T$42="No",0,AVERAGE($U$38,$U$40)) -> 64.6386077 | V42: 0 | W42: 0 | X42: =IF($T$42="No",0,AVERAGE($X$38,$X$40)) -> 95.47378232 | Y42: =IF($T$42="","",IF($U$42<$B$14,(($U$42-$B$13)*$AB$31)+$C$13,IF($U$42<$B$15,(($U$42-$B$14)*$AB$32)+$C$14,IF($U$42<$B$16,(($U$42-$B$15)*$AB$33)+$C$15,IF($U$42<$B$17,(($U$42-$B$16)*$AB$34)+$C$16,IF($U$42<$B$18,(($U$42-$B$17)*$AB$35)+$C$17,IF($U$42<$B$19,(($U$42-$B$18)*$AB$36)+$C$18))))))) -> 94.42570961 | AI42: Log Partial Area Calculations | AS42: Max | AT42: =MAX(AT45:AT245) -> 0 | AU42: =MAX(AU45:AU245) -> 0 | AY42: Total | AZ42: Total | BA42: Total | BB42: Total | BC42: Total | BE42: Total | BG42: Total | BH42: Total | BI42: Average | BK42: Average | BL42: Average | BM42: Average | BN42: Average | BO42: Total | BP42: Total | BQ42: Total | BR42: Average | BS42: Average
S43: High Pt on Centerline | T43: Yes | U43: =IF($T$42="No",0,AVERAGE($U$39,$U$41)) -> 47.2108222 | V43: =IF($T$43="No",0,$E$22) -> 32 | W43: 32 | X43: =IF($T$42="No",0,AVERAGE($X$39,$X$41)) -> 95.75303145 | Y43: =IF($T$43="","",IF($U$43<$B$14,(($U$43-$B$13)*$AB$31)+$C$13,IF($U$43<$B$15,(($U$43-$B$14)*$AB$32)+$C$14,IF($U$43<$B$16,(($U$43-$B$15)*$AB$33)+$C$15,IF($U$43<$B$17,(($U$43-$B$16)*$AB$34)+$C$16,IF($U$43<$B$18,(($U$43-$B$17)*$AB$35)+$C$17,IF($U$43<$B$19,(($U$43-$B$18)*$AB$36)+$C$18))))))) -> 96.58695078 | AI43: Log Parameters | AP43: Soil Parameters | AY43: =SUM(AY45:AY245) -> 0 | AZ43: =SUM($AZ$45:$AZ$245) -> 0 | BA43: =SUM($BA$45:$BA$245) -> 0 | BB43: =SUM($BB$45:$BB$245) -> 0 | BC43: =SUM($BC$45:$BC$245) -> 0 | BE43: =SUM($BE$45:$BE$245) -> 14.64118925 | BG43: =SUM($BG$45:$BG$245) -> 0 | BH43: =SUM($BH$45:$BH$245) -> 32 | BI43: =IF(SUM($BI$45:$BI$245)=0,0,AVERAGE($BI$45:$BI$245)) -> 16 | BK43: =IF(SUM($BK$45:$BK$245)=0,0,AVERAGE($BK$45:$BK$245)) -> 0.01306371356 | BL43: =IF(SUM($BL$45:$BL$245)=0,0,AVERAGE($BL$45:$BL$245)) -> 31.6 | BM43: =IF(SUM($BM$45:$BM$245)=0,0,AVERAGE($BM$45:$BM$245)) -> 5.636669271 | BN43: =IF(SUM($BN$45:$BN$245)=0,0,AVERAGE($BN$45:$BN$245)) -> 0.1218001703 | BO43: =SUM(BO45:BO245) -> 31.12 | BP43: =SUM($BP$45:$BP$245) -> 18.72 | BQ43: =SUM($BQ$45:$BQ$245) -> 12.4 | BR43: =IF(SUM($BR$45:$BR$245)=0,0,AVERAGE($BR$45:$BR$245)) -> 15.52 | BS43: =IF(SUM($BS$45:$BS$245)=0,0,AVERAGE($BS$45:$BS$245)) -> 0
AI44: Point | AJ44: Distance | AK44: Zone | AL44: xcrown (ft) | AM44: ycrown (ft) | AN44: xbottom (ft) | AO44: ybottom (ft) | AP44: ysoil (ft) | AQ44: db,dry,crown (ft) | AR44: db,sat,crown (ft) | AS44: db,crown (ft) | AT44: db,crown,bed (ft) | AU44: db,crown,bank (ft) | AV44: db,dry,bottom (ft) | AW44: db,sat,bottom (ft) | AX44: db,bottom (ft) | AY44: LT,em (ft) | AZ44: Vbed,dry (ft3) | BA44: Vbed,sat (ft3) | BB44: Vbank,dry (ft3) | BC44: Vbank,sat (ft3) | BD44: hb,TS (ft) | BE44: ATSp,em (ft2) | BF44: dTSp,dry,em (ft) | BG44: ATSp,dry,em (ft2) | BH44: LT,ex (ft) | BI44: cD (ft) | BJ44: hT↑bed,ex,wet (ft) | BK44: CL (ft) | BL44: cL (ft) | BM44: zT,CL↓WSE | BN44: CW | BO44: LTf,tot (ft) | BP44: LTf,bed (ft) | BQ44: LTf,banks (ft) | BR44: cF (ft) | BS44: csoil (ft)
V45: Log Crown and Soil Intercept | X45: Dist to Intercept | Y45: Intercept in Zone? | Z45: LW Buried? | AA45: Exposed Segment | AD45: Large Wood Centerline | AI45: 0 | AJ45: =($AI45/$AI$245)*$AJ$245 -> 0 | AK45: =IF(OR($C$19="",$F$25="",$G$25=""),"None",IF(AL45<$B$14,"Left Floodplain",IF(AL45<$B$15,"Left Bank",IF(AL45<$B$16,"Left Stream Bed",IF(AL45<$B$17,"Right Stream Bed",IF(AL45<$B$18,"Right Bank","Right Floodplain")))))) -> Left Bank | AL45: =MIN($U$38:$U$39) -> 47.21557502 | AM45: =IF($U$38<=$U$39,$X$38,$X$39) -> 96.75299338 | AN45: =MIN($U$40:$U$41) -> 47.20606939 | AO45: =IF($U$40<=$U$41,$X$40,$X$41) -> 94.75306953 | AP45: =IF($AL45<$B$14,(($AL45-$B$13)*$AB$31)+$C$13,IF($AL45<$B$15,(($AL45-$B$14)*$AB$32)+$C$14,IF($AL45<$B$16,(($AL45-$B$15)*$AB$33)+$C$15,IF($AL45<$B$17,(($AL45-$B$16)*$AB$34)+$C$16,IF($AL45<$B$18,(($AL45-$B$17)*$AB$35)+$C$17,IF($AL45<$B$19,(($AL45-$B$18)*$AB$36)+$C$18)))))) -> 96.58628085 | AQ45: =IF(OR($AP45<$AE$12,$AP45<=$AM45),0,IF(OR($AP45>=$AE$12,$AM45>=$AE$12),$AP45-$AM45-$AR45,$AP45-$AE$12)) -> 0 | AR45: =IF($AP45<=$AM45,0,IF($AM45>=$AE$12,0,IF($AP45<=$AE$12,$AP45-$AM45,$AE$12-$AM45))) -> 0 | AS45: =IF(AP45<=AM45,0,AP45-AM45) -> 0 | AT45: =IF(OR($AS45="",$AS45=0),"",IF(OR($AK45="Left Stream Bed",$AK45="Right Stream Bed"),$AS45,"")) ->  | AU45: =IF(OR($AS45="",$AS45=0),"",IF(OR($AK45="Left Floodplain",$AK45="Left Bank",$AK45="Right Bank",$AK45="Right Floodplain"),$AS45,"")) ->  | AV45: =IF(OR($AP45<$AE$12,$AP45<=$AO45),0,IF($AO45>=$AE$12,$AP45-$AO45,$AP45-$AE$12)) -> 0 | AW45: =IF($AP45<=$AO45,0,IF($AO45>=$AE$12,0,IF($AP45<=$AE$12,$AP45-$AO45,$AE$12-$AO45))) -> 1.833211325 | AX45: =IF(AP45<=AO45,0,AP45-AO45) -> 1.833211325 | AY45: =IF($AS45=0,0,IF(OR($AJ45=0,$AJ45=$E$22),$AJ$46/2,$AJ$46)) -> 0 | AZ45: =IF(OR($AK45="Left Stream Bed",$AK45="Right Stream Bed"),$F$22*$AQ45*$AY45,0) -> 0 | BA45: =IF(OR($AK45="Left Stream Bed",$AK45="Right Stream Bed"),$F$22*$AR45*$AY45,0) -> 0 | BB45: =IF(OR($AK45="Left Floodplain",$AK45="Left Bank",$AK45="Right Bank",$AK45="Right Floodplain"),$F$22*$AQ45*$AY45,0) -> 0 | BC45: =IF(OR($AK45="Left Floodplain",$AK45="Left Bank",$AK45="Right Bank",$AK45="Right Floodplain"),$F$22*$AR45*$AY45,0) -> 0 | BD45: =AX45-AS45 -> 1.833211325 | BE45: =$BD45*$AJ$46*ABS($M$17) -> 0.1597501516 | BF45: =AV45-AQ45 -> 0 | BG45: =IF(OR($AJ45=0,$AJ45=$E$22),($BF45*$AJ$46/2)*ABS($M$17),$BF45*$AJ$46*ABS($M$17)) -> 0 | BH45: =IF(OR($AM45<$AP45,$AO45>$AE$8),"",IF(OR($AJ45=0,$AJ45=$E$22),$AJ$46/2,$AJ$46)) -> 0.08 | BI45: =IF($BH45="","",IF($BH45>0,$AJ45,"")) -> 0 | BJ45: =IF($BH45="","",IF(OR(($AO45-$AP45)<0,$AO$45>=$AE$8),0,($AO45-$AP45))) -> 0 | BK45: =IF($BJ45="","",IF(OR($BJ45>($F$22/2),$BJ45=0),0,0.45-($BJ45*0.45/($F$22/2)))) -> 0 | BL45: =IF($BK45="","",IF($BK45>0,$AJ45,"")) ->  | BM45: =IF($BH45="","",IF(OR(($AM45-$AP45)<0,$AM45>=$AE$8),"",($AE$8-($AM45-(($F$22/2)/$M$19))))) -> 5.497044703 | BN45: =IF($BM45="","",(((PI()^2)/32)*($B$66^-6)*EXP(-($BM45/$F$22)/(2*($B$66^2))))) -> 0.1349892631 | BO45: =IF($AO45=0,0,IF($AO45>$AP45,0,IF(OR($AJ45=0,$AJ45=$E$22),$AJ$46/2,$AJ$46))) -> 0.08 | BP45: =IF(AND($BO45>0,OR($AK45="Left Stream Bed",$AK45="Right Stream Bed")),$BO45,0) -> 0 | BQ45: =IF(AND($BO45>0,OR($AK45="Left Floodplain",$AK45="Left Bank",$AK45="Right Bank",$AK45="Right Floodplain")),$BO45,0) -> 0.08 | BR45: =IF($BO45>0,$AJ45,"") -> 0 | BS45: =IF($AY45>0,$AJ45,"") -> 
T46: Zone L (ft) | U46: Log L (ft) | V46: xcrown (ft) | W46: ycrown (ft) | AB46: Lem,crown (ft) | AE46: x (ft) | AF46: y (ft) | AI46: 1 | AJ46: =($AI46/$AI$245)*$AJ$245 -> 0.16 | AK46: Left Bank | AL46: =$AL$45+ABS(AJ46*$M$19*$M$17) -> 47.30271394 | AM46: =AM45+((AL46-AL45)*$AA$40) -> 96.75159713 | AN46: =$AN$45+ABS(AJ46*$M$19*$M$17) -> 47.29320832 | AO46: =AO45+((AN46-AN45)*$AA$40) -> 94.75167328 | AP46: =IF($AL46<$B$14,(($AL46-$B$13)*$AB$31)+$C$13,IF($AL46<$B$15,(($AL46-$B$14)*$AB$32)+$C$14,IF($AL46<$B$16,(($AL46-$B$15)*$AB$33)+$C$15,IF($AL46<$B$17,(($AL46-$B$16)*$AB$34)+$C$16,IF($AL46<$B$18,(($AL46-$B$17)*$AB$35)+$C$17,IF($AL46<$B$19,(($AL46-$B$18)*$AB$36)+$C$18)))))) -> 96.57399842 | AQ46: 0 | AR46: 0 | AS46: =IF(AP46<=AM46,0,AP46-AM46) -> 0 | AT46: =IF(OR($AS46="",$AS46=0),"",IF(OR($AK46="Left Stream Bed",$AK46="Right Stream Bed"),$AS46,"")) ->  | AU46: =IF(OR($AS46="",$AS46=0),"",IF(OR($AK46="Left Floodplain",$AK46="Left Bank",$AK46="Right Bank",$AK46="Right Floodplain"),$AS46,"")) ->  | AV46: =IF(OR($AP46<$AE$12,$AP46<=$AO46),0,IF($AO46>=$AE$12,$AP46-$AO46,$AP46-$AE$12)) -> 0 | AW46: 1.822325132 | AX46: 1.822325132 | AY46: 0 | AZ46: 0 | BA46: 0 | BB46: 0 | BC46: 0 | BD46: 1.822325132 | BE46: =$BD46*$AJ$46*ABS($M$17) -> 0.1588015042 | BF46: =AV46-AQ46 -> 0 | BG46: 0 | BH46: 0.16 | BI46: =IF($BH46="","",IF($BH46>0,$AJ46,"")) -> 0.16 | BJ46: =IF($BH46="","",IF(OR(($AO46-$AP46)<0,$AO$45>=$AE$8),0,($AO46-$AP46))) -> 0 | BK46: 0 | BM46: =IF($BH46="","",IF(OR(($AM46-$AP46)<0,$AM46>=$AE$8),"",($AE$8-($AM46-(($F$22/2)/$M$19))))) -> 5.498440948 | BN46: =IF($BM46="","",(((PI()^2)/32)*($B$66^-6)*EXP(-($BM46/$F$22)/(2*($B$66^2))))) -> 0.1348480619 | BO46: 0.16 | BP46: 0 | BQ46: 0.16 | BR46: 0.16 | BS46: =IF($AY46>0,$AJ46,"") -> 
S47: LB Floodplain | T47: =($B$14-$B$13)/ABS($M$17)/ABS($M$19) -> 60.59289633 | U47: =IF(MAX($U$38:$U$39)<=$B$14,$E$22,IF($T$32="No",0,$E$22-$W$32)) -> 0 | V47: =IF($U$47=0,0,IF(OR($B$25=0,$B$25=180,$B$25=360),$U$38,$U$32+(($X$32-$C$14)/($AB$31-$AA$40)))) -> 0 | W47: =IF($U$47=0,0,IF(OR($B$25=0,$B$25=180,$B$25=360),(($U$38-$B$13)*$AB$31)+$C$13,$X$32+(($V$47-$U$32)*$AA$40))) -> 0 | X47: =IF($U$47=0,0,IF(OR($B$25=0,$B$25=180,$B$25=360),$E$22-ABS(($X$39-$W$47)/$M$20),IF(AND($U$38<=$U$39,$X$38>=$Y$38),ABS(($X$38-$W$47)/($AA$40*$M$17*$M$19)),IF(AND($U$38<=$U$39,$X$38<$Y$38),ABS($E$22-(ABS(($X$38-$W$47)/($AA$40*$M$17*$M$19)))),IF(AND($U$38>$U$39,$X$39>=$Y$39),ABS(($X$39-$W$47)/($AA$40*$M$17*$M$19)),IF(AND($U$38>=$U$39,$X$39<$Y$39),ABS($E$22-(ABS(($X$38-$W$47)/($AA$40*$M$17*$M$19)))))))))) -> 0 | Y47: =IF(AND($U$47=0,$W$47=0),"No",IF(AND($V$47<=$B$14,$V$47>=$B$13,$V$47>=MIN($U$38:$U$39),$V$47<=MAX($U$38:$U$39),$W$47<$C$13,$X$47<=$E$22),"Yes","No")) -> No | Z47: =IF($U$47=0,"No",IF($Y$47="Yes","Partial",IF(AND($U$47<$E$22,$X$39<$Y$39,$Y$47="No",$Y$48="No",$Y$49="No",$Y$50="No",$Y$51="No",$Y$52="No"),"Yes",IF(AND($Y$47="No",$X$32>$Y$32),"No","Yes")))) -> No | AA47: =IF($Z$47="Yes","None",IF(AND($Z$47="No",$U$47=0),"None",IF($Z$47="No","All",IF(AND($X$39>=$Y$39,$U$39<=$U$38),"Left","Right")))) -> None | AB47: =IF($U$47=0,0,IF($Z$47="No",0,IF($Z$47="Yes",$U$47,IF(OR($AA$47="Left",$U$47=$E$22),$U$47-(ABS(($U$39-$V$47)/($M$17*$M$19))),$U$47-(ABS(($V$47-$B$14)/($M$17*$M$19))))))) -> 0 | AD47: Rootwad | AE47: =AVERAGE(T10,T15) -> 64.6386077 | AF47: =AVERAGE(U10,U15) -> 95.47378232 | AI47: 2 | AJ47: 0.32 | AK47: Left Bank | AL47: =$AL$45+ABS(AJ47*$M$19*$M$17) -> 47.38985287 | AM47: =AM46+((AL47-AL46)*$AA$40) -> 96.75020088 | AN47: 47.38034725 | AO47: =AO46+((AN47-AN46)*$AA$40) -> 94.75027704 | AP47: =IF($AL47<$B$14,(($AL47-$B$13)*$AB$31)+$C$13,IF($AL47<$B$15,(($AL47-$B$14)*$AB$32)+$C$14,IF($AL47<$B$16,(($AL47-$B$15)*$AB$33)+$C$15,IF($AL47<$B$17,(($AL47-$B$16)*$AB$34)+$C$16,IF($AL47<$B$18,(($AL47-$B$17)*$AB$35)+$C$17,IF($AL47<$B$19,(($AL47-$B$18)*$AB$36)+$C$18)))))) -> 96.56171598 | AQ47: 0 | AR47: 0 | AS47: 0 | AV47: 0 | AW47: 1.811438938 | AX47: 1.811438938 | AY47: 0 | AZ47: 0 | BA47: 0 | BB47: 0 | BC47: 0 | BD47: 1.811438938 | BE47: 0.1578528568 | BF47: 0 | BG47: 0 | BH47: 0.16 | BI47: 0.32 | BJ47: 0 | BK47: 0 | BM47: 5.499837194 | BN47: =IF($BM47="","",(((PI()^2)/32)*($B$66^-6)*EXP(-($BM47/$F$22)/(2*($B$66^2))))) -> 0.1347070084 | BO47: 0.16 | BP47: 0 | BQ47: 0.16 | BR47: 0.32
A48: =IF($A$6="","",$A$6) -> Sample1 | B48: =IF($A$6="","",$B$6) -> Flow Deflection | D48: =IF(OR($B$9="N/A",$B$9=""),"",$B$9) -> Stacked | E48: =IF($D$48="","","Log ID") -> Log ID | F48: =IF($D$48="","",$C$9) -> Top#1 | J48: Page 2 | S48: Left Bank | T48: =($B$15-$B$14)/ABS($M$17)/ABS($M$19) -> 38.55911585 | U48: =IF(AND(MIN($U$38:$U$39)>=$B$14,MAX($U$38:$U$39)<=$B$15),$E$22,IF(AND($T$33="No",$T$32="No"),0,$E$22-$W$33-$U$47)) -> 12.4572109 | V48: =IF($U$48=0,0,IF(OR($B$25=0,$B$25=180,$B$25=360),$U$38,$U$33+(($C$15-$X$33)/($AA$40-$AB$32)))) -> 45.88111866 | W48: =IF($U$48=0,0,IF(OR($B$25=0,$B$25=180,$B$25=360),(($U$38-$B$14)*$AB$32)+$C$14,$X$33+(($V$48-$U$33)*$AA$40))) -> 96.77437566 | X48: =IF($U$48=0,0,IF(OR($B$25=0,$B$25=180,$B$25=360),$E$22-ABS(($X$39-$W$48)/$M$20),IF(AND($U$38<=$U$39,$X$38>=$Y$38),ABS(($X$38-$W$48)/($AA$40*$M$17*$M$19)),IF(AND($U$38<=$U$39,$X$38<$Y$38),ABS($E$22-(ABS(($X$38-$W$48)/($AA$40*$M$17*$M$19)))),IF(AND($U$38>$U$39,$X$39>=$Y$39),ABS(($X$39-$W$48)/($AA$40*$M$17*$M$19)),IF(AND($U$38>=$U$39,$X$39<$Y$39),ABS($E$22-(ABS(($X$38-$W$48)/($AA$40*$M$17*$M$19)))))))))) -> 2.450259864 | Y48: =IF(AND($U$48=0,$W$48=0),"No",IF(AND($V$48<=$B$15,$V$48>=$B$14,$V$48>=MIN($U$38:$U$39),$V$48<=MAX($U$38:$U$39),$W$48<$C$14,$X$48<=$E$22),"Yes","No")) -> No | Z48: =IF($U$48=0,"No",IF($Y$48="Yes","Partial",IF(AND($U$48<$E$22,$X$39<$Y$39,$Y$47="No",$Y$48="No",$Y$49="No",$Y$50="No",$Y$51="No",$Y$52="No"),"Yes",IF(AND($Y$48="No",$X$33>$Y$33),"No","Yes")))) -> No | AA48: =IF($Z$48="Yes","None",IF(AND($Z$48="No",$U$48=0),"None",IF($Z$48="No","All",IF(AND($X$39>=$Y$39,$U$39<=$U$38,$AA$47<>"Left"),"Left","Right")))) -> All | AB48: =IF($U$48=0,0,IF($Z$48="No",0,IF($Z$48="Yes",$U$48,IF(OR($U$48=$E$22,AND($AA$48="Left",MIN($U$38:$U$39)>=$B$14,MAX($U$38:$U$39)>=$B$15)),$U$48-(ABS(($U$39-$V$48)/($M$17*$M$19))),IF($AA$48="Left",$U$48-(ABS(($B$14-$V$48)/($M$17*$M$19))),IF(MAX($U$38:$U$39)>=$B$15,$U$48-(ABS(($V$48-$B$15)/($M$17*$M$19))),ABS(($V$48-$B$14)/($M$17*$M$19)))))))) -> 0 | AD48: Root collar | AE48: =AVERAGE(T11,T14) -> 63.00475281 | AF48: =AVERAGE(U11,U14) -> 95.49996192 | AI48: 3 | AJ48: 0.48 | AK48: Left Bank | AL48: =$AL$45+ABS(AJ48*$M$19*$M$17) -> 47.4769918 | AM48: 96.74880464 | AN48: 47.46748617 | AO48: 94.74888079 | AP48: 96.54943354 | AQ48: 0 | AR48: 0 | AS48: 0 | AV48: 0 | AW48: 1.800552745 | AX48: 1.800552745 | AY48: 0 | AZ48: 0 | BA48: 0 | BB48: 0 | BC48: 0 | BD48: 1.800552745 | BE48: 0.1569042095 | BF48: 0 | BG48: 0 | BH48: 0.16 | BI48: 0.48 | BJ48: 0 | BK48: 0 | BM48: 5.50123344 | BN48: 0.1345661024 | BO48: 0.16 | BP48: 0 | BQ48: 0.16 | BR48: 0.48
A49: Vertical Force Analysis | S49: Left Stream Bed | T49: =($B$16-$B$15)/ABS($M$17)/ABS($M$19) -> 45.90370934 | U49: =IF(AND(MIN($U$38:$U$39)>=$B$15,MAX($U$38:$U$39)<=$B$16),$E$22,IF(AND($T$34="No",$T$33="No"),0,IF(AND($T$33="Yes",$T$34="No"),$E$22-$U$48-$U$47,IF(AND($T$33="Yes",$T$34="Yes",$T$36="No"),$E$22-$U$50-$U$48-$U$47,IF(AND($T$33="Yes",$T$34="Yes",$T$36="Yes"),$E$22-$U$52-$U$51-$U$50-$U$48-$U$47,$E$22-$U$52-$U$51-$U$50))))) -> 19.5427891 | V49: =IF($U$49=0,0,IF(OR($B$25=0,$B$25=180,$B$25=360),$U$38,$U$34+(($C$16-$X$34)/($AA$40-$AB$33)))) -> 43.56247553 | W49: =IF($U$49=0,0,IF(OR($B$25=0,$B$25=180,$B$25=360),(($U$38-$B$15)*$AB$33)+$C$15,$X$34+(($V$49-$U$34)*$AA$40))) -> 96.81152777 | X49: =IF(OR($U$49=0,AND($C$25=0,$B$25=0),AND($C$25=0,$B$25=360),AND($C$25=0,$B$25=180)),0,IF(OR($B$25=0,$B$25=180,$B$25=360),$E$22-ABS(($X$39-$W$49)/$M$20),IF(AND($U$38<=$U$39,$X$38>=$Y$38),ABS(($X$38-$W$49)/($AA$40*$M$17*$M$19)),IF(AND($U$38<=$U$39,$X$38<$Y$38),ABS($E$22-(ABS(($X$38-$W$49)/($AA$40*$M$17*$M$19)))),IF(AND($U$38>$U$39,$X$39>=$Y$39),ABS(($X$39-$W$49)/($AA$40*$M$17*$M$19)),IF(AND($U$38>=$U$39,$X$39<$Y$39),ABS($E$22-(ABS(($X$38-$W$49)/($AA$40*$M$17*$M$19)))))))))) -> 6.707632685 | Y49: =IF(AND($U$49=0,$W$49=0),"No",IF(AND($V$49<=$B$16,$V$49>=$B$15,$V$49>=MIN($U$38:$U$39),$V$49<=MAX($U$38:$U$39),$W$49<$C$15,$X$49<=$E$22),"Yes","No")) -> No | Z49: =IF($U$49=0,"No",IF($Y$49="Yes","Partial",IF(AND($U$49<$E$22,$X$39<$Y$39,$Y$47="No",$Y$48="No",$Y$49="No",$Y$50="No",$Y$51="No",$Y$52="No"),"Yes",IF(AND($Y$49="No",$X$34>$Y$34),"No","Yes")))) -> No | AA49: =IF($Z$49="Yes","None",IF(AND($Z$49="No",$U$49=0),"None",IF($Z$49="No","All",IF(AND($X$39>=$Y$39,$U$39<=$U$38,$AA$48<>"Left"),"Left","Right")))) -> All | AB49: =IF($U$49=0,0,IF($Z$49="No",0,IF($Z$49="Yes",$U$49,IF(OR($U$49=$E$22,AND($AA$49="Left",MIN($U$38:$U$39)>=$B$15,MAX($U$38:$U$39)>=$B$16)),$U$49-(ABS(($U$39-$V$49)/($M$17*$M$19))),IF($AA$49="Left",$U$49-(ABS(($B$15-$V$49)/($M$17*$M$19))),IF(MAX($U$38:$U$39)>=$B$16,$U$49-(ABS(($V$49-$B$16)/($M$17*$M$19))),ABS(($V$49-$B$15)/($M$17*$M$19)))))))) -> 0 | AD49: Stem tip | AE49: =AVERAGE(T12,T13) -> 47.2108222 | AF49: =AVERAGE(U12,U13) -> 95.75303145 | AI49: 4 | AJ49: 0.64 | AK49: Left Bank | AL49: 47.56413073 | AM49: 96.74740839 | AN49: 47.5546251 | AO49: 94.74748455 | AP49: 96.5371511 | AQ49: 0 | AR49: 0 | AS49: 0 | AV49: 0 | AW49: 1.789666551 | AX49: 1.789666551 | AY49: 0 | AZ49: 0 | BA49: 0 | BB49: 0 | BC49: 0 | BD49: 1.789666551 | BE49: 0.1559555621 | BF49: 0 | BG49: 0 | BH49: 0.16 | BI49: 0.64 | BJ49: 0 | BK49: 0 | BM49: 5.502629686 | BN49: 0.1344253438 | BO49: 0.16 | BP49: 0 | BQ49: 0.16 | BR49: 0.64
A50: Net Buoyancy Force | H50: Lift Force | S50: Right Stream Bed | T50: =($B$17-$B$16)/ABS($M$17)/ABS($M$19) -> 53.24830284 | U50: =IF(AND(MIN($U$38:$U$39)>=$B$16,MAX($U$38:$U$39)<=$B$17),$E$22,IF(AND($T$35="No",$T$36="No"),0,IF(AND($T$36="Yes",$T$35="No"),$E$22-$U$51-$U$52,IF(AND($T$36="Yes",$T$35="Yes"),$E$22-$W$35-$U$51-$U$52,$E$22-$W$35)))) -> 0 | V50: =IF($U$50=0,0,IF(OR($B$25=0,$B$25=180,$B$25=360),$U$38,$U$35+(($X$35-$C$16)/($AB$34-$AA$40)))) -> 0 | W50: =IF($U$50=0,0,IF(OR($B$25=0,$B$25=180,$B$25=360),(($U$38-$B$16)*$AB$34)+$C$16,$X$35+(($V$50-$U$35)*$AA$40))) -> 0 | X50: =IF(OR($U$50=0,AND($C$25=0,$B$25=0),AND($C$25=0,$B$25=360),AND($C$25=0,$B$25=180)),0,IF(OR($B$25=0,$B$25=180,$B$25=360),$E$22-ABS(($X$39-$W$50)/$M$20),IF(AND($U$38<=$U$39,$X$38>=$Y$38),ABS(($X$38-$W$50)/($AA$40*$M$17*$M$19)),IF(AND($U$38<=$U$39,$X$38<$Y$38),ABS($E$22-(ABS(($X$38-$W$50)/($AA$40*$M$17*$M$19)))),IF(AND($U$38>$U$39,$X$39>=$Y$39),ABS(($X$39-$W$50)/($AA$40*$M$17*$M$19)),IF(AND($U$38>=$U$39,$X$39<$Y$39),ABS($E$22-(ABS(($X$38-$W$50)/($AA$40*$M$17*$M$19)))))))))) -> 0 | Y50: =IF(AND($U$50=0,$W$50=0),"No",IF(AND($V$50<=$B$17,$V$50>=$B$16,$V$50>=MIN($U$38:$U$39),$V$50<=MAX($U$38:$U$39),$W$50<$C$17,$X$50<=$E$22),"Yes","No")) -> No | Z50: =IF($U$50=0,"No",IF($Y$50="Yes","Partial",IF(AND($U$50<$E$22,$X$39<$Y$39,$Y$47="No",$Y$48="No",$Y$49="No",$Y$50="No",$Y$51="No",$Y$52="No"),"Yes",IF(AND($Y$50="No",$X$35>$Y$35),"No","Yes")))) -> No | AA50: =IF($Z$50="Yes","None",IF(AND($Z$50="No",$U$50=0),"None",IF($Z$50="No","All",IF(AND($X$39>=$Y$39,$U$39>=$U$38,$AA$51<>"Right"),"Right","Left")))) -> None | AB50: =IF($U$50=0,0,IF($Z$50="No",0,IF($Z$50="Yes",$U$50,IF(OR($U$50=$E$22,AND($AA$50="Right",MIN($U$38:$U$39)<=$B$16,MAX($U$38:$U$39)<=$B$17)),$U$50-(ABS(($U$39-$V$50)/($M$17*$M$19))),IF($AA$50="Right",$U$50-(ABS(($B$17-$V$50)/($M$17*$M$19))),IF(MIN($U$38:$U$39)<=$B$16,$U$50-(ABS(($V$50-$B$16)/($M$17*$M$19))),ABS(($V$50-$B$17)/($M$17*$M$19)))))))) -> 0 | AI50: 5 | AJ50: 0.8 | AK50: Left Bank | AL50: 47.65126965 | AM50: 96.74601215 | AN50: 47.64176403 | AO50: 94.7460883 | AP50: 96.52486866 | AQ50: 0 | AR50: 0 | AS50: 0 | AV50: 0 | AW50: 1.778780357 | AX50: 1.778780357 | AY50: 0 | AZ50: 0 | BA50: 0 | BB50: 0 | BC50: 0 | BD50: 1.778780357 | BE50: 0.1550069148 | BF50: 0 | BG50: 0 | BH50: 0.16 | BI50: 0.8 | BJ50: 0 | BK50: 0 | BM50: 5.504025931 | BN50: 0.1342847324 | BO50: 0.16 | BP50: 0 | BQ50: 0.16 | BR50: 0.8
A51: Wood | B51: VTS (ft3) | C51: VRW (ft3) | D51: VT (ft3) | E51: WT (lbf) | F51: FB (lbf) | H51: CLT | I51: =$BK$43 -> 0.01306371356 | N51: =IF(OR($D$22="",$D$22="No"),"","Rootwad Position") -> Rootwad Position | S51: Right Bank | T51: =($B$18-$B$17)/ABS($M$17)/ABS($M$19) -> 34.8868191 | U51: =IF(AND(MIN($U$38:$U$39)>=$B$17,MAX($U$38:$U$39)<=$B$18),$E$22,IF(AND($T$36="No",$T$37="No"),0,$E$22-$W$36-$U$52)) -> 0 | V51: =IF($U$51=0,0,IF(OR($B$25=0,$B$25=180,$B$25=360),$U$38,$U$36+(($X$36-$C$17)/($AB$35-$AA$40)))) -> 0 | W51: =IF($U$51=0,0,IF(OR($B$25=0,$B$25=180,$B$25=360),(($U$38-$B$17)*$AB$35)+$C$17,$X$36+(($V$51-$U$36)*$AA$40))) -> 0 | X51: =IF($U$51=0,0,IF(OR($B$25=0,$B$25=180,$B$25=360),$E$22-ABS(($X$39-$W$51)/$M$20),IF(AND($U$38<=$U$39,$X$38>=$Y$38),ABS(($X$38-$W$51)/($AA$40*$M$17*$M$19)),IF(AND($U$38<=$U$39,$X$38<$Y$38),ABS($E$22-(ABS(($X$38-$W$51)/($AA$40*$M$17*$M$19)))),IF(AND($U$38>$U$39,$X$39>=$Y$39),ABS(($X$39-$W$51)/($AA$40*$M$17*$M$19)),IF(AND($U$38>=$U$39,$X$39<$Y$39),ABS($E$22-(ABS(($X$38-$W$51)/($AA$40*$M$17*$M$19)))))))))) -> 0 | Y51: =IF(AND($U$51=0,$W$51=0),"No",IF(AND($V$51<=$B$18,$V$51>=$B$17,$V$51>=MIN($U$38:$U$39),$V$51<=MAX($U$38:$U$39),$W$51<$C$18,$X$51<=$E$22),"Yes","No")) -> No | Z51: =IF($U$51=0,"No",IF($Y$51="Yes","Partial",IF(AND($U$51<$E$22,$X$39<$Y$39,$Y$47="No",$Y$48="No",$Y$49="No",$Y$50="No",$Y$51="No",$Y$52="No"),"Yes",IF(AND($Y$51="No",$X$36>$Y$36),"No","Yes")))) -> No | AA51: =IF($Z$51="Yes","None",IF(AND($Z$51="No",$U$51=0),"None",IF($Z$51="No","All",IF(AND($X$39>=$Y$39,$U$39>=$U$38,$AA$52<>"Right"),"Right","Left")))) -> None | AB51: =IF($U$51=0,0,IF($Z$51="No",0,IF($Z$51="Yes",$U$51,IF(OR($U$51=$E$22,AND($AA$51="Right",MIN($U$38:$U$39)<=$B$17,MAX($U$38:$U$39)<=$B$18)),$U$51-(ABS(($U$39-$V$51)/($M$17*$M$19))),IF($AA$51="Right",$U$51-(ABS(($B$18-$V$51)/($M$17*$M$19))),IF(MIN($U$38:$U$39)<=$B$17,$U$51-(ABS(($V$51-$B$17)/($M$17*$M$19))),ABS(($V$51-$B$18)/($M$17*$M$19)))))))) -> 0 | AI51: 6 | AJ51: 0.96 | AK51: Left Bank | AL51: 47.73840858 | AM51: 96.7446159 | AN51: 47.72890296 | AO51: 94.74469206 | AP51: 96.51258622 | AQ51: 0 | AR51: 0 | AS51: 0 | AV51: 0 | AW51: 1.767894164 | AX51: 1.767894164 | AY51: 0 | AZ51: 0 | BA51: 0 | BB51: 0 | BC51: 0 | BD51: 1.767894164 | BE51: 0.1540582674 | BF51: 0 | BG51: 0 | BH51: 0.16 | BI51: 0.96 | BJ51: 0 | BK51: 0 | BM51: 5.505422177 | BN51: 0.1341442682 | BO51: 0.16 | BP51: 0 | BQ51: 0.16 | BR51: 0.96
A52: ↑WSE | B52: =IF(OR($E$22="",$F$22=""),0,IF($AH$17="Case 1",$AL$17-$AJ$21,IF($AH$17="Case 2",$AL$17-$AJ$26,IF($AH$17="Case 3",$AL$17-$AJ$30,IF($AH$17="Case 4",$AL$17-$AJ$37,IF($AH$17="Log is completely submerged",0,IF($AH$17="Stem is dry",PI()*(($F$22/2)^2)*($E$22-$G$22),""))))))) -> 0 | C52: =IF(OR($E$22="",$F$22="",$D$22="No",$D$22=""),0,$BL$40*(1-RWporosity)) -> 0 | D52: =B52+C52 -> 0 | E52: =IF($I$22="",0,($B$52*$I$22)+($C$52*$I$22)) -> 0 | F52: 0 | H52: FL (lbf) | I52: =IF($J$6="",0,$I$51*$J$25*SWWater*(($J$6^2)/(2*g))) -> 11.80715435 | N52: =IF($D$22="","",IF($D$22="No","No Rootwad",IF($U$15>=$AE$8,"Above high water",IF($U$10<=$C$16,"Buried in bed",IF(OR($AE$48<=$B$14,$AE$48>=$B$18),"On bank/buried in bank","Exposed in stream"))))) -> Exposed in stream | S52: RB Floodplain | T52: =($B$19-$B$18)/ABS($M$17)/ABS($M$19) -> 42.23141259 | U52: =IF(MIN($U$38:$U$39)>=$B$18,$E$22,IF($T$37="No",0,$E$22-$W$37)) -> 0 | V52: =IF($U$52=0,0,IF(OR($B$25=0,$B$25=180,$B$25=360),$U$38,$U$37+(($X$37-$C$18)/($AB$36-$AA$40)))) -> 0 | W52: =IF($U$52=0,0,IF(OR($B$25=0,$B$25=180,$B$25=360),(($U$38-$B$18)*$AB$36)+$C$18,$X$37+(($V$52-$U$37)*$AA$40))) -> 0 | X52: =IF($U$52=0,0,IF(OR($B$25=0,$B$25=180,$B$25=360),$E$22-ABS(($X$39-$W$52)/$M$20),IF(AND($U$38<=$U$39,$X$38>=$Y$38),ABS(($X$38-$W$52)/($AA$40*$M$17*$M$19)),IF(AND($U$38<=$U$39,$X$38<$Y$38),ABS($E$22-(ABS(($X$38-$W$52)/($AA$40*$M$17*$M$19)))),IF(AND($U$38>$U$39,$X$39>=$Y$39),ABS(($X$39-$W$52)/($AA$40*$M$17*$M$19)),IF(AND($U$38>=$U$39,$X$39<$Y$39),ABS($E$22-(ABS(($X$38-$W$52)/($AA$40*$M$17*$M$19)))))))))) -> 0 | Y52: =IF(AND($U$52=0,$W$52=0),"No",IF(AND($V$52<=$B$19,$V$52>=$B$18,$V$52>=MIN($U$38:$U$39),$V$52<=MAX($U$38:$U$39),$W$52<$C$19,$X$52<=$E$22),"Yes","No")) -> No | Z52: =IF($U$52=0,"No",IF($Y$52="Yes","Partial",IF(AND($U$52<$E$22,$X$39<$Y$39,$Y$47="No",$Y$48="No",$Y$49="No",$Y$50="No",$Y$51="No",$Y$52="No"),"Yes",IF(AND($Y$52="No",$X$37>$Y$37),"No","Yes")))) -> No | AA52: =IF($Z$52="Yes","None",IF(AND($Z$52="No",$U$52=0),"None",IF($Z$52="No","All",IF(AND($X$39>=$Y$39,$U$39>=$U$38),"Right","Left")))) -> None | AB52: =IF($U$52=0,0,IF($Z$52="No",0,IF($Z$52="Yes",$U$52,IF(OR($AA$52="Right",$U$52=$E$22),$U$52-(ABS(($U$39-$V$52)/($M$17*$M$19))),$U$52-(ABS(($V$52-$B$18)/($M$17*$M$19))))))) -> 0 | AI52: 7 | AJ52: 1.12 | AK52: Left Bank | AL52: 47.82554751 | AM52: 96.74321966 | AN52: 47.81604188 | AO52: 94.74329581 | AP52: 96.50030378 | AQ52: 0 | AR52: 0 | AS52: 0 | AV52: 0 | AW52: 1.75700797 | AX52: 1.75700797 | AY52: 0 | AZ52: 0 | BA52: 0 | BB52: 0 | BC52: 0 | BD52: 1.75700797 | BE52: 0.1531096201 | BF52: 0 | BG52: 0 | BH52: 0.16 | BI52: 1.12 | BJ52: 0 | BK52: 0 | BM52: 5.506818423 | BN52: 0.1340039508 | BO52: 0.16 | BP52: 0 | BQ52: 0.16 | BR52: 1.12
A53: ↓WS↑Thw | B53: =IF(OR($E$22="",$F$22=""),0,IF(AND(MIN($U$10:$U$15)>=$C$16,MAX($U$10:$U$15)<=$AE$8),PI()*(($F$22/2)^2)*($E$22-$G$22),(PI()*(($F$22/2)^2)*($E$22-$G$22))-$B$52-$B$54)) -> 91.10618695 | C53: =IF(OR($F$22="",$D$22="No"),0,((1/3)*PI()*(($H$22/2)^2+($F$22/2)^2+(($H$22/2)*($F$22/2)))*$G$22*(1-RWporosity))-$C$52-$C$54) -> 32.58182258 | D53: =B53+C53 -> 123.6880095 | E53: =IF($I$22="",0,($B$53*$I$22)+($C$53*$I$22)) -> 4322.153805 | F53: =($D$53*SWWater) -> 7718.131795 | H53: Vertical Force Balance | L53: Formatting | T53: L check | U53: =SUM(U47:U52) -> 32 | V53: =IF($U$53=$E$22,"OK","ERROR") -> OK | AA53: Total | AB53: =SUM(AB47:AB52) -> 0 | AI53: 8 | AJ53: 1.28 | AK53: Left Bank | AL53: 47.91268644 | AM53: 96.74182341 | AN53: 47.90318081 | AO53: 94.74189956 | AP53: 96.48802134 | AQ53: 0 | AR53: 0 | AS53: 0 | AV53: 0 | AW53: 1.746121776 | AX53: 1.746121776 | AY53: 0 | AZ53: 0 | BA53: 0 | BB53: 0 | BC53: 0 | BD53: 1.746121776 | BE53: 0.1521609727 | BF53: 0 | BG53: 0 | BH53: 0.16 | BI53: 1.28 | BJ53: 0 | BK53: 0 | BM53: 5.508214668 | BN53: 0.1338637803 | BO53: 0.16 | BP53: 0 | BQ53: 0.16 | BR53: 1.28
A54: ↓Thalweg | B54: =IF(OR($E$22="",$F$22=""),0,IF($AS$17="Case 1",$AU$21,IF($AS$17="Case 2",$AU$26,IF($AS$17="Case 3",$AU$30,IF($AS$17="Case 4",$AU$37,IF($AS$17="Log is completely submerged",PI()*(($F$22/2)^2)*($E$22-$G$22),IF($AS$17="Stem is dry",0,""))))))) -> 0 | C54: =IF(OR($E$22="",$F$22="",$D$22="No",$D$22=""),0,$BO$40*(1-RWporosity)) -> 0.09074101314 | D54: =B54+C54 -> 0.09074101314 | E54: =IF($J$22="",0,($B$54*$J$22)+($C$54*$J$22)) -> 3.538899512 | F54: =($D$54*SWWater) -> 5.66223922 | H54: FB (lbf) | I54: =$F$55 -> 7723.794034 | J54: =IF($L54=0,"",IF($L54>0,CHAR(233),CHAR(234))) -> é | L54: =$F$55 -> 7723.794034 | N54: check: | O54: =IF(OR($D$22="",$B$25="",$N$52=""),"",IF($D$22="No","use CD stem",IF(AND($D$22="Yes",$N$52="Exposed in stream"),"use CD RW","use CD stem"))) -> use CD RW | AI54: 9 | AJ54: 1.44 | AK54: Left Bank | AL54: 47.99982536 | AM54: 96.74042716 | AN54: 47.99031974 | AO54: 94.74050332 | AP54: 96.4757389 | AQ54: 0 | AR54: 0 | AS54: 0 | AV54: 0 | AW54: 1.735235583 | AX54: 1.735235583 | AY54: 0 | AZ54: 0 | BA54: 0 | BB54: 0 | BC54: 0 | BD54: 1.735235583 | BE54: 0.1512123253 | BF54: 0 | BG54: 0 | BH54: 0.16 | BI54: 1.44 | BJ54: 0 | BK54: 0 | BM54: 5.509610914 | BN54: 0.1337237563 | BO54: 0.16 | BP54: 0 | BQ54: 0.16 | BR54: 1.44
A55: Total | B55: =$B$52+$B$53+$B$54 -> 91.10618695 | C55: =$C$52+$C$53+$C$54 -> 32.6725636 | D55: =$D$52+$D$53+$D$54 -> 123.7787506 | E55: =$E$52+$E$53+$E$54 -> 4325.692705 | F55: =$F$53+$F$54+$F$52 -> 7723.794034 | H55: FL (lbf) | I55: =$I$52 -> 11.80715435 | J55: é | L55: =$I$52 -> 11.80715435 | N55: CDi for Stem Only (i.e., RW is not in contact with streamflow) | S55: Coordinates of Large Wood Bottom at Key Points | AI55: 10 | AJ55: 1.6 | AK55: Left Bank | AL55: 48.08696429 | AM55: 96.73903092 | AN55: 48.07745867 | AO55: 94.73910707 | AP55: 96.46345646 | AQ55: 0 | AR55: 0 | AS55: 0 | AV55: 0 | AW55: 1.724349389 | AX55: 1.724349389 | AY55: 0 | AZ55: 0 | BA55: 0 | BB55: 0 | BC55: 0 | BD55: 1.724349389 | BE55: 0.150263678 | BF55: 0 | BG55: 0 | BH55: 0.16 | BI55: 1.6 | BJ55: 0 | BK55: 0 | BM55: 5.51100716 | BN55: 0.1335838788 | BO55: 0.16 | BP55: 0 | BQ55: 0.16 | BR55: 1.6
H56: WT (lbf) | I56: =$E$55 -> 4325.692705 | J56: ê | L56: =-$E$55 -> -4325.692705 | N56: Adjusted q (deg) | O56: CDi Stem only1 | T56: Wood Present? | U56: Large Wood Parameters | Y56: Soil | AI56: 11 | AJ56: 1.76 | AK56: Left Bank | AL56: 48.17410322 | AM56: 96.73763467 | AN56: 48.16459759 | AO56: 94.73771083 | AP56: 96.45117402 | AQ56: 0 | AR56: 0 | AS56: 0 | AV56: 0 | AW56: 1.713463196 | AX56: 1.713463196 | AY56: 0 | AZ56: 0 | BA56: 0 | BB56: 0 | BC56: 0 | BD56: 1.713463196 | BE56: 0.1493150306 | BF56: 0 | BG56: 0 | BH56: 0.16 | BI56: 1.76 | BJ56: 0 | BK56: 0 | BM56: 5.512403405 | BN56: 0.1334441477 | BO56: 0.16 | BP56: 0 | BQ56: 0.16 | BR56: 1.76
A57: Soil Ballast Force | H57: Fsoil (lbf) | I57: =$E$61 -> 0 | L57: =-$E$61 -> 0 | N57: =IF(OR($O$54="",$O$54="use CD RW"),"",IF($B$25<-180,"Error",IF($B$25<-90,$B$25+180,IF($B$25<0,-$B$25,IF($B$25<=90,$B$25,IF($B$25<=180,180-$B$25,IF($B$25<=270,$B$25-180,IF($B$25<=360,360-$B$25,"Error")))))))) ->  | O57: =IF($O$54="use CD stem",(1.1173-((5.28*10^-2)*$N$57)+((1.4385*10^-3)*$N$57^2)-((9.7668*10^-6)*$N$57^3)),"") ->  | U57: xTS (ft) | V57: Dist (ft) | W57: Adjusted Dist (ft) | X57: yTS (ft) | Y57: ysoil (ft) | AI57: 12 | AJ57: 1.92 | AK57: Left Bank | AL57: 48.26124215 | AM57: 96.73623843 | AN57: 48.25173652 | AO57: 94.73631458 | AP57: 96.43889158 | AQ57: 0 | AR57: 0 | AS57: 0 | AV57: 0 | AW57: 1.702577002 | AX57: 1.702577002 | AY57: 0 | AZ57: 0 | BA57: 0 | BB57: 0 | BC57: 0 | BD57: 1.702577002 | BE57: 0.1483663833 | BF57: 0 | BG57: 0 | BH57: 0.16 | BI57: 1.92 | BJ57: 0 | BK57: 0 | BM57: 5.513799651 | BN57: 0.1333045627 | BO57: 0.16 | BP57: 0 | BQ57: 0.16 | BR57: 1.92
A58: Soil | B58: Vdry (ft3) | C58: Vsat (ft3) | D58: Vsoil (ft3) | E58: Fsoil (lbf) | H58: FW,V (lbf) | I58: =ABS($L$99) -> 0 | J58: =IF($L58=0,"",IF($L58>0,CHAR(233),CHAR(234))) ->  | L58: =$L$99 -> 0 | M58: Flex | N58: 1Applies Gippel et al (1996) Formula: | S58: At Left Bank Top | T58: =IF(OR($F$25="",$G$25=""),"No",IF(MIN($U$40:$U$41)>$B$14,"No",IF(MAX($U$40:$U$41)<$B$14,"No","Yes"))) -> No | U58: =$B$14 -> 33 | V58: =IF(OR($B$25=0,$B$25=180,$B$25=360),0,IF($T$14>$T$13,$G$22+((($T$14-$B$14)/ABS($M$17))/$M$19),(($T$13-$B$14)/ABS($M$17))/$M$19)) -> 58.08445121 | W58: =IF(V58<0,0,IF(V58>$E$22,$E$22,V58)) -> 32 | X58: =IF($T$14>$T$13,$U$14+(($V$58-$G$22)*$M$20),$U$13-($V$58*$M$20)) -> 94.98069642 | Y58: =$C$14 -> 98.59 | AI58: 13 | AJ58: 2.08 | AK58: Left Bank | AL58: 48.34838107 | AM58: 96.73484218 | AN58: 48.33887545 | AO58: 94.73491834 | AP58: 96.42660914 | AQ58: 0 | AR58: 0 | AS58: 0 | AV58: 0 | AW58: 1.691690808 | AX58: 1.691690808 | AY58: 0 | AZ58: 0 | BA58: 0 | BB58: 0 | BC58: 0 | BD58: 1.691690808 | BE58: 0.1474177359 | BF58: 0 | BG58: 0 | BH58: 0.16 | BI58: 2.08 | BJ58: 0 | BK58: 0 | BM58: 5.515195897 | BN58: 0.1331651237 | BO58: 0.16 | BP58: 0 | BQ58: 0.16 | BR58: 2.08
A59: Bed | B59: =IF(AND($H$28="",$H$29=""),0,$AZ$43) -> 0 | C59: =IF(AND($H$28="",$H$29=""),0,$BA$43) -> 0 | D59: =B59+C59 -> 0 | E59: =IF(OR($D$28="",$E$28=""),0,($B$59*$D$28)+($C$59*$E$28)) -> 0 | H59: FA,V (lbf) | I59: =ABS($L$59)+ABS($M$59) -> 0 | J59: =IF(($L59+M59)=0,"",IF(($L59+M59)>0,CHAR(233),CHAR(234))) ->  | L59: =$L$86 -> 0 | M59: =$L$92 -> 0 | N59: CDi = 1.1173 - (5.2800*10-2) q + (1.4385*10-3) q2 - (9.7668*10-6) q3 | S59: At Left Bank Toe | T59: =IF(OR($F$25="",$G$25=""),"No",IF(MIN($U$40:$U$41)>$B$15,"No",IF(MAX($U$40:$U$41)<$B$15,"No","Yes"))) -> Yes | U59: =$B$15 -> 54 | V59: =IF(OR($B$25=0,$B$25=180,$B$25=360),0,IF($T$14>$T$13,$G$22+((($T$14-$B$15)/ABS($M$17))/$M$19),(($T$13-$B$15)/ABS($M$17))/$M$19)) -> 19.52533536 | W59: 19.52533536 | X59: =IF($T$14>$T$13,$U$14+(($V$59-$G$22)*$M$20),$U$13-($V$59*$M$20)) -> 94.64420893 | Y59: =$C$15 -> 95.63 | AI59: 14 | AJ59: 2.24 | AK59: Left Bank | AL59: 48.43552 | AM59: 96.73344594 | AN59: 48.42601438 | AO59: 94.73352209 | AP59: 96.4143267 | AQ59: 0 | AR59: 0 | AS59: 0 | AV59: 0 | AW59: 1.680804615 | AX59: 1.680804615 | AY59: 0 | AZ59: 0 | BA59: 0 | BB59: 0 | BC59: 0 | BD59: 1.680804615 | BE59: 0.1464690885 | BF59: 0 | BG59: 0 | BH59: 0.16 | BI59: 2.24 | BJ59: 0 | BK59: 0 | BM59: 5.516592142 | BN59: 0.1330258305 | BO59: 0.16 | BP59: 0 | BQ59: 0.16 | BR59: 2.24
A60: Bank | B60: =IF(AND($H$28="",$H$29=""),0,$BB$43) -> 0 | C60: =IF(AND($H$28="",$H$29=""),0,$BC$43) -> 0 | D60: =B60+C60 -> 0 | E60: =IF(OR($D$29="",$E$29=""),0,($B$60*$D$29)+($C$60*$E$29)) -> 0 | H60: S FV (lbf) | I60: =ABS($L$60) -> 3409.908484 | J60: é | K60: Additional resisting force (lbf) needed: | L60: =$L$54+$L$55+$L$56+$L$57+$L$58+$L$59+$M$59 -> 3409.908484 | S60: At Left Thalweg | T60: =IF(OR($F$25="",$G$25=""),"No",IF(AND(MAX($U$40:$U$41)>$B$16,MIN($U$40:$U$41)<$B$16),"Yes","No")) -> No | U60: =$B$16 -> 79 | V60: =IF(OR($B$25=0,$B$25=180,$B$25=360),0,IF($T$14>$T$13,$G$22+((($T$14-$B$16)/ABS($M$17))/$M$19),(($T$13-$B$16)/ABS($M$17))/$M$19)) -> -26.37837398 | W60: 0 | X60: =IF($T$14>$T$13,$U$14+(($V$60-$G$22)*$M$20),$U$13-($V$60*$M$20)) -> 94.24362858 | Y60: =$C$16 -> 92.8 | AI60: 15 | AJ60: 2.4 | AK60: Left Bank | AL60: 48.52265893 | AM60: 96.73204969 | AN60: 48.5131533 | AO60: 94.73212584 | AP60: 96.40204427 | AQ60: 0 | AR60: 0 | AS60: 0 | AV60: 0 | AW60: 1.669918421 | AX60: 1.669918421 | AY60: 0 | AZ60: 0 | BA60: 0 | BB60: 0 | BC60: 0 | BD60: 1.669918421 | BE60: 0.1455204412 | BF60: 0 | BG60: 0 | BH60: 0.16 | BI60: 2.4 | BJ60: 0 | BK60: 0 | BM60: 5.517988388 | BN60: 0.1328866831 | BO60: 0.16 | BP60: 0 | BQ60: 0.16 | BR60: 2.4
A61: Total | B61: =$B$59+$B$60 -> 0 | C61: =$C$59+$C$60 -> 0 | D61: =$D$59+$D$60 -> 0 | E61: =$E$59+$E$60 -> 0 | H61: FSV | I61: =IF(OR($E$22="",$F$22="",$F$25="",$G$25=""),0,IF($L$58>=0,($I$56+$I$57+$I$59)/($I$54+$I$55+$I$58),($I$56+$I$57+$I$58+$I$59)/($I$54+$I$55))) -> 0.559192828 | J61: =$I$61-$L$61 -> -0.940807172 | K61: =IF(AND($F$25="",$G$25=""),"",IF($I$61>=$L$61,"Structure is Vertically Stable",IF(AND($I$61<$L$61,$L$58>=0),$L$61*($L$54+$L$55+$L$58)-(-$L$56-$L$57-$L$59-$M$59),IF(AND($I$61<$L$61,$L$58<0),$L$61*($L$54+$L$55)-(-$L$56-$L$57-$L$59-$M$59-$L$58),"")))) -> 7277.709078 | L61: ='2-Constants'!$C$5 -> 1.5 | N61: CD Stem with Exposed RW Lookup Table | S61: At Right Thalweg | T61: =IF(OR($F$25="",$G$25=""),"No",IF(AND(MAX($U$40:$U$41)>$B$16,MIN($U$40:$U$41)<$B$16),"Yes","No")) -> No | U61: =$B$16 -> 79 | V61: =IF(OR($B$25=0,$B$25=180,$B$25=360),0,IF($T$14<$T$13,$G$22+((($B$16-$T$14)/ABS($M$17))/$M$19),(($B$16-$T$13)/ABS($M$17))/$M$19)) -> 58.37837398 | W61: 32 | X61: =IF($T$14<$T$13,$U$14+(($V$61-$G$22)*$M$20),$U$13-($V$61*$M$20)) -> 94.24362858 | Y61: =$C$16 -> 92.8 | AI61: 16 | AJ61: 2.56 | AK61: Left Bank | AL61: 48.60979786 | AM61: 96.73065344 | AN61: 48.60029223 | AO61: 94.7307296 | AP61: 96.38976183 | AQ61: 0 | AR61: 0 | AS61: 0 | AV61: 0 | AW61: 1.659032227 | AX61: 1.659032227 | AY61: 0 | AZ61: 0 | BA61: 0 | BB61: 0 | BC61: 0 | BD61: 1.659032227 | BE61: 0.1445717938 | BF61: 0 | BG61: 0 | BH61: 0.16 | BI61: 2.56 | BJ61: 0 | BK61: 0 | BM61: 5.519384634 | BN61: 0.1327476812 | BO61: 0.16 | BP61: 0 | BQ61: 0.16 | BR61: 2.56
K62: =IF($K$61<>"Structure is Vertically Stable","",IF($K$61="Structure is Vertically Stable",IF($L$58>=0,($I$56+$I$57+$I$59)-(($I$58+$I$54+$I$55)*$L$61),($I$56+$I$57+$I$58+$I$59)-(($I$54+$I$55)*$L$61)))) ->  | N62: Adjusted q (deg) | O62: CDi Stem + RW | S62: At Right Bank Toe | T62: =IF(OR($F$25="",$G$25=""),"No",IF(MAX($U$40:$U$41)<$B$17,"No",IF(MIN($U$40:$U$41)>$B$17,"No","Yes"))) -> No | U62: =$B$17 -> 108 | V62: =IF(OR($B$25=0,$B$25=180,$B$25=360),0,IF($T$14<$T$13,$G$22+((($B$17-$T$14)/ABS($M$17))/$M$19),(($B$17-$T$13)/ABS($M$17))/$M$19)) -> 111.6266768 | W62: 32 | X62: =IF($T$14<$T$13,$U$14+(($V$62-$G$22)*$M$20),$U$13-($V$62*$M$20)) -> 93.77895537 | Y62: =$C$17 -> 94.94 | AI62: 17 | AJ62: 2.72 | AK62: Left Bank | AL62: 48.69693678 | AM62: 96.7292572 | AN62: 48.68743116 | AO62: 94.72933335 | AP62: 96.37747939 | AQ62: 0 | AR62: 0 | AS62: 0 | AV62: 0 | AW62: 1.648146034 | AX62: 1.648146034 | AY62: 0 | AZ62: 0 | BA62: 0 | BB62: 0 | BC62: 0 | BD62: 1.648146034 | BE62: 0.1436231465 | BF62: 0 | BG62: 0 | BH62: 0.16 | BI62: 2.72 | BJ62: 0 | BK62: 0 | BM62: 5.520780879 | BN62: 0.1326088247 | BO62: 0.16 | BP62: 0 | BQ62: 0.16 | BR62: 2.72
A63: Horizontal Force Analysis | N63: =IF(OR($O$54="",$O$54="use CD stem"),"",IF(OR($B$25<-180,$B$25>360),"Error",IF($B$25>180,360-$B$25,IF($B$25<0,-$B$25,$B$25)))) -> 33 | O63: =IF(OR($O$54="",$O$54="use CD stem"),"",IF($B$25<22.5,(($B$25/22.5)*($O$67-$O$66)+$O$66),IF($B$25<45,((($B$25-$N$67)/22.5)*($O$68-$O$67)+$O$67),IF($B$25<67.5,((($B$25-$N$68)/22.5)*($O$69-$O$68)+$O$68),IF($B$25<90,((($B$25-$N$69)/22.5)*($O$70-$O$69)+$O$69),IF($B$25<112.5,((($B$25-$N$70)/22.5)*($O$71-$O$70)+$O$70),IF($B$25<135,((($B$25-$N$71)/22.5)*($O$72-$O$71)+$O$71),IF($B$25<157.5,((($B$25-$N$72)/22.5)*($O$73-$O$72)+$O$72),IF($B$25<=180,((($B$25-$N$74)/22.5)*($O$74-$O$73)+$O$74),$O$74))))))))) -> 1.189333333 | S63: At Right Bank Top | T63: =IF(OR($F$25="",$G$25=""),"No",IF(MAX($U$40:$U$41)<$B$18,"No",IF(MIN($U$40:$U$41)>$B$18,"No","Yes"))) -> No | U63: =$B$18 -> 127 | V63: =IF(OR($B$25=0,$B$25=180,$B$25=360),0,IF($T$14<$T$13,$G$22+((($B$18-$T$14)/ABS($M$17))/$M$19),(($B$18-$T$13)/ABS($M$17))/$M$19)) -> 146.5134959 | W63: 32 | X63: =IF($T$14<$T$13,$U$14+(($V$63-$G$22)*$M$20),$U$13-($V$63*$M$20)) -> 93.47451431 | Y63: =$C$18 -> 98.72 | AI63: 18 | AJ63: 2.88 | AK63: Left Bank | AL63: 48.78407571 | AM63: 96.72786095 | AN63: 48.77457009 | AO63: 94.72793711 | AP63: 96.36519695 | AQ63: 0 | AR63: 0 | AS63: 0 | AV63: 0 | AW63: 1.63725984 | AX63: 1.63725984 | AY63: 0 | AZ63: 0 | BA63: 0 | BB63: 0 | BC63: 0 | BD63: 1.63725984 | BE63: 0.1426744991 | BF63: 0 | BG63: 0 | BH63: 0.16 | BI63: 2.88 | BJ63: 0 | BK63: 0 | BM63: 5.522177125 | BN63: 0.1324701135 | BO63: 0.16 | BP63: 0 | BQ63: 0.16 | BR63: 2.88
A64: Drag Force | AI64: 19 | AJ64: 3.04 | AK64: Left Bank | AL64: 48.87121464 | AM64: 96.72646471 | AN64: 48.86170901 | AO64: 94.72654086 | AP64: 96.35291451 | AQ64: 0 | AR64: 0 | AS64: 0 | AV64: 0 | AW64: 1.626373647 | AX64: 1.626373647 | AY64: 0 | AZ64: 0 | BA64: 0 | BB64: 0 | BC64: 0 | BD64: 1.626373647 | BE64: 0.1417258518 | BF64: 0 | BG64: 0 | BH64: 0.16 | BI64: 3.04 | BJ64: 0 | BK64: 0 | BM64: 5.523573371 | BN64: 0.1323315473 | BO64: 0.16 | BP64: 0 | BQ64: 0.16 | BR64: 3.04
A65: ATp / AW | B65: FrL | C65: CDi | D65: Cw | E65: CD* | F65: FD (lbf) | H65: Horizontal Force Balance | L65: Formatting | N65: q (deg) | O65: CDi Stem + RW | V65: Log Bottom and Soil Intercept | X65: Dist to Intercept | Y65: Intercept in Zone? | Z65: LW Buried? | AA65: Exposed Segment | AI65: 20 | AJ65: 3.2 | AK65: Left Bank | AL65: 48.95835357 | AM65: 96.72506846 | AN65: 48.94884794 | AO65: 94.72514462 | AP65: 96.34063207 | AQ65: 0 | AR65: 0 | AS65: 0 | AV65: 0 | AW65: 1.615487453 | AX65: 1.615487453 | AY65: 0 | AZ65: 0 | BA65: 0 | BB65: 0 | BC65: 0 | BD65: 1.615487453 | BE65: 0.1407772044 | BF65: 0 | BG65: 0 | BH65: 0.16 | BI65: 3.2 | BJ65: 0 | BK65: 0 | BM65: 5.524969616 | BN65: 0.1321931261 | BO65: 0.16 | BP65: 0 | BQ65: 0.16 | BR65: 3.2
A66: =IF(OR($A$6="",$F$6=""),0,$J$25/(VLOOKUP($A$6,SiteInfo,7,0))) -> 0.02631932086 | B66: =IF($A$6="",0,$J$6/(($F$22*g)^0.5)) -> 0.5775208784 | C66: =IF($O$54="",0,IF($O$54="use CD stem",$O$57,$O$63)) -> 1.189333333 | D66: =IF(OR($BM$43="",$B$25=""),0,IF($BN$43>0.43,0.43,$BN$43)) -> 0.1218001703 | E66: =IF(OR($F$22="",$B$25=""),0,0.997*($C$66+$D$66)*((1-$A$66)^-2.06)) -> 1.381032744 | F66: =IF(OR($E$66="",$J$25=""),0,$E$66*$J$25*SWWater*($J$6^2)/(2*g)) -> 1248.195369 | H66: FD (lbf) | I66: =IF(AND($F$66=0,$I$71>0),0.4999,$F$66) -> 1248.195369 | J66: =IF($L$66=0,"",IF($L66>0,CHAR(232),CHAR(231))) -> è | K66: =IF(AND($F$66=0,$I$71>0),"NOTE - Tool has assumed the drag force = 0.49 lbf for FS calcs","") ->  | L66: =$F$66 -> 1248.195369 | N66: 0 | O66: 1.2 | T66: Zone L (ft) | U66: Log L (ft) | V66: xbottom (ft) | W66: ybottom (ft) | AB66: Lem,bot (ft) | AI66: 21 | AJ66: 3.36 | AK66: Left Bank | AL66: 49.04549249 | AM66: 96.72367222 | AN66: 49.03598687 | AO66: 94.72374837 | AP66: 96.32834963 | AQ66: 0 | AR66: 0 | AS66: 0 | AV66: 0 | AW66: 1.604601259 | AX66: 1.604601259 | AY66: 0 | AZ66: 0 | BA66: 0 | BB66: 0 | BC66: 0 | BD66: 1.604601259 | BE66: 0.139828557 | BF66: 0 | BG66: 0 | BH66: 0.16 | BI66: 3.36 | BJ66: 0 | BK66: 0 | BM66: 5.526365862 | BN66: 0.1320548497 | BO66: 0.16 | BP66: 0 | BQ66: 0.16 | BR66: 3.36
H67: FP (lbf) | I67: =$C$72 -> 0 | J67: =IF($L$67=0,"",IF($L67>=0,CHAR(232),CHAR(231))) ->  | K67: =IF(OR($M$59=0,$M$70=0),"","NOTE -- Mechanical soil anchors and deadman boulders provide equal resistance to vertical and horizontal forces. The model first applies these anchor forces to resist the vertical forces, and then applies the balance to resist the horizontal forces.") ->  | L67: =-$C$72 -> 0 | N67: 22.5 | O67: 1.25 | S67: LB Floodplain | T67: =($B$14-$B$13)/ABS($M$17)/ABS($M$19) -> 60.59289633 | U67: =IF(MAX($U$40:$U$41)<=$B$14,$E$22,IF($T$58="No",0,$E$22-$W$58)) -> 0 | V67: =IF($U$67=0,0,IF(OR($B$25=0,$B$25=180,$B$25=360),$U$40,$U$58+(($X$58-$C$14)/($AB$31-$AA$40)))) -> 0 | W67: =IF($U$67=0,0,IF(OR($B$25=0,$B$25=180,$B$25=360),(($U$40-$B$13)*$AB$31)+$C$13,$X$58+(($V$67-$U$58)*$AA$40))) -> 0 | X67: =IF($U$67=0,0,IF(OR($B$25=0,$B$25=180,$B$25=360),$E$22-ABS(($X$41-$W$67)/$M$20),IF(AND($U$40<=$U$41,$X$40>=$Y$40),ABS(($X$40-$W$67)/($AA$40*$M$17*$M$19)),IF(AND($U$40<=$U$41,$X$40<$Y$40),ABS($E$22-(ABS(($X$40-$W$67)/($AA$40*$M$17*$M$19)))),IF(AND($U$40>$U$41,$X$41>=$Y$41),ABS(($X$41-$W$67)/($AA$40*$M$17*$M$19)),IF(AND($U$40>=$U$41,$X$41<$Y$41),ABS($E$22-(ABS(($X$40-$W$67)/($AA$40*$M$17*$M$19)))))))))) -> 0 | Y67: =IF(AND($U$67=0,$W$67=0),"No",IF(AND($V$67<=$B$14,$V$67>=$B$13,$V$67>=MIN($U$40:$U$41),$V$67<=MAX($U$40:$U$41),$W$67<$C$13,$X$67<=$E$22),"Yes","No")) -> No | Z67: =IF($U$67=0,"No",IF($Y$67="Yes","Partial",IF(AND($U$67<$E$22,$X$41<$Y$41,$Y$67="No",$Y$68="No",$Y$69="No",$Y$70="No",$Y$71="No",$Y$72="No"),"Yes",IF(AND($Y$67="No",$X$58>$Y$58),"No","Yes")))) -> No | AA67: =IF($Z$67="Yes","None",IF(AND($Z$67="No",$U$67=0),"None",IF($Z$67="No","All",IF(AND($X$41>=$Y$41,$U$41<=$U$40),"Left","Right")))) -> None | AB67: =IF($U$67=0,0,IF($Z$67="No",0,IF($Z$67="Yes",$U$67,IF(OR($AA$67="Left",$U$67=$E$22),$U$67-(ABS(($U$41-$V$67)/($M$17*$M$19))),$U$67-(ABS(($V$67-$B$14)/($M$17*$M$19))))))) -> 0 | AI67: 22 | AJ67: 3.52 | AK67: Left Bank | AL67: 49.13263142 | AM67: 96.72227597 | AN67: 49.1231258 | AO67: 94.72235212 | AP67: 96.31606719 | AQ67: 0 | AR67: 0 | AS67: 0 | AV67: 0 | AW67: 1.593715066 | AX67: 1.593715066 | AY67: 0 | AZ67: 0 | BA67: 0 | BB67: 0 | BC67: 0 | BD67: 1.593715066 | BE67: 0.1388799097 | BF67: 0 | BG67: 0 | BH67: 0.16 | BI67: 3.52 | BJ67: 0 | BK67: 0 | BM67: 5.527762108 | BN67: 0.1319167179 | BO67: 0.16 | BP67: 0 | BQ67: 0.16 | BR67: 3.52
A68: Passive Soil Pressure | D68: Friction Force | H68: FF (lbf) | I68: =$F$72 -> 0 | J68: =IF($L$68=0,"",IF($L68>=0,CHAR(232),CHAR(231))) ->  | L68: =-$F$72 -> 0 | N68: 45 | O68: 1.12 | S68: Left Bank | T68: =($B$15-$B$14)/ABS($M$17)/ABS($M$19) -> 38.55911585 | U68: =IF(AND(MIN($U$40:$U$41)>=$B$14,MAX($U$40:$U$41)<=$B$15),$E$22,IF(AND($T$59="No",$T$58="No"),0,$E$22-$W$59-$U$67)) -> 12.47466464 | V68: =IF($U$68=0,0,IF(OR($B$25=0,$B$25=180,$B$25=360),$U$40,$U$59+(($C$15-$X$59)/($AA$40-$AB$32)))) -> 61.89080003 | W68: =IF($U$68=0,0,IF(OR($B$25=0,$B$25=180,$B$25=360),(($U$40-$B$14)*$AB$32)+$C$14,$X$59+(($V$68-$U$59)*$AA$40))) -> 94.51777295 | X68: =IF($U$68=0,0,IF(OR($B$25=0,$B$25=180,$B$25=360),$E$22-ABS(($X$41-$W$68)/$M$20),IF(AND($U$40<=$U$41,$X$40>=$Y$40),ABS(($X$40-$W$68)/($AA$40*$M$17*$M$19)),IF(AND($U$40<=$U$41,$X$40<$Y$40),ABS($E$22-(ABS(($X$40-$W$68)/($AA$40*$M$17*$M$19)))),IF(AND($U$40>$U$41,$X$41>=$Y$41),ABS(($X$41-$W$68)/($AA$40*$M$17*$M$19)),IF(AND($U$40>=$U$41,$X$41<$Y$41),ABS($E$22-(ABS(($X$40-$W$68)/($AA$40*$M$17*$M$19)))))))))) -> 26.96334427 | Y68: =IF(AND($U$68=0,$W$68=0),"No",IF(AND($V$68<=$B$15,$V$68>=$B$14,$V$68>=MIN($U$40:$U$41),$V$68<=MAX($U$40:$U$41),$W$68<$C$14,$X$68<=$E$22),"Yes","No")) -> No | Z68: =IF($U$68=0,"No",IF($Y$68="Yes","Partial",IF(AND($U$68<$E$22,$X$41<$Y$41,$Y$67="No",$Y$68="No",$Y$69="No",$Y$70="No",$Y$71="No",$Y$72="No"),"Yes",IF(AND($Y$68="No",$X$59>$Y$59),"No","Yes")))) -> Yes | AA68: =IF($Z$68="Yes","None",IF(AND($Z$68="No",$U$68=0),"None",IF($Z$68="No","All",IF(AND($X$41>=$Y$41,$U$41<=$U$40,$AA$67<>"Left"),"Left","Right")))) -> None | AB68: =IF($U$68=0,0,IF($Z$68="No",0,IF($Z$68="Yes",$U$68,IF(OR($U$68=$E$22,AND($AA$68="Left",MIN($U$40:$U$41)>=$B$14,MAX($U$40:$U$41)>=$B$15)),$U$68-(ABS(($U$41-$V$68)/($M$17*$M$19))),IF($AA$68="Left",$U$68-(ABS(($B$14-$V$68)/($M$17*$M$19))),IF(MAX($U$40:$U$41)>=$B$15,$U$68-(ABS(($V$68-$B$15)/($M$17*$M$19))),ABS(($V$68-$B$14)/($M$17*$M$19)))))))) -> 12.47466464 | AI68: 23 | AJ68: 3.68 | AK68: Left Bank | AL68: 49.21977035 | AM68: 96.72087972 | AN68: 49.21026472 | AO68: 94.72095588 | AP68: 96.30378475 | AQ68: 0 | AR68: 0 | AS68: 0 | AV68: 0 | AW68: 1.582828872 | AX68: 1.582828872 | AY68: 0 | AZ68: 0 | BA68: 0 | BB68: 0 | BC68: 0 | BD68: 1.582828872 | BE68: 0.1379312623 | BF68: 0 | BG68: 0 | BH68: 0.16 | BI68: 3.68 | BJ68: 0 | BK68: 0 | BM68: 5.529158353 | BN68: 0.1317787306 | BO68: 0.16 | BP68: 0 | BQ68: 0.16 | BR68: 3.68
A69: Soil | B69: KP | C69: FP (lbf) | D69: LTf (ft) | E69: m | F69: FF (lbf) | H69: FW,H (lbf) | I69: =ABS($M$99) -> 0 | J69: =IF($L$69=0,"",IF($L69>=0,CHAR(232),CHAR(231))) ->  | L69: =$M$99 -> 0 | M69: Flex | N69: 67.5 | O69: 1.22 | S69: Left Stream Bed | T69: =($B$16-$B$15)/ABS($M$17)/ABS($M$19) -> 45.90370934 | U69: =IF(AND(MIN($U$40:$U$41)>=$B$15,MAX($U$40:$U$41)<=$B$16),$E$22,IF(AND($T$60="No",$T$59="No"),0,IF(AND($T$59="Yes",$T$60="No"),$E$22-$U$68-$U$67,IF(AND($T$59="Yes",$T$60="Yes",$T$62="No"),$E$22-$U$70-$U$68-$U$67,IF(AND($T$59="Yes",$T$60="Yes",$T$62="Yes"),$E$22-$U$72-$U$71-$U$70-$U$68-$U$67,$E$22-$U$72-$U$71-$U$70))))) -> 19.52533536 | V69: =IF($U$69=0,0,IF(OR($B$25=0,$B$25=180,$B$25=360),$U$40,$U$60+(($C$16-$X$60)/($AA$40-$AB$33)))) -> 64.14430621 | W69: =IF($U$69=0,0,IF(OR($B$25=0,$B$25=180,$B$25=360),(($U$40-$B$15)*$AB$33)+$C$15,$X$60+(($V$69-$U$60)*$AA$40))) -> 94.48166454 | X69: =IF($U$69=0,0,IF(OR($B$25=0,$B$25=180,$B$25=360),$E$22-ABS(($X$41-$W$69)/$M$20),IF(AND($U$40<=$U$41,$X$40>=$Y$40),ABS(($X$40-$W$69)/($AA$40*$M$17*$M$19)),IF(AND($U$40<=$U$41,$X$40<$Y$40),ABS($E$22-(ABS(($X$40-$W$69)/($AA$40*$M$17*$M$19)))),IF(AND($U$40>$U$41,$X$41>=$Y$41),ABS(($X$41-$W$69)/($AA$40*$M$17*$M$19)),IF(AND($U$40>=$U$41,$X$41<$Y$41),ABS($E$22-(ABS(($X$40-$W$69)/($AA$40*$M$17*$M$19)))))))))) -> 31.10111599 | Y69: =IF(AND($U$69=0,$W$69=0),"No",IF(AND($V$69<=$B$16,$V$69>=$B$15,$V$69>=MIN($U$40:$U$41),$V$69<=MAX($U$40:$U$41),$W$69<$C$15,$X$69<=$E$22),"Yes","No")) -> Yes | Z69: =IF($U$69=0,"No",IF($Y$69="Yes","Partial",IF(AND($U$69<$E$22,$X$41<$Y$41,$Y$67="No",$Y$68="No",$Y$69="No",$Y$70="No",$Y$71="No",$Y$72="No"),"Yes",IF(AND($Y$69="No",$X$60>$Y$60),"No","Yes")))) -> Partial | AA69: =IF($Z$69="Yes","None",IF(AND($Z$69="No",$U$69=0),"None",IF($Z$69="No","All",IF(AND($X$41>=$Y$41,$U$41<=$U$40,$AA$68<>"Left"),"Left","Right")))) -> Right | AB69: =IF($U$69=0,0,IF($Z$69="No",0,IF($Z$69="Yes",$U$69,IF(OR($U$69=$E$22,AND($AA$69="Left",MIN($U$40:$U$41)>=$B$15,MAX($U$40:$U$41)>=$B$16)),$U$69-(ABS(($U$41-$V$69)/($M$17*$M$19))),IF($AA$69="Left",$U$69-(ABS(($B$15-$V$69)/($M$17*$M$19))),IF(MAX($U$40:$U$41)>=$B$16,$U$69-(ABS(($V$69-$B$16)/($M$17*$M$19))),ABS(($V$69-$B$15)/($M$17*$M$19)))))))) -> 18.62645135 | AI69: 24 | AJ69: 3.84 | AK69: Left Bank | AL69: 49.30690928 | AM69: 96.71948348 | AN69: 49.29740365 | AO69: 94.71955963 | AP69: 96.29150231 | AQ69: 0 | AR69: 0 | AS69: 0 | AV69: 0 | AW69: 1.571942679 | AX69: 1.571942679 | AY69: 0 | AZ69: 0 | BA69: 0 | BB69: 0 | BC69: 0 | BD69: 1.571942679 | BE69: 0.136982615 | BF69: 0 | BG69: 0 | BH69: 0.16 | BI69: 3.84 | BJ69: 0 | BK69: 0 | BM69: 5.530554599 | BN69: 0.1316408877 | BO69: 0.16 | BP69: 0 | BQ69: 0.16 | BR69: 3.84
A70: Bed | B70: =IF(OR($A$6="",$F$6="",$F$25=""),0,TAN((45+($F$28/2))*PI()/180)^2) -> 4.81495131 | C70: =IF($E$61=0,0,0.5*$B$70*$E$59) -> 0 | D70: =IF($F$28="",0,IF($U$15<$AF$47,$BP$43+2,$BP$43)) -> 20.72 | E70: =IF($F$28="",0,TAN($F$28*PI()/180)) -> 0.8692867378 | F70: =IF(OR($L$60>=0,$D$70=0),0,$I$60*$E$70*($D$70/$D$72)) -> 0 | H70: FA,H (lbf) | I70: =ABS($L$70)+ABS($M$70) -> 0 | J70: =IF(($L$70+M70)=0,"",IF(($L$70+M70)>=0,CHAR(232),CHAR(231))) ->  | L70: =$M$86 -> 0 | M70: =$M$92 -> 0 | N70: 90 | O70: 0.97 | S70: Right Stream Bed | T70: =($B$17-$B$16)/ABS($M$17)/ABS($M$19) -> 53.24830284 | U70: =IF(AND(MIN($U$40:$U$41)>=$B$16,MAX($U$40:$U$41)<=$B$17),$E$22,IF(AND($T$61="No",$T$62="No"),0,IF(AND($T$62="Yes",$T$61="No"),$E$22-$U$71-$U$72,IF(AND($T$62="Yes",$T$61="Yes"),$E$22-$W$61-$U$71-$U$72,$E$22-$W$61)))) -> 0 | V70: =IF($U$70=0,0,IF(OR($B$25=0,$B$25=180,$B$25=360),$U$40,$U$61+(($X$61-$C$16)/($AB$34-$AA$40)))) -> 0 | W70: =IF($U$70=0,0,IF(OR($B$25=0,$B$25=180,$B$25=360),(($U$40-$B$16)*$AB$34)+$C$16,$X$61+(($V$70-$U$61)*$AA$40))) -> 0 | X70: =IF($U$70=0,0,IF(OR($B$25=0,$B$25=180,$B$25=360),$E$22-ABS(($X$41-$W$70)/$M$20),IF(AND($U$40<=$U$41,$X$40>=$Y$40),ABS(($X$40-$W$70)/($AA$40*$M$17*$M$19)),IF(AND($U$40<=$U$41,$X$40<$Y$40),ABS($E$22-(ABS(($X$40-$W$70)/($AA$40*$M$17*$M$19)))),IF(AND($U$40>$U$41,$X$41>=$Y$41),ABS(($X$41-$W$70)/($AA$40*$M$17*$M$19)),IF(AND($U$40>=$U$41,$X$41<$Y$41),ABS($E$22-(ABS(($X$40-$W$70)/($AA$40*$M$17*$M$19)))))))))) -> 0 | Y70: =IF(AND($U$70=0,$W$70=0),"No",IF(AND($V$70<=$B$17,$V$70>=$B$16,$V$70>=MIN($U$40:$U$41),$V$70<=MAX($U$40:$U$41),$W$70<$C$17,$X$70<=$E$22),"Yes","No")) -> No | Z70: =IF($U$70=0,"No",IF($Y$70="Yes","Partial",IF(AND($U$70<$E$22,$X$41<$Y$41,$Y$67="No",$Y$68="No",$Y$69="No",$Y$70="No",$Y$71="No",$Y$72="No"),"Yes",IF(AND($Y$70="No",$X$61>$Y$61),"No","Yes")))) -> No | AA70: =IF($Z$70="Yes","None",IF(AND($Z$70="No",$U$70=0),"None",IF($Z$70="No","All",IF(AND($X$41>=$Y$41,$U$41>=$U$40,$AA$71<>"Right"),"Right","Left")))) -> None | AB70: =IF($U$70=0,0,IF($Z$70="No",0,IF($Z$70="Yes",$U$70,IF(OR($U$70=$E$22,AND($AA$70="Right",MIN($U$40:$U$41)<=$B$16,MAX($U$40:$U$41)<=$B$17)),$U$70-(ABS(($U$41-$V$70)/($M$17*$M$19))),IF($AA$70="Right",$U$70-(ABS(($B$17-$V$70)/($M$17*$M$19))),IF(MIN($U$40:$U$41)<=$B$16,$U$70-(ABS(($V$70-$B$16)/($M$17*$M$19))),ABS(($V$70-$B$17)/($M$17*$M$19)))))))) -> 0 | AI70: 25 | AJ70: 4 | AK70: Left Bank | AL70: 49.3940482 | AM70: 96.71808723 | AN70: 49.38454258 | AO70: 94.71816339 | AP70: 96.27921987 | AQ70: 0 | AR70: 0 | AS70: 0 | AV70: 0 | AW70: 1.561056485 | AX70: 1.561056485 | AY70: 0 | AZ70: 0 | BA70: 0 | BB70: 0 | BC70: 0 | BD70: 1.561056485 | BE70: 0.1360339676 | BF70: 0 | BG70: 0 | BH70: 0.16 | BI70: 4 | BJ70: 0 | BK70: 0 | BM70: 5.531950845 | BN70: 0.1315031889 | BO70: 0.16 | BP70: 0 | BQ70: 0.16 | BR70: 4
A71: Bank | B71: =IF(OR($A$6="",$F$6="",$F$25=""),0,TAN((45+($F$29/2))*PI()/180)^2) -> 4.81495131 | C71: =IF($E$61=0,0,0.5*$B$71*$E$60) -> 0 | D71: =IF($F$28="",0,$BQ$43) -> 12.4 | E71: =IF($F$28="",0,TAN($F$29*PI()/180)) -> 0.8692867378 | F71: =IF(OR($L$60>=0,$D$71=0),0,$I$60*$E$71*($D$71/$D$72)) -> 0 | H71: S FH (lbf) | I71: =ABS($L$71) -> 1248.195369 | J71: =IF($L$71=0,"",IF($L71>=0,CHAR(232),CHAR(231))) -> è | K71: Additional resisting force (lbf) needed: | L71: =$L$66+$L$67+$L$68+$L$69+$L$70+$M$70 -> 1248.195369 | N71: 112.5 | O71: 1 | S71: Right Bank | T71: =($B$18-$B$17)/ABS($M$17)/ABS($M$19) -> 34.8868191 | U71: =IF(AND(MIN($U$40:$U$41)>=$B$17,MAX($U$40:$U$41)<=$B$18),$E$22,IF(AND($T$62="No",$T$63="No"),0,$E$22-$W$62-$U$72)) -> 0 | V71: =IF($U$71=0,0,IF(OR($B$25=0,$B$25=180,$B$25=360),$U$40,$U$62+(($X$62-$C$17)/($AB$35-$AA$40)))) -> 0 | W71: =IF($U$71=0,0,IF(OR($B$25=0,$B$25=180,$B$25=360),(($U$40-$B$17)*$AB$35)+$C$17,$X$62+(($V$71-$U$62)*$AA$40))) -> 0 | X71: =IF($U$71=0,0,IF(OR($B$25=0,$B$25=180,$B$25=360),$E$22-ABS(($X$41-$W$71)/$M$20),IF(AND($U$40<=$U$41,$X$40>=$Y$40),ABS(($X$40-$W$71)/($AA$40*$M$17*$M$19)),IF(AND($U$40<=$U$41,$X$40<$Y$40),ABS($E$22-(ABS(($X$40-$W$71)/($AA$40*$M$17*$M$19)))),IF(AND($U$40>$U$41,$X$41>=$Y$41),ABS(($X$41-$W$71)/($AA$40*$M$17*$M$19)),IF(AND($U$40>=$U$41,$X$41<$Y$41),ABS($E$22-(ABS(($X$40-$W$71)/($AA$40*$M$17*$M$19)))))))))) -> 0 | Y71: =IF(AND($U$71=0,$W$71=0),"No",IF(AND($V$71<=$B$18,$V$71>=$B$17,$V$71>=MIN($U$40:$U$41),$V$71<=MAX($U$40:$U$41),$W$71<$C$18,$X$71<=$E$22),"Yes","No")) -> No | Z71: =IF($U$71=0,"No",IF($Y$71="Yes","Partial",IF(AND($U$71<$E$22,$X$41<$Y$41,$Y$67="No",$Y$68="No",$Y$69="No",$Y$70="No",$Y$71="No",$Y$72="No"),"Yes",IF(AND($Y$71="No",$X$62>$Y$62),"No","Yes")))) -> No | AA71: =IF($Z$71="Yes","None",IF(AND($Z$71="No",$U$71=0),"None",IF($Z$71="No","All",IF(AND($X$41>=$Y$41,$U$41>=$U$40,$AA$72<>"Right"),"Right","Left")))) -> None | AB71: =IF($U$71=0,0,IF($Z$71="No",0,IF($Z$71="Yes",$U$71,IF(OR($U$71=$E$22,AND($AA$71="Right",MIN($U$40:$U$41)<=$B$17,MAX($U$40:$U$41)<=$B$18)),$U$71-(ABS(($U$41-$V$71)/($M$17*$M$19))),IF($AA$71="Right",$U$71-(ABS(($B$18-$V$71)/($M$17*$M$19))),IF(MIN($U$40:$U$41)<=$B$17,$U$71-(ABS(($V$71-$B$17)/($M$17*$M$19))),ABS(($V$71-$B$18)/($M$17*$M$19)))))))) -> 0 | AI71: 26 | AJ71: 4.16 | AK71: Left Bank | AL71: 49.48118713 | AM71: 96.71669099 | AN71: 49.47168151 | AO71: 94.71676714 | AP71: 96.26693743 | AQ71: 0 | AR71: 0 | AS71: 0 | AV71: 0 | AW71: 1.550170291 | AX71: 1.550170291 | AY71: 0 | AZ71: 0 | BA71: 0 | BB71: 0 | BC71: 0 | BD71: 1.550170291 | BE71: 0.1350853202 | BF71: 0 | BG71: 0 | BH71: 0.16 | BI71: 4.16 | BJ71: 0 | BK71: 0 | BM71: 5.53334709 | BN71: 0.1313656342 | BO71: 0.16 | BP71: 0 | BQ71: 0.16 | BR71: 4.16
A72: Total | B72: - | C72: =$C$70+$C$71 -> 0 | D72: =$D$70+$D$71 -> 33.12 | E72: - | F72: =$F$70+$F$71 -> 0 | H72: FSH | I72: =IF(OR($E$22="",$F$22="",$F$25="",$G$25=""),0,IF($I$66=0,0,IF($L$69>=0,($I$67+$I$68+$I$70)/($I$66+$I$69),($I$67+$I$68+$I$69+$I$70)/$I$66))) -> 0 | J72: =$I$72-$L$72 -> -1.5 | K72: =IF(AND($F$25="",$G$25=""),"",IF(OR($J$25=0,$I$72>=$L$72),"Structure is Horizontally Stable",IF(AND($I$72<$L$72,$L$69>=0),$L$72*($L$66+$L$69)-(-$L$67-$L$68-$L$70-$M$70),IF(AND($I$72<$L$72,$L$69<0),$L$72*($L$66)-(-$L$67-$L$68-$L$70-$M$70-$L$69),"")))) -> 1872.293053 | L72: ='2-Constants'!$C$6 -> 1.5 | N72: 135 | O72: 0.81 | S72: RB Floodplain | T72: =($B$19-$B$18)/ABS($M$17)/ABS($M$19) -> 42.23141259 | U72: =IF(MIN($U$40:$U$41)>=$B$18,$E$22,IF($T$63="No",0,$E$22-$W$63)) -> 0 | V72: =IF($U$72=0,0,IF(OR($B$25=0,$B$25=180,$B$25=360),$U$40,$U$63+(($X$63-$C$18)/($AB$36-$AA$40)))) -> 0 | W72: =IF($U$72=0,0,IF(OR($B$25=0,$B$25=180,$B$25=360),(($U$40-$B$18)*$AB$36)+$C$18,$X$63+(($V$72-$U$63)*$AA$40))) -> 0 | X72: =IF($U$72=0,0,IF(OR($B$25=0,$B$25=180,$B$25=360),$E$22-ABS(($X$41-$W$72)/$M$20),IF(AND($U$40<=$U$41,$X$40>=$Y$40),ABS(($X$40-$W$72)/($AA$40*$M$17*$M$19)),IF(AND($U$40<=$U$41,$X$40<$Y$40),ABS($E$22-(ABS(($X$40-$W$72)/($AA$40*$M$17*$M$19)))),IF(AND($U$40>$U$41,$X$41>=$Y$41),ABS(($X$41-$W$72)/($AA$40*$M$17*$M$19)),IF(AND($U$40>=$U$41,$X$41<$Y$41),ABS($E$22-(ABS(($X$40-$W$72)/($AA$40*$M$17*$M$19)))))))))) -> 0 | Y72: =IF(AND($U$72=0,$W$72=0),"No",IF(AND($V$72<=$B$19,$V$72>=$B$18,$V$72>=MIN($U$40:$U$41),$V$72<=MAX($U$40:$U$41),$W$72<$C$19,$X$72<=$E$22),"Yes","No")) -> No | Z72: =IF($U$72=0,"No",IF($Y$72="Yes","Partial",IF(AND($U$72<$E$22,$X$41<$Y$41,$Y$67="No",$Y$68="No",$Y$69="No",$Y$70="No",$Y$71="No",$Y$72="No"),"Yes",IF(AND($Y$72="No",$X$63>$Y$63),"No","Yes")))) -> No | AA72: =IF($Z$72="Yes","None",IF(AND($Z$72="No",$U$72=0),"None",IF($Z$72="No","All",IF(AND($X$41>=$Y$41,$U$41>=$U$40),"Right","Left")))) -> None | AB72: =IF($U$72=0,0,IF($Z$72="No",0,IF($Z$72="Yes",$U$72,IF(OR($AA$72="Right",$U$72=$E$22),$U$72-(ABS(($U$41-$V$72)/($M$17*$M$19))),$U$72-(ABS(($V$72-$B$18)/($M$17*$M$19))))))) -> 0 | AI72: 27 | AJ72: 4.32 | AK72: Left Bank | AL72: 49.56832606 | AM72: 96.71529474 | AN72: 49.55882043 | AO72: 94.7153709 | AP72: 96.25465499 | AQ72: 0 | AR72: 0 | AS72: 0 | AV72: 0 | AW72: 1.539284098 | AX72: 1.539284098 | AY72: 0 | AZ72: 0 | BA72: 0 | BB72: 0 | BC72: 0 | BD72: 1.539284098 | BE72: 0.1341366729 | BF72: 0 | BG72: 0 | BH72: 0.16 | BI72: 4.32 | BJ72: 0 | BK72: 0 | BM72: 5.534743336 | BN72: 0.1312282234 | BO72: 0.16 | BP72: 0 | BQ72: 0.16 | BR72: 4.32
K73: =IF($K$72<>"Structure is Horizontally Stable","",IF($K$72="Structure is Horizontally Stable",IF($L$69>=0,($I$67+$I$68+$I$70)-(($I$69+$I$66)*$L$72),($I$67+$I$68+$I$69+$I$70)-(($I$66)*$L$72)))) ->  | N73: 157.5 | O73: 0.75 | T73: L check | U73: =SUM(U67:U72) -> 32 | V73: =IF($U$53=$E$22,"OK","ERROR") -> OK | AA73: Total | AB73: =SUM(AB67:AB72) -> 31.10111599 | AI73: 28 | AJ73: 4.48 | AK73: Left Bank | AL73: 49.65546499 | AM73: 96.7138985 | AN73: 49.64595936 | AO73: 94.71397465 | AP73: 96.24237255 | AQ73: 0 | AR73: 0 | AS73: 0 | AV73: 0 | AW73: 1.528397904 | AX73: 1.528397904 | AY73: 0 | AZ73: 0 | BA73: 0 | BB73: 0 | BC73: 0 | BD73: 1.528397904 | BE73: 0.1331880255 | BF73: 0 | BG73: 0 | BH73: 0.16 | BI73: 4.48 | BJ73: 0 | BK73: 0 | BM73: 5.536139582 | BN73: 0.1310909563 | BO73: 0.16 | BP73: 0 | BQ73: 0.16 | BR73: 4.48
A74: Moment Force Balance | L74: =IF($D$22="Yes","Rootwad","Root Collar") -> Rootwad | N74: 180 | O74: 1.1 | AI74: 29 | AJ74: 4.64 | AK74: Left Bank | AL74: 49.74260391 | AM74: 96.71250225 | AN74: 49.73309829 | AO74: 94.7125784 | AP74: 96.23009012 | AQ74: 0 | AR74: 0 | AS74: 0 | AV74: 0 | AW74: 1.51751171 | AX74: 1.51751171 | AY74: 0 | AZ74: 0 | BA74: 0 | BB74: 0 | BC74: 0 | BD74: 1.51751171 | BE74: 0.1322393782 | BF74: 0 | BG74: 0 | BH74: 0.16 | BI74: 4.64 | BJ74: 0 | BK74: 0 | BM74: 5.537535828 | BN74: 0.1309538327 | BO74: 0.16 | BP74: 0 | BQ74: 0.16 | BR74: 4.64
A75: Driving Moment Centroids | D75: Resisting Moment Centroids | H75: Moment Force Balance | N75: Source: Gippel (1992) plot of drag coefficients | S75: Projected Area of Log Calculation | W75: Projected Area of Rootwad Calculation | AI75: 30 | AJ75: 4.8 | AK75: Left Bank | AL75: 49.82974284 | AM75: 96.71110601 | AN75: 49.82023722 | AO75: 94.71118216 | AP75: 96.21780768 | AQ75: 0 | AR75: 0 | AS75: 0 | AV75: 0 | AW75: 1.506625517 | AX75: 1.506625517 | AY75: 0 | AZ75: 0 | BA75: 0 | BB75: 0 | BC75: 0 | BD75: 1.506625517 | BE75: 0.1312907308 | BF75: 0 | BG75: 0 | BH75: 0.16 | BI75: 4.8 | BJ75: 0 | BK75: 0 | BM75: 5.538932073 | BN75: 0.1308168526 | BO75: 0.16 | BP75: 0 | BQ75: 0.16 | BR75: 4.8
A76: cT,B (ft) | B76: cL (ft) | C76: cD (ft) | D76: cT,W (ft) | E76: csoil (ft) | F76: cF&N (ft) | G76: cP (ft) | H76: Md (lbf) | I76: =IF(OR($C$19="",$E$22="",$D$22="",$F$22="",$F$25="",$G$25=""),0,IF($F$78="Stem Tip",$L$77,$L$78)) -> 121568.3954 | L76: Md | M76: Mr | P76: Centroid of Log | S76: DTS = | T76: =IF(OR($E$22="",$F$22="",$F$25="",$G$25=""),"",$F$22) -> 2 | U76: ft | X76: a = DRW/2 | Y76: =$H$22/2 -> 3 | Z76: ft | AA76: A = | AB76: a*b*((p/2)+arcsin(d/a)) + (b*d*(sqrt(a2-d2))/a) | AI76: 31 | AJ76: 4.96 | AK76: Left Bank | AL76: 49.91688177 | AM76: 96.70970976 | AN76: 49.90737614 | AO76: 94.70978591 | AP76: 96.20552524 | AQ76: 0 | AR76: 0 | AS76: 0 | AV76: 0 | AW76: 1.495739323 | AX76: 1.495739323 | AY76: 0 | AZ76: 0 | BA76: 0 | BB76: 0 | BC76: 0 | BD76: 1.495739323 | BE76: 0.1303420835 | BF76: 0 | BG76: 0 | BH76: 0.16 | BI76: 4.96 | BJ76: 0 | BK76: 0 | BM76: 5.540328319 | BN76: 0.1306800158 | BO76: 0.16 | BP76: 0 | BQ76: 0.16 | BR76: 4.96
A77: =$Q$79 -> 18.84620857 | B77: =IF($I$52=0,0,IF($T$12>=$T$11,$E$22-$BL$43,$BL$43)) -> 31.6 | C77: =IF($F$66=0,0,IF($T$12>=$T$11,$E$22-$BI$43,$BI$43)) -> 16 | D77: =$Q$79 -> 18.84620857 | E77: =IF($E$61=0,0,IF($T$12>=$T$11,$E$22-$BS$43,$BS$43)) -> 0 | F77: =IF($F$72=0,0,IF($T$12>=$T$11,$E$22-$BR$43,$BR$43)) -> 0 | G77: =IF($C$72=0,0,IF($T$12>=$T$11,$E$22-$BT$39,$BT$39)) -> 0 | H77: Mr (lbf) | I77: =IF(OR($C$19="",$E$22="",$D$22="",$F$22="",$F$25="",$G$25=""),0,IF($F$78="Stem Tip",$M$77,$M$78)) -> 56897.09309 | K77: Additional resisting moment force (lbf) needed: | L77: =(($I$54*$A$77)+($I$55*$B$77)+($I$66*$C$77)+(IF($L$95>0,$L$95*$D$95,0))+(IF($L$96>0,$L$96*$D$96,0))+(IF($L$97>0,$L$97*$D$97,0))+(IF($L$98>0,$L$98*$D$98,0))+(IF($M$95>0,$M$95*$D$95,0))+(IF($M$96>0,$M$96*$D$96,0))+(IF($M$97>0,$M$97*$D$97,0))+(IF($M$98>0,$M$98*$D$98,0)))*$M$19 -> 165902.148 | M77: =(($I$56*$D$77)+(IF($L$60<0,$I$60*$F$77))+($I$57*$E$77)+($I$67*$G$77)+($I$68*$F$77)+(($D$83+$E$83)*$C$83)+($J$83*$H$83)+($J$84*$H$84)+(($I$87+$J$87)*$C$87)+(($I$88+$J$88)*$C$88)+(($I$89+$J$89)*$C$89)+(IF($L$95<=0,$G$95*$D$95,0))+(IF($L$96<=0,$G$96*$D$96,0))+(IF($L$97<=0,$G$97*$D$97,0))+(IF($L$98<=0,$G$98*$D$98,0))+(IF($M$95<=0,$I$95*$D$95,0))+(IF($M$96<=0,$I$96*$D$96,0))+(IF($M$97<=0,$I$97*$D$97,0))+(IF($M$98<=0,$I$98*$D$98,0)))*$M$19 -> 81519.80278 | N77: Stem Tip | P77: cRW | Q77: =IF(OR($D$22="",$D$22="No",$F$22=""),0,$E$22-((1/4)*$G$22*(($H$22^2)+(2*$H$22*$F$22)+(3*($F$22^2)))/(($H$22^2)+($H$22*$F$22)+($F$22^2)))) -> 30.96153846 | S77: ATSp,total = | T77: =IF($T$76="","",ABS(($U$42-$U$43)*$F$22/$M$19)) -> 34.85689824 | U77: ft2 | X77: b= (DRW/2)*ABS(cos(q)) | Y77: =($H$22/2)*ABS(COS($B$25*PI()/180)) -> 2.516011704 | Z77: ft | AA77: ARW,total = | AB77: =IF(OR($D$22="",$D$22="No"),0,PI()*$Y$76*$Y$77) -> 23.71285166 | AC77: ft2 | AI77: 32 | AJ77: 5.12 | AK77: Left Bank | AL77: 50.0040207 | AM77: 96.70831351 | AN77: 49.99451507 | AO77: 94.70838967 | AP77: 96.1932428 | AQ77: 0 | AR77: 0 | AS77: 0 | AV77: 0 | AW77: 1.48485313 | AX77: 1.48485313 | AY77: 0 | AZ77: 0 | BA77: 0 | BB77: 0 | BC77: 0 | BD77: 1.48485313 | BE77: 0.1293934361 | BF77: 0 | BG77: 0 | BH77: 0.16 | BI77: 5.12 | BJ77: 0 | BK77: 0 | BM77: 5.541724565 | BN77: 0.1305433222 | BO77: 0.16 | BP77: 0 | BQ77: 0.16 | BR77: 5.12
A78: *Distances are from the stem tip | D78: Point of Rotation: | F78: =IF(OR($F$25="",$G$25="",$D$22=""),"",IF(AND($T$11<$T$12,$AY$45>0),$L$74,IF(AND($T$11>$T$12,$AY$245>0),$L$74,IF(AND($AY$45>0,$AY$245>0),$L$74,IF(AND($AY$45=0,$AY$245=0),$L$74,"Stem Tip"))))) -> Rootwad | H78: FSM | I78: =IF(OR($E$22="",$F$22="",$F$25="",$G$25=""),0,IF(OR($A$6="",$F$25="",$G$25=""),"",$I$77/$I$76)) -> 0.4680253687 | J78: =$I$78-$L$80 -> -1.031974631 | K78: =IF(AND($F$25="",$G$25=""),"",IF($I$78>=$L$80,"Structure is Stable with respect to Moment Forces",($I$76*$L$80)-$I$77)) -> 125455.5 | L78: =(($I$54*($E$22-$A$77))+($I$55*($E$22-$B$77))+($I$66*($E$22-$C$77))+(IF($L$95>0,$L$95*($E$22-$D$95),0))+(IF($L$96>0,$L$96*($E$22-$D$96),0))+(IF($L$97>0,$L$97*($E$22-$D$97),0))+(IF($L$98>0,$L$98*($E$22-$D$98),0))+(IF($M$95>0,$M$95*($E$22-$D$95),0))+(IF($M$96>0,$M$96*($E$22-$D$96),0))+(IF($M$97>0,$M$97*($E$22-$D$97),0))+(IF($M$98>0,$M$98*($E$22-$D$98),0)))*$M$19 -> 121568.3954 | M78: =(($I$56*($E$22-$D$77))+(IF($L$60<0,$I$60*($E$22-$F$77)))+($I$57*($E$22-$E$77))+($I$67*($E$22-$G$77))+($I$68*($E$22-$F$77))+(($D$83+$E$83)*($E$22-$C$83))+($J$83*($E$22-$H$83))+($J$84*($E$22-$H$84))+(($I$87+$J$87)*($E$22-$C$87))+(($I$88+$J$88)*($E$22-$C$88))+(($I$89+$J$89)*($E$22-$C$89))+(IF($L$95<=0,$G$95*($E$22-$D$95),0))+(IF($L$96<=0,$G$96*($E$22-$D$96),0))+(IF($L$97<=0,$G$97*($E$22-$D$97),0))+(IF($L$98<=0,$G$98*($E$22-$D$98),0))+(IF($M$95<=0,$I$95*($E$22-$D$95),0))+(IF($M$96<=0,$I$96*($E$22-$D$96),0))+(IF($M$97<=0,$I$97*($E$22-$D$97),0))+(IF($M$98<=0,$I$98*($E$22-$D$98),0)))*$M$19 -> 56897.09309 | N78: Root Collar or RW | P78: cTS | Q78: =(($E$22-$G$22)/2) -> 14.5 | S78: ATSp,dry = | T78: =IF($T$86="","",IF($T$86="Submerged",0,IF($T$88="Dry",$T$77,IF(AND($AC$86="Dry",$T$86="Partial"),ABS(($U$43-$W$87)*$F$22/$M$19),IF(AND($AC$86="Partial",$AC$87="Partial"),(ABS($U$39-$U$38))*(($AF$86+$AF$87)/2),IF($AC$86="Partial",(ABS($U$39-$W$86))*$AF$86/2,(($U$41-$W$88)*$F$22)+(ABS($W$88-$U$40))*($AF$87+$F$22)/2)))))) -> 0 | U78: ft2 | X78: d1 = (DRW/2) - (yRW,crown-WSE) | Y78: =IF(OR($D$22="",$F$22=""),"",IF($AE$8>=$U$10,$Y$76,$Y$76-($U$10-$AE$8))) -> 3 | Z78: ft | AA78: ARW,↑WSE = | AB78: =IF($D$22="No",0,IF($U$15>$AE$8,$AB$77,IF($U$10<$AE$8,0,IF($D$22="",0,$AB$77-(($Y$76*$Y$77*((PI()/2)+ASIN($Y$78/$Y$76)))+($Y$77*$Y$78*(SQRT(($Y$76^2)-($Y$78^2))/$Y$76))))))) -> 0 | AC78: ft2 | AI78: 33 | AJ78: 5.28 | AK78: Left Bank | AL78: =$AL$45+ABS(AJ78*$M$19*$M$17) -> 50.09115962 | AM78: 96.70691727 | AN78: =$AN$45+ABS(AJ78*$M$19*$M$17) -> 50.081654 | AO78: 94.70699342 | AP78: 96.18096036 | AQ78: 0 | AR78: 0 | AS78: 0 | AV78: 0 | AW78: 1.473966936 | AX78: 1.473966936 | AY78: 0 | AZ78: 0 | BA78: 0 | BB78: 0 | BC78: 0 | BD78: 1.473966936 | BE78: 0.1284447887 | BF78: 0 | BG78: 0 | BH78: 0.16 | BI78: 5.28 | BJ78: 0 | BK78: 0 | BM78: 5.54312081 | BN78: 0.1304067715 | BO78: 0.16 | BP78: 0 | BQ78: 0.16 | BR78: 5.28
L79: Formatting | P79: cT | Q79: =IF(OR($D$22="",$D$22="No",$F$22=""),$Q$78,((((($B$53+$B$52)*$I$22)+($B$54*$J$22))*$Q$78)+(((($C$53+$C$52)*$I$22)+($C$54*$J$22))*$Q$77))/$E$55) -> 18.84620857 | S79: ATSp,em = | T79: =$BE$43 -> 14.64118925 | U79: ft2 | X79: d2 = (DRW/2) - (ythalweg-yRW,bot) | Y79: =IF(OR($D$22="",$F$22=""),"",IF($U$15>=$C$16,$Y$76,$Y$76-($C$16-$U$15))) -> 2.673896547 | Z79: ft | AA79: ARW,↓bed = | AB79: =IF($D$22="No",0,IF($U$10<$C$16,$AB$77,IF($U$15>$C$16,0,IF($D$22="",0,$AB$77-(($Y$76*$Y$77*((PI()/2)+ASIN($Y$79/$Y$76)))+($Y$77*$Y$79*(SQRT(($Y$76^2)-($Y$79^2))/$Y$76))))))) -> 0.5016812343 | AC79: ft2 | AI79: 34 | AJ79: 5.44 | AK79: Left Bank | AL79: 50.17829855 | AM79: 96.70552102 | AN79: 50.16879293 | AO79: 94.70559718 | AP79: 96.16867792 | AQ79: 0 | AR79: 0 | AS79: 0 | AV79: 0 | AW79: 1.463080742 | AX79: 1.463080742 | AY79: 0 | AZ79: 0 | BA79: 0 | BB79: 0 | BC79: 0 | BD79: 1.463080742 | BE79: 0.1274961414 | BF79: 0 | BG79: 0 | BH79: 0.16 | BI79: 5.44 | BJ79: 0 | BK79: 0 | BM79: 5.544517056 | BN79: 0.1302703636 | BO79: 0.16 | BP79: 0 | BQ79: 0.16 | BR79: 5.44
A80: Anchor Forces | L80: ='2-Constants'!$C$7 -> 1.5 | S80: (-) ATSp,dry,em = | T80: =-$BG$43 -> 0 | U80: ft3 | AA80: ARWp = | AB80: =IF($D$22="",0,$AB$77-$AB$78-$AB$79) -> 23.21117042 | AC80: ft2 | AI80: 35 | AJ80: 5.6 | AK80: Left Bank | AL80: 50.26543748 | AM80: 96.70412478 | AN80: 50.25593185 | AO80: 94.70420093 | AP80: 96.15639548 | AQ80: 0 | AR80: 0 | AS80: 0 | AV80: 0 | AW80: 1.452194549 | AX80: 1.452194549 | AY80: 0 | AZ80: 0 | BA80: 0 | BB80: 0 | BC80: 0 | BD80: 1.452194549 | BE80: 0.126547494 | BF80: 0 | BG80: 0 | BH80: 0.16 | BI80: 5.6 | BJ80: 0 | BK80: 0 | BM80: 5.545913302 | BN80: 0.1301340985 | BO80: 0.16 | BP80: 0 | BQ80: 0.16 | BR80: 5.6
A81: Additional Soil Ballast | H81: Mechanical Anchors | K81: =IF(OR($H$83<>"",$H$84<>"",$C$87<>"",$C$88<>"",$C$89<>""),"CHECK--Verify anchors are correctly located on X-Sect (above)","") ->  | L81: Formatting | P81: Buried anchors | Q81: Number | S81: ATSp,wet = | T81: =IF($D$22="","",IF($T$88="Dry",0,$T$77-$T$78-$T$79-$T$80)) -> 20.21570899 | U81: ft2 | AI81: 36 | AJ81: 5.76 | AK81: Left Bank | AL81: 50.35257641 | AM81: 96.70272853 | AN81: 50.34307078 | AO81: 94.70280468 | AP81: 96.14411304 | AQ81: 0 | AR81: 0 | AS81: 0 | AV81: 0 | AW81: 1.441308355 | AX81: 1.441308355 | AY81: 0 | AZ81: 0 | BA81: 0 | BB81: 0 | BC81: 0 | BD81: 1.441308355 | BE81: 0.1255988467 | BF81: 0 | BG81: 0 | BH81: 0.16 | BI81: 5.76 | BJ81: 0 | BK81: 0 | BM81: 5.547309547 | BN81: 0.1299979758 | BO81: 0.16 | BP81: 0 | BQ81: 0.16 | BR81: 5.76
A82: VAdry (ft3) | B82: VAwet (ft3) | C82: cAsoil (ft) | D82: FA,Vsoil (lbf) | E82: FA,HP (lbf) | G82: Type | H82: cAm (ft) | I82: Soils | J82: FAm (lbf) | K82: Quick Design Reference: | L82: =IF($D$83="",0,-$D$83) -> 0 | M82: =IF($E$83="",0,-$E$83) -> 0 | O82: Total (lbf) | P82: =$J$83+$J$84+(IF($A$87="Deadman",$F$87-$G$87,0))+(IF($A$88="Deadman",$F$88-$G$88,0))+(IF($A$89="Deadman",$F$89-$G$89,0)) -> 0 | Q82: =(IF($J$83>0,1,0))+(IF($J$84>0,1,0))+(IF(AND($I$87>0,$A$87="Deadman"),1,0))+(IF(AND($I$88>0,$A$88="Deadman"),1,0))+(IF(AND($I$89>0,$A$89="Deadman"),1,0)) -> 0 | AI82: 37 | AJ82: 5.92 | AK82: Left Bank | AL82: 50.43971533 | AM82: 96.70133229 | AN82: 50.43020971 | AO82: 94.70140844 | AP82: 96.1318306 | AQ82: 0 | AR82: 0 | AS82: 0 | AV82: 0 | AW82: 1.430422161 | AX82: 1.430422161 | AY82: 0 | AZ82: 0 | BA82: 0 | BB82: 0 | BC82: 0 | BD82: 1.430422161 | BE82: 0.1246501993 | BF82: 0 | BG82: 0 | BH82: 0.16 | BI82: 5.92 | BJ82: 0 | BK82: 0 | BM82: 5.548705793 | BN82: 0.1298619956 | BO82: 0.16 | BP82: 0 | BQ82: 0.16 | BR82: 5.92
D83: =IF(AND($A$83="",$B$83=""),0,($A$83*$D$29)+($B$83*$E$29)) -> 0 | E83: =IF($D$83=0,0,0.5*$B$71*$D$83) -> 0 | I83: =$W$100 ->  | J83: =IF(OR($G83="",$H83=""),0,IF(AND($W100="Bed",$G$28=4),HLOOKUP($G$83,AnchorRatings,3,0),IF(AND($W100="Bed",$G$28=5),HLOOKUP($G$83,AnchorRatings,4,0),IF(AND($W100="Bed",$G$28=6),HLOOKUP($G$83,AnchorRatings,5,0),IF(AND($W100="Bed",$G$28=7),HLOOKUP($G$83,AnchorRatings,6,0),IF(AND($W100="Bank",$G$29=4),HLOOKUP($G$83,AnchorRatings,3,0),IF(AND($W100="Bank",$G$29=5),HLOOKUP($G$83,AnchorRatings,4,0),IF(AND($W100="Bank",$G$29=6),HLOOKUP($G$83,AnchorRatings,5,0),IF(AND($W100="Bank",$G$29=7),HLOOKUP($G$83,AnchorRatings,6,0)))))))))) -> 0 | K83: =$I$61 -> 0.559192828 | L83: 0 | M83: =(IF($A87="Behind",-$J87,0)) -> 0 | O83: Required Vertical Resistance (lbf) | P83: =($L$54+$L$55+(IF($L$58>0,$L$58,0)))*$L$61 -> 11603.40178 | AI83: 38 | AJ83: 6.08 | AK83: Left Bank | AL83: 50.52685426 | AM83: 96.69993604 | AN83: 50.51734864 | AO83: 94.70001219 | AP83: 96.11954816 | AQ83: 0 | AR83: 0 | AS83: 0 | AV83: 0 | AW83: 1.419535968 | AX83: 1.419535968 | AY83: 0 | AZ83: 0 | BA83: 0 | BB83: 0 | BC83: 0 | BD83: 1.419535968 | BE83: 0.1237015519 | BF83: 0 | BG83: 0 | BH83: 0.16 | BI83: 6.08 | BJ83: 0 | BK83: 0 | BM83: 5.550102039 | BN83: 0.1297261576 | BO83: 0.16 | BP83: 0 | BQ83: 0.16 | BR83: 6.08
I84: =$W$101 ->  | J84: =IF(OR($G84="",$H84=""),0,IF(AND($W101="Bed",$G$28=4),HLOOKUP($G$84,AnchorRatings,3,0),IF(AND($W101="Bed",$G$28=5),HLOOKUP($G$84,AnchorRatings,4,0),IF(AND($W101="Bed",$G$28=6),HLOOKUP($G$84,AnchorRatings,5,0),IF(AND($W101="Bed",$G$28=7),HLOOKUP($G$84,AnchorRatings,6,0),IF(AND($W101="Bank",$G$29=4),HLOOKUP($G$84,AnchorRatings,3,0),IF(AND($W101="Bank",$G$29=5),HLOOKUP($G$84,AnchorRatings,4,0),IF(AND($W101="Bank",$G$29=6),HLOOKUP($G$84,AnchorRatings,5,0),IF(AND($W101="Bank",$G$29=7),HLOOKUP($G$84,AnchorRatings,6,0)))))))))) -> 0 | K84: ='2-Constants'!$C$5 -> 1.5 | L84: 0 | M84: =(IF($A88="Behind",-$J88,0)) -> 0 | O84: Actual Vertical Resistance (lbf) | P84: =ABS($L$56+$L$57+(IF($L$58<0,$L$58,0))+$L$59) -> 4325.692705 | S84: Log Position | T84: Water and Log Intercept | Y84: Soil | Z84: LW Buried at Intercept? | AB84: Log Position | AC84: Water and Log Intercept at Face | AI84: 39 | AJ84: 6.24 | AK84: Left Bank | AL84: 50.61399319 | AM84: 96.69853979 | AN84: 50.60448756 | AO84: 94.69861595 | AP84: 96.10726572 | AQ84: 0 | AR84: 0 | AS84: 0 | AV84: 0 | AW84: 1.408649774 | AX84: 1.408649774 | AY84: 0 | AZ84: 0 | BA84: 0 | BB84: 0 | BC84: 0 | BD84: 1.408649774 | BE84: 0.1227529046 | BF84: 0 | BG84: 0 | BH84: 0.16 | BI84: 6.24 | BJ84: 0 | BK84: 0 | BM84: 5.551498284 | BN84: 0.1295904617 | BO84: 0.16 | BP84: 0 | BQ84: 0.16 | BR84: 6.24
A85: Boulder Ballast | L85: 0 | M85: =(IF($A89="Behind",-$J89,0)) -> 0 | O85: Extra Needed Vertical Resistance (lbf) | P85: =$P$83-$P$84 -> 7277.709078 | T85: Condition | U85: Intercept Zone | W85: xTS (ft) | X85: yTS (ft) | Y85: ysoil (ft) | AC85: Condition | AD85: xTS (ft) | AE85: yTS (ft) | AF85: hTS,dry (ft) | AI85: 40 | AJ85: 6.4 | AK85: Left Bank | AL85: 50.70113212 | AM85: 96.69714355 | AN85: 50.69162649 | AO85: 94.6972197 | AP85: 96.09498328 | AQ85: 0 | AR85: 0 | AS85: 0 | AV85: 0 | AW85: 1.397763581 | AX85: 1.397763581 | AY85: 0 | AZ85: 0 | BA85: 0 | BB85: 0 | BC85: 0 | BD85: 1.397763581 | BE85: 0.1218042572 | BF85: 0 | BG85: 0 | BH85: 0.16 | BI85: 6.4 | BJ85: 0 | BK85: 0 | BM85: 5.55289453 | BN85: 0.1294549077 | BO85: 0.16 | BP85: 0 | BQ85: 0.16 | BR85: 6.4
A86: Position | B86: Dr (ft) | C86: cAr (ft) | D86: Vr,dry (ft3) | E86: Vr,wet (ft3) | F86: Wr (lbf) | G86: FL,r (lbf) | H86: FD,r (lbf) | I86: FA,Vr (lbf) | J86: FA,Hr (lbf) | K86: =$I$72 -> 0 | L86: =$L$82+$L$83+$L$84+$L$85 -> 0 | M86: =$M$82+$M$83+$M$84+$M$85 -> 0 | O86: Required Horizontal Resistance (lbf) | P86: =($L$66+(IF($L$69>0,$L$69,0)))*$L$72 -> 1872.293053 | S86: Crown | T86: =IF(OR($E$22="",$F$22="",$F$25="",$G$25=""),"",IF($X$39<=$AE$12,"Submerged",IF($X$38>$AE$12,"Dry","Partial"))) -> Submerged | U86: =IF($X$86="","None",IF($W$86<$B$14,"Left Floodplain",IF($W$86<$B$15,"Left Bank",IF($W$86<$B$16,"Left Stream Bed",IF($W$86<$B$17,"Right Stream Bed",IF($W$86<$B$18,"Right Bank","Right Floodplain")))))) -> None | V86: =IF($U$47=0,0,IF(OR($B$25=0,$B$25=180,$B$25=360),$E$22-ABS(($X$39-$W$47)/$M$20),IF(AND($U$38<=$U$39,$X$38>=$Y$38),ABS(($X$38-$W$47)/($AA$40*$M$17*$M$19)),IF(AND($U$38<=$U$39,$X$38<$Y$38),ABS($E$22-(ABS(($X$38-$W$47)/($AA$40*$M$17*$M$19)))),IF(AND($U$38>$U$39,$X$39>=$Y$39),ABS(($X$39-$W$47)/($AA$40*$M$17*$M$19)),IF(AND($U$38>=$U$39,$X$39<$Y$39),ABS($E$22-(ABS(($X$38-$W$47)/($AA$40*$M$17*$M$19)))))))))) -> 0 | W86: =IF($X$86="","",$U$39-(($X$39-$AE$8)/$AA$40)) ->  | X86: =IF($T$86="Partial",$AE$12,"") ->  | Y86: =IF($X$86="","",IF($W$86<$B$14,(($W$86-$B$13)*$AB$31)+$C$13,IF($W$86<$B$15,(($W$86-$B$14)*$AB$32)+$C$14,IF($W$86<$B$16,(($W$86-$B$15)*$AB$33)+$C$15,IF($W$86<$B$17,(($W$86-$B$16)*$AB$34)+$C$16,IF($W$86<$B$18,(($W$86-$B$17)*$AB$35)+$C$17,IF($W$86<$B$19,(($W$86-$B$18)*$AB$36)+$C$18))))))) ->  | Z86: =IF($X$86="","",IF($X$86<=$Y$86,"Yes","No")) ->  | AB86: Upper Face | AC86: =IF($T$86="","",IF($X$41>$AE$8,"Dry",IF($T$86="Submerged","Submerged","Partial"))) -> Submerged | AD86: =IF($AE$86="","",$U$39-(($X$39-$AE$8)/$AB$40)) ->  | AE86: =IF($AC$86="Partial",$AE$12,"") ->  | AF86: =IF($AC$86="Submerged",0,IF($AC$86="Dry",$F$22,($X$39-$AE$8)/$M$19)) -> 0 | AI86: 41 | AJ86: 6.56 | AK86: Left Bank | AL86: 50.78827104 | AM86: 96.6957473 | AN86: 50.77876542 | AO86: 94.69582346 | AP86: 96.08270084 | AQ86: 0 | AR86: 0 | AS86: 0 | AV86: 0 | AW86: 1.386877387 | AX86: 1.386877387 | AY86: 0 | AZ86: 0 | BA86: 0 | BB86: 0 | BC86: 0 | BD86: 1.386877387 | BE86: 0.1208556099 | BF86: 0 | BG86: 0 | BH86: 0.16 | BI86: 6.56 | BJ86: 0 | BK86: 0 | BM86: 5.554290776 | BN86: 0.1293194955 | BO86: 0.16 | BP86: 0 | BQ86: 0.16 | BR86: 6.56
D87: =IF(OR($B87="",$C87=""),"",(PI()*($B87^3)/6)-$E87) ->  | E87: =IF($B87="","",$U94) ->  | F87: =IF(OR($B87="",$C87=""),"",($D87*DUWRock)+($E87*(DUWRock-SWWater))) ->  | G87: =IF(OR($B87="",$C87=""),"",$Q99) ->  | H87: =IF(OR($B87="",$C87=""),"",$P99) ->  | I87: =IF(OR($B87="",$C87=""),0,IF($A87="Behind",0,IF(AND($A87="Deadman",$P$85<=0),0,IF(AND($A87="Deadman",$P$82>=$P$85),($F87-$G87)*($P$85/$P$82),$F87-$G87)))) -> 0 | J87: =IF(OR($B87="",$C87=""),0,IF($A87="Above",0,IF($A87="Deadman",($F87-$G87)-$I87,IF(AND($A87="Behind",OR($W94="Left Stream Bed",$W94="Right Stream Bed")),(($F87-$G87)*$E$70)-$H87,(($F87-$G87)*$E$71)-$H87)))) -> 0 | K87: ='2-Constants'!$C$6 -> 1.5 | L87: =IF($J83=0,0,IF($P$85<=0,0,IF($P$82>=$P$85,-J$83*($P$85/$P$82),-$J83))) -> 0 | M87: =-($J83+$L87) -> 0 | O87: Actual Horizontal Resistance (lbf) | P87: =ABS($L$67+$L$68+(IF($L$69<0,$L$69,0))+$L$70) -> 0 | S87: Centerline | T87: =IF(OR($E$22="",$F$22="",$F$25="",$G$25=""),"",IF($X$43<=$AE$12,"Submerged",IF($X$42>=$AE$12,"Dry","Partial"))) -> Submerged | U87: =IF($X$87="","None",IF($W$87<$B$14,"Left Floodplain",IF($W$87<$B$15,"Left Bank",IF($W$87<$B$16,"Left Stream Bed",IF($W$87<$B$17,"Right Stream Bed",IF($W$87<$B$18,"Right Bank","Right Floodplain")))))) -> None | V87: =IF($U$47=0,0,IF(OR($B$25=0,$B$25=180,$B$25=360),$E$22-ABS(($X$39-$W$47)/$M$20),IF(AND($U$38<=$U$39,$X$38>=$Y$38),ABS(($X$38-$W$47)/($AA$40*$M$17*$M$19)),IF(AND($U$38<=$U$39,$X$38<$Y$38),ABS($E$22-(ABS(($X$38-$W$47)/($AA$40*$M$17*$M$19)))),IF(AND($U$38>$U$39,$X$39>=$Y$39),ABS(($X$39-$W$47)/($AA$40*$M$17*$M$19)),IF(AND($U$38>=$U$39,$X$39<$Y$39),ABS($E$22-(ABS(($X$38-$W$47)/($AA$40*$M$17*$M$19)))))))))) -> 0 | W87: =IF($X$87="","",$U$43-(($X$43-$AE$8)/$AA$40)) ->  | X87: =IF($T$87="Partial",$AE$12,"") ->  | Y87: =IF($X$87="","",IF($W$87<$B$14,(($W$87-$B$13)*$AB$31)+$C$13,IF($W$87<$B$15,(($W$87-$B$14)*$AB$32)+$C$14,IF($W$87<$B$16,(($W$87-$B$15)*$AB$33)+$C$15,IF($W$87<$B$17,(($W$87-$B$16)*$AB$34)+$C$16,IF($W$87<$B$18,(($W$87-$B$17)*$AB$35)+$C$17,IF($W$87<$B$19,(($W$87-$B$18)*$AB$36)+$C$18))))))) ->  | Z87: =IF($X$87="","",IF($X$87<=$Y$87,"Yes","No")) ->  | AB87: Lower Face | AC87: =IF($T$88="","",IF($X$40>=$AE$8,"Dry",IF($X$38<=$AE$8,"Submerged","Partial"))) -> Submerged | AD87: =IF($AE$87="","",$U$38-(($X$38-$AE$8)/$AB$40)) ->  | AE87: =IF($AC$87="Partial",$AE$12,"") ->  | AF87: =IF($AC$87="Submerged",0,IF($AC$87="Dry",$F$22,($X$38-$AE$8)/$M$19)) -> 0 | AI87: 42 | AJ87: 6.72 | AK87: Left Bank | AL87: 50.87540997 | AM87: 96.69435106 | AN87: 50.86590435 | AO87: 94.69442721 | AP87: 96.0704184 | AQ87: 0 | AR87: 0 | AS87: 0 | AV87: 0 | AW87: 1.375991193 | AX87: 1.375991193 | AY87: 0 | AZ87: 0 | BA87: 0 | BB87: 0 | BC87: 0 | BD87: 1.375991193 | BE87: 0.1199069625 | BF87: 0 | BG87: 0 | BH87: 0.16 | BI87: 6.72 | BJ87: 0 | BK87: 0 | BM87: 5.555687021 | BN87: 0.1291842249 | BO87: 0.16 | BP87: 0 | BQ87: 0.16 | BR87: 6.72
D88: =IF(OR($B88="",$C88=""),"",(PI()*($B88^3)/6)-$E88) ->  | E88: =IF($B88="","",$U95) ->  | F88: =IF(OR($B88="",$C88=""),"",($D88*DUWRock)+($E88*(DUWRock-SWWater))) ->  | G88: =IF(OR($B88="",$C88=""),"",$Q100) ->  | H88: =IF(OR($B88="",$C88=""),"",$P100) ->  | I88: =IF(OR($B88="",$C88=""),0,IF($A88="Behind",0,IF(AND($A88="Deadman",$P$85<=0),0,IF(AND($A88="Deadman",$P$82>=$P$85),($F88-$G88)*($P$85/$P$82),$F88-$G88)))) -> 0 | J88: =IF(OR($B88="",$C88=""),0,IF($A88="Above",0,IF($A88="Deadman",($F88-$G88)-$I88,IF(AND($A88="Behind",OR($W95="Left Stream Bed",$W95="Right Stream Bed")),(($F88-$G88)*$E$70)-$H88,(($F88-$G88)*$E$71)-$H88)))) -> 0 | L88: =IF($J84=0,0,IF($P$85<=0,0,IF($P$82>=$P$85,-J$84*($P$85/$P$82),-$J84))) -> 0 | M88: =-($J84+$L88) -> 0 | O88: Extra needed Horizontal Resistance (lbf) | P88: =$P$86-$P$87 -> 1872.293053 | S88: Bottom | T88: =IF(OR($E$22="",$F$22="",$F$25="",$G$25=""),"",IF($X$41<=$AE$12,"Submerged",IF($X$40>=$AE$12,"Dry","Partial"))) -> Submerged | U88: =IF($X$88="","None",IF($W$88<$B$14,"Left Floodplain",IF($W$88<$B$15,"Left Bank",IF($W$88<$B$16,"Left Stream Bed",IF($W$88<$B$17,"Right Stream Bed",IF($W$88<$B$18,"Right Bank","Right Floodplain")))))) -> None | V88: =IF($U$47=0,0,IF(OR($B$25=0,$B$25=180,$B$25=360),$E$22-ABS(($X$39-$W$47)/$M$20),IF(AND($U$38<=$U$39,$X$38>=$Y$38),ABS(($X$38-$W$47)/($AA$40*$M$17*$M$19)),IF(AND($U$38<=$U$39,$X$38<$Y$38),ABS($E$22-(ABS(($X$38-$W$47)/($AA$40*$M$17*$M$19)))),IF(AND($U$38>$U$39,$X$39>=$Y$39),ABS(($X$39-$W$47)/($AA$40*$M$17*$M$19)),IF(AND($U$38>=$U$39,$X$39<$Y$39),ABS($E$22-(ABS(($X$38-$W$47)/($AA$40*$M$17*$M$19)))))))))) -> 0 | W88: =IF($X$88="","",$U$41-(($X$41-$AE$8)/$AA$40)) ->  | X88: =IF($T$88="Partial",$AE$12,"") ->  | Y88: =IF($X$88="","",IF($W$88<$B$14,(($W$88-$B$13)*$AB$31)+$C$13,IF($W$88<$B$15,(($W$88-$B$14)*$AB$32)+$C$14,IF($W$88<$B$16,(($W$88-$B$15)*$AB$33)+$C$15,IF($W$88<$B$17,(($W$88-$B$16)*$AB$34)+$C$16,IF($W$88<$B$18,(($W$88-$B$17)*$AB$35)+$C$17,IF($W$88<$B$19,(($W$88-$B$18)*$AB$36)+$C$18))))))) ->  | Z88: =IF($X$88="","",IF($X$88<=$Y$88,"Yes","No")) ->  | AI88: 43 | AJ88: 6.88 | AK88: Left Bank | AL88: 50.9625489 | AM88: 96.69295481 | AN88: 50.95304327 | AO88: 94.69303097 | AP88: 96.05813596 | AQ88: 0 | AR88: 0 | AS88: 0 | AV88: 0 | AW88: 1.365105 | AX88: 1.365105 | AY88: 0 | AZ88: 0 | BA88: 0 | BB88: 0 | BC88: 0 | BD88: 1.365105 | BE88: 0.1189583152 | BF88: 0 | BG88: 0 | BH88: 0.16 | BI88: 6.88 | BJ88: 0 | BK88: 0 | BM88: 5.557083267 | BN88: 0.1290490959 | BO88: 0.16 | BP88: 0 | BQ88: 0.16 | BR88: 6.88
D89: =IF(OR($B89="",$C89=""),"",(PI()*($B89^3)/6)-$E89) ->  | E89: =IF($B89="","",$U96) ->  | F89: =IF(OR($B89="",$C89=""),"",($D89*DUWRock)+($E89*(DUWRock-SWWater))) ->  | G89: =IF(OR($B89="",$C89=""),"",$Q101) ->  | I89: =IF(OR($B89="",$C89=""),0,IF($A89="Behind",0,IF(AND($A89="Deadman",$P$85<=0),0,IF(AND($A89="Deadman",$P$82>=$P$85),($F89-$G89)*($P$85/$P$82),$F89-$G89)))) -> 0 | J89: =IF(OR($B89="",$C89=""),0,IF($A89="Above",0,IF($A89="Deadman",($F89-$G89)-$I89,IF(AND($A89="Behind",OR($W96="Left Stream Bed",$W96="Right Stream Bed")),(($F89-$G89)*$E$70)-$H89,(($F89-$G89)*$E$71)-$H89)))) -> 0 | K89: =I78 -> 0.4680253687 | L89: =-$I87 -> 0 | M89: =IF($A87="Deadman",-$J87,0) -> 0 | AI89: 44 | AJ89: 7.04 | AK89: Left Bank | AL89: 51.04968783 | AM89: 96.69155857 | AN89: 51.0401822 | AO89: 94.69163472 | AP89: 96.04585353 | AQ89: 0 | AR89: 0 | AS89: 0 | AV89: 0 | AW89: 1.354218806 | AX89: 1.354218806 | AY89: 0 | AZ89: 0 | BA89: 0 | BB89: 0 | BC89: 0 | BD89: 1.354218806 | BE89: 0.1180096678 | BF89: 0 | BG89: 0 | BH89: 0.16 | BI89: 7.04 | BJ89: 0 | BK89: 0 | BM89: 5.558479513 | BN89: 0.1289141082 | BO89: 0.16 | BP89: 0 | BQ89: 0.16 | BR89: 7.04
K90: ='2-Constants'!$C$7 -> 1.5 | L90: =-$I88 -> 0 | M90: =IF($A88="Deadman",-$J88,0) -> 0 | AI90: 45 | AJ90: 7.2 | AK90: Left Bank | AL90: 51.13682675 | AM90: 96.69016232 | AN90: 51.12732113 | AO90: 94.69023847 | AP90: 96.03357109 | AQ90: 0 | AR90: 0 | AS90: 0 | AV90: 0 | AW90: 1.343332612 | AX90: 1.343332612 | AY90: 0 | AZ90: 0 | BA90: 0 | BB90: 0 | BC90: 0 | BD90: 1.343332612 | BE90: 0.1170610204 | BF90: 0 | BG90: 0 | BH90: 0.16 | BI90: 7.2 | BJ90: 0 | BK90: 0 | BM90: 5.559875758 | BN90: 0.1287792617 | BO90: 0.16 | BP90: 0 | BQ90: 0.16 | BR90: 7.2
A91: =IF($A$6="","",$A$6) -> Sample1 | B91: =IF($A$6="","",$B$6) -> Flow Deflection | D91: =IF(OR($B$9="N/A",$B$9=""),"",$B$9) -> Stacked | E91: =IF($D$48="","","Log ID") -> Log ID | F91: =IF($D$48="","",$C$9) -> Top#1 | J91: Page 3 | L91: =-$I89 -> 0 | M91: =IF($A89="Deadman",-$J89,0) -> 0 | U91: A = [(R - ddry)*SQRT(2Rddry - ddry2)] - R2 arccos [(R - ddry)/R] | AB91: Boulder #1 | AD91: Boulder #2 | AF91: Boulder #3 | AI91: 46 | AJ91: 7.36 | AK91: Left Bank | AL91: 51.22396568 | AM91: 96.68876607 | AN91: 51.21446006 | AO91: 94.68884223 | AP91: 96.02128865 | AQ91: 0 | AR91: 0 | AS91: 0 | AV91: 0 | AW91: 1.332446419 | AX91: 1.332446419 | AY91: 0 | AZ91: 0 | BA91: 0 | BB91: 0 | BC91: 0 | BD91: 1.332446419 | BE91: 0.1161123731 | BF91: 0 | BG91: 0 | BH91: 0.16 | BI91: 7.36 | BJ91: 0 | BK91: 0 | BM91: 5.561272004 | BN91: 0.1286445562 | BO91: 0.16 | BP91: 0 | BQ91: 0.16 | BR91: 7.36
A92: Interaction Forces with Adjacent Logs | L92: =$L$87+$L$88+$L$89+$L$90+$L$91 -> 0 | M92: =$M$87+$M$88+$M$89+$M$90+$M$91 -> 0 | N92: ←Flex anchors | O92: Ballast Boulder Calculations | AB92: xTS (ft) | AC92: yTS (ft) | AD92: xTS (ft) | AE92: yTS (ft) | AF92: xTS (ft) | AG92: yTS (ft) | AI92: 47 | AJ92: 7.52 | AK92: Left Bank | AL92: 51.31110461 | AM92: 96.68736983 | AN92: 51.30159898 | AO92: 94.68744598 | AP92: 96.00900621 | AQ92: 0 | AR92: 0 | AS92: 0 | AV92: 0 | AW92: 1.321560225 | AX92: 1.321560225 | AY92: 0 | AZ92: 0 | BA92: 0 | BB92: 0 | BC92: 0 | BD92: 1.321560225 | BE92: 0.1151637257 | BF92: 0 | BG92: 0 | BH92: 0.16 | BI92: 7.52 | BJ92: 0 | BK92: 0 | BM92: 5.56266825 | BN92: 0.1285099917 | BO92: 0.16 | BP92: 0 | BQ92: 0.16 | BR92: 7.52
G93: Applied Forces from other Logs | K93: =IF(OR($B$95<>"",$B$96<>"",$B$97<>"",$B$98<>""),"NOTE -- The page is not formatted to print the Interaction Forces","") ->  | P93: xr,bot (ft) | Q93: yr,bot (ft) | R93: yTS,bot (ft) | S93: ysoil (ft) | T93: dr,dry (ft) | U93: Vr,wet (ft3) | V93: Ar↑WSE (ft2) | W93: Zone | X93: dr↓Thw (ft) | Y93: Ar↓Thw (ft2) | Z93: APr (ft2) | AA93: Point 1 | AB93: =IF($P$94="",0,$P$94) -> 0 | AC93: =IF($Q$94="",$C$13,$Q$94) -> 99.18 | AD93: =IF($P$95="",0,$P$95) -> 0 | AE93: =IF($Q$95="",$C$13,$Q$95) -> 99.18 | AF93: =IF($P$96="",0,$P$96) -> 0 | AG93: =IF($Q$96="",$C$13,$Q$96) -> 99.18 | AI93: 48 | AJ93: 7.68 | AK93: Left Bank | AL93: 51.39824354 | AM93: 96.68597358 | AN93: 51.38873791 | AO93: 94.68604974 | AP93: 95.99672377 | AQ93: 0 | AR93: 0 | AS93: 0 | AV93: 0 | AW93: 1.310674032 | AX93: 1.310674032 | AY93: 0 | AZ93: 0 | BA93: 0 | BB93: 0 | BC93: 0 | BD93: 1.310674032 | BE93: 0.1142150784 | BF93: 0 | BG93: 0 | BH93: 0.16 | BI93: 7.68 | BJ93: 0 | BK93: 0 | BM93: 5.564064495 | BN93: 0.1283755679 | BO93: 0.16 | BP93: 0 | BQ93: 0.16 | BR93: 7.68
A94: Log ID | B94: Position | C94: Link | D94: cWI (ft) | E94: FW,V (lbf) | F94: FW,H (lbf) | G94: FW,V (lbf) | I94: FW,H (lbf) | L94: Formatting | O94: Boulder 1 | P94: =IF(OR($F$25="",$C87=""),"",$AE$49-(($C87*$M$19)*$M$17)) ->  | Q94: =IF(OR($G$25="",$C87=""),"",IF($A87="Behind",MIN($R94,$S94),IF($A87="Deadman",(MIN($R94,$S94))-($F$22+1),$R94+$F$22))) ->  | R94: =IF($P94="","",($AF$49+(($P94-$AE$49)*$AA$40))-($F$22/2)) ->  | S94: =IF($P94="","",IF($P94<$B$14,(($P94-$B$13)*$AB$31)+$C$13,IF($P94<$B$15,(($P94-$B$14)*$AB$32)+$C$14,IF($P94<$B$16,(($P94-$B$15)*$AB$33)+$C$15,IF($P94<$B$17,(($P94-$B$16)*$AB$34)+$C$16,IF($P94<$B$18,(($P94-$B$17)*$AB$35)+$C$17,IF($P94<$B$19,(($P94-$B$18)*$AB$36)+$C$18))))))) ->  | T94: =IF($Q94="","",IF(($Q94+$B87-$AE$8)>=$B87,$B87,IF(($Q94+$B87)>$AE$8,($Q94+$B87)-$AE$8,0))) ->  | U94: =IF($T94="","",IF($T94>=$B87,0,(PI()/3)*(($B87-$T94)^2)*((1.5*$B87)-($B87-$T94)))) ->  | V94: =IF($C87="","",IF($A87="Deadman",0,IF($Q94>=$AE$8,PI()*(($B87/2)^2),((($B87/2)^2)*ACOS((($B87/2)-$T94)/($B87/2)))-((($B87/2)-$T94)*SQRT(2*($B87/2)*$T94-($T94^2)))))) ->  | W94: =IF($P94="","",IF(OR($C$19="",$F$25="",$G$25=""),"None",IF($P94<$B$14,"Left Floodplain",IF($P94<$B$15,"Left Bank",IF($P94<$B$16,"Left Stream Bed",IF($P94<$B$17,"Right Stream Bed",IF($P94<$B$18,"Right Bank","Right Floodplain"))))))) ->  | X94: =IF($Q94="","",IF(($Q94+$B87)<=$S94,$B87,IF($Q94>=$S94,0,$S94-$Q94))) ->  | Y94: =IF($C87="","",IF($A87="Deadman",PI()*(($B87/2)^2),IF($Q94>$S94,0,((($B87/2)^2)*ACOS((($B87/2)-$X94)/($B87/2)))-((($B87/2)-$X94)*SQRT(2*($B87/2)*$X94-($X94^2)))))) ->  | Z94: =IF($C87="","",IF(((PI()*(($B87/2)^2))-$V94-$Y94)<0,0,(PI()*(($B87/2)^2))-$V94-$Y94)) ->  | AA94: Point 2 | AB94: =IF($AB$93="",0,$AB$93-($B$87/4)) -> 0 | AC94: =IF($AC$93="",$C$13,$AC$93+($B$87/25)) -> 99.18 | AD94: =IF($AD$93="",0,$AD$93-($B$88/4)) -> 0 | AE94: =IF($AE$93="",$C$13,$AE$93+($B$88/25)) -> 99.18 | AF94: =IF($AF$93="",0,$AF$93-($B$89/4)) -> 0 | AG94: =IF($AG$93="",$C$13,$AG$93+($B$89/25)) -> 99.18 | AI94: 49 | AJ94: 7.84 | AK94: Left Bank | AL94: 51.48538246 | AM94: 96.68457734 | AN94: 51.47587684 | AO94: 94.68465349 | AP94: 95.98444133 | AQ94: 0 | AR94: 0 | AS94: 0 | AV94: 0 | AW94: 1.299787838 | AX94: 1.299787838 | AY94: 0 | AZ94: 0 | BA94: 0 | BB94: 0 | BC94: 0 | BD94: 1.299787838 | BE94: 0.113266431 | BF94: 0 | BG94: 0 | BH94: 0.16 | BI94: 7.84 | BJ94: 0 | BK94: 0 | BM94: 5.565460741 | BN94: 0.1282412847 | BO94: 0.16 | BP94: 0 | BQ94: 0.16 | BR94: 7.84
G95: =IF(OR($E$95="",$E$95=0),0,IF($C$95="Pinned",ABS($E$95),IF(AND($C$95="Gravity",$B$95="Below",$E$95>=0),ABS($E$95),IF(AND($C$95="Gravity",$B$95="Above",$E$95<=0),ABS($E$95),0)))) -> 0 | H95: =IF($L$95=0,"",IF($L$95>0,CHAR(233),CHAR(234))) ->  | I95: =IF(OR($F$95="",$F$95=0),0,IF($C$95="Pinned",ABS($F$95),IF(AND($C$95="Gravity",$B$95="Behind",$F$95<0),ABS($F$95),IF(AND($C$95="Gravity",$B$95="In front",$F$95>0),ABS($F$95),0)))) -> 0 | J95: =IF($M$95=0,"",IF($M$95>=0,CHAR(232),CHAR(231))) ->  | L95: =IF($G$95=0,0,$E$95) -> 0 | M95: =IF($I$95=0,0,$F$95) -> 0 | O95: Boulder 2 | P95: =IF(OR($F$25="",$C88=""),"",$AE$49-(($C88*$M$19)*$M$17)) ->  | Q95: =IF(OR($G$25="",$C88=""),"",IF($A88="Behind",MIN($R95,$S95),IF($A88="Deadman",(MIN($R95,$S95))-($F$22+1),$R95+$F$22))) ->  | R95: =IF($P95="","",($AF$49+(($P95-$AE$49)*$AA$40))-($F$22/2)) ->  | S95: =IF($P95="","",IF($P95<$B$14,(($P95-$B$13)*$AB$31)+$C$13,IF($P95<$B$15,(($P95-$B$14)*$AB$32)+$C$14,IF($P95<$B$16,(($P95-$B$15)*$AB$33)+$C$15,IF($P95<$B$17,(($P95-$B$16)*$AB$34)+$C$16,IF($P95<$B$18,(($P95-$B$17)*$AB$35)+$C$17,IF($P95<$B$19,(($P95-$B$18)*$AB$36)+$C$18))))))) ->  | T95: =IF($Q95="","",IF(($Q95+$B88-$AE$8)>=$B88,$B88,IF(($Q95+$B88)>$AE$8,($Q95+$B88)-$AE$8,0))) ->  | U95: =IF($T95="","",IF($T95>=$B88,0,(PI()/3)*(($B88-$T95)^2)*((1.5*$B88)-($B88-$T95)))) ->  | V95: =IF($C88="","",IF($A88="Deadman",0,IF($Q95>=$AE$8,PI()*(($B88/2)^2),((($B88/2)^2)*ACOS((($B88/2)-$T95)/($B88/2)))-((($B88/2)-$T95)*SQRT(2*($B88/2)*$T95-($T95^2)))))) ->  | W95: =IF($P95="","",IF(OR($C$19="",$F$25="",$G$25=""),"None",IF($P95<$B$14,"Left Floodplain",IF($P95<$B$15,"Left Bank",IF($P95<$B$16,"Left Stream Bed",IF($P95<$B$17,"Right Stream Bed",IF($P95<$B$18,"Right Bank","Right Floodplain"))))))) ->  | X95: =IF($Q95="","",IF(($Q95+$B88)<=$S95,$B88,IF($Q95>=$S95,0,$S95-$Q95))) ->  | Y95: =IF($C88="","",IF($A88="Deadman",PI()*(($B88/2)^2),IF($Q95>$S95,0,((($B88/2)^2)*ACOS((($B88/2)-$X95)/($B88/2)))-((($B88/2)-$X95)*SQRT(2*($B88/2)*$X95-($X95^2)))))) ->  | Z95: =IF($C88="","",IF(((PI()*(($B88/2)^2))-$V95-$Y95)<0,0,(PI()*(($B88/2)^2))-$V95-$Y95)) ->  | AA95: Point 3 | AB95: =IF($AB$93="",0,$AB$93-($B$87/2)) -> 0 | AC95: =IF($AC$93="",$C$13,$AC$93+($B$87/2)) -> 99.18 | AD95: =IF($AD$93="",0,$AD$93-($B$88/2)) -> 0 | AE95: =IF($AE$93="",$C$13,$AE$93+($B$88/2)) -> 99.18 | AF95: =IF($AF$93="",0,$AF$93-($B$89/2)) -> 0 | AG95: =IF($AG$93="",$C$13,$AG$93+($B$89/2)) -> 99.18 | AI95: 50 | AJ95: 8 | AK95: Left Bank | AL95: 51.57252139 | AM95: 96.68318109 | AN95: 51.56301577 | AO95: 94.68325725 | AP95: 95.97215889 | AQ95: 0 | AR95: 0 | AS95: 0 | AV95: 0 | AW95: 1.288901644 | AX95: 1.288901644 | AY95: 0 | AZ95: 0 | BA95: 0 | BB95: 0 | BC95: 0 | BD95: 1.288901644 | BE95: 0.1123177836 | BF95: 0 | BG95: 0 | BH95: 0.16 | BI95: 8 | BJ95: 0 | BK95: 0 | BM95: 5.566856987 | BN95: 0.128107142 | BO95: 0.16 | BP95: 0 | BQ95: 0.16 | BR95: 8
G96: =IF(OR($E$96="",$E$96=0),0,IF($C$96="Pinned",ABS($E$96),IF(AND($C$96="Gravity",$B$96="Below",$E$96>=0),ABS($E$96),IF(AND($C$96="Gravity",$B$96="Above",$E$96<=0),ABS($E$96),0)))) -> 0 | H96: =IF($L$96=0,"",IF($L$96>0,CHAR(233),CHAR(234))) ->  | I96: =IF(OR($F$96="",$F$96=0),0,IF($C$96="Pinned",ABS($F$96),IF(AND($C$96="Gravity",$B$96="Behind",$F$96<0),ABS($F$96),IF(AND($C$96="Gravity",$B$96="In front",$F$96>0),ABS($F$96),0)))) -> 0 | J96: =IF($M$96=0,"",IF($M$96>=0,CHAR(232),CHAR(231))) ->  | L96: =IF($G$96=0,0,$E$96) -> 0 | M96: =IF($I$96=0,0,$F$96) -> 0 | O96: Boulder 3 | P96: =IF(OR($F$25="",$C89=""),"",$AE$49-(($C89*$M$19)*$M$17)) ->  | Q96: =IF(OR($G$25="",$C89=""),"",IF($A89="Behind",MIN($R96,$S96),IF($A89="Deadman",(MIN($R96,$S96))-($F$22+1),$R96+$F$22))) ->  | R96: =IF($P96="","",($AF$49+(($P96-$AE$49)*$AA$40))-($F$22/2)) ->  | S96: =IF($P96="","",IF($P96<$B$14,(($P96-$B$13)*$AB$31)+$C$13,IF($P96<$B$15,(($P96-$B$14)*$AB$32)+$C$14,IF($P96<$B$16,(($P96-$B$15)*$AB$33)+$C$15,IF($P96<$B$17,(($P96-$B$16)*$AB$34)+$C$16,IF($P96<$B$18,(($P96-$B$17)*$AB$35)+$C$17,IF($P96<$B$19,(($P96-$B$18)*$AB$36)+$C$18))))))) ->  | T96: =IF($Q96="","",IF(($Q96+$B89-$AE$8)>=$B89,$B89,IF(($Q96+$B89)>$AE$8,($Q96+$B89)-$AE$8,0))) ->  | U96: =IF($T96="","",IF($T96>=$B89,0,(PI()/3)*(($B89-$T96)^2)*((1.5*$B89)-($B89-$T96)))) ->  | V96: =IF($C89="","",IF($A89="Deadman",0,IF($Q96>=$AE$8,PI()*(($B89/2)^2),((($B89/2)^2)*ACOS((($B89/2)-$T96)/($B89/2)))-((($B89/2)-$T96)*SQRT(2*($B89/2)*$T96-($T96^2)))))) ->  | W96: =IF($P96="","",IF(OR($C$19="",$F$25="",$G$25=""),"None",IF($P96<$B$14,"Left Floodplain",IF($P96<$B$15,"Left Bank",IF($P96<$B$16,"Left Stream Bed",IF($P96<$B$17,"Right Stream Bed",IF($P96<$B$18,"Right Bank","Right Floodplain"))))))) ->  | X96: =IF($Q96="","",IF(($Q96+$B89)<=$S96,$B89,IF($Q96>=$S96,0,$S96-$Q96))) ->  | Y96: =IF($C89="","",IF($A89="Deadman",PI()*(($B89/2)^2),IF($Q96>$S96,0,((($B89/2)^2)*ACOS((($B89/2)-$X96)/($B89/2)))-((($B89/2)-$X96)*SQRT(2*($B89/2)*$X96-($X96^2)))))) ->  | Z96: =IF($C89="","",IF(((PI()*(($B89/2)^2))-$V96-$Y96)<0,0,(PI()*(($B89/2)^2))-$V96-$Y96)) ->  | AA96: Point 4 | AB96: =IF($AB$93="",0,$AB$94) -> 0 | AC96: =IF($AC$97="",$C$13,$AC$97-($B$87/25)) -> 99.18 | AD96: =IF($AD$93="",0,$AD$94) -> 0 | AE96: =IF($AE$97="",$C$13,$AE$97-($B$88/25)) -> 99.18 | AF96: =IF($AF$93="",0,$AF$94) -> 0 | AG96: =IF($AG$97="",$C$13,$AG$97-($B$89/25)) -> 99.18 | AI96: 51 | AJ96: 8.16 | AK96: Left Bank | AL96: 51.65966032 | AM96: 96.68178485 | AN96: 51.65015469 | AO96: 94.681861 | AP96: 95.95987645 | AQ96: 0 | AR96: 0 | AS96: 0 | AV96: 0 | AW96: 1.278015451 | AX96: 1.278015451 | AY96: 0 | AZ96: 0 | BA96: 0 | BB96: 0 | BC96: 0 | BD96: 1.278015451 | BE96: 0.1113691363 | BF96: 0 | BG96: 0 | BH96: 0.16 | BI96: 8.16 | BJ96: 0 | BK96: 0 | BM96: 5.568253232 | BN96: 0.1279731396 | BO96: 0.16 | BP96: 0 | BQ96: 0.16 | BR96: 8.16
G97: =IF(OR($E$97="",$E$97=0),0,IF($C$97="Pinned",ABS($E$97),IF(AND($C$97="Gravity",$B$97="Below",$E$97>=0),ABS($E$97),IF(AND($C$97="Gravity",$B$97="Above",$E$97<=0),ABS($E$97),0)))) -> 0 | H97: =IF($L$97=0,"",IF($L$97>0,CHAR(233),CHAR(234))) ->  | I97: =IF(OR($F$97="",$F$97=0),0,IF($C$97="Pinned",ABS($F$97),IF(AND($C$97="Gravity",$B$97="Behind",$F$97<0),ABS($F$97),IF(AND($C$97="Gravity",$B$97="In front",$F$97>0),ABS($F$97),0)))) -> 0 | J97: =IF($M$97=0,"",IF($M$97>=0,CHAR(232),CHAR(231))) ->  | L97: =IF($G$97=0,0,$E$97) -> 0 | M97: =IF($I$97=0,0,$F$97) -> 0 | AA97: Point 5 | AB97: =IF($AB$93="",0,$AB$93) -> 0 | AC97: =IF($AC$93="",$C$13,$AC$93+$B$87) -> 99.18 | AD97: =IF($AD$93="",0,$AD$93) -> 0 | AE97: =IF($AE$93="",$C$13,$AE$93+$B$88) -> 99.18 | AF97: =IF($AF$93="",0,$AF$93) -> 0 | AG97: =IF($AG$93="",$C$13,$AG$93+$B$89) -> 99.18 | AI97: 52 | AJ97: 8.32 | AK97: Left Bank | AL97: 51.74679925 | AM97: 96.6803886 | AN97: 51.73729362 | AO97: 94.68046475 | AP97: 95.94759401 | AQ97: 0 | AR97: 0 | AS97: 0 | AV97: 0 | AW97: 1.267129257 | AX97: 1.267129257 | AY97: 0 | AZ97: 0 | BA97: 0 | BB97: 0 | BC97: 0 | BD97: 1.267129257 | BE97: 0.1104204889 | BF97: 0 | BG97: 0 | BH97: 0.16 | BI97: 8.32 | BJ97: 0 | BK97: 0 | BM97: 5.569649478 | BN97: 0.1278392774 | BO97: 0.16 | BP97: 0 | BQ97: 0.16 | BR97: 8.32
G98: =IF(OR($E$98="",$E$98=0),0,IF($C$98="Pinned",ABS($E$98),IF(AND($C$98="Gravity",$B$98="Below",$E$98>=0),ABS($E$98),IF(AND($C$98="Gravity",$B$98="Above",$E$98<=0),ABS($E$98),0)))) -> 0 | H98: =IF($L$98=0,"",IF($L$98>0,CHAR(233),CHAR(234))) ->  | I98: =IF(OR($F$98="",$F$98=0),0,IF($C$98="Pinned",ABS($F$98),IF(AND($C$98="Gravity",$B$98="Behind",$F$98<0),ABS($F$98),IF(AND($C$98="Gravity",$B$98="In front",$F$98>0),ABS($F$98),0)))) -> 0 | J98: =IF($M$98=0,"",IF($M$98>=0,CHAR(232),CHAR(231))) ->  | L98: =IF($G$98=0,0,$E$98) -> 0 | M98: =IF($I$98=0,0,$F$98) -> 0 | P98: FD,r (lbf) | Q98: FL,r (lbf) | U98: Soil Anchor Zone Calculation | AA98: Point 6 | AB98: =IF($AB$93="",0,$AB$93+($B$87/4)) -> 0 | AC98: =IF($AC$93="",$C$13,$AC$96) -> 99.18 | AD98: =IF($AD$93="","",$AD$93+($B$88/4)) -> 0 | AE98: =IF($AE$93="",$C$13,$AE$96) -> 99.18 | AF98: =IF($AF$93="",0,$AF$93+($B$89/4)) -> 0 | AG98: =IF($AG$93="",$C$13,$AG$96) -> 99.18 | AI98: 53 | AJ98: 8.48 | AK98: Left Bank | AL98: 51.83393817 | AM98: 96.67899235 | AN98: 51.82443255 | AO98: 94.67906851 | AP98: 95.93531157 | AQ98: 0 | AR98: 0 | AS98: 0 | AV98: 0 | AW98: 1.256243063 | AX98: 1.256243063 | AY98: 0 | AZ98: 0 | BA98: 0 | BB98: 0 | BC98: 0 | BD98: 1.256243063 | BE98: 0.1094718416 | BF98: 0 | BG98: 0 | BH98: 0.16 | BI98: 8.48 | BJ98: 0 | BK98: 0 | BM98: 5.571045724 | BN98: 0.1277055552 | BO98: 0.16 | BP98: 0 | BQ98: 0.16 | BR98: 8.48
L99: =$L$95+$L$96+$L$97+$L$98 -> 0 | M99: =$M$95+$M$96+$M$97+$M$98 -> 0 | O99: Boulder 1 | P99: =IF(OR($F$25="",$C87=""),"",IF($A87="Behind",0.5*CDrock*$Z94*SWWater*($J$6^2)/(2*g),CDrock*$Z94*SWWater*($J$6^2)/(2*g))) ->  | Q99: =IF(OR($F$25="",$C87=""),"",IF($A87="Behind",0.5*CLrock*$Z94*SWWater*(($J$6^2)/(2*g)),CLrock*$Z94*SWWater*(($J$6^2)/(2*g)))) ->  | V99: xr,bot (ft) | W99: Zone | AA99: Point 7 | AB99: =IF($AB$93="",0,$AB$93+($B$87/2)) -> 0 | AC99: =IF($AC$93="",$C$13,$AC$95) -> 99.18 | AD99: =IF($AD$93="",0,$AD$93+($B$88/2)) -> 0 | AE99: =IF($AE$93="",$C$13,$AE$95) -> 99.18 | AF99: =IF($AF$93="","",$AF$93+($B$89/2)) -> 0 | AG99: =IF($AG$93="",$C$13,$AG$95) -> 99.18 | AI99: 54 | AJ99: 8.64 | AK99: Left Bank | AL99: 51.9210771 | AM99: 96.67759611 | AN99: 51.91157148 | AO99: 94.67767226 | AP99: 95.92302913 | AQ99: 0 | AR99: 0 | AS99: 0 | AV99: 0 | AW99: 1.24535687 | AX99: 1.24535687 | AY99: 0 | AZ99: 0 | BA99: 0 | BB99: 0 | BC99: 0 | BD99: 1.24535687 | BE99: 0.1085231942 | BF99: 0 | BG99: 0 | BH99: 0.16 | BI99: 8.64 | BJ99: 0 | BK99: 0 | BM99: 5.57244197 | BN99: 0.1275719728 | BO99: 0.16 | BP99: 0 | BQ99: 0.16 | BR99: 8.64
O100: Boulder 2 | P100: =IF(OR($F$25="",$C88=""),"",IF($A88="Behind",0.5*CDrock*$Z95*SWWater*($J$6^2)/(2*g),CDrock*$Z95*SWWater*($J$6^2)/(2*g))) ->  | Q100: =IF(OR($F$25="",$C88=""),"",IF($A88="Behind",0.5*CLrock*$Z95*SWWater*(($J$6^2)/(2*g)),CLrock*$Z95*SWWater*(($J$6^2)/(2*g)))) ->  | U100: Anchor 1 | V100: =IF(OR($F$25="",$H83=""),"",$AE$49-(($H83*$M$19)*$M$17)) ->  | W100: =IF($V100="","",IF(OR($C$19="",$F$25="",$G$25=""),"None",IF($V100<$B$14,"Bank",IF($V100<$B$15,"Bank",IF($V100<$B$16,"Bed",IF($V100<$B$17,"Bed",IF($V100<$B$18,"Bank","Bank"))))))) ->  | AA100: Point 8 | AB100: =IF($AB$93="",0,$AB$98) -> 0 | AC100: =IF($AC$93="",$C$13,$AC$94) -> 99.18 | AD100: =IF($AD$93="",0,$AD$98) -> 0 | AE100: =IF($AE$93="",$C$13,$AE$94) -> 99.18 | AF100: =IF($AF$93="",0,$AF$98) -> 0 | AG100: =IF($AG$93="",$C$13,$AG$94) -> 99.18 | AI100: 55 | AJ100: 8.8 | AK100: Left Bank | AL100: 52.00821603 | AM100: 96.67619986 | AN100: 51.9987104 | AO100: 94.67627602 | AP100: 95.91074669 | AQ100: 0 | AR100: 0 | AS100: 0 | AV100: 0 | AW100: 1.234470676 | AX100: 1.234470676 | AY100: 0 | AZ100: 0 | BA100: 0 | BB100: 0 | BC100: 0 | BD100: 1.234470676 | BE100: 0.1075745469 | BF100: 0 | BG100: 0 | BH100: 0.16 | BI100: 8.8 | BJ100: 0 | BK100: 0 | BM100: 5.573838215 | BN100: 0.1274385302 | BO100: 0.16 | BP100: 0 | BQ100: 0.16 | BR100: 8.8
O101: Boulder 3 | P101: =IF(OR($F$25="",$C89=""),"",IF($A89="Behind",0.5*CDrock*$Z96*SWWater*($J$6^2)/(2*g),CDrock*$Z96*SWWater*($J$6^2)/(2*g))) ->  | Q101: =IF(OR($F$25="",$C89=""),"",IF($A89="Behind",0.5*CLrock*$Z96*SWWater*(($J$6^2)/(2*g)),CLrock*$Z96*SWWater*(($J$6^2)/(2*g)))) ->  | U101: Anchor 2 | V101: =IF(OR($F$25="",$H84=""),"",$AE$49-(($H84*$M$19)*$M$17)) ->  | W101: =IF($V101="","",IF(OR($C$19="",$F$25="",$G$25=""),"None",IF($V101<$B$14,"Bank",IF($V101<$B$15,"Bank",IF($V101<$B$16,"Bed",IF($V101<$B$17,"Bed",IF($V101<$B$18,"Bank","Bank"))))))) ->  | AA101: Point 9 | AB101: =IF($AB$93="",0,$AB$93) -> 0 | AC101: =IF($AC$93="",$C$13,$AC$93) -> 99.18 | AD101: =IF($AD$93="",0,$AD$93) -> 0 | AE101: =IF($AE$93="",$C$13,$AE$93) -> 99.18 | AF101: =IF($AF$93="",0,$AF$93) -> 0 | AG101: =IF($AG$93="",$C$13,$AG$93) -> 99.18 | AI101: 56 | AJ101: 8.96 | AK101: Left Bank | AL101: 52.09535496 | AM101: 96.67480362 | AN101: 52.08584933 | AO101: 94.67487977 | AP101: 95.89846425 | AQ101: 0 | AR101: 0 | AS101: 0 | AV101: 0 | AW101: 1.223584483 | AX101: 1.223584483 | AY101: 0 | AZ101: 0 | BA101: 0 | BB101: 0 | BC101: 0 | BD101: 1.223584483 | BE101: 0.1066258995 | BF101: 0 | BG101: 0 | BH101: 0.16 | BI101: 8.96 | BJ101: 0 | BK101: 0 | BM101: 5.575234461 | BN101: 0.1273052272 | BO101: 0.16 | BP101: 0 | BQ101: 0.16 | BR101: 8.96
AI102: 57 | AJ102: 9.12 | AK102: Left Bank | AL102: 52.18249388 | AM102: 96.67340737 | AN102: 52.17298826 | AO102: 94.67348353 | AP102: 95.88618181 | AQ102: 0 | AR102: 0 | AS102: 0 | AV102: 0 | AW102: 1.212698289 | AX102: 1.212698289 | AY102: 0 | AZ102: 0 | BA102: 0 | BB102: 0 | BC102: 0 | BD102: 1.212698289 | BE102: 0.1056772521 | BF102: 0 | BG102: 0 | BH102: 0.16 | BI102: 9.12 | BJ102: 0 | BK102: 0 | BM102: 5.576630707 | BN102: 0.1271720636 | BO102: 0.16 | BP102: 0 | BQ102: 0.16 | BR102: 9.12
AB103: Anchor #1 | AF103: Soil Ballast #1 | AI103: 58 | AJ103: 9.28 | AK103: Left Bank | AL103: 52.26963281 | AM103: 96.67201113 | AN103: 52.26012719 | AO103: 94.67208728 | AP103: 95.87389938 | AQ103: 0 | AR103: 0 | AS103: 0 | AV103: 0 | AW103: 1.201812095 | AX103: 1.201812095 | AY103: 0 | AZ103: 0 | BA103: 0 | BB103: 0 | BC103: 0 | BD103: 1.201812095 | BE103: 0.1047286048 | BF103: 0 | BG103: 0 | BH103: 0.16 | BI103: 9.28 | BJ103: 0 | BK103: 0 | BM103: 5.578026952 | BN103: 0.1270390393 | BO103: 0.16 | BP103: 0 | BQ103: 0.16 | BR103: 9.28
AB104: xTS (ft) | AC104: yTS (ft) | AF104: xTS (ft) | AG104: yTS (ft) | AI104: 59 | AJ104: 9.44 | AK104: Left Bank | AL104: 52.35677174 | AM104: 96.67061488 | AN104: 52.34726611 | AO104: 94.67069103 | AP104: 95.86161694 | AQ104: 0 | AR104: 0 | AS104: 0 | AV104: 0 | AW104: 1.190925902 | AX104: 1.190925902 | AY104: 0 | AZ104: 0 | BA104: 0 | BB104: 0 | BC104: 0 | BD104: 1.190925902 | BE104: 0.1037799574 | BF104: 0 | BG104: 0 | BH104: 0.16 | BI104: 9.44 | BJ104: 0 | BK104: 0 | BM104: 5.579423198 | BN104: 0.1269061542 | BO104: 0.16 | BP104: 0 | BQ104: 0.16 | BR104: 9.44
AA105: Point 1 | AB105: =IF(OR($F$25="",$H83=""),0,$AE$49-(($H83*$M$19)*$M$17)) -> 0 | AC105: =IF(OR($AB105="",$AB$105=0),$C$13,($AF$49+(($AB105-$AE$49)*$AA$40))-($F$22/2)) -> 99.18 | AE105: Point 1 | AF105: =IF(OR($F$25="",$C83=""),0,($AE$49-(($C83*$M$19)*$M$17))+(ABS(2*$M$17*$M$19))) -> 0 | AG105: =IF(OR($AF105="",$AF$105=0),$C$13,($AF$49+(($AF105-$AE$49)*$AA$40))+($F$22/2)) -> 99.18 | AI105: 60 | AJ105: 9.6 | AK105: Left Bank | AL105: 52.44391067 | AM105: 96.66921863 | AN105: 52.43440504 | AO105: 94.66929479 | AP105: 95.8493345 | AQ105: 0 | AR105: 0 | AS105: 0 | AV105: 0 | AW105: 1.180039708 | AX105: 1.180039708 | AY105: 0 | AZ105: 0 | BA105: 0 | BB105: 0 | BC105: 0 | BD105: 1.180039708 | BE105: 0.1028313101 | BF105: 0 | BG105: 0 | BH105: 0.16 | BI105: 9.6 | BJ105: 0 | BK105: 0 | BM105: 5.580819444 | BN105: 0.1267734081 | BO105: 0.16 | BP105: 0 | BQ105: 0.16 | BR105: 9.6
AA106: Point 2 | AB106: =IF($AB105="",0,$AB105) -> 0 | AC106: =IF(OR($AC105="",$AB$105=0),$C$13,$AC105-4) -> 99.18 | AE106: Point 2 | AF106: =IF($AF105="",0,$AF105) -> 0 | AG106: =IF(OR($AG105="",$AF$105=0),$C$13,IF($AG$105>$AG$108,$AG105+2.25,$AG$108+2.25)) -> 99.18 | AI106: 61 | AJ106: 9.76 | AK106: Left Bank | AL106: 52.53104959 | AM106: 96.66782239 | AN106: 52.52154397 | AO106: 94.66789854 | AP106: 95.83705206 | AQ106: 0 | AR106: 0 | AS106: 0 | AV106: 0 | AW106: 1.169153514 | AX106: 1.169153514 | AY106: 0 | AZ106: 0 | BA106: 0 | BB106: 0 | BC106: 0 | BD106: 1.169153514 | BE106: 0.1018826627 | BF106: 0 | BG106: 0 | BH106: 0.16 | BI106: 9.76 | BJ106: 0 | BK106: 0 | BM106: 5.582215689 | BN106: 0.1266408008 | BO106: 0.16 | BP106: 0 | BQ106: 0.16 | BR106: 9.76
AE107: Point 3 | AF107: =IF(OR($F$25="",$C83=""),0,($AE$49-(($C83*$M$19)*$M$17))-(ABS(2*$M$17*$M$19))) -> 0 | AG107: =IF(OR($AG106="",$AF$105=0),$C$13,$AG106) -> 99.18 | AI107: 62 | AJ107: 9.92 | AK107: Left Bank | AL107: 52.61818852 | AM107: 96.66642614 | AN107: 52.6086829 | AO107: 94.6665023 | AP107: 95.82476962 | AQ107: 0 | AR107: 0 | AS107: 0 | AV107: 0 | AW107: 1.158267321 | AX107: 1.158267321 | AY107: 0 | AZ107: 0 | BA107: 0 | BB107: 0 | BC107: 0 | BD107: 1.158267321 | BE107: 0.1009340153 | BF107: 0 | BG107: 0 | BH107: 0.16 | BI107: 9.92 | BJ107: 0 | BK107: 0 | BM107: 5.583611935 | BN107: 0.1265083322 | BO107: 0.16 | BP107: 0 | BQ107: 0.16 | BR107: 9.92
AB108: Anchor #2 | AE108: Point 4 | AF108: =IF($AF105="",0,$AF107) -> 0 | AG108: =IF(OR($AG105="",$AF$105=0),$C$13,$AG105-((ABS($AF$105-$AF$108))*$AA$40)) -> 99.18 | AI108: 63 | AJ108: 10.08 | AK108: Left Bank | AL108: 52.70532745 | AM108: 96.6650299 | AN108: 52.69582182 | AO108: 94.66510605 | AP108: 95.81248718 | AQ108: 0 | AR108: 0 | AS108: 0 | AV108: 0 | AW108: 1.147381127 | AX108: 1.147381127 | AY108: 0 | AZ108: 0 | BA108: 0 | BB108: 0 | BC108: 0 | BD108: 1.147381127 | BE108: 0.09998536798 | BF108: 0 | BG108: 0 | BH108: 0.16 | BI108: 10.08 | BJ108: 0 | BK108: 0 | BM108: 5.585008181 | BN108: 0.1263760022 | BO108: 0.16 | BP108: 0 | BQ108: 0.16 | BR108: 10.08
AB109: xTS (ft) | AC109: yTS (ft) | AI109: 64 | AJ109: =($AI109/$AI$245)*$AJ$245 -> 10.24 | AK109: =IF(OR($C$19="",$F$25="",$G$25=""),"None",IF(AL109<$B$14,"Left Floodplain",IF(AL109<$B$15,"Left Bank",IF(AL109<$B$16,"Left Stream Bed",IF(AL109<$B$17,"Right Stream Bed",IF(AL109<$B$18,"Right Bank","Right Floodplain")))))) -> Left Bank | AL109: 52.79246638 | AM109: 96.66363365 | AN109: 52.78296075 | AO109: 94.66370981 | AP109: =IF($AL109<$B$14,(($AL109-$B$13)*$AB$31)+$C$13,IF($AL109<$B$15,(($AL109-$B$14)*$AB$32)+$C$14,IF($AL109<$B$16,(($AL109-$B$15)*$AB$33)+$C$15,IF($AL109<$B$17,(($AL109-$B$16)*$AB$34)+$C$16,IF($AL109<$B$18,(($AL109-$B$17)*$AB$35)+$C$17,IF($AL109<$B$19,(($AL109-$B$18)*$AB$36)+$C$18)))))) -> 95.80020474 | AQ109: =IF(OR($AP109<$AE$12,$AP109<=$AM109),0,IF(OR($AP109>=$AE$12,$AM109>=$AE$12),$AP109-$AM109-$AR109,$AP109-$AE$12)) -> 0 | AR109: =IF($AP109<=$AM109,0,IF($AM109>=$AE$12,0,IF($AP109<=$AE$12,$AP109-$AM109,$AE$12-$AM109))) -> 0 | AS109: =IF(AP109<=AM109,0,AP109-AM109) -> 0 | AV109: 0 | AW109: =IF($AP109<=$AO109,0,IF($AO109>=$AE$12,0,IF($AP109<=$AE$12,$AP109-$AO109,$AE$12-$AO109))) -> 1.136494934 | AX109: =IF(AP109<=AO109,0,AP109-AO109) -> 1.136494934 | AY109: =IF($AS109=0,0,IF(OR($AJ109=0,$AJ109=$E$22),$AJ$46/2,$AJ$46)) -> 0 | AZ109: =IF(OR($AK109="Left Stream Bed",$AK109="Right Stream Bed"),$F$22*$AQ109*$AY109,0) -> 0 | BA109: =IF(OR($AK109="Left Stream Bed",$AK109="Right Stream Bed"),$F$22*$AR109*$AY109,0) -> 0 | BB109: =IF(OR($AK109="Left Floodplain",$AK109="Left Bank",$AK109="Right Bank",$AK109="Right Floodplain"),$F$22*$AQ109*$AY109,0) -> 0 | BC109: =IF(OR($AK109="Left Floodplain",$AK109="Left Bank",$AK109="Right Bank",$AK109="Right Floodplain"),$F$22*$AR109*$AY109,0) -> 0 | BD109: =AX109-AS109 -> 1.136494934 | BE109: 0.09903672062 | BF109: =AV109-AQ109 -> 0 | BG109: =IF(OR($AJ109=0,$AJ109=$E$22),($BF109*$AJ$46/2)*ABS($M$17),$BF109*$AJ$46*ABS($M$17)) -> 0 | BH109: =IF(OR($AM109<$AP109,$AO109>$AE$8),"",IF(OR($AJ109=0,$AJ109=$E$22),$AJ$46/2,$AJ$46)) -> 0.16 | BI109: 10.24 | BJ109: 0 | BK109: =IF($BJ109="","",IF(OR($BJ109>($F$22/2),$BJ109=0),0,0.45-($BJ109*0.45/($F$22/2)))) -> 0 | BL109: =IF($BK109="","",IF($BK109>0,$AJ109,"")) ->  | BM109: 5.586404426 | BN109: 0.1262438106 | BO109: =IF($AO109=0,0,IF($AO109>$AP109,0,IF(OR($AJ109=0,$AJ109=$E$22),$AJ$46/2,$AJ$46))) -> 0.16 | BP109: =IF(AND($BO109>0,OR($AK109="Left Stream Bed",$AK109="Right Stream Bed")),$BO109,0) -> 0 | BQ109: =IF(AND($BO109>0,OR($AK109="Left Floodplain",$AK109="Left Bank",$AK109="Right Bank",$AK109="Right Floodplain")),$BO109,0) -> 0.16 | BR109: =IF($BO109>0,$AJ109,"") -> 10.24
AA110: Point 1 | AB110: =IF(OR($F$25="",$H84=""),0,$AE$49-(($H84*$M$19)*$M$17)) -> 0 | AC110: =IF(OR($AB$110=0,$AB110=""),$C$13,($AF$49+(($AB110-$AE$49)*$AA$40))-($F$22/2)) -> 99.18 | AF110: Log Interactions | AI110: 65 | AJ110: 10.4 | AK110: Left Bank | AL110: =$AL$45+ABS(AJ110*$M$19*$M$17) -> 52.8796053 | AM110: 96.66223741 | AN110: =$AN$45+ABS(AJ110*$M$19*$M$17) -> 52.87009968 | AO110: 94.66231356 | AP110: 95.7879223 | AQ110: 0 | AR110: 0 | AS110: 0 | AT110: =IF(OR($AS110="",$AS110=0),"",IF(OR($AK110="Left Stream Bed",$AK110="Right Stream Bed"),$AS110,"")) ->  | AU110: =IF(OR($AS110="",$AS110=0),"",IF(OR($AK110="Left Floodplain",$AK110="Left Bank",$AK110="Right Bank",$AK110="Right Floodplain"),$AS110,"")) ->  | AV110: =IF(OR($AP110<$AE$12,$AP110<=$AO110),0,IF($AO110>=$AE$12,$AP110-$AO110,$AP110-$AE$12)) -> 0 | AW110: 1.12560874 | AX110: 1.12560874 | AY110: 0 | AZ110: 0 | BA110: 0 | BB110: 0 | BC110: 0 | BD110: 1.12560874 | BE110: =$BD110*$AJ$46*ABS($M$17) -> 0.09808807327 | BF110: 0 | BG110: 0 | BH110: 0.16 | BI110: =IF($BH110="","",IF($BH110>0,$AJ110,"")) -> 10.4 | BJ110: =IF($BH110="","",IF(OR(($AO110-$AP110)<0,$AO$45>=$AE$8),0,($AO110-$AP110))) -> 0 | BK110: 0 | BM110: =IF($BH110="","",IF(OR(($AM110-$AP110)<0,$AM110>=$AE$8),"",($AE$8-($AM110-(($F$22/2)/$M$19))))) -> 5.587800672 | BN110: 0.1261117573 | BO110: 0.16 | BP110: 0 | BQ110: 0.16 | BR110: 10.4 | BS110: =IF($AY110>0,$AJ110,"") -> 
AA111: Point 2 | AB111: =IF($AB110="",0,$AB110) -> 0 | AC111: =IF(OR($AB$110=0,$AC110=""),$C$13,$AC110-4) -> 99.18 | AF111: xTS (ft) | AG111: yTS (ft) | AI111: 66 | AJ111: 10.56 | AK111: Left Bank | AL111: 52.96674423 | AM111: =AM110+((AL111-AL110)*$AA$40) -> 96.66084116 | AN111: 52.95723861 | AO111: =AO110+((AN111-AN110)*$AA$40) -> 94.66091731 | AP111: 95.77563986 | AQ111: 0 | AR111: 0 | AS111: 0 | AV111: 0 | AW111: 1.114722546 | AX111: 1.114722546 | AY111: 0 | AZ111: 0 | BA111: 0 | BB111: 0 | BC111: 0 | BD111: 1.114722546 | BE111: 0.09713942591 | BF111: 0 | BG111: 0 | BH111: 0.16 | BI111: 10.56 | BJ111: 0 | BK111: 0 | BM111: 5.589196918 | BN111: =IF($BM111="","",(((PI()^2)/32)*($B$66^-6)*EXP(-($BM111/$F$22)/(2*($B$66^2))))) -> 0.1259798421 | BO111: 0.16 | BP111: 0 | BQ111: 0.16 | BR111: 10.56
AE112: Point 1 | AF112: =IF(OR($F$25="",$C90=""),0,($AE$49-(($C90*$M$19)*$M$17))+(ABS(2*$M$17*$M$19))) -> 0 | AG112: =IF(OR($AF112="",$AF$105=0),$C$13,($AF$49+(($AF112-$AE$49)*$AA$40))+($F$22/2)) -> 99.18 | AI112: 67 | AJ112: 10.72 | AK112: Left Bank | AL112: 53.05388316 | AM112: 96.65944492 | AN112: 53.04437753 | AO112: 94.65952107 | AP112: 95.76335742 | AQ112: 0 | AR112: 0 | AS112: 0 | AV112: 0 | AW112: 1.103836353 | AX112: 1.103836353 | AY112: 0 | AZ112: 0 | BA112: 0 | BB112: 0 | BC112: 0 | BD112: 1.103836353 | BE112: 0.09619077855 | BF112: 0 | BG112: 0 | BH112: 0.16 | BI112: 10.72 | BJ112: 0 | BK112: 0 | BM112: 5.590593163 | BN112: 0.1258480649 | BO112: 0.16 | BP112: 0 | BQ112: 0.16 | BR112: 10.72
AE113: Point 2 | AF113: =IF($AF112="",0,$AF112) -> 0 | AG113: =IF(OR($AG112="",$AF$105=0),$C$13,IF($AG$105>$AG$108,$AG112+2.25,$AG$108+2.25)) -> 99.18 | AI113: 68 | AJ113: 10.88 | AK113: Left Bank | AL113: 53.14102209 | AM113: 96.65804867 | AN113: 53.13151646 | AO113: 94.65812482 | AP113: 95.75107498 | AQ113: 0 | AR113: 0 | AS113: 0 | AV113: 0 | AW113: 1.092950159 | AX113: 1.092950159 | AY113: 0 | AZ113: 0 | BA113: 0 | BB113: 0 | BC113: 0 | BD113: 1.092950159 | BE113: 0.09524213119 | BF113: 0 | BG113: 0 | BH113: 0.16 | BI113: 10.88 | BJ113: 0 | BK113: 0 | BM113: 5.591989409 | BN113: 0.1257164255 | BO113: 0.16 | BP113: 0 | BQ113: 0.16 | BR113: 10.88
AE114: Point 3 | AF114: =IF(OR($F$25="",$C90=""),0,($AE$49-(($C90*$M$19)*$M$17))-(ABS(2*$M$17*$M$19))) -> 0 | AG114: =IF(OR($AG113="",$AF$105=0),$C$13,$AG113) -> 99.18 | AI114: 69 | AJ114: 11.04 | AK114: Left Bank | AL114: 53.22816101 | AM114: 96.65665242 | AN114: 53.21865539 | AO114: 94.65672858 | AP114: 95.73879254 | AQ114: 0 | AR114: 0 | AS114: 0 | AV114: 0 | AW114: 1.082063965 | AX114: 1.082063965 | AY114: 0 | AZ114: 0 | BA114: 0 | BB114: 0 | BC114: 0 | BD114: 1.082063965 | BE114: 0.09429348383 | BF114: 0 | BG114: 0 | BH114: 0.16 | BI114: 11.04 | BJ114: 0 | BK114: 0 | BM114: 5.593385655 | BN114: 0.1255849238 | BO114: 0.16 | BP114: 0 | BQ114: 0.16 | BR114: 11.04
AE115: Point 4 | AF115: =IF($AF112="",0,$AF114) -> 0 | AG115: =IF(OR($AG112="",$AF$105=0),$C$13,$AG112-((ABS($AF$105-$AF$108))*$AA$40)) -> 99.18 | AI115: 70 | AJ115: 11.2 | AK115: Left Bank | AL115: 53.31529994 | AM115: 96.65525618 | AN115: 53.30579432 | AO115: 94.65533233 | AP115: 95.7265101 | AQ115: 0 | AR115: 0 | AS115: 0 | AV115: 0 | AW115: 1.071177772 | AX115: 1.071177772 | AY115: 0 | AZ115: 0 | BA115: 0 | BB115: 0 | BC115: 0 | BD115: 1.071177772 | BE115: 0.09334483647 | BF115: 0 | BG115: 0 | BH115: 0.16 | BI115: 11.2 | BJ115: 0 | BK115: 0 | BM115: 5.5947819 | BN115: 0.1254535597 | BO115: 0.16 | BP115: 0 | BQ115: 0.16 | BR115: 11.2
AI116: 71 | AJ116: 11.36 | AK116: Left Bank | AL116: 53.40243887 | AM116: 96.65385993 | AN116: 53.39293324 | AO116: 94.65393609 | AP116: 95.71422766 | AQ116: 0 | AR116: 0 | AS116: 0 | AV116: 0 | AW116: 1.060291578 | AX116: 1.060291578 | AY116: 0 | AZ116: 0 | BA116: 0 | BB116: 0 | BC116: 0 | BD116: 1.060291578 | BE116: 0.09239618912 | BF116: 0 | BG116: 0 | BH116: 0.16 | BI116: 11.36 | BJ116: 0 | BK116: 0 | BM116: 5.596178146 | BN116: 0.125322333 | BO116: 0.16 | BP116: 0 | BQ116: 0.16 | BR116: 11.36
AI117: 72 | AJ117: 11.52 | AK117: Left Bank | AL117: 53.4895778 | AM117: 96.65246369 | AN117: 53.48007217 | AO117: 94.65253984 | AP117: 95.70194523 | AQ117: 0 | AR117: 0 | AS117: 0 | AV117: 0 | AW117: 1.049405385 | AX117: 1.049405385 | AY117: 0 | AZ117: 0 | BA117: 0 | BB117: 0 | BC117: 0 | BD117: 1.049405385 | BE117: 0.09144754176 | BF117: 0 | BG117: 0 | BH117: 0.16 | BI117: 11.52 | BJ117: 0 | BK117: 0 | BM117: 5.597574392 | BN117: 0.1251912436 | BO117: 0.16 | BP117: 0 | BQ117: 0.16 | BR117: 11.52
AI118: 73 | AJ118: 11.68 | AK118: Left Bank | AL118: 53.57671672 | AM118: 96.65106744 | AN118: 53.5672111 | AO118: 94.65114359 | AP118: 95.68966279 | AQ118: 0 | AR118: 0 | AS118: 0 | AV118: 0 | AW118: 1.038519191 | AX118: 1.038519191 | AY118: 0 | AZ118: 0 | BA118: 0 | BB118: 0 | BC118: 0 | BD118: 1.038519191 | BE118: 0.0904988944 | BF118: 0 | BG118: 0 | BH118: 0.16 | BI118: 11.68 | BJ118: 0 | BK118: 0 | BM118: 5.598970637 | BN118: 0.1250602913 | BO118: 0.16 | BP118: 0 | BQ118: 0.16 | BR118: 11.68
AI119: 74 | AJ119: 11.84 | AK119: Left Bank | AL119: 53.66385565 | AM119: 96.6496712 | AN119: 53.65435003 | AO119: 94.64974735 | AP119: 95.67738035 | AQ119: 0 | AR119: 0 | AS119: 0 | AV119: 0 | AW119: 1.027632997 | AX119: 1.027632997 | AY119: 0 | AZ119: 0 | BA119: 0 | BB119: 0 | BC119: 0 | BD119: 1.027632997 | BE119: 0.08955024704 | BF119: 0 | BG119: 0 | BH119: 0.16 | BI119: 11.84 | BJ119: 0 | BK119: 0 | BM119: 5.600366883 | BN119: 0.1249294759 | BO119: 0.16 | BP119: 0 | BQ119: 0.16 | BR119: 11.84
AI120: 75 | AJ120: 12 | AK120: Left Bank | AL120: 53.75099458 | AM120: 96.64827495 | AN120: 53.74148895 | AO120: 94.6483511 | AP120: 95.66509791 | AQ120: 0 | AR120: 0 | AS120: 0 | AV120: 0 | AW120: 1.016746804 | AX120: 1.016746804 | AY120: 0 | AZ120: 0 | BA120: 0 | BB120: 0 | BC120: 0 | BD120: 1.016746804 | BE120: 0.08860159968 | BF120: 0 | BG120: 0 | BH120: 0.16 | BI120: 12 | BJ120: 0 | BK120: 0 | BM120: 5.601763129 | BN120: 0.1247987974 | BO120: 0.16 | BP120: 0 | BQ120: 0.16 | BR120: 12
AI121: 76 | AJ121: 12.16 | AK121: Left Bank | AL121: 53.83813351 | AM121: 96.6468787 | AN121: 53.82862788 | AO121: 94.64695486 | AP121: 95.65281547 | AQ121: 0 | AR121: 0 | AS121: 0 | AV121: 0 | AW121: 1.00586061 | AX121: 1.00586061 | AY121: 0 | AZ121: 0 | BA121: 0 | BB121: 0 | BC121: 0 | BD121: 1.00586061 | BE121: 0.08765295232 | BF121: 0 | BG121: 0 | BH121: 0.16 | BI121: 12.16 | BJ121: 0 | BK121: 0 | BM121: 5.603159374 | BN121: 0.1246682556 | BO121: 0.16 | BP121: 0 | BQ121: 0.16 | BR121: 12.16
AI122: 77 | AJ122: 12.32 | AK122: Left Bank | AL122: 53.92527243 | AM122: 96.64548246 | AN122: 53.91576681 | AO122: 94.64555861 | AP122: 95.64053303 | AQ122: 0 | AR122: 0 | AS122: 0 | AV122: 0 | AW122: 0.9949744164 | AX122: 0.9949744164 | AY122: 0 | AZ122: 0 | BA122: 0 | BB122: 0 | BC122: 0 | BD122: 0.9949744164 | BE122: 0.08670430496 | BF122: 0 | BG122: 0 | BH122: 0.16 | BI122: 12.32 | BJ122: 0 | BK122: 0 | BM122: 5.60455562 | BN122: 0.1245378503 | BO122: 0.16 | BP122: 0 | BQ122: 0.16 | BR122: 12.32
AI123: 78 | AJ123: 12.48 | AK123: Left Stream Bed | AL123: 54.01241136 | AM123: 96.64408621 | AN123: 54.00290574 | AO123: 94.64416237 | AP123: 95.62859503 | AQ123: 0 | AR123: 0 | AS123: 0 | AV123: 0 | AW123: 0.9844326676 | AX123: 0.9844326676 | AY123: 0 | AZ123: 0 | BA123: 0 | BB123: 0 | BC123: 0 | BD123: 0.9844326676 | BE123: 0.0857856733 | BF123: 0 | BG123: 0 | BH123: 0.16 | BI123: 12.48 | BJ123: 0 | BK123: 0 | BM123: 5.605951866 | BN123: 0.1244075815 | BO123: 0.16 | BP123: 0.16 | BQ123: 0 | BR123: 12.48
AI124: 79 | AJ124: 12.64 | AK124: Left Stream Bed | AL124: 54.09955029 | AM124: 96.64268997 | AN124: 54.09004466 | AO124: 94.64276612 | AP124: 95.61873091 | AQ124: 0 | AR124: 0 | AS124: 0 | AV124: 0 | AW124: 0.9759647867 | AX124: 0.9759647867 | AY124: 0 | AZ124: 0 | BA124: 0 | BB124: 0 | BC124: 0 | BD124: 0.9759647867 | BE124: 0.08504776314 | BF124: 0 | BG124: 0 | BH124: 0.16 | BI124: 12.64 | BJ124: 0 | BK124: 0 | BM124: 5.607348112 | BN124: 0.1242774489 | BO124: 0.16 | BP124: 0.16 | BQ124: 0 | BR124: 12.64
AI125: 80 | AJ125: 12.8 | AK125: Left Stream Bed | AL125: 54.18668922 | AM125: 96.64129372 | AN125: 54.17718359 | AO125: 94.64136988 | AP125: 95.60886678 | AQ125: 0 | AR125: 0 | AS125: 0 | AV125: 0 | AW125: 0.9674969058 | AX125: 0.9674969058 | AY125: 0 | AZ125: 0 | BA125: 0 | BB125: 0 | BC125: 0 | BD125: 0.9674969058 | BE125: 0.08430985298 | BF125: 0 | BG125: 0 | BH125: 0.16 | BI125: 12.8 | BJ125: 0 | BK125: 0 | BM125: 5.608744357 | BN125: 0.1241474524 | BO125: 0.16 | BP125: 0.16 | BQ125: 0 | BR125: 12.8
AI126: 81 | AJ126: 12.96 | AK126: Left Stream Bed | AL126: 54.27382814 | AM126: 96.63989748 | AN126: 54.26432252 | AO126: 94.63997363 | AP126: 95.59900265 | AQ126: 0 | AR126: 0 | AS126: 0 | AV126: 0 | AW126: 0.9590290249 | AX126: 0.9590290249 | AY126: 0 | AZ126: 0 | BA126: 0 | BB126: 0 | BC126: 0 | BD126: 0.9590290249 | BE126: 0.08357194282 | BF126: 0 | BG126: 0 | BH126: 0.16 | BI126: 12.96 | BJ126: 0 | BK126: 0 | BM126: 5.610140603 | BN126: 0.1240175919 | BO126: 0.16 | BP126: 0.16 | BQ126: 0 | BR126: 12.96
AI127: 82 | AJ127: 13.12 | AK127: Left Stream Bed | AL127: 54.36096707 | AM127: 96.63850123 | AN127: 54.35146145 | AO127: 94.63857738 | AP127: 95.58913853 | AQ127: 0 | AR127: 0 | AS127: 0 | AV127: 0 | AW127: 0.950561144 | AX127: 0.950561144 | AY127: 0 | AZ127: 0 | BA127: 0 | BB127: 0 | BC127: 0 | BD127: 0.950561144 | BE127: 0.08283403267 | BF127: 0 | BG127: 0 | BH127: 0.16 | BI127: 13.12 | BJ127: 0 | BK127: 0 | BM127: 5.611536849 | BN127: 0.1238878673 | BO127: 0.16 | BP127: 0.16 | BQ127: 0 | BR127: 13.12
AI128: 83 | AJ128: 13.28 | AK128: Left Stream Bed | AL128: 54.448106 | AM128: 96.63710498 | AN128: 54.43860037 | AO128: 94.63718114 | AP128: 95.5792744 | AQ128: 0 | AR128: 0 | AS128: 0 | AV128: 0 | AW128: 0.942093263 | AX128: 0.942093263 | AY128: 0 | AZ128: 0 | BA128: 0 | BB128: 0 | BC128: 0 | BD128: 0.942093263 | BE128: 0.08209612251 | BF128: 0 | BG128: 0 | BH128: 0.16 | BI128: 13.28 | BJ128: 0 | BK128: 0 | BM128: 5.612933094 | BN128: 0.1237582783 | BO128: 0.16 | BP128: 0.16 | BQ128: 0 | BR128: 13.28
AI129: 84 | AJ129: 13.44 | AK129: Left Stream Bed | AL129: 54.53524493 | AM129: 96.63570874 | AN129: 54.5257393 | AO129: 94.63578489 | AP129: 95.56941027 | AQ129: 0 | AR129: 0 | AS129: 0 | AV129: 0 | AW129: 0.9336253821 | AX129: 0.9336253821 | AY129: 0 | AZ129: 0 | BA129: 0 | BB129: 0 | BC129: 0 | BD129: 0.9336253821 | BE129: 0.08135821235 | BF129: 0 | BG129: 0 | BH129: 0.16 | BI129: 13.44 | BJ129: 0 | BK129: 0 | BM129: 5.61432934 | BN129: 0.1236288249 | BO129: 0.16 | BP129: 0.16 | BQ129: 0 | BR129: 13.44
AI130: 85 | AJ130: 13.6 | AK130: Left Stream Bed | AL130: 54.62238385 | AM130: 96.63431249 | AN130: 54.61287823 | AO130: 94.63438865 | AP130: 95.55954615 | AQ130: 0 | AR130: 0 | AS130: 0 | AV130: 0 | AW130: 0.9251575012 | AX130: 0.9251575012 | AY130: 0 | AZ130: 0 | BA130: 0 | BB130: 0 | BC130: 0 | BD130: 0.9251575012 | BE130: 0.08062030219 | BF130: 0 | BG130: 0 | BH130: 0.16 | BI130: 13.6 | BJ130: 0 | BK130: 0 | BM130: 5.615725586 | BN130: 0.1234995069 | BO130: 0.16 | BP130: 0.16 | BQ130: 0 | BR130: 13.6
AI131: 86 | AJ131: 13.76 | AK131: Left Stream Bed | AL131: 54.70952278 | AM131: 96.63291625 | AN131: 54.70001716 | AO131: 94.6329924 | AP131: 95.54968202 | AQ131: 0 | AR131: 0 | AS131: 0 | AV131: 0 | AW131: 0.9166896203 | AX131: 0.9166896203 | AY131: 0 | AZ131: 0 | BA131: 0 | BB131: 0 | BC131: 0 | BD131: 0.9166896203 | BE131: 0.07988239203 | BF131: 0 | BG131: 0 | BH131: 0.16 | BI131: 13.76 | BJ131: 0 | BK131: 0 | BM131: 5.617121831 | BN131: 0.1233703242 | BO131: 0.16 | BP131: 0.16 | BQ131: 0 | BR131: 13.76
AI132: 87 | AJ132: 13.92 | AK132: Left Stream Bed | AL132: 54.79666171 | AM132: 96.63152 | AN132: 54.78715608 | AO132: 94.63159616 | AP132: 95.53981789 | AQ132: 0 | AR132: 0 | AS132: 0 | AV132: 0 | AW132: 0.9082217394 | AX132: 0.9082217394 | AY132: 0 | AZ132: 0 | BA132: 0 | BB132: 0 | BC132: 0 | BD132: 0.9082217394 | BE132: 0.07914448188 | BF132: 0 | BG132: 0 | BH132: 0.16 | BI132: 13.92 | BJ132: 0 | BK132: 0 | BM132: 5.618518077 | BN132: 0.1232412766 | BO132: 0.16 | BP132: 0.16 | BQ132: 0 | BR132: 13.92
AI133: 88 | AJ133: 14.08 | AK133: Left Stream Bed | AL133: 54.88380064 | AM133: 96.63012376 | AN133: 54.87429501 | AO133: 94.63019991 | AP133: 95.52995377 | AQ133: 0 | AR133: 0 | AS133: 0 | AV133: 0 | AW133: 0.8997538585 | AX133: 0.8997538585 | AY133: 0 | AZ133: 0 | BA133: 0 | BB133: 0 | BC133: 0 | BD133: 0.8997538585 | BE133: 0.07840657172 | BF133: 0 | BG133: 0 | BH133: 0.16 | BI133: 14.08 | BJ133: 0 | BK133: 0 | BM133: 5.619914323 | BN133: 0.123112364 | BO133: 0.16 | BP133: 0.16 | BQ133: 0 | BR133: 14.08
AI134: 89 | AJ134: 14.24 | AK134: Left Stream Bed | AL134: 54.97093956 | AM134: 96.62872751 | AN134: 54.96143394 | AO134: 94.62880366 | AP134: 95.52008964 | AQ134: 0 | AR134: 0 | AS134: 0 | AV134: 0 | AW134: 0.8912859776 | AX134: 0.8912859776 | AY134: 0 | AZ134: 0 | BA134: 0 | BB134: 0 | BC134: 0 | BD134: 0.8912859776 | BE134: 0.07766866156 | BF134: 0 | BG134: 0 | BH134: 0.16 | BI134: 14.24 | BJ134: 0 | BK134: 0 | BM134: 5.621310568 | BN134: 0.1229835862 | BO134: 0.16 | BP134: 0.16 | BQ134: 0 | BR134: 14.24
AI135: 90 | AJ135: 14.4 | AK135: Left Stream Bed | AL135: 55.05807849 | AM135: 96.62733126 | AN135: 55.04857287 | AO135: 94.62740742 | AP135: 95.51022551 | AQ135: 0 | AR135: 0 | AS135: 0 | AV135: 0 | AW135: 0.8828180967 | AX135: 0.8828180967 | AY135: 0 | AZ135: 0 | BA135: 0 | BB135: 0 | BC135: 0 | BD135: 0.8828180967 | BE135: 0.0769307514 | BF135: 0 | BG135: 0 | BH135: 0.16 | BI135: 14.4 | BJ135: 0 | BK135: 0 | BM135: 5.622706814 | BN135: 0.1228549431 | BO135: 0.16 | BP135: 0.16 | BQ135: 0 | BR135: 14.4
AI136: 91 | AJ136: 14.56 | AK136: Left Stream Bed | AL136: 55.14521742 | AM136: 96.62593502 | AN136: 55.13571179 | AO136: 94.62601117 | AP136: 95.50036139 | AQ136: 0 | AR136: 0 | AS136: 0 | AV136: 0 | AW136: 0.8743502157 | AX136: 0.8743502157 | AY136: 0 | AZ136: 0 | BA136: 0 | BB136: 0 | BC136: 0 | BD136: 0.8743502157 | BE136: 0.07619284124 | BF136: 0 | BG136: 0 | BH136: 0.16 | BI136: 14.56 | BJ136: 0 | BK136: 0 | BM136: 5.62410306 | BN136: 0.1227264346 | BO136: 0.16 | BP136: 0.16 | BQ136: 0 | BR136: 14.56
AI137: 92 | AJ137: 14.72 | AK137: Left Stream Bed | AL137: 55.23235635 | AM137: 96.62453877 | AN137: 55.22285072 | AO137: 94.62461493 | AP137: 95.49049726 | AQ137: 0 | AR137: 0 | AS137: 0 | AV137: 0 | AW137: 0.8658823348 | AX137: 0.8658823348 | AY137: 0 | AZ137: 0 | BA137: 0 | BB137: 0 | BC137: 0 | BD137: 0.8658823348 | BE137: 0.07545493108 | BF137: 0 | BG137: 0 | BH137: 0.16 | BI137: 14.72 | BJ137: 0 | BK137: 0 | BM137: 5.625499305 | BN137: 0.1225980605 | BO137: 0.16 | BP137: 0.16 | BQ137: 0 | BR137: 14.72
AI138: 93 | AJ138: 14.88 | AK138: Left Stream Bed | AL138: 55.31949527 | AM138: 96.62314253 | AN138: 55.30998965 | AO138: 94.62321868 | AP138: 95.48063314 | AQ138: 0 | AR138: 0 | AS138: 0 | AV138: 0 | AW138: 0.8574144539 | AX138: 0.8574144539 | AY138: 0 | AZ138: 0 | BA138: 0 | BB138: 0 | BC138: 0 | BD138: 0.8574144539 | BE138: 0.07471702093 | BF138: 0 | BG138: 0 | BH138: 0.16 | BI138: 14.88 | BJ138: 0 | BK138: 0 | BM138: 5.626895551 | BN138: 0.1224698207 | BO138: 0.16 | BP138: 0.16 | BQ138: 0 | BR138: 14.88
AI139: 94 | AJ139: 15.04 | AK139: Left Stream Bed | AL139: 55.4066342 | AM139: 96.62174628 | AN139: 55.39712858 | AO139: 94.62182244 | AP139: 95.47076901 | AQ139: 0 | AR139: 0 | AS139: 0 | AV139: 0 | AW139: 0.848946573 | AX139: 0.848946573 | AY139: 0 | AZ139: 0 | BA139: 0 | BB139: 0 | BC139: 0 | BD139: 0.848946573 | BE139: 0.07397911077 | BF139: 0 | BG139: 0 | BH139: 0.16 | BI139: 15.04 | BJ139: 0 | BK139: 0 | BM139: 5.628291797 | BN139: 0.1223417151 | BO139: 0.16 | BP139: 0.16 | BQ139: 0 | BR139: 15.04
AI140: 95 | AJ140: 15.2 | AK140: Left Stream Bed | AL140: 55.49377313 | AM140: 96.62035004 | AN140: 55.4842675 | AO140: 94.62042619 | AP140: 95.46090488 | AQ140: 0 | AR140: 0 | AS140: 0 | AV140: 0 | AW140: 0.8404786921 | AX140: 0.8404786921 | AY140: 0 | AZ140: 0 | BA140: 0 | BB140: 0 | BC140: 0 | BD140: 0.8404786921 | BE140: 0.07324120061 | BF140: 0 | BG140: 0 | BH140: 0.16 | BI140: 15.2 | BJ140: 0 | BK140: 0 | BM140: 5.629688042 | BN140: 0.1222137434 | BO140: 0.16 | BP140: 0.16 | BQ140: 0 | BR140: 15.2
AI141: 96 | AJ141: 15.36 | AK141: Left Stream Bed | AL141: 55.58091205 | AM141: 96.61895379 | AN141: 55.57140643 | AO141: 94.61902994 | AP141: 95.45104076 | AQ141: 0 | AR141: 0 | AS141: 0 | AV141: 0 | AW141: 0.8320108112 | AX141: 0.8320108112 | AY141: 0 | AZ141: 0 | BA141: 0 | BB141: 0 | BC141: 0 | BD141: 0.8320108112 | BE141: 0.07250329045 | BF141: 0 | BG141: 0 | BH141: 0.16 | BI141: 15.36 | BJ141: 0 | BK141: 0 | BM141: 5.631084288 | BN141: 0.1220859056 | BO141: 0.16 | BP141: 0.16 | BQ141: 0 | BR141: 15.36
AI142: 97 | AJ142: 15.52 | AK142: Left Stream Bed | AL142: =$AL$45+ABS(AJ142*$M$19*$M$17) -> 55.66805098 | AM142: 96.61755754 | AN142: =$AN$45+ABS(AJ142*$M$19*$M$17) -> 55.65854536 | AO142: 94.6176337 | AP142: 95.44117663 | AQ142: 0 | AR142: 0 | AS142: 0 | AV142: 0 | AW142: 0.8235429303 | AX142: 0.8235429303 | AY142: 0 | AZ142: 0 | BA142: 0 | BB142: 0 | BC142: 0 | BD142: 0.8235429303 | BE142: 0.07176538029 | BF142: 0 | BG142: 0 | BH142: 0.16 | BI142: 15.52 | BJ142: 0 | BK142: 0 | BM142: 5.632480534 | BN142: 0.1219582015 | BO142: 0.16 | BP142: 0.16 | BQ142: 0 | BR142: 15.52
AI143: 98 | AJ143: 15.68 | AK143: Left Stream Bed | AL143: 55.75518991 | AM143: 96.6161613 | AN143: 55.74568429 | AO143: 94.61623745 | AP143: 95.4313125 | AQ143: 0 | AR143: 0 | AS143: 0 | AV143: 0 | AW143: 0.8150750494 | AX143: 0.8150750494 | AY143: 0 | AZ143: 0 | BA143: 0 | BB143: 0 | BC143: 0 | BD143: 0.8150750494 | BE143: 0.07102747014 | BF143: 0 | BG143: 0 | BH143: 0.16 | BI143: 15.68 | BJ143: 0 | BK143: 0 | BM143: 5.633876779 | BN143: 0.121830631 | BO143: 0.16 | BP143: 0.16 | BQ143: 0 | BR143: 15.68
AI144: 99 | AJ144: 15.84 | AK144: Left Stream Bed | AL144: 55.84232884 | AM144: 96.61476505 | AN144: 55.83282321 | AO144: 94.61484121 | AP144: 95.42144838 | AQ144: 0 | AR144: 0 | AS144: 0 | AV144: 0 | AW144: 0.8066071684 | AX144: 0.8066071684 | AY144: 0 | AZ144: 0 | BA144: 0 | BB144: 0 | BC144: 0 | BD144: 0.8066071684 | BE144: 0.07028955998 | BF144: 0 | BG144: 0 | BH144: 0.16 | BI144: 15.84 | BJ144: 0 | BK144: 0 | BM144: 5.635273025 | BN144: 0.121703194 | BO144: 0.16 | BP144: 0.16 | BQ144: 0 | BR144: 15.84
AI145: 100 | AJ145: 16 | AK145: Left Stream Bed | AL145: 55.92946776 | AM145: 96.61336881 | AN145: 55.91996214 | AO145: 94.61344496 | AP145: 95.41158425 | AQ145: 0 | AR145: 0 | AS145: 0 | AV145: 0 | AW145: 0.7981392875 | AX145: 0.7981392875 | AY145: 0 | AZ145: 0 | BA145: 0 | BB145: 0 | BC145: 0 | BD145: 0.7981392875 | BE145: 0.06955164982 | BF145: 0 | BG145: 0 | BH145: 0.16 | BI145: 16 | BJ145: 0 | BK145: 0 | BM145: 5.636669271 | BN145: 0.1215758902 | BO145: 0.16 | BP145: 0.16 | BQ145: 0 | BR145: 16
AI146: 101 | AJ146: 16.16 | AK146: Left Stream Bed | AL146: 56.01660669 | AM146: 96.61197256 | AN146: 56.00710107 | AO146: 94.61204872 | AP146: 95.40172012 | AQ146: 0 | AR146: 0 | AS146: 0 | AV146: 0 | AW146: 0.7896714066 | AX146: 0.7896714066 | AY146: 0 | AZ146: 0 | BA146: 0 | BB146: 0 | BC146: 0 | BD146: 0.7896714066 | BE146: 0.06881373966 | BF146: 0 | BG146: 0 | BH146: 0.16 | BI146: 16.16 | BJ146: 0 | BK146: 0 | BM146: 5.638065516 | BN146: 0.1214487196 | BO146: 0.16 | BP146: 0.16 | BQ146: 0 | BR146: 16.16
AI147: 102 | AJ147: 16.32 | AK147: Left Stream Bed | AL147: 56.10374562 | AM147: 96.61057632 | AN147: 56.09424 | AO147: 94.61065247 | AP147: 95.391856 | AQ147: 0 | AR147: 0 | AS147: 0 | AV147: 0 | AW147: 0.7812035257 | AX147: 0.7812035257 | AY147: 0 | AZ147: 0 | BA147: 0 | BB147: 0 | BC147: 0 | BD147: 0.7812035257 | BE147: 0.0680758295 | BF147: 0 | BG147: 0 | BH147: 0.16 | BI147: 16.32 | BJ147: 0 | BK147: 0 | BM147: 5.639461762 | BN147: 0.1213216821 | BO147: 0.16 | BP147: 0.16 | BQ147: 0 | BR147: 16.32
AI148: 103 | AJ148: 16.48 | AK148: Left Stream Bed | AL148: 56.19088455 | AM148: 96.60918007 | AN148: 56.18137892 | AO148: 94.60925622 | AP148: 95.38199187 | AQ148: 0 | AR148: 0 | AS148: 0 | AV148: 0 | AW148: 0.7727356448 | AX148: 0.7727356448 | AY148: 0 | AZ148: 0 | BA148: 0 | BB148: 0 | BC148: 0 | BD148: 0.7727356448 | BE148: 0.06733791934 | BF148: 0 | BG148: 0 | BH148: 0.16 | BI148: 16.48 | BJ148: 0 | BK148: 0 | BM148: 5.640858008 | BN148: 0.1211947774 | BO148: 0.16 | BP148: 0.16 | BQ148: 0 | BR148: 16.48
AI149: 104 | AJ149: 16.64 | AK149: Left Stream Bed | AL149: 56.27802347 | AM149: 96.60778382 | AN149: 56.26851785 | AO149: 94.60785998 | AP149: 95.37212774 | AQ149: 0 | AR149: 0 | AS149: 0 | AV149: 0 | AW149: 0.7642677639 | AX149: 0.7642677639 | AY149: 0 | AZ149: 0 | BA149: 0 | BB149: 0 | BC149: 0 | BD149: 0.7642677639 | BE149: 0.06660000919 | BF149: 0 | BG149: 0 | BH149: 0.16 | BI149: 16.64 | BJ149: 0 | BK149: 0 | BM149: 5.642254253 | BN149: 0.1210680055 | BO149: 0.16 | BP149: 0.16 | BQ149: 0 | BR149: 16.64
AI150: 105 | AJ150: 16.8 | AK150: Left Stream Bed | AL150: 56.3651624 | AM150: 96.60638758 | AN150: 56.35565678 | AO150: 94.60646373 | AP150: 95.36226362 | AQ150: 0 | AR150: 0 | AS150: 0 | AV150: 0 | AW150: 0.755799883 | AX150: 0.755799883 | AY150: 0 | AZ150: 0 | BA150: 0 | BB150: 0 | BC150: 0 | BD150: 0.755799883 | BE150: 0.06586209903 | BF150: 0 | BG150: 0 | BH150: 0.16 | BI150: 16.8 | BJ150: 0 | BK150: 0 | BM150: 5.643650499 | BN150: 0.1209413661 | BO150: 0.16 | BP150: 0.16 | BQ150: 0 | BR150: 16.8
AI151: 106 | AJ151: 16.96 | AK151: Left Stream Bed | AL151: 56.45230133 | AM151: 96.60499133 | AN151: 56.44279571 | AO151: 94.60506749 | AP151: 95.35239949 | AQ151: 0 | AR151: 0 | AS151: 0 | AV151: 0 | AW151: 0.7473320021 | AX151: 0.7473320021 | AY151: 0 | AZ151: 0 | BA151: 0 | BB151: 0 | BC151: 0 | BD151: 0.7473320021 | BE151: 0.06512418887 | BF151: 0 | BG151: 0 | BH151: 0.16 | BI151: 16.96 | BJ151: 0 | BK151: 0 | BM151: 5.645046745 | BN151: 0.1208148592 | BO151: 0.16 | BP151: 0.16 | BQ151: 0 | BR151: 16.96
AI152: 107 | AJ152: 17.12 | AK152: Left Stream Bed | AL152: 56.53944026 | AM152: 96.60359509 | AN152: 56.52993463 | AO152: 94.60367124 | AP152: 95.34253536 | AQ152: 0 | AR152: 0 | AS152: 0 | AV152: 0 | AW152: 0.7388641211 | AX152: 0.7388641211 | AY152: 0 | AZ152: 0 | BA152: 0 | BB152: 0 | BC152: 0 | BD152: 0.7388641211 | BE152: 0.06438627871 | BF152: 0 | BG152: 0 | BH152: 0.16 | BI152: 17.12 | BJ152: 0 | BK152: 0 | BM152: 5.646442991 | BN152: 0.1206884847 | BO152: 0.16 | BP152: 0.16 | BQ152: 0 | BR152: 17.12
AI153: 108 | AJ153: 17.28 | AK153: Left Stream Bed | AL153: 56.62657918 | AM153: 96.60219884 | AN153: 56.61707356 | AO153: 94.602275 | AP153: 95.33267124 | AQ153: 0 | AR153: 0 | AS153: 0 | AV153: 0 | AW153: 0.7303962402 | AX153: 0.7303962402 | AY153: 0 | AZ153: 0 | BA153: 0 | BB153: 0 | BC153: 0 | BD153: 0.7303962402 | BE153: 0.06364836855 | BF153: 0 | BG153: 0 | BH153: 0.16 | BI153: 17.28 | BJ153: 0 | BK153: 0 | BM153: 5.647839236 | BN153: 0.1205622424 | BO153: 0.16 | BP153: 0.16 | BQ153: 0 | BR153: 17.28
AI154: 109 | AJ154: 17.44 | AK154: Left Stream Bed | AL154: 56.71371811 | AM154: 96.6008026 | AN154: 56.70421249 | AO154: 94.60087875 | AP154: 95.32280711 | AQ154: 0 | AR154: 0 | AS154: 0 | AV154: 0 | AW154: 0.7219283593 | AX154: 0.7219283593 | AY154: 0 | AZ154: 0 | BA154: 0 | BB154: 0 | BC154: 0 | BD154: 0.7219283593 | BE154: 0.06291045839 | BF154: 0 | BG154: 0 | BH154: 0.16 | BI154: 17.44 | BJ154: 0 | BK154: 0 | BM154: 5.649235482 | BN154: 0.1204361321 | BO154: 0.16 | BP154: 0.16 | BQ154: 0 | BR154: 17.44
AI155: 110 | AJ155: 17.6 | AK155: Left Stream Bed | AL155: 56.80085704 | AM155: 96.59940635 | AN155: 56.79135142 | AO155: 94.5994825 | AP155: 95.31294298 | AQ155: 0 | AR155: 0 | AS155: 0 | AV155: 0 | AW155: 0.7134604784 | AX155: 0.7134604784 | AY155: 0 | AZ155: 0 | BA155: 0 | BB155: 0 | BC155: 0 | BD155: 0.7134604784 | BE155: 0.06217254824 | BF155: 0 | BG155: 0 | BH155: 0.16 | BI155: 17.6 | BJ155: 0 | BK155: 0 | BM155: 5.650631728 | BN155: 0.1203101537 | BO155: 0.16 | BP155: 0.16 | BQ155: 0 | BR155: 17.6
AI156: 111 | AJ156: 17.76 | AK156: Left Stream Bed | AL156: 56.88799597 | AM156: 96.59801011 | AN156: 56.87849034 | AO156: 94.59808626 | AP156: 95.30307886 | AQ156: 0 | AR156: 0 | AS156: 0 | AV156: 0 | AW156: 0.7049925975 | AX156: 0.7049925975 | AY156: 0 | AZ156: 0 | BA156: 0 | BB156: 0 | BC156: 0 | BD156: 0.7049925975 | BE156: 0.06143463808 | BF156: 0 | BG156: 0 | BH156: 0.16 | BI156: 17.76 | BJ156: 0 | BK156: 0 | BM156: 5.652027973 | BN156: 0.1201843071 | BO156: 0.16 | BP156: 0.16 | BQ156: 0 | BR156: 17.76
AI157: 112 | AJ157: 17.92 | AK157: Left Stream Bed | AL157: 56.97513489 | AM157: 96.59661386 | AN157: 56.96562927 | AO157: 94.59669001 | AP157: 95.29321473 | AQ157: 0 | AR157: 0 | AS157: 0 | AV157: 0 | AW157: 0.6965247166 | AX157: 0.6965247166 | AY157: 0 | AZ157: 0 | BA157: 0 | BB157: 0 | BC157: 0 | BD157: 0.6965247166 | BE157: 0.06069672792 | BF157: 0 | BG157: 0 | BH157: 0.16 | BI157: 17.92 | BJ157: 0 | BK157: 0 | BM157: 5.653424219 | BN157: 0.1200585921 | BO157: 0.16 | BP157: 0.16 | BQ157: 0 | BR157: 17.92
AI158: 113 | AJ158: 18.08 | AK158: Left Stream Bed | AL158: 57.06227382 | AM158: 96.59521761 | AN158: 57.0527682 | AO158: 94.59529377 | AP158: 95.2833506 | AQ158: 0 | AR158: 0 | AS158: 0 | AV158: 0 | AW158: 0.6880568357 | AX158: 0.6880568357 | AY158: 0 | AZ158: 0 | BA158: 0 | BB158: 0 | BC158: 0 | BD158: 0.6880568357 | BE158: 0.05995881776 | BF158: 0 | BG158: 0 | BH158: 0.16 | BI158: 18.08 | BJ158: 0 | BK158: 0 | BM158: 5.654820465 | BN158: 0.1199330086 | BO158: 0.16 | BP158: 0.16 | BQ158: 0 | BR158: 18.08
AI159: 114 | AJ159: 18.24 | AK159: Left Stream Bed | AL159: 57.14941275 | AM159: 96.59382137 | AN159: 57.13990713 | AO159: 94.59389752 | AP159: 95.27348648 | AQ159: 0 | AR159: 0 | AS159: 0 | AV159: 0 | AW159: 0.6795889548 | AX159: 0.6795889548 | AY159: 0 | AZ159: 0 | BA159: 0 | BB159: 0 | BC159: 0 | BD159: 0.6795889548 | BE159: 0.0592209076 | BF159: 0 | BG159: 0 | BH159: 0.16 | BI159: 18.24 | BJ159: 0 | BK159: 0 | BM159: 5.65621671 | BN159: 0.1198075565 | BO159: 0.16 | BP159: 0.16 | BQ159: 0 | BR159: 18.24
AI160: 115 | AJ160: 18.4 | AK160: Left Stream Bed | AL160: 57.23655168 | AM160: 96.59242512 | AN160: 57.22704605 | AO160: 94.59250128 | AP160: 95.26362235 | AQ160: 0 | AR160: 0 | AS160: 0 | AV160: 0 | AW160: 0.6711210738 | AX160: 0.6711210738 | AY160: 0 | AZ160: 0 | BA160: 0 | BB160: 0 | BC160: 0 | BD160: 0.6711210738 | BE160: 0.05848299745 | BF160: 0 | BG160: 0 | BH160: 0.16 | BI160: 18.4 | BJ160: 0 | BK160: 0 | BM160: 5.657612956 | BN160: 0.1196822356 | BO160: 0.16 | BP160: 0.16 | BQ160: 0 | BR160: 18.4
AI161: 116 | AJ161: 18.56 | AK161: Left Stream Bed | AL161: 57.3236906 | AM161: 96.59102888 | AN161: 57.31418498 | AO161: 94.59110503 | AP161: 95.25375822 | AQ161: 0 | AR161: 0 | AS161: 0 | AV161: 0 | AW161: 0.6626531929 | AX161: 0.6626531929 | AY161: 0 | AZ161: 0 | BA161: 0 | BB161: 0 | BC161: 0 | BD161: 0.6626531929 | BE161: 0.05774508729 | BF161: 0 | BG161: 0 | BH161: 0.16 | BI161: 18.56 | BJ161: 0 | BK161: 0 | BM161: 5.659009202 | BN161: 0.1195570458 | BO161: 0.16 | BP161: 0.16 | BQ161: 0 | BR161: 18.56
AI162: 117 | AJ162: 18.72 | AK162: Left Stream Bed | AL162: 57.41082953 | AM162: 96.58963263 | AN162: 57.40132391 | AO162: 94.58970878 | AP162: 95.2438941 | AQ162: 0 | AR162: 0 | AS162: 0 | AV162: 0 | AW162: 0.654185312 | AX162: 0.654185312 | AY162: 0 | AZ162: 0 | BA162: 0 | BB162: 0 | BC162: 0 | BD162: 0.654185312 | BE162: 0.05700717713 | BF162: 0 | BG162: 0 | BH162: 0.16 | BI162: 18.72 | BJ162: 0 | BK162: 0 | BM162: 5.660405447 | BN162: 0.119431987 | BO162: 0.16 | BP162: 0.16 | BQ162: 0 | BR162: 18.72
AI163: 118 | AJ163: 18.88 | AK163: Left Stream Bed | AL163: 57.49796846 | AM163: 96.58823639 | AN163: 57.48846284 | AO163: 94.58831254 | AP163: 95.23402997 | AQ163: 0 | AR163: 0 | AS163: 0 | AV163: 0 | AW163: 0.6457174311 | AX163: 0.6457174311 | AY163: 0 | AZ163: 0 | BA163: 0 | BB163: 0 | BC163: 0 | BD163: 0.6457174311 | BE163: 0.05626926697 | BF163: 0 | BG163: 0 | BH163: 0.16 | BI163: 18.88 | BJ163: 0 | BK163: 0 | BM163: 5.661801693 | BN163: 0.119307059 | BO163: 0.16 | BP163: 0.16 | BQ163: 0 | BR163: 18.88
AI164: 119 | AJ164: 19.04 | AK164: Left Stream Bed | AL164: 57.58510739 | AM164: 96.58684014 | AN164: 57.57560176 | AO164: 94.58691629 | AP164: 95.22416584 | AQ164: 0 | AR164: 0 | AS164: 0 | AV164: 0 | AW164: 0.6372495502 | AX164: 0.6372495502 | AY164: 0 | AZ164: 0 | BA164: 0 | BB164: 0 | BC164: 0 | BD164: 0.6372495502 | BE164: 0.05553135681 | BF164: 0 | BG164: 0 | BH164: 0.16 | BI164: 19.04 | BJ164: 0 | BK164: 0 | BM164: 5.663197939 | BN164: 0.1191822616 | BO164: 0.16 | BP164: 0.16 | BQ164: 0 | BR164: 19.04
AI165: 120 | AJ165: 19.2 | AK165: Left Stream Bed | AL165: 57.67224631 | AM165: 96.58544389 | AN165: 57.66274069 | AO165: 94.58552005 | AP165: 95.21430172 | AQ165: 0 | AR165: 0 | AS165: 0 | AV165: 0 | AW165: 0.6287816693 | AX165: 0.6287816693 | AY165: 0 | AZ165: 0 | BA165: 0 | BB165: 0 | BC165: 0 | BD165: 0.6287816693 | BE165: 0.05479344665 | BF165: 0 | BG165: 0 | BH165: 0.16 | BI165: 19.2 | BJ165: 0 | BK165: 0 | BM165: 5.664594184 | BN165: 0.1190575948 | BO165: 0.16 | BP165: 0.16 | BQ165: 0 | BR165: 19.2
AI166: 121 | AJ166: 19.36 | AK166: Left Stream Bed | AL166: 57.75938524 | AM166: 96.58404765 | AN166: 57.74987962 | AO166: 94.5841238 | AP166: 95.20443759 | AQ166: 0 | AR166: 0 | AS166: 0 | AV166: 0 | AW166: 0.6203137884 | AX166: 0.6203137884 | AY166: 0 | AZ166: 0 | BA166: 0 | BB166: 0 | BC166: 0 | BD166: 0.6203137884 | BE166: 0.0540555365 | BF166: 0 | BG166: 0 | BH166: 0.16 | BI166: 19.36 | BJ166: 0 | BK166: 0 | BM166: 5.66599043 | BN166: 0.1189330584 | BO166: 0.16 | BP166: 0.16 | BQ166: 0 | BR166: 19.36
AI167: 122 | AJ167: 19.52 | AK167: Left Stream Bed | AL167: 57.84652417 | AM167: 96.5826514 | AN167: 57.83701855 | AO167: 94.58272756 | AP167: 95.19457346 | AQ167: 0 | AR167: 0 | AS167: 0 | AV167: 0 | AW167: 0.6118459075 | AX167: 0.6118459075 | AY167: 0 | AZ167: 0 | BA167: 0 | BB167: 0 | BC167: 0 | BD167: 0.6118459075 | BE167: 0.05331762634 | BF167: 0 | BG167: 0 | BH167: 0.16 | BI167: 19.52 | BJ167: 0 | BK167: 0 | BM167: 5.667386676 | BN167: 0.1188086523 | BO167: 0.16 | BP167: 0.16 | BQ167: 0 | BR167: 19.52
AI168: 123 | AJ168: 19.68 | AK168: Left Stream Bed | AL168: 57.9336631 | AM168: 96.58125516 | AN168: 57.92415747 | AO168: 94.58133131 | AP168: 95.18470934 | AQ168: 0 | AR168: 0 | AS168: 0 | AV168: 0 | AW168: 0.6033780265 | AX168: 0.6033780265 | AY168: 0 | AZ168: 0 | BA168: 0 | BB168: 0 | BC168: 0 | BD168: 0.6033780265 | BE168: 0.05257971618 | BF168: 0 | BG168: 0 | BH168: 0.16 | BI168: 19.68 | BJ168: 0 | BK168: 0 | BM168: 5.668782921 | BN168: 0.1186843762 | BO168: 0.16 | BP168: 0.16 | BQ168: 0 | BR168: 19.68
AI169: 124 | AJ169: 19.84 | AK169: Left Stream Bed | AL169: 58.02080202 | AM169: 96.57985891 | AN169: 58.0112964 | AO169: 94.57993507 | AP169: 95.17484521 | AQ169: 0 | AR169: 0 | AS169: 0 | AV169: 0 | AW169: 0.5949101456 | AX169: 0.5949101456 | AY169: 0 | AZ169: 0 | BA169: 0 | BB169: 0 | BC169: 0 | BD169: 0.5949101456 | BE169: 0.05184180602 | BF169: 0 | BG169: 0 | BH169: 0.16 | BI169: 19.84 | BJ169: 0 | BK169: 0 | BM169: 5.670179167 | BN169: 0.1185602302 | BO169: 0.16 | BP169: 0.16 | BQ169: 0 | BR169: 19.84
AI170: 125 | AJ170: 20 | AK170: Left Stream Bed | AL170: 58.10794095 | AM170: 96.57846267 | AN170: 58.09843533 | AO170: 94.57853882 | AP170: 95.16498108 | AQ170: 0 | AR170: 0 | AS170: 0 | AV170: 0 | AW170: 0.5864422647 | AX170: 0.5864422647 | AY170: 0 | AZ170: 0 | BA170: 0 | BB170: 0 | BC170: 0 | BD170: 0.5864422647 | BE170: 0.05110389586 | BF170: 0 | BG170: 0 | BH170: 0.16 | BI170: 20 | BJ170: 0 | BK170: 0 | BM170: 5.671575413 | BN170: 0.1184362141 | BO170: 0.16 | BP170: 0.16 | BQ170: 0 | BR170: 20
AI171: 126 | AJ171: 20.16 | AK171: Left Stream Bed | AL171: 58.19507988 | AM171: 96.57706642 | AN171: 58.18557426 | AO171: 94.57714257 | AP171: 95.15511696 | AQ171: 0 | AR171: 0 | AS171: 0 | AV171: 0 | AW171: 0.5779743838 | AX171: 0.5779743838 | AY171: 0 | AZ171: 0 | BA171: 0 | BB171: 0 | BC171: 0 | BD171: 0.5779743838 | BE171: 0.05036598571 | BF171: 0 | BG171: 0 | BH171: 0.16 | BI171: 20.16 | BJ171: 0 | BK171: 0 | BM171: 5.672971658 | BN171: 0.1183123276 | BO171: 0.16 | BP171: 0.16 | BQ171: 0 | BR171: 20.16
AI172: 127 | AJ172: 20.32 | AK172: Left Stream Bed | AL172: 58.28221881 | AM172: 96.57567017 | AN172: 58.27271318 | AO172: 94.57574633 | AP172: 95.14525283 | AQ172: 0 | AR172: 0 | AS172: 0 | AV172: 0 | AW172: 0.5695065029 | AX172: 0.5695065029 | AY172: 0 | AZ172: 0 | BA172: 0 | BB172: 0 | BC172: 0 | BD172: 0.5695065029 | BE172: 0.04962807555 | BF172: 0 | BG172: 0 | BH172: 0.16 | BI172: 20.32 | BJ172: 0 | BK172: 0 | BM172: 5.674367904 | BN172: 0.1181885708 | BO172: 0.16 | BP172: 0.16 | BQ172: 0 | BR172: 20.32
AI173: 128 | AJ173: =($AI173/$AI$245)*$AJ$245 -> 20.48 | AK173: =IF(OR($C$19="",$F$25="",$G$25=""),"None",IF(AL173<$B$14,"Left Floodplain",IF(AL173<$B$15,"Left Bank",IF(AL173<$B$16,"Left Stream Bed",IF(AL173<$B$17,"Right Stream Bed",IF(AL173<$B$18,"Right Bank","Right Floodplain")))))) -> Left Stream Bed | AL173: 58.36935773 | AM173: 96.57427393 | AN173: 58.35985211 | AO173: 94.57435008 | AP173: =IF($AL173<$B$14,(($AL173-$B$13)*$AB$31)+$C$13,IF($AL173<$B$15,(($AL173-$B$14)*$AB$32)+$C$14,IF($AL173<$B$16,(($AL173-$B$15)*$AB$33)+$C$15,IF($AL173<$B$17,(($AL173-$B$16)*$AB$34)+$C$16,IF($AL173<$B$18,(($AL173-$B$17)*$AB$35)+$C$17,IF($AL173<$B$19,(($AL173-$B$18)*$AB$36)+$C$18)))))) -> 95.1353887 | AQ173: =IF(OR($AP173<$AE$12,$AP173<=$AM173),0,IF(OR($AP173>=$AE$12,$AM173>=$AE$12),$AP173-$AM173-$AR173,$AP173-$AE$12)) -> 0 | AR173: =IF($AP173<=$AM173,0,IF($AM173>=$AE$12,0,IF($AP173<=$AE$12,$AP173-$AM173,$AE$12-$AM173))) -> 0 | AS173: =IF(AP173<=AM173,0,AP173-AM173) -> 0 | AV173: 0 | AW173: =IF($AP173<=$AO173,0,IF($AO173>=$AE$12,0,IF($AP173<=$AE$12,$AP173-$AO173,$AE$12-$AO173))) -> 0.561038622 | AX173: =IF(AP173<=AO173,0,AP173-AO173) -> 0.561038622 | AY173: =IF($AS173=0,0,IF(OR($AJ173=0,$AJ173=$E$22),$AJ$46/2,$AJ$46)) -> 0 | AZ173: =IF(OR($AK173="Left Stream Bed",$AK173="Right Stream Bed"),$F$22*$AQ173*$AY173,0) -> 0 | BA173: =IF(OR($AK173="Left Stream Bed",$AK173="Right Stream Bed"),$F$22*$AR173*$AY173,0) -> 0 | BB173: =IF(OR($AK173="Left Floodplain",$AK173="Left Bank",$AK173="Right Bank",$AK173="Right Floodplain"),$F$22*$AQ173*$AY173,0) -> 0 | BC173: =IF(OR($AK173="Left Floodplain",$AK173="Left Bank",$AK173="Right Bank",$AK173="Right Floodplain"),$F$22*$AR173*$AY173,0) -> 0 | BD173: =AX173-AS173 -> 0.561038622 | BE173: 0.04889016539 | BF173: =AV173-AQ173 -> 0 | BG173: =IF(OR($AJ173=0,$AJ173=$E$22),($BF173*$AJ$46/2)*ABS($M$17),$BF173*$AJ$46*ABS($M$17)) -> 0 | BH173: =IF(OR($AM173<$AP173,$AO173>$AE$8),"",IF(OR($AJ173=0,$AJ173=$E$22),$AJ$46/2,$AJ$46)) -> 0.16 | BI173: 20.48 | BJ173: 0 | BK173: =IF($BJ173="","",IF(OR($BJ173>($F$22/2),$BJ173=0),0,0.45-($BJ173*0.45/($F$22/2)))) -> 0 | BL173: =IF($BK173="","",IF($BK173>0,$AJ173,"")) ->  | BM173: 5.67576415 | BN173: 0.1180649434 | BO173: =IF($AO173=0,0,IF($AO173>$AP173,0,IF(OR($AJ173=0,$AJ173=$E$22),$AJ$46/2,$AJ$46))) -> 0.16 | BP173: =IF(AND($BO173>0,OR($AK173="Left Stream Bed",$AK173="Right Stream Bed")),$BO173,0) -> 0.16 | BQ173: =IF(AND($BO173>0,OR($AK173="Left Floodplain",$AK173="Left Bank",$AK173="Right Bank",$AK173="Right Floodplain")),$BO173,0) -> 0 | BR173: =IF($BO173>0,$AJ173,"") -> 20.48
AI174: 129 | AJ174: 20.64 | AK174: Left Stream Bed | AL174: =$AL$45+ABS(AJ174*$M$19*$M$17) -> 58.45649666 | AM174: 96.57287768 | AN174: =$AN$45+ABS(AJ174*$M$19*$M$17) -> 58.44699104 | AO174: 94.57295384 | AP174: 95.12552458 | AQ174: 0 | AR174: 0 | AS174: 0 | AT174: =IF(OR($AS174="",$AS174=0),"",IF(OR($AK174="Left Stream Bed",$AK174="Right Stream Bed"),$AS174,"")) ->  | AU174: =IF(OR($AS174="",$AS174=0),"",IF(OR($AK174="Left Floodplain",$AK174="Left Bank",$AK174="Right Bank",$AK174="Right Floodplain"),$AS174,"")) ->  | AV174: =IF(OR($AP174<$AE$12,$AP174<=$AO174),0,IF($AO174>=$AE$12,$AP174-$AO174,$AP174-$AE$12)) -> 0 | AW174: 0.5525707411 | AX174: 0.5525707411 | AY174: 0 | AZ174: 0 | BA174: 0 | BB174: 0 | BC174: 0 | BD174: 0.5525707411 | BE174: =$BD174*$AJ$46*ABS($M$17) -> 0.04815225523 | BF174: 0 | BG174: 0 | BH174: 0.16 | BI174: =IF($BH174="","",IF($BH174>0,$AJ174,"")) -> 20.64 | BJ174: =IF($BH174="","",IF(OR(($AO174-$AP174)<0,$AO$45>=$AE$8),0,($AO174-$AP174))) -> 0 | BK174: 0 | BM174: =IF($BH174="","",IF(OR(($AM174-$AP174)<0,$AM174>=$AE$8),"",($AE$8-($AM174-(($F$22/2)/$M$19))))) -> 5.677160395 | BN174: 0.1179414453 | BO174: 0.16 | BP174: 0.16 | BQ174: 0 | BR174: 20.64 | BS174: =IF($AY174>0,$AJ174,"") -> 
AI175: 130 | AJ175: 20.8 | AK175: Left Stream Bed | AL175: 58.54363559 | AM175: =AM174+((AL175-AL174)*$AA$40) -> 96.57148144 | AN175: 58.53412997 | AO175: =AO174+((AN175-AN174)*$AA$40) -> 94.57155759 | AP175: 95.11566045 | AQ175: 0 | AR175: 0 | AS175: 0 | AV175: 0 | AW175: 0.5441028602 | AX175: 0.5441028602 | AY175: 0 | AZ175: 0 | BA175: 0 | BB175: 0 | BC175: 0 | BD175: 0.5441028602 | BE175: 0.04741434507 | BF175: 0 | BG175: 0 | BH175: 0.16 | BI175: 20.8 | BJ175: 0 | BK175: 0 | BM175: 5.678556641 | BN175: =IF($BM175="","",(((PI()^2)/32)*($B$66^-6)*EXP(-($BM175/$F$22)/(2*($B$66^2))))) -> 0.1178180764 | BO175: 0.16 | BP175: 0.16 | BQ175: 0 | BR175: 20.8
AI176: 131 | AJ176: 20.96 | AK176: Left Stream Bed | AL176: 58.63077452 | AM176: 96.57008519 | AN176: 58.62126889 | AO176: 94.57016135 | AP176: 95.10579632 | AQ176: 0 | AR176: 0 | AS176: 0 | AV176: 0 | AW176: 0.5356349792 | AX176: 0.5356349792 | AY176: 0 | AZ176: 0 | BA176: 0 | BB176: 0 | BC176: 0 | BD176: 0.5356349792 | BE176: 0.04667643491 | BF176: 0 | BG176: 0 | BH176: 0.16 | BI176: 20.96 | BJ176: 0 | BK176: 0 | BM176: 5.679952887 | BN176: 0.1176948366 | BO176: 0.16 | BP176: 0.16 | BQ176: 0 | BR176: 20.96
AI177: 132 | AJ177: 21.12 | AK177: Left Stream Bed | AL177: 58.71791344 | AM177: 96.56868895 | AN177: 58.70840782 | AO177: 94.5687651 | AP177: 95.0959322 | AQ177: 0 | AR177: 0 | AS177: 0 | AV177: 0 | AW177: 0.5271670983 | AX177: 0.5271670983 | AY177: 0 | AZ177: 0 | BA177: 0 | BB177: 0 | BC177: 0 | BD177: 0.5271670983 | BE177: 0.04593852476 | BF177: 0 | BG177: 0 | BH177: 0.16 | BI177: 21.12 | BJ177: 0 | BK177: 0 | BM177: 5.681349133 | BN177: 0.1175717256 | BO177: 0.16 | BP177: 0.16 | BQ177: 0 | BR177: 21.12
AI178: 133 | AJ178: 21.28 | AK178: Left Stream Bed | AL178: 58.80505237 | AM178: 96.5672927 | AN178: 58.79554675 | AO178: 94.56736885 | AP178: 95.08606807 | AQ178: 0 | AR178: 0 | AS178: 0 | AV178: 0 | AW178: 0.5186992174 | AX178: 0.5186992174 | AY178: 0 | AZ178: 0 | BA178: 0 | BB178: 0 | BC178: 0 | BD178: 0.5186992174 | BE178: 0.0452006146 | BF178: 0 | BG178: 0 | BH178: 0.16 | BI178: 21.28 | BJ178: 0 | BK178: 0 | BM178: 5.682745378 | BN178: 0.1174487435 | BO178: 0.16 | BP178: 0.16 | BQ178: 0 | BR178: 21.28
AI179: 134 | AJ179: 21.44 | AK179: Left Stream Bed | AL179: 58.8921913 | AM179: 96.56589645 | AN179: 58.88268568 | AO179: 94.56597261 | AP179: 95.07620394 | AQ179: 0 | AR179: 0 | AS179: 0 | AV179: 0 | AW179: 0.5102313365 | AX179: 0.5102313365 | AY179: 0 | AZ179: 0 | BA179: 0 | BB179: 0 | BC179: 0 | BD179: 0.5102313365 | BE179: 0.04446270444 | BF179: 0 | BG179: 0 | BH179: 0.16 | BI179: 21.44 | BJ179: 0 | BK179: 0 | BM179: 5.684141624 | BN179: 0.11732589 | BO179: 0.16 | BP179: 0.16 | BQ179: 0 | BR179: 21.44
AI180: 135 | AJ180: 21.6 | AK180: Left Stream Bed | AL180: 58.97933023 | AM180: 96.56450021 | AN180: 58.9698246 | AO180: 94.56457636 | AP180: 95.06633982 | AQ180: 0 | AR180: 0 | AS180: 0 | AV180: 0 | AW180: 0.5017634556 | AX180: 0.5017634556 | AY180: 0 | AZ180: 0 | BA180: 0 | BB180: 0 | BC180: 0 | BD180: 0.5017634556 | BE180: 0.04372479428 | BF180: 0 | BG180: 0 | BH180: 0.16 | BI180: 21.6 | BJ180: 0 | BK180: 0 | BM180: 5.68553787 | BN180: 0.1172031649 | BO180: 0.16 | BP180: 0.16 | BQ180: 0 | BR180: 21.6
AI181: 136 | AJ181: 21.76 | AK181: Left Stream Bed | AL181: 59.06646915 | AM181: 96.56310396 | AN181: 59.05696353 | AO181: 94.56318012 | AP181: 95.05647569 | AQ181: 0 | AR181: 0 | AS181: 0 | AV181: 0 | AW181: 0.4932955747 | AX181: 0.4932955747 | AY181: 0 | AZ181: 0 | BA181: 0 | BB181: 0 | BC181: 0 | BD181: 0.4932955747 | BE181: 0.04298688412 | BF181: 0 | BG181: 0 | BH181: 0.16 | BI181: 21.76 | BJ181: 0 | BK181: 0 | BM181: 5.686934115 | BN181: 0.1170805683 | BO181: 0.16 | BP181: 0.16 | BQ181: 0 | BR181: 21.76
AI182: 137 | AJ182: 21.92 | AK182: Left Stream Bed | AL182: 59.15360808 | AM182: 96.56170772 | AN182: 59.14410246 | AO182: 94.56178387 | AP182: 95.04661157 | AQ182: 0 | AR182: 0 | AS182: 0 | AV182: 0 | AW182: 0.4848276938 | AX182: 0.4848276938 | AY182: 0 | AZ182: 0 | BA182: 0 | BB182: 0 | BC182: 0 | BD182: 0.4848276938 | BE182: 0.04224897397 | BF182: 0 | BG182: 0 | BH182: 0.16 | BI182: 21.92 | BJ182: 0 | BK182: 0 | BM182: 5.688330361 | BN182: 0.1169580999 | BO182: 0.16 | BP182: 0.16 | BQ182: 0 | BR182: 21.92
AI183: 138 | AJ183: 22.08 | AK183: Left Stream Bed | AL183: 59.24074701 | AM183: 96.56031147 | AN183: 59.23124139 | AO183: 94.56038763 | AP183: 95.03674744 | AQ183: 0 | AR183: 0 | AS183: 0 | AV183: 0 | AW183: 0.4763598129 | AX183: 0.4763598129 | AY183: 0 | AZ183: 0 | BA183: 0 | BB183: 0 | BC183: 0 | BD183: 0.4763598129 | BE183: 0.04151106381 | BF183: 0 | BG183: 0 | BH183: 0.16 | BI183: 22.08 | BJ183: 0 | BK183: 0 | BM183: 5.689726607 | BN183: 0.1168357596 | BO183: 0.16 | BP183: 0.16 | BQ183: 0 | BR183: 22.08
AI184: 139 | AJ184: 22.24 | AK184: Left Stream Bed | AL184: 59.32788594 | AM184: 96.55891523 | AN184: 59.31838031 | AO184: 94.55899138 | AP184: 95.02688331 | AQ184: 0 | AR184: 0 | AS184: 0 | AV184: 0 | AW184: 0.4678919319 | AX184: 0.4678919319 | AY184: 0 | AZ184: 0 | BA184: 0 | BB184: 0 | BC184: 0 | BD184: 0.4678919319 | BE184: 0.04077315365 | BF184: 0 | BG184: 0 | BH184: 0.16 | BI184: 22.24 | BJ184: 0 | BK184: 0 | BM184: 5.691122852 | BN184: 0.1167135473 | BO184: 0.16 | BP184: 0.16 | BQ184: 0 | BR184: 22.24
AI185: 140 | AJ185: 22.4 | AK185: Left Stream Bed | AL185: 59.41502486 | AM185: 96.55751898 | AN185: 59.40551924 | AO185: 94.55759513 | AP185: 95.01701919 | AQ185: 0 | AR185: 0 | AS185: 0 | AV185: 0 | AW185: 0.459424051 | AX185: 0.459424051 | AY185: 0 | AZ185: 0 | BA185: 0 | BB185: 0 | BC185: 0 | BD185: 0.459424051 | BE185: 0.04003524349 | BF185: 0 | BG185: 0 | BH185: 0.16 | BI185: 22.4 | BJ185: 0 | BK185: 0 | BM185: 5.692519098 | BN185: 0.1165914628 | BO185: 0.16 | BP185: 0.16 | BQ185: 0 | BR185: 22.4
AI186: 141 | AJ186: 22.56 | AK186: Left Stream Bed | AL186: 59.50216379 | AM186: 96.55612273 | AN186: 59.49265817 | AO186: 94.55619889 | AP186: 95.00715506 | AQ186: 0 | AR186: 0 | AS186: 0 | AV186: 0 | AW186: 0.4509561701 | AX186: 0.4509561701 | AY186: 0 | AZ186: 0 | BA186: 0 | BB186: 0 | BC186: 0 | BD186: 0.4509561701 | BE186: 0.03929733333 | BF186: 0 | BG186: 0 | BH186: 0.16 | BI186: 22.56 | BJ186: 0 | BK186: 0 | BM186: 5.693915344 | BN186: 0.116469506 | BO186: 0.16 | BP186: 0.16 | BQ186: 0 | BR186: 22.56
AI187: 142 | AJ187: 22.72 | AK187: Left Stream Bed | AL187: 59.58930272 | AM187: 96.55472649 | AN187: 59.5797971 | AO187: 94.55480264 | AP187: 94.99729093 | AQ187: 0 | AR187: 0 | AS187: 0 | AV187: 0 | AW187: 0.4424882892 | AX187: 0.4424882892 | AY187: 0 | AZ187: 0 | BA187: 0 | BB187: 0 | BC187: 0 | BD187: 0.4424882892 | BE187: 0.03855942317 | BF187: 0 | BG187: 0 | BH187: 0.16 | BI187: 22.72 | BJ187: 0 | BK187: 0 | BM187: 5.695311589 | BN187: 0.1163476768 | BO187: 0.16 | BP187: 0.16 | BQ187: 0 | BR187: 22.72
AI188: 143 | AJ188: 22.88 | AK188: Left Stream Bed | AL188: 59.67644165 | AM188: 96.55333024 | AN188: 59.66693602 | AO188: 94.5534064 | AP188: 94.98742681 | AQ188: 0 | AR188: 0 | AS188: 0 | AV188: 0 | AW188: 0.4340204083 | AX188: 0.4340204083 | AY188: 0 | AZ188: 0 | BA188: 0 | BB188: 0 | BC188: 0 | BD188: 0.4340204083 | BE188: 0.03782151302 | BF188: 0 | BG188: 0 | BH188: 0.16 | BI188: 22.88 | BJ188: 0 | BK188: 0 | BM188: 5.696707835 | BN188: 0.116225975 | BO188: 0.16 | BP188: 0.16 | BQ188: 0 | BR188: 22.88
AI189: 144 | AJ189: 23.04 | AK189: Left Stream Bed | AL189: 59.76358057 | AM189: 96.551934 | AN189: 59.75407495 | AO189: 94.55201015 | AP189: 94.97756268 | AQ189: 0 | AR189: 0 | AS189: 0 | AV189: 0 | AW189: 0.4255525274 | AX189: 0.4255525274 | AY189: 0 | AZ189: 0 | BA189: 0 | BB189: 0 | BC189: 0 | BD189: 0.4255525274 | BE189: 0.03708360286 | BF189: 0 | BG189: 0 | BH189: 0.16 | BI189: 23.04 | BJ189: 0 | BK189: 0 | BM189: 5.698104081 | BN189: 0.1161044005 | BO189: 0.16 | BP189: 0.16 | BQ189: 0 | BR189: 23.04
AI190: 145 | AJ190: 23.2 | AK190: Left Stream Bed | AL190: 59.8507195 | AM190: 96.55053775 | AN190: 59.84121388 | AO190: 94.55061391 | AP190: 94.96769855 | AQ190: 0 | AR190: 0 | AS190: 0 | AV190: 0 | AW190: 0.4170846465 | AX190: 0.4170846465 | AY190: 0 | AZ190: 0 | BA190: 0 | BB190: 0 | BC190: 0 | BD190: 0.4170846465 | BE190: 0.0363456927 | BF190: 0 | BG190: 0 | BH190: 0.16 | BI190: 23.2 | BJ190: 0 | BK190: 0 | BM190: 5.699500326 | BN190: 0.1159829532 | BO190: 0.16 | BP190: 0.16 | BQ190: 0 | BR190: 23.2
AI191: 146 | AJ191: 23.36 | AK191: Left Stream Bed | AL191: 59.93785843 | AM191: 96.54914151 | AN191: 59.92835281 | AO191: 94.54921766 | AP191: 94.95783443 | AQ191: 0 | AR191: 0 | AS191: 0 | AV191: 0 | AW191: 0.4086167656 | AX191: 0.4086167656 | AY191: 0 | AZ191: 0 | BA191: 0 | BB191: 0 | BC191: 0 | BD191: 0.4086167656 | BE191: 0.03560778254 | BF191: 0 | BG191: 0 | BH191: 0.16 | BI191: 23.36 | BJ191: 0 | BK191: 0 | BM191: 5.700896572 | BN191: 0.1158616329 | BO191: 0.16 | BP191: 0.16 | BQ191: 0 | BR191: 23.36
AI192: 147 | AJ192: 23.52 | AK192: Left Stream Bed | AL192: 60.02499736 | AM192: 96.54774526 | AN192: 60.01549173 | AO192: 94.54782141 | AP192: 94.9479703 | AQ192: 0 | AR192: 0 | AS192: 0 | AV192: 0 | AW192: 0.4001488846 | AX192: 0.4001488846 | AY192: 0 | AZ192: 0 | BA192: 0 | BB192: 0 | BC192: 0 | BD192: 0.4001488846 | BE192: 0.03486987238 | BF192: 0 | BG192: 0 | BH192: 0.16 | BI192: 23.52 | BJ192: 0 | BK192: 0 | BM192: 5.702292818 | BN192: 0.1157404395 | BO192: 0.16 | BP192: 0.16 | BQ192: 0 | BR192: 23.52
AI193: 148 | AJ193: 23.68 | AK193: Left Stream Bed | AL193: 60.11213628 | AM193: 96.54634901 | AN193: 60.10263066 | AO193: 94.54642517 | AP193: 94.93810617 | AQ193: 0 | AR193: 0 | AS193: 0 | AV193: 0 | AW193: 0.3916810037 | AX193: 0.3916810037 | AY193: 0 | AZ193: 0 | BA193: 0 | BB193: 0 | BC193: 0 | BD193: 0.3916810037 | BE193: 0.03413196222 | BF193: 0 | BG193: 0 | BH193: 0.16 | BI193: 23.68 | BJ193: 0 | BK193: 0 | BM193: 5.703689063 | BN193: 0.1156193729 | BO193: 0.16 | BP193: 0.16 | BQ193: 0 | BR193: 23.68
AI194: 149 | AJ194: 23.84 | AK194: Left Stream Bed | AL194: 60.19927521 | AM194: 96.54495277 | AN194: 60.18976959 | AO194: 94.54502892 | AP194: 94.92824205 | AQ194: 0 | AR194: 0 | AS194: 0 | AV194: 0 | AW194: 0.3832131228 | AX194: 0.3832131228 | AY194: 0 | AZ194: 0 | BA194: 0 | BB194: 0 | BC194: 0 | BD194: 0.3832131228 | BE194: 0.03339405207 | BF194: 0 | BG194: 0 | BH194: 0.16 | BI194: 23.84 | BJ194: 0 | BK194: 0 | BM194: 5.705085309 | BN194: 0.115498433 | BO194: 0.16 | BP194: 0.16 | BQ194: 0 | BR194: 23.84
AI195: 150 | AJ195: 24 | AK195: Left Stream Bed | AL195: 60.28641414 | AM195: 96.54355652 | AN195: 60.27690852 | AO195: 94.54363268 | AP195: 94.91837792 | AQ195: 0 | AR195: 0 | AS195: 0 | AV195: 0 | AW195: 0.3747452419 | AX195: 0.3747452419 | AY195: 0 | AZ195: 0 | BA195: 0 | BB195: 0 | BC195: 0 | BD195: 0.3747452419 | BE195: 0.03265614191 | BF195: 0 | BG195: 0 | BH195: 0.16 | BI195: 24 | BJ195: 0 | BK195: 0 | BM195: 5.706481555 | BN195: 0.1153776195 | BO195: 0.16 | BP195: 0.16 | BQ195: 0 | BR195: 24
AI196: 151 | AJ196: 24.16 | AK196: Left Stream Bed | AL196: 60.37355307 | AM196: 96.54216028 | AN196: 60.36404744 | AO196: 94.54223643 | AP196: 94.90851379 | AQ196: 0 | AR196: 0 | AS196: 0 | AV196: 0 | AW196: 0.366277361 | AX196: 0.366277361 | AY196: 0 | AZ196: 0 | BA196: 0 | BB196: 0 | BC196: 0 | BD196: 0.366277361 | BE196: 0.03191823175 | BF196: 0 | BG196: 0 | BH196: 0.16 | BI196: 24.16 | BJ196: 0 | BK196: 0 | BM196: 5.7078778 | BN196: 0.1152569324 | BO196: 0.16 | BP196: 0.16 | BQ196: 0 | BR196: 24.16
AI197: 152 | AJ197: 24.32 | AK197: Left Stream Bed | AL197: 60.46069199 | AM197: 96.54076403 | AN197: 60.45118637 | AO197: 94.54084019 | AP197: 94.89864967 | AQ197: 0 | AR197: 0 | AS197: 0 | AV197: 0 | AW197: 0.3578094801 | AX197: 0.3578094801 | AY197: 0 | AZ197: 0 | BA197: 0 | BB197: 0 | BC197: 0 | BD197: 0.3578094801 | BE197: 0.03118032159 | BF197: 0 | BG197: 0 | BH197: 0.16 | BI197: 24.32 | BJ197: 0 | BK197: 0 | BM197: 5.709274046 | BN197: 0.1151363716 | BO197: 0.16 | BP197: 0.16 | BQ197: 0 | BR197: 24.32
AI198: 153 | AJ198: 24.48 | AK198: Left Stream Bed | AL198: 60.54783092 | AM198: 96.53936779 | AN198: 60.5383253 | AO198: 94.53944394 | AP198: 94.88878554 | AQ198: 0 | AR198: 0 | AS198: 0 | AV198: 0 | AW198: 0.3493415992 | AX198: 0.3493415992 | AY198: 0 | AZ198: 0 | BA198: 0 | BB198: 0 | BC198: 0 | BD198: 0.3493415992 | BE198: 0.03044241143 | BF198: 0 | BG198: 0 | BH198: 0.16 | BI198: 24.48 | BJ198: 0 | BK198: 0 | BM198: 5.710670292 | BN198: 0.1150159368 | BO198: 0.16 | BP198: 0.16 | BQ198: 0 | BR198: 24.48
AI199: 154 | AJ199: 24.64 | AK199: Left Stream Bed | AL199: 60.63496985 | AM199: 96.53797154 | AN199: 60.62546423 | AO199: 94.53804769 | AP199: 94.87892141 | AQ199: 0 | AR199: 0 | AS199: 0 | AV199: 0 | AW199: 0.3408737183 | AX199: 0.3408737183 | AY199: 0 | AZ199: 0 | BA199: 0 | BB199: 0 | BC199: 0 | BD199: 0.3408737183 | BE199: 0.02970450128 | BF199: 0 | BG199: 0 | BH199: 0.16 | BI199: 24.64 | BJ199: 0 | BK199: 0 | BM199: 5.712066537 | BN199: 0.1148956281 | BO199: 0.16 | BP199: 0.16 | BQ199: 0 | BR199: 24.64
AI200: 155 | AJ200: 24.8 | AK200: Left Stream Bed | AL200: 60.72210878 | AM200: 96.5365753 | AN200: 60.71260315 | AO200: 94.53665145 | AP200: 94.86905729 | AQ200: 0 | AR200: 0 | AS200: 0 | AV200: 0 | AW200: 0.3324058373 | AX200: 0.3324058373 | AY200: 0 | AZ200: 0 | BA200: 0 | BB200: 0 | BC200: 0 | BD200: 0.3324058373 | BE200: 0.02896659112 | BF200: 0 | BG200: 0 | BH200: 0.16 | BI200: 24.8 | BJ200: 0 | BK200: 0 | BM200: 5.713462783 | BN200: 0.1147754452 | BO200: 0.16 | BP200: 0.16 | BQ200: 0 | BR200: 24.8
AI201: 156 | AJ201: 24.96 | AK201: Left Stream Bed | AL201: 60.8092477 | AM201: 96.53517905 | AN201: 60.79974208 | AO201: 94.5352552 | AP201: 94.85919316 | AQ201: 0 | AR201: 0 | AS201: 0 | AV201: 0 | AW201: 0.3239379564 | AX201: 0.3239379564 | AY201: 0 | AZ201: 0 | BA201: 0 | BB201: 0 | BC201: 0 | BD201: 0.3239379564 | BE201: 0.02822868096 | BF201: 0 | BG201: 0 | BH201: 0.16 | BI201: 24.96 | BJ201: 0 | BK201: 0 | BM201: 5.714859029 | BN201: 0.1146553879 | BO201: 0.16 | BP201: 0.16 | BQ201: 0 | BR201: 24.96
AI202: 157 | AJ202: 25.12 | AK202: Left Stream Bed | AL202: 60.89638663 | AM202: 96.5337828 | AN202: 60.88688101 | AO202: 94.53385896 | AP202: 94.84932903 | AQ202: 0 | AR202: 0 | AS202: 0 | AV202: 0 | AW202: 0.3154700755 | AX202: 0.3154700755 | AY202: 0 | AZ202: 0 | BA202: 0 | BB202: 0 | BC202: 0 | BD202: 0.3154700755 | BE202: 0.0274907708 | BF202: 0 | BG202: 0 | BH202: 0.16 | BI202: 25.12 | BJ202: 0 | BK202: 0 | BM202: 5.716255275 | BN202: 0.1145354563 | BO202: 0.16 | BP202: 0.16 | BQ202: 0 | BR202: 25.12
... 43 more rows

Sheet Prelim-Top#2
A1: ='1-Cover'!A1 -> Sample Multi-Log Structure | I1: Spreadsheet developed by Michael Rafferty, P.E.
A3: Single Log Stability Analysis Model Inputs | K3: ERROR CHECKS
A5: Site ID | B5: Structure Type | D5: Structure Position | F5: Meander | G5: Station | H5: dw (ft) | I5: Rc/WBF | J5: udes (ft/s) | L5: Type Lookup Table | AG5: Tilted Cylindrical (Stem) "Below Water Surface" Volume Calculation (Below High Flow) | AR5: Tilted Cylindrical (Stem) Wet Volume Calculation (Below Channel Thalweg) | BC5: Tilted Frustum (RW) Volume Calculation (Slice Method) | BI5: A = R2 arccos [(R - h)/R] - [(R - h)*SQRT(2Rh - h2)]
A6: Sample1 | B6: Flow Deflection | D6: Left bank | F6: Outside | G6: =IF($A6="","",VLOOKUP($A6,SiteInfo,2,0)) -> 1000 | H6: =IF($A6="","",VLOOKUP($A6,SiteInfo,4,0)) -> 8.45 | I6: =IF($A6="","",VLOOKUP($A6,SiteInfo,9,0)) -> 5.319148936 | J6: =IF(OR($A$6="",$F$6=""),"",IF($F$6="Outside",VLOOKUP($A$6,SiteInfo,10,0),VLOOKUP($A$6,SiteInfo,5,0))) -> 4.632711077 | K6: =IF($F$6="","",IF(AND($I$6<26,$F$6="Straight"),"CHECK - Structure is located on a meander (Rc/WBF < 26)","")) ->  | L6: Structure Types | N6: Description | AC6: Water Surface | BC6: Slice thickness (ft) = | BE6: =IF($G$22="","",$G$22/$BC$39) -> 0.1 | BF6: WSE (ft) = | BG6: =IF($AE$8="","",$AE$8) -> 101.25 | BH6: RRW (ft) = | BI6: =IF($H$22="","",$H$22/2) -> 3 | BJ6: yRW,crown (ft) = | BK6: =IF($U$10="","",$U$10) -> 98.47366809 | BL6: yRW,bot (ft) = | BM6: =IF($U$15="","",$U$15) -> 92.47389655
K7: =IF(OR($F$6="",$I$6=""),"",IF(AND($I$6>26,$F$6<>"Straight"),"CHECK - Structure is not on a meander (Rc/WBF > 26)","")) ->  | L7: Rootwad | N7: Logs buried in bank with rootwads protruding into channel | AD7: x (ft) | AE7: y (ft) | AH7: R = DTS/2 | AI7: =$F$22/2 -> 1 | AJ7: ft | AS7: R = DTS/2 | AT7: =$F$22/2 -> 1 | AU7: ft | BF7: Thalweg Elevation (ft) = | BG7: =$C$16 -> 92.8 | BH7: RTS (ft) = | BI7: =IF($F$22="","",$F$22/2) -> 1 | BJ7: yRC,crown (ft) = | BK7: =IF($U$11="","",$U$11) -> 96.49992385 | BL7: yRC,bot (ft) = | BM7: =IF($U$14="","",$U$14) -> 94.5
A8: Multi-Log Structures | B8: Layer | C8: Log ID | L8: Log Vane | N8: Logs protruding from bank and angled either up- or downstream | S8: Large Wood Coordinates | AC8: WSE | AD8: =IF(OR($A$6="",$C$16=""),0,IF(($H$6+$C$16)>=$C$13,$B$13,IF(AND(($H$6+$C$16)<$C$13,($H$6+$C$16)>=$C$14),((($C$13-($H$6+$C$16))/($C$13-$C$14))*($B$14-$B$13))+$B$13,IF(AND(($H$6+$C$16)<$C$14,($H$6+$C$16)>=$C$15),((($C$14-($H$6+$C$16))/($C$14-$C$15))*($B$15-$B$14))+$B$14,IF(AND(($H$6+$C$16)<$C$15,($H$6+$C$16)>=$C$16),((($C$15-($H$6+$C$16))/($C$15-$C$16))*($B$16-$B$15))+$B$15,""))))) -> 0 | AE8: =IF(OR($A$6="",$C$16=""),$C$13,$H$6+$C$16) -> 101.25 | AH8: b (rad) | AI8: =ABS($C$25)*PI()/180 -> 0.00872664626 | AJ8: rad | AS8: b (rad) | AT8: =ABS($C$25)*PI()/180 -> 0.00872664626 | AU8: rad
B9: Stacked | C9: Top#2 | L9: Log Weir | N9: Weirs spanning small streams comprised of one or more large logs | T9: x (ft) | U9: y (ft) | W9: Large wood check | X9: x (ft) | Z9: y (ft) | AC9: WSE | AD9: =IF(OR($A$6="",$C$16=""),0,IF(($H$6+$C$16)>=$C$19,$B$19,IF(AND(($H$6+$C$16)<$C$19,($H$6+$C$16)>=$C$18),(((($H$6+$C$16)-$C$18)/($C$19-$C$18))*($B$19-$B$18))+$B$18,IF(AND(($H$6+$C$16)<$C$18,($H$6+$C$16)>=$C$17),(((($H$6+$C$16)-$C$17)/($C$18-$C$17))*($B$18-$B$17))+$B$17,IF(AND(($H$6+$C$16)<$C$17,($H$6+$C$16)>=$C$16),(((($H$6+$C$16)-$C$16)/($C$17-$C$16))*($B$17-$B$16))+$B$16,""))))) -> 150 | AE9: =IF(OR($A$6="",$C$16=""),$C$13,$H$6+$C$16) -> 101.25 | AH9: dwet,max | AI9: =IF($AB$23>$AB$24,$AB$23,IF($AB$23<$AB$24,$AB$24,"")) -> 6.75 | AJ9: ft | AS9: dwet,max | AT9: =IF($Z$23>$Z$24,$Z$23,IF($Z$23<$Z$24,$Z$24,"")) ->  | AU9: ft | BC9: Slice # | BD9: xRW,avg (ft) | BE9: RRW,slice (ft) | BF9: Aslice,avg (ft) | BG9: Vslice (ft3) | BH9: ycrown,avg (ft) | BI9: ybot,avg (ft) | BJ9: hRW,cr,↑WSE (ft) | BK9: ARW,↑WSE (ft2) | BL9: VRW,↑WSE (ft3) | BM9: hRW,bot,↓thw (ft) | BN9: ARW,↓thw (ft2) | BO9: VRW,↓thw (ft3)
K10: =IF(OR($C$14="",$C$15=""),"",IF($C$15>=$C$14,"ERROR - LB top elevation must be > LB toe elevation","")) ->  | L10: Tree Revetment | N10: Row of logs secured along the bank and placed parallel to flow | R10: Pt 1 | S10: Rootwad: Crown | T10: =IF($F$25="",0,IF($D$25="Rootwad: Crown",$F$25,IF($D$22="No",$T$15+(($F$22*-$M$20)*$M$17),$T$15+(($H$22*-$M$20)*$M$17)))) -> 58.3777667 | U10: =IF($G$25="",$C$13,IF($D$25="Rootwad: Crown",$G$25,IF($D$22="No",$U$15+($F$22*$M$19),$U$15+($H$22*$M$19)))) -> 98.47366809 | W10: Rootwad: Crown | X10: =IF($D$22="No",$T$15+(($F$22*-$M$20)*$M$17),$T$15+(($H$22*-$M$20)*$M$17)) -> 58.3777667 | Y10: =IF(X10=T10,"OK","ERROR") -> OK | Z10: =IF($D$22="No",$U$15+($F$22*$M$19),$U$15+($H$22*$M$19)) -> 98.47366809 | AA10: =IF(Z10=U10,"OK","ERROR") -> OK | AH10: dwet,avgH | AI10: =IF(AND($AB$23>0,$AB$24>0),(($AB$23/COS($AI$8))+($AB$24/COS($AI$8)))/2,"") -> 6.623717446 | AJ10: ft | AS10: dwet,avgH | AT10: =IF(AND($Z$23>0,$Z$24>0),(($Z$23/COS($AT$8))+($Z$24/COS($AT$8)))/2,"") ->  | AU10: ft | BC10: 1 | BD10: =($BE$6/2)+(($BC10-1)*$BE$6) -> 0.05 | BE10: =(($G$22-$BD10)/$G$22)*($BI$6-$BI$7)+$BI$7 -> 2.966666667 | BF10: =PI()*($BE10^2) -> 27.64950601 | BG10: =$BF10*$BE$6 -> 2.764950601 | BH10: =(($G$22-$BD10)/$G$22)*($BK$6-$BK$7)+$BK$7 -> 98.44077235 | BI10: =(($G$22-$BD10)/$G$22)*($BM$6-$BM$7)+$BM$7 -> 92.50766494 | BJ10: =IF($BH10<=$BG$6,0,IF((($BH10-$BG$6)*$M$19)>=($BE10*2),$BE10*2,($BH10-$BG$6)*$M$19)) -> 0 | BK10: =(($BE10^2)*ACOS(($BE10-$BJ10)/$BE10))-(($BE10-$BJ10)*SQRT(2*$BE10*$BJ10-($BJ10^2))) -> 0 | BL10: =$BK10*$BE$6 -> 0 | BM10: =IF($BI10>=$BG$7,0,IF((($BG$7-$BI10)*$M$19)>=($BE10*2),$BE10*2,($BG$7-$BI10)*$M$19)) -> 0.2923239305 | BN10: =(($BE10^2)*ACOS(($BE10-$BM10)/$BE10))-(($BE10-$BM10)*SQRT(2*$BE10*$BM10-($BM10^2))) -> 0.5056607511 | BO10: =$BN10*$BE$6 -> 0.05056607511
A11: Channel Geometry Coordinates | K11: =IF(OR($C$15="",$C$16="",$C$17=""),"",IF(OR($C$15<$C$16,$C$17<$C$16),"ERROR - Toe elevation must be >= thalweg elevation","")) ->  | L11: Flow Deflection | N11: Partially spanning multiple log structure along the bank | R11: Pt 2 | S11: Root collar: Crown | T11: =IF($F$25="",0,IF($D$25="Root collar: Crown",$F$25,IF($D$22="No",$T$10,$T$10+(($G$22*$M$19)*$M$17)-(((($H$22-$F$22)/2)*-$M$20)*$M$17)))) -> 57.00792353 | U11: =IF($G$25="",$C$13,IF($D$25="Root collar: Crown",$G$25,IF($D$22="No",$U$10,$U$10-($G$22*-$M$20)-((($H$22-$F$22)/2)*$M$19)))) -> 96.49992385 | W11: Root collar: Crown | X11: =IF($D$22="No",$X$10,$T$10+(($G$22*$M$19)*$M$17)-(((($H$22-$F$22)/2)*-$M$20)*$M$17)) -> 57.00792353 | Y11: OK | Z11: =IF($D$22="No",$Z$10,$U$10-($G$22*-$M$20)-((($H$22-$F$22)/2)*$M$19)) -> 96.49992385 | AA11: OK | AC11: Water Surface Label | AH11: hmax,lower | AI11: =IF($AI$9/COS($AI$8)>$F$22,$F$22,$AI$9/COS($AI$8)) -> 2 | AJ11: ft | AS11: hmax,lower | AT11: =IF($AT$9/COS($AT$8)>$F$22,$F$22,$AT$9/COS($AT$8)) ->  | AU11: ft | BC11: 2 | BD11: =($BE$6/2)+(($BC11-1)*$BE$6) -> 0.15 | BE11: 2.9 | BF11: =PI()*($BE11^2) -> 26.42079422 | BG11: =$BF11*$BE$6 -> 2.642079422 | BH11: 98.37498087 | BI11: 92.57520172 | BJ11: =IF($BH11<=$BG$6,0,IF((($BH11-$BG$6)*$M$19)>=($BE11*2),$BE11*2,($BH11-$BG$6)*$M$19)) -> 0 | BK11: =(($BE11^2)*ACOS(($BE11-$BJ11)/$BE11))-(($BE11-$BJ11)*SQRT(2*$BE11*$BJ11-($BJ11^2))) -> 0 | BL11: =$BK11*$BE$6 -> 0 | BM11: =IF($BI11>=$BG$7,0,IF((($BG$7-$BI11)*$M$19)>=($BE11*2),$BE11*2,($BG$7-$BI11)*$M$19)) -> 0.2247897204 | BN11: =(($BE11^2)*ACOS(($BE11-$BM11)/$BE11))-(($BE11-$BM11)*SQRT(2*$BE11*$BM11-($BM11^2))) -> 0.3382223863 | BO11: =$BN11*$BE$6 -> 0.03382223863
A12: Proposed | B12: x (ft) | C12: y (ft) | K12: =IF(OR($C$18="",$C$17=""),"",IF($C$17>=$C$18,"ERROR - RB top elevation must be > RB toe elevation","")) ->  | L12: Mid-Channel | N12: Logs placed at the head of an island or bar | R12: Pt 3 | S12: Stem tip: Crown | T12: =IF($F$25="",0,IF($D$25="Stem tip: Crown",$F$25,$T$11+((($E$22-$G$22)*$M$19)*$M$17))) -> 43.84270035 | U12: =IF($G$25="",$C$13,IF($D$25="Stem tip: Crown",$G$25,$U$11-(($E$22-$G$22)*-$M$20))) -> 96.75299338 | W12: Stem tip: Crown | X12: =$T$11+((($E$22-$G$22)*$M$19)*$M$17) -> 43.84270035 | Y12: OK | Z12: =$U$11-(($E$22-$G$22)*-$M$20) -> 96.75299338 | AA12: OK | AC12: WSE | AD12: =IF($AD$8="","",AVERAGE(AD8:AD9)) -> 75 | AE12: =IF($AE$8="","",AVERAGE(AE8:AE9)) -> 101.25 | AH12: hmax,up,dry | AI12: =IF(AND($AB$23>$F$22,$AB$24>$F$22),0,IF(AND($AB$23>=$F$22,(($F$22-$AB$24)/(COS($AI$8)))>$F$22),$F$22,IF($AB$23>=$F$22,($F$22-$AB$24)/(COS($AI$8)),IF(AND($AB$24>=$F$22,(($F$22-$AB$23)/(COS($AI$8))>$F$22)),$F$22,IF($AB$24>=$F$22,($F$22-$AB$23)/(COS($AI$8)),""))))) -> 0 | AJ12: ft | AS12: hmax,up,dry | AT12: =IF(AND($Z$23>$F$22,$Z$24>$F$22),0,IF(AND($Z$23>=$F$22,(($F$22-$Z$24)/(COS($AT$8)))>$F$22),$F$22,IF($Z$23>=$F$22,($F$22-$Z$24)/(COS($AT$8)),IF(AND($Z$24>=$F$22,(($F$22-$Z$23)/(COS($AT$8))>$F$22)),$F$22,IF($Z$24>=$F$22,($F$22-$Z$23)/(COS($AT$8)),""))))) ->  | AU12: ft | BC12: 3 | BD12: 0.25 | BE12: 2.833333333 | BF12: 25.22000769 | BG12: 2.522000769 | BH12: 98.3091894 | BI12: 92.6427385 | BJ12: 0 | BK12: 0 | BL12: 0 | BM12: 0.1572555102 | BN12: 0.1962738082 | BO12: 0.01962738082
A13: Fldpln LB | B13: ='Prelim-Top#1'!B13 -> 0 | C13: ='Prelim-Top#1'!C13 -> 99.18 | K13: =IF(OR($B$14<$B$13,$B$15<$B$14,$B$16<$B$15,$B$17<$B$16,$B$18<$B$17,$B$19<$B$18),"ERROR - Each 'x' distance must be >= previous point","") ->  | L13: Full-Span | N13: Multiple logs constricting a large portion of the cross-sectional area | R13: Pt 4 | S13: Stem tip: Bottom | T13: =IF($F$25="",0,IF($D$25="Stem tip: Bottom",$F$25,$T$12-(($F$22*-$M$20)*$M$17))) -> 43.83477682 | U13: =IF($G$25="",$C$13,IF($D$25="Stem tip: Bottom",$G$25,$U$12-($F$22*$M$19))) -> 94.75306953 | W13: Stem tip: Bottom | X13: =$T$12-(($F$22*-$M$20)*$M$17) -> 43.83477682 | Y13: OK | Z13: =$U$12-($F$22*$M$19) -> 94.75306953 | AA13: OK | AH13: LTS,bot,wet | AI13: =IF(($AI$9/SIN($AI$8))>($E$22-$G$22),($E$22-$G$22-$AI$14),($AI$9/SIN($AI$8))-$AI$14) -> -515.3255407 | AJ13: ft | AS13: LTS,bot,wet | AT13: =IF(($AT$9/SIN($AT$8))>($E$22-$G$22),($E$22-$G$22-$AT$14),($AT$9/SIN($AT$8))-$AT$14) ->  | AU13: ft | BC13: 4 | BD13: 0.35 | BE13: 2.766666667 | BF13: 24.04714643 | BG13: 2.404714643 | BH13: 98.24339792 | BI13: 92.71027528 | BJ13: 0 | BK13: 0 | BL13: 0 | BM13: 0.08972130004 | BN13: 0.0838786754 | BO13: 0.00838786754
A14: Top LB | B14: ='Prelim-Top#1'!B14 -> 33 | C14: ='Prelim-Top#1'!C14 -> 98.59 | L14: Floodplain | N14: Logs placed outside of the bankfull channel | R14: Pt 5 | S14: Root collar: Bottom | T14: =IF($F$25="",0,IF($D$25="Root collar: Bottom",$F$25,$T$13-((($E$22-$G$22)*$M$19)*$M$17))) -> 57 | U14: =IF($G$25="",$C$13,IF($D$25="Root collar: Bottom",$G$25,$U$13+(($E$22-$G$22)*-$M$20))) -> 94.5 | W14: Root collar: Bottom | X14: =$T$13-((($E$22-$G$22)*$M$19)*$M$17) -> 57 | Y14: OK | Z14: =$U$13+(($E$22-$G$22)*-$M$20) -> 94.5 | AA14: OK | AC14: Bank Labels | AH14: LTS,top,wet | AI14: =IF($AI$11>=$F$22,(($AI$9-($AI$11/(COS($AI$8))))/SIN($AI$8))+($AI$11*TAN($AI$8)),0) -> 544.3255407 | AJ14: ft | AS14: LTS,top,wet | AT14: =IF($AT$11>=$F$22,(($AT$9-($AT$11/(COS($AT$8))))/SIN($AT$8))+($AT$11*TAN($AT$8)),0) ->  | AU14: ft | BC14: 5 | BD14: 0.45 | BE14: 2.7 | BF14: 22.90221044 | BG14: 2.290221044 | BH14: 98.17760645 | BI14: 92.77781207 | BJ14: 0 | BK14: 0 | BL14: 0 | BM14: 0.02218708988 | BN14: 0.01022704315 | BO14: 0.001022704315
A15: Toe LB | B15: ='Prelim-Top#1'!B15 -> 54 | C15: ='Prelim-Top#1'!C15 -> 95.63 | K15: =IF(AND($B$6="Rootwad",$D$22="No"),"ERROR - Rootwad structure type should have a rootwad","") ->  | R15: Pt 6 | S15: Rootwad: Bottom | T15: =IF($F$25="",0,IF($D$25="Rootwad: Bottom",$F$25,IF($D$22="No",$T$14,$T$14-(($G$22*$M$19)*$M$17)-(((($H$22-$F$22)/2)*-$M$20)*$M$17)))) -> 58.35399611 | U15: =IF($G$25="",$C$13,IF($D$25="Rootwad: Bottom",$G$25,IF($D$22="No",$U$14,$U$14+($G$22*-$M$20)-((($H$22-$F$22)/2)*$M$19)))) -> 92.47389655 | W15: Rootwad: Bottom | X15: =IF($D$22="No",$T$14,$T$14-(($G$22*$M$19)*$M$17)-(((($H$22-$F$22)/2)*-$M$20)*$M$17)) -> 58.35399611 | Y15: OK | Z15: =IF($D$22="No",$U$14,$U$14+($G$22*-$M$20)-((($H$22-$F$22)/2)*$M$19)) -> 92.47389655 | AA15: OK | AC15: LB | AD15: =IF(OR($B$13="",$B$14=""),"",AVERAGE($B$13:$B$14)) -> 16.5 | AE15: =IF(OR($C$13="",$C$14=""),"",AVERAGE($C$13:$C$14)) -> 98.885 | AH15: K1 | AI15: =IF(AND(($AI$11-$AI$7)=1,$AH$17="Case 1"),PI(),ACOS(1-($AI$11/$AI$7))) -> 3.141592654 | AJ15: rad | AS15: K1 | AT15: =ACOS(1-($AT$11/$AT$7)) ->  | AU15: rad | BC15: 6 | BD15: 0.55 | BE15: 2.633333333 | BF15: 21.78519972 | BG15: 2.178519972 | BH15: 98.11181498 | BI15: 92.84534885 | BJ15: 0 | BK15: 0 | BL15: 0 | BM15: 0 | BN15: 0 | BO15: 0
A16: Thalweg | B16: ='Prelim-Top#1'!B16 -> 79 | C16: ='Prelim-Top#1'!C16 -> 92.8 | K16: =IF(OR($N$52="",$F$25="",$G$25=""),"",IF(AND($B$6="Rootwad",$N$52<>"Exposed in stream"),"CHECK - Rootwad structure typically has exposed rootwad","")) ->  | AC16: RB | AD16: =IF(OR($B$18="",$B$19=""),"",AVERAGE($B$18:$B$19)) -> 138.5 | AE16: =IF(OR($C$18="",$C$19=""),"",AVERAGE($C$18:$C$19)) -> 98.8 | AH16: K2 | AI16: =IF($AI$12="","",ACOS(1-($AI$12/$AI$7))) -> 0 | AJ16: rad | AS16: K2 | AT16: =IF($AT$12="","",ACOS(1-($AT$12/$AT$7))) ->  | AU16: rad | BC16: 7 | BD16: 0.65 | BE16: 2.566666667 | BF16: 20.69611427 | BG16: 2.069611427 | BH16: 98.0460235 | BI16: 92.91288563 | BJ16: 0 | BK16: 0 | BL16: 0 | BM16: 0 | BN16: 0 | BO16: 0
A17: Toe RB | B17: ='Prelim-Top#1'!B17 -> 108 | C17: ='Prelim-Top#1'!C17 -> 94.94 | L17: cos (q+90) = | M17: =IF($B$25="",0,COS(($B$25+90)*PI()/180)) -> -0.4539904997 | S17: Rootwad Coordinates | AG17: check: | AH17: =IF(AND($AA$21="Wet",$AA$22="Wet",$AA$23="Wet",$AA$24="Wet"),"Log is completely submerged",IF(AND($AA$21="Dry",$AA$22="Dry",OR(AND($AA$23="Dry",$AA$24="Wet"),AND($AA$24="Dry",$AA$23="Wet"))),"Case 1",IF(OR(AND($AA$21="Wet",$AA$24="Wet",$AA$22="Dry",$AA$23="Dry"),AND($AA$22="Wet",$AA$23="Wet",$AA$21="Dry",$AA$24="Dry")),"Case 2",IF(AND($AA$22="Dry",$AA$23="Wet",$AA$21="Dry",$AA$24="Wet"),"Case 3",IF(OR(AND($AA$21="Dry",$AA$22="Wet",$AA$23="Wet",$AA$24="Wet"),AND($AA$21="Wet",$AA$22="Dry",$AA$23="Wet",$AA$24="Wet")),"Case 4","Stem is Dry"))))) -> Log is completely submerged | AK17: VTS = | AL17: =PI()*(($F$22/2)^2)*($E$22-$G$22) -> 91.10618695 | AM17: ft3 | AR17: check: | AS17: =IF(AND($Y$21="Wet",$Y$22="Wet",$Y$23="Wet",$Y$24="Wet"),"Log is completely submerged",IF(AND($Y$21="Dry",$Y$22="Dry",OR(AND($Y$23="Dry",$Y$24="Wet"),AND($Y$24="Dry",$Y$23="Wet"))),"Case 1",IF(OR(AND($Y$21="Wet",$Y$24="Wet",$Y$22="Dry",$Y$23="Dry"),AND($Y$22="Wet",$Y$23="Wet",$Y$21="Dry",$Y$24="Dry")),"Case 2",IF(AND($Y$22="Dry",$Y$23="Wet",$Y$21="Dry",$Y$24="Wet"),"Case 3",IF(OR(AND($Y$21="Dry",$Y$22="Wet",$Y$23="Wet",$Y$24="Wet"),AND($Y$21="Wet",$Y$22="Dry",$Y$23="Wet",$Y$24="Wet")),"Case 4","Stem is Dry"))))) -> Stem is Dry | AV17: VTS = | AW17: =PI()*(($F$22/2)^2)*($E$22-$G$22) -> 91.10618695 | AX17: ft3 | BC17: 8 | BD17: 0.75 | BE17: 2.5 | BF17: 19.63495408 | BG17: 1.963495408 | BH17: 97.98023203 | BI17: 92.98042241 | BJ17: 0 | BK17: 0 | BL17: 0 | BM17: 0 | BN17: 0 | BO17: 0
A18: Top RB | B18: ='Prelim-Top#1'!B18 -> 127 | C18: ='Prelim-Top#1'!C18 -> 98.72 | L18: sin (q+90) = | M18: =IF($B$25="",0,SIN(($B$25+90)*PI()/180)) -> 0.8910065242 | T18: x (ft) | U18: y (ft) | W18: Large Wood "Below Thalweg" and "Below Water Surface" Depths | AG18: Case 1 | AR18: Case 1 | BC18: 9 | BD18: 0.85 | BE18: 2.433333333 | BF18: 18.60171917 | BG18: 1.860171917 | BH18: 97.91444055 | BI18: 93.04795919 | BJ18: 0 | BK18: 0 | BL18: 0 | BM18: 0 | BN18: 0 | BO18: 0
A19: Fldpln RB | B19: ='Prelim-Top#1'!B19 -> 150 | C19: ='Prelim-Top#1'!C19 -> 98.88 | K19: =IF($C$25="","", IF($C$25=0,"ERROR - Angle of tilt can not be exactly 0 deg, change to 0.01", IF(OR($C$25>=90,$C$25<=-90),"ERROR - Angle of tilt must be between (-)89.9 and (+)89.9 deg",""))) ->  | L19: cos b = | M19: =IF($C$25="",0,COS($C$25*PI()/180)) -> 0.9999619231 | S19: RW bottom1 | T19: =IF($T$15="","",$T$15) -> 58.35399611 | U19: =IF($U$15="",$C$13,$U$15) -> 92.47389655 | X19: Point | Y19: ↓twCondition | Z19: dT,wet | AA19: ↓WSECondition | AB19: dT↓dw | AI19: V = | AJ19: LTS,bot,wet/hmax,lower*R3*(sin K1 – K1*cos K1 – 1/3*(sin K1)3) | AT19: V = | AU19: LTS,bot,wet/hmax,lower*R3*(sin K1 – K1*cos K1 – 1/3*(sin K1)3) | BC19: 10 | BD19: 0.95 | BE19: 2.366666667 | BF19: 17.59640952 | BG19: 1.759640952 | BH19: 97.84864908 | BI19: 93.11549597 | BJ19: 0 | BK19: 0 | BL19: 0 | BM19: 0 | BN19: 0 | BO19: 0
K20: =IF(OR($B$25="",$A$6=""),"",IF(OR($B$25>360,$B$25<-180),"ERROR - Orientation angle must be (-)180 to (+)360 deg","")) ->  | L20: sin b = | M20: =IF($C$25="",0,SIN($C$25*PI()/180)) -> 0.008726535498 | S20: RW sid1 | T20: =IF($T$19="","",IF($D$22="No",$T$19+((SIN(45*PI()/180))*$M$18),(($T$19+$T$21)/2)+((SIN(45*PI()/180))*$M$18))) -> 60.3264853 | U20: =IF($U$15="",$C$13,($U$21+$U$19)/2) -> 93.97383943 | W20: Rootwad: Crown | X20: Pt 1 | Y20: =IF($U10<$C$16,"Wet","Dry") -> Dry | Z20: =IF($C$16<U10,0,$C$16-U10) -> 0 | AA20: =IF($U10<$AE$8,"Wet","Dry") -> Wet | AB20: =IF(U10>$AE$8,0,$AE$8-U10) -> 2.776331914 | AI20: where: | AJ20: K1 = arccos(1-hmax,lower/R) | AT20: where: | AU20: K1 = arccos(1-hmax,lower/R) | BC20: 11 | BD20: 1.05 | BE20: 2.3 | BF20: 16.61902514 | BG20: 1.661902514 | BH20: 97.7828576 | BI20: 93.18303276 | BJ20: 0 | BK20: 0 | BL20: 0 | BM20: 0 | BN20: 0 | BO20: 0
A21: Wood Species | D21: Rootwad | E21: LT (ft) | F21: DTS (ft) | G21: LRW (ft) | H21: DRW (ft) | I21: gTd (lb/ft3) | J21: gTgr (lb/ft3) | K21: =IF(AND($D$22="No",OR($D$25="Rootwad: Crown",$D$25="Rootwad: Bottom")),"ERROR - No rootwad, define a different starting point","") ->  | L21: typ RW b = | M21: =IF($E$22="",0,ROUND((-ATAN(((($H$22-$F$22)/2))/$E$22)*180/PI()),1)) -> -3.6 | S21: RW sid2 | T21: =IF($T$19="","",IF($D$22="No",(($T$19+$T$23)/2)+($F$22/2*$M$18),(($T$19+$T$23)/2)+($H$22/2*$M$18))) -> 61.03890098 | U21: =IF($U$15="",$C$13,($U$19+$U$23)/2) -> 95.47378232 | W21: Root collar: Crown | X21: Pt 2 | Y21: Dry | Z21: 0 | AA21: Wet | AB21: 4.750076154 | AI21: VTS,wet,C1 | AJ21: =($AI$13/$AI$11)*($AI$7^3)*(SIN($AI$15)-($AI$15*COS($AI$15))-((1/3)*(SIN($AI$15))^3)) -> -809.4714665 | AK21: ft3 | AT21: VTS,wet,C1 | AU21: =($AT$13/$AT$11)*($AT$7^3)*(SIN($AT$15)-($AT$15*COS($AT$15))-((1/3)*(SIN($AT$15))^3)) ->  | AV21: ft3 | BC21: 12 | BD21: 1.15 | BE21: 2.233333333 | BF21: 15.66956602 | BG21: 1.566956602 | BH21: 97.71706613 | BI21: 93.25056954 | BJ21: 0 | BK21: 0 | BL21: 0 | BM21: 0 | BN21: 0 | BO21: 0
A22: Douglas-fir, Interior west | D22: Yes | E22: 32 | F22: 2 | G22: =IF(OR($D$22="No",$D$22=""),0,IF($F$22="",0,$F$22*LFRW)) -> 3 | H22: =IF(OR($D$22="No",$D$22=""),0,IF($F$22="",0,$F$22*DFRW)) -> 6 | I22: =IF($A$22="","",VLOOKUP($A$22,'5-Wood'!$B$8:$E$17,3,0)) -> 34.944 | J22: =IF($A$22="","",VLOOKUP($A$22,'5-Wood'!$B$8:$E$17,4,0)) -> 39 | S22: RW sid3 | T22: =IF($T$19="","",IF($D$22="No",$T$23+((SIN(45*PI()/180))*$M$18),(($T$23+$T$21)/2)+((SIN(45*PI()/180))*$M$18))) -> 60.33837059 | U22: =IF($U$15="",$C$13,($U$21+$U$23)/2) -> 96.9737252 | W22: Stem tip: Crown | X22: Pt 3 | Y22: Dry | Z22: 0 | AA22: Wet | AB22: 4.497006624 | BC22: 13 | BD22: 1.25 | BE22: 2.166666667 | BF22: 14.74803218 | BG22: 1.474803218 | BH22: 97.65127465 | BI22: 93.31810632 | BJ22: 0 | BK22: 0 | BL22: 0 | BM22: 0 | BN22: 0 | BO22: 0
K23: =IF(OR($B$25="",$A$6=""),"",IF(OR($B$25=360,$B$25=270,$B$25=180,$B$25=90,$B$25=0,$B$25=-90,$B$25=-180),"ERROR - Orientation angle can not EXACTLY equal 0, 90, 180, 270, or 360 deg. Change input value to 0.01, 89.99 (or similar)","")) ->  | S23: RW crown | T23: =IF($T$19="","",$T$10) -> 58.3777667 | U23: =IF($U$15="",$C$13,$U$10) -> 98.47366809 | W23: Stem tip: Bottom | X23: Pt 4 | Y23: Dry | Z23: 0 | AA23: Wet | AB23: 6.496930471 | AG23: Case 2 | AR23: Case 2 | BC23: 14 | BD23: 1.35 | BE23: 2.1 | BF23: 13.8544236 | BG23: 1.38544236 | BH23: 97.58548318 | BI23: 93.3856431 | BJ23: 0 | BK23: 0 | BL23: 0 | BM23: 0 | BN23: 0 | BO23: 0
A24: Structure Geometry | B24: q (deg) | C24: b (deg) | D24: Define Fixed Point | F24: xT (ft) | G24: yT (ft) | H24: yT,min (ft) | I24: yT,max (ft) | J24: ATp (ft2) | S24: RW sid4 | T24: =IF($T$19="","",IF($D$22="No",$T$23-((SIN(45*PI()/180))*$M$18),(($T$23+$T$25)/2)-((SIN(45*PI()/180))*$M$18))) -> 56.40527751 | U24: =IF($U$15="",$C$13,($U$25+$U$23)/2) -> 96.9737252 | W24: Root collar: Bottom | X24: Pt 5 | Y24: Dry | Z24: 0 | AA24: Wet | AB24: 6.75 | AI24: V = | AJ24: (p*R2*LTS,top,wet) + (LTS,bot,wet/hmax,lower*R3*(sin K1 – K1*cos K1 – 1/3*(sin K1)3) | AT24: V = | AU24: (p*R2*LTS,top,wet) + (LTS,bot,wet/hmax,lower*R3*(sin K1 – K1*cos K1 – 1/3*(sin K1)3) | BC24: 15 | BD24: 1.45 | BE24: 2.033333333 | BF24: 12.98874029 | BG24: 1.298874029 | BH24: 97.5196917 | BI24: 93.45317988 | BJ24: 0 | BK24: 0 | BL24: 0 | BM24: 0 | BN24: 0 | BO24: 0
B25: 27 | C25: 0.5 | D25: Root collar: Bottom | F25: 57 | G25: 94.5 | H25: =IF(OR($E$22="",$F$22="",$F$25="",$G$25=""),"",MIN($U$10:$U$15)) -> 92.47389655 | I25: =IF(OR($E$22="",$F$22="",$F$25="",$G$25=""),"",MAX($U$10:$U$15)) -> 98.47366809 | J25: =IF(OR($E$22="",$F$22="",$F$25="",$G$25=""),"",IF($T$81<0,$AB$80,IF($T$81>$T$77,$T$77+$AB$80,IF(OR(AND($C$25=0,$D$22="No",$B$25=0),AND($C$25=0,$D$22="No",$B$25=360),AND($C$25=0,$D$22="No",$B$25=180)),PI()*(($F$22/2)^2),$T$81+$AB$80)))) -> 33.05110587 | K25: =IF(OR($B$13="",$B$19="",$U$38=0,$U$39=0),"",IF(OR(MAX($U$38:$U$39)>$B$19,MIN($U$38:$U$39)<$B$13),"ERROR - Log extends beyond limits of floodplain","")) ->  | S25: RW sid5 | T25: =IF($T$19="","",IF($D$22="No",(($T$27+$T$23)/2)-($F$22/2*$M$18),(($T$27+$T$23)/2)-($H$22/2*$M$18))) -> 55.69286183 | U25: =IF($U$15="",$C$13,($U$27+$U$23)/2) -> 95.47378232 | W25: Rootwad: Bottom | X25: Pt 6 | Y25: Wet | Z25: 0.3261034526 | AA25: Wet | AB25: 8.776103453 | AI25: where: | AJ25: K1 = arccos(1-hmax,lower/R) | AT25: where: | AU25: K1 = arccos(1-hmax,lower/R) | BC25: 16 | BD25: 1.55 | BE25: 1.966666667 | BF25: 12.15098225 | BG25: 1.215098225 | BH25: 97.45390023 | BI25: 93.52071666 | BJ25: 0 | BK25: 0 | BL25: 0 | BM25: 0 | BN25: 0 | BO25: 0
S26: RW sid6 | T26: =IF($T$19="","",IF($D$22="No",$T$27-((SIN(45*PI()/180))*$M$18),(($T$27+$T$25)/2)-((SIN(45*PI()/180))*$M$18))) -> 56.39339222 | U26: =IF($U$15="",$C$13,($U$25+$U$27)/2) -> 93.97383943 | AI26: VTS,wet,C2 | AJ26: =(PI()*(($AI$7)^2)*($AI$14))+($AI$13/$AI$11)*($AI$7^3)*(SIN($AI$15)-($AI$15*COS($AI$15))-((1/3)*(SIN($AI$15))^3)) -> 900.5776534 | AK26: ft3 | AT26: VTS,wet,C2 | AU26: =(PI()*(($AT$7)^2)*($AT$14))+($AT$13/$AT$11)*($AT$7^3)*(SIN($AT$15)-($AT$15*COS($AT$15))-((1/3)*(SIN($AT$15))^3)) ->  | AV26: ft3 | BC26: 17 | BD26: 1.65 | BE26: 1.9 | BF26: 11.34114948 | BG26: 1.134114948 | BH26: 97.38810875 | BI26: 93.58825345 | BJ26: 0 | BK26: 0 | BL26: 0 | BM26: 0 | BN26: 0 | BO26: 0
A27: Soils | B27: Material | D27: gs (lb/ft3) | E27: g's (lb/ft3) | F27: f (deg) | G27: Soil Class | H27: LT,em (ft) | I27: db,max (ft) | J27: db,avg (ft) | S27: RW bottom2 | T27: =IF($T$19="","",$T$15) -> 58.35399611 | U27: =IF($U$15="",$C$13,$U$15) -> 92.47389655 | BC27: 18 | BD27: 1.75 | BE27: 1.833333333 | BF27: 10.55924197 | BG27: 1.055924197 | BH27: 97.32231728 | BI27: 93.65579023 | BJ27: 0 | BK27: 0 | BL27: 0 | BM27: 0 | BN27: 0 | BO27: 0
A28: Stream Bed | B28: =IF($A$6="","",VLOOKUP($A$6,Soil,4,0)) -> Small Cobble | D28: =IF($A$6="","",VLOOKUP($A$6,Soil,6,0)) -> 136.3754574 | E28: =IF($A$6="","",VLOOKUP($A$6,Soil,7,0)) -> 84.91302064 | F28: =IF($A$6="","",VLOOKUP($A$6,Soil,8,0)) -> 41 | G28: =IF($A$6="","",VLOOKUP($A$6,Soil,5,0)) -> 4 | H28: =IF(OR($E$22="",$F$22="",$F$25="",$G$25=""),"",IF(AND($F$25<=$B$17,$F$25>=$B$15,OR($B$25=0,$B$25=180,$B$25=360)),SUM($X$49:$X$50),$AB$49+$AB$50)) -> 0 | I28: =IF(OR($E$22="",$F$22="",$F$25="",$G$25=""),"",$AT$42) -> 0 | J28: =IF(OR($E$22="",$F$22="",$F$25="",$G$25=""),"",$AT$41) -> 0 | AG28: Case 3 | AR28: Case 3 | BC28: 19 | BD28: 1.85 | BE28: 1.766666667 | BF28: 9.805259738 | BG28: 0.9805259738 | BH28: 97.2565258 | BI28: 93.72332701 | BJ28: 0 | BK28: 0 | BL28: 0 | BM28: 0 | BN28: 0 | BO28: 0
A29: Bank | B29: =IF($A$6="","",VLOOKUP($A$6,Soil,9,0)) -> Gravel/cobble | D29: =IF($A$6="","",VLOOKUP($A$6,Soil,11,0)) -> 137 | E29: =IF($A$6="","",VLOOKUP($A$6,Soil,12,0)) -> 85.30188679 | F29: =IF($A$6="","",VLOOKUP($A$6,Soil,13,0)) -> 41 | G29: =IF($A$6="","",VLOOKUP($A$6,Soil,10,0)) -> 4 | H29: =IF(OR($E$22="",$F$22="",$F$25="",$G$25=""),"",IF(AND(OR($F$25>$B$17,$F$25<$B$15),OR($B$25=0,$B$25=180,$B$25=360)),$X$47+$X$48+$X$51+$X$52,$AB$47+$AB$48+$AB$51+$AB$52)) -> 5.586149701 | I29: =IF(OR($E$22="",$F$22="",$F$25="",$G$25=""),"",$AU$42) -> 0.3087021946 | J29: =IF(OR($E$22="",$F$22="",$F$25="",$G$25=""),"",$AU$41) -> 0.1583893648 | K29: =IF(OR($E$22="",$F$22="",$F$25="",$G$25=""),"",IF(($H$28+$H$29)>$E$22,"ERROR - Embedded length of log exceeds total length of log","")) ->  | S29: Coordinates of Large Wood Crown at Key Points | AI29: V = | AJ29: LTS*(R2*arccos((R-dwet,avgH)/R)-(R-dwet,avgH)*((2*R*dwet,avgH)-dwet,avgH2)0.5) | AT29: V = | AU29: LTS*(R2*arccos((R-dwet,avgH)/R)-(R-dwet,avgH)*((2*R*dwet,avgH)-dwet,avgH2)0.5) | BC29: 20 | BD29: 1.95 | BE29: 1.7 | BF29: 9.079202769 | BG29: 0.9079202769 | BH29: 97.19073433 | BI29: 93.79086379 | BJ29: 0 | BK29: 0 | BL29: 0 | BM29: 0 | BN29: 0 | BO29: 0
T30: Wood Present? | U30: Large Wood Parameters | Y30: Soil | AA30: Slope | AB30: Bank (ft/ft) | AI30: VTS,wet,C3 | AJ30: =IF($AI$10="","",($E$22-$G$22)*((($AI$7^2)*ACOS(($AI$7-$AI$10)/$AI$7))-(($AI$7-$AI$10)*((2*$AI$7*$AI$10)-($AI$10^2))^0.5))) ->  | AK30: ft3 | AT30: VTS,wet,C3 | AU30: =IF($AT$10="","",($E$22-$G$22)*((($AT$7^2)*ACOS(($AT$7-$AT$10)/$AT$7))-(($AT$7-$AT$10)*((2*$AT$7*$AT$10)-($AT$10^2))^0.5))) ->  | AV30: ft3 | BC30: 21 | BD30: 2.05 | BE30: 1.633333333 | BF30: 8.381071068 | BG30: 0.8381071068 | BH30: 97.12494286 | BI30: 93.85840057 | BJ30: 0 | BK30: =(($BE30^2)*ACOS(($BE30-$BJ30)/$BE30))-(($BE30-$BJ30)*SQRT(2*$BE30*$BJ30-($BJ30^2))) -> 0 | BL30: =$BK30*$BE$6 -> 0 | BM30: 0 | BN30: 0 | BO30: 0
U31: xTS (ft) | V31: Dist (ft) | W31: Adjusted Dist (ft) | X31: yTS (ft) | Y31: ysoil (ft) | AA31: Fldpln LB | AB31: =IF(OR($B$13="",$B$14="",$C$13="",$C$14=""),"",($C$14-$C$13)/($B$14-$B$13)) -> -0.01787878788 | BC31: 22 | BD31: 2.15 | BE31: 1.566666667 | BF31: 7.710864635 | BG31: 0.7710864635 | BH31: 97.05915138 | BI31: 93.92593736 | BJ31: 0 | BK31: 0 | BL31: 0 | BM31: 0 | BN31: 0 | BO31: 0
S32: At Left Bank Top | T32: =IF(OR($F$25="",$G$25=""),"No",IF(MIN($U$38:$U$39)>$B$14,"No",IF(MAX($U$38:$U$39)<$B$14,"No","Yes"))) -> No | U32: =$B$14 -> 33 | V32: =IF(OR($B$25=0,$B$25=180,$B$25=360),0,IF($T$11>$T$12,$G$22+((($T$11-$B$14)/ABS($M$17))/$M$19),(($T$12-$B$14)/ABS($M$17))/$M$19)) -> 55.88400908 | W32: =IF(V32<0,0,IF(V32>$E$22,$E$22,V32)) -> 32 | X32: =IF($T$11>$T$12,$U$11+(($V$32-$G$22)*$M$20),$U$12-($V$32*$M$20)) -> 96.96141803 | Y32: =$C$14 -> 98.59 | AA32: LB | AB32: =IF(OR($B$14="",$B$15="",$C$14="",$C$15=""),"",($C$15-$C$14)/($B$15-$B$14)) -> -0.140952381 | BC32: 23 | BD32: 2.25 | BE32: 1.5 | BF32: 7.068583471 | BG32: 0.7068583471 | BH32: 96.99335991 | BI32: 93.99347414 | BJ32: 0 | BK32: 0 | BL32: 0 | BM32: 0 | BN32: 0 | BO32: 0
S33: At Left Bank Toe | T33: =IF(OR($F$25="",$G$25=""),"No",IF(MIN($U$38:$U$39)>$B$15,"No",IF(MAX($U$38:$U$39)<$B$15,"No","Yes"))) -> Yes | U33: =$B$15 -> 54 | V33: =IF(OR($B$25=0,$B$25=180,$B$25=360),0,IF($T$11>$T$12,$G$22+((($T$11-$B$15)/ABS($M$17))/$M$19),(($T$12-$B$15)/ABS($M$17))/$M$19)) -> 9.625773154 | W33: 9.625773154 | X33: =IF($T$11>$T$12,$U$11+(($V$33-$G$22)*$M$20),$U$12-($V$33*$M$20)) -> 96.55774389 | Y33: =$C$15 -> 95.63 | AA33: Stream L | AB33: =IF(OR($B$15="",$B$16="",$C$15="",$C$16=""),"",($C$16-$C$15)/($B$16-$B$15)) -> -0.1132 | BC33: 24 | BD33: 2.35 | BE33: 1.433333333 | BF33: 6.454227574 | BG33: 0.6454227574 | BH33: 96.92756843 | BI33: 94.06101092 | BJ33: 0 | BK33: 0 | BL33: 0 | BM33: 0 | BN33: 0 | BO33: 0
S34: At Left Thalweg | T34: =IF(OR($F$25="",$G$25=""),"No",IF(AND(MAX($U$38:$U$39)>$B$16,MIN($U$38:$U$39)<$B$16),"Yes","No")) -> No | U34: =$B$16 -> 79 | V34: =IF(OR($B$25=0,$B$25=180,$B$25=360),0,IF($T$11>$T$12,$G$22+((($T$11-$B$16)/ABS($M$17))/$M$19),(($T$12-$B$16)/ABS($M$17))/$M$19)) -> -45.44355533 | W34: 0 | X34: =IF($T$11>$T$12,$U$11+(($V$34-$G$22)*$M$20),$U$12-($V$34*$M$20)) -> 96.07717944 | Y34: =$C$16 -> 92.8 | AA34: Stream R | AB34: =IF(OR($B$17="",$B$16="",$C$17="",$C$16=""),"",($C$16-$C$17)/($B$16-$B$17)) -> 0.07379310345 | AG34: Case 4 | AR34: Case 4 | BC34: 25 | BD34: 2.45 | BE34: 1.366666667 | BF34: 5.867796945 | BG34: 0.5867796945 | BH34: 96.86177696 | BI34: 94.1285477 | BJ34: 0 | BK34: 0 | BL34: 0 | BM34: 0 | BN34: 0 | BO34: 0
S35: At Right Thalweg | T35: =IF(OR($F$25="",$G$25=""),"No",IF(AND(MAX($U$38:$U$39)>$B$16,MIN($U$38:$U$39)<$B$16),"Yes","No")) -> No | U35: =$B$16 -> 79 | V35: =IF(OR($B$25=0,$B$25=180,$B$25=360),0,IF($T$11<$T$12,$G$22+((($B$16-$T$11)/ABS($M$17))/$M$19),(($B$16-$T$12)/ABS($M$17))/$M$19)) -> 77.44355533 | W35: 32 | X35: =IF($T$11<$T$12,$U$11+(($V$35-$G$22)*$M$20),$U$12-($V$35*$M$20)) -> 96.07717944 | Y35: =$C$16 -> 92.8 | AA35: RB | AB35: =IF(OR($B$18="",$B$17="",$C$18="",$C$17=""),"",($C$18-$C$17)/($B$18-$B$17)) -> 0.1989473684 | AI35: V = | AJ35: VTS - (LTS,wet/hmax,up,dry*R3*(sin K2 – K2*cos K2 – 1/3*(sin K2)3) | AT35: V = | AU35: VTS - (LTS,wet/hmax,up,dry*R3*(sin K2 – K2*cos K2 – 1/3*(sin K2)3) | BC35: 26 | BD35: 2.55 | BE35: 1.3 | BF35: 5.309291585 | BG35: 0.5309291585 | BH35: 96.79598548 | BI35: 94.19608448 | BJ35: 0 | BK35: 0 | BL35: 0 | BM35: 0 | BN35: 0 | BO35: 0
S36: At Right Bank Toe | T36: =IF(OR($F$25="",$G$25=""),"No",IF(MAX($U$38:$U$39)<$B$17,"No",IF(MIN($U$38:$U$39)>$B$17,"No","Yes"))) -> No | U36: =$B$17 -> 108 | V36: =IF(OR($B$25=0,$B$25=180,$B$25=360),0,IF($T$11<$T$12,$G$22+((($B$17-$T$11)/ABS($M$17))/$M$19),(($B$17-$T$12)/ABS($M$17))/$M$19)) -> 141.3239764 | W36: 32 | X36: =IF($T$11<$T$12,$U$11+(($V$36-$G$22)*$M$20),$U$12-($V$36*$M$20)) -> 95.51972468 | Y36: =$C$17 -> 94.94 | AA36: Fldpln RB | AB36: =IF(OR($B$19="",$B$18="",$C$19="",$C$18=""),"",($C$19-$C$18)/($B$19-$B$18)) -> 0.006956521739 | AJ36: K2 = arccos(1-hmax,up,dry/R) | AU36: K2 = arccos(1-hmax,up,dry/R) | BC36: 27 | BD36: 2.65 | BE36: 1.233333333 | BF36: 4.778711492 | BG36: 0.4778711492 | BH36: 96.73019401 | BI36: 94.26362126 | BJ36: 0 | BK36: 0 | BL36: 0 | BM36: 0 | BN36: 0 | BO36: 0
S37: At Right Bank Top | T37: =IF(OR($F$25="",$G$25=""),"No",IF(MAX($U$38:$U$39)<$B$18,"No",IF(MIN($U$38:$U$39)>$B$18,"No","Yes"))) -> No | U37: =$B$18 -> 127 | V37: =IF(OR($B$25=0,$B$25=180,$B$25=360),0,IF($T$11<$T$12,$G$22+((($B$18-$T$11)/ABS($M$17))/$M$19),(($B$18-$T$12)/ABS($M$17))/$M$19)) -> 183.176666 | W37: 32 | X37: =IF($T$11<$T$12,$U$11+(($V$37-$G$22)*$M$20),$U$12-($V$37*$M$20)) -> 95.1544957 | Y37: =$C$18 -> 98.72 | AI37: VTS,wet,C4 | AJ37: =IF($AI$16="","",$AW$17-(($AI$13/$AI$12)*($AI$7^3)*(SIN($AI$16)-($AI$16*COS($AI$16))-((1/3)*(SIN($AI$16))^3)))) ->  | AK37: ft3 | AT37: VTS,wet,C4 | AU37: =IF($AT$16="","",$AW$17-(($AT$13/$AT$12)*($AT$7^3)*(SIN($AT$16)-($AT$16*COS($AT$16))-((1/3)*(SIN($AT$16))^3)))) ->  | AV37: ft3 | BC37: 28 | BD37: 2.75 | BE37: 1.166666667 | BF37: 4.276056667 | BG37: 0.4276056667 | BH37: 96.66440253 | BI37: 94.33115805 | BJ37: 0 | BK37: 0 | BL37: 0 | BM37: 0 | BN37: 0 | BO37: 0
S38: Low Pt on Crown | T38: =IF(OR($F$25="",$G$25=""),"No","Yes") -> Yes | U38: =IF($T$38="No",0,IF($U$12<=$U$11,$T$12,$T$11-($G$22*$M$19*$M$17))) -> 58.36984317 | V38: 0 | W38: 0 | X38: =IF($T$38="No",0,IF($U$12<=$U$11,$U$12,$U$11-($G$22*$M$20))) -> 96.47374424 | Y38: =IF($T$38="","",IF($U$38<$B$14,(($U$38-$B$13)*$AB$31)+$C$13,IF($U$38<$B$15,(($U$38-$B$14)*$AB$32)+$C$14,IF($U$38<$B$16,(($U$38-$B$15)*$AB$33)+$C$15,IF($U$38<$B$17,(($U$38-$B$16)*$AB$34)+$C$16,IF($U$38<$B$18,(($U$38-$B$17)*$AB$35)+$C$17,IF($U$38<$B$19,(($U$38-$B$18)*$AB$36)+$C$18))))))) -> 95.13533375 | AA38: Slope Log (ft/ft) | AB38: Slope Log Face (ft/ft) | BC38: 29 | BD38: 2.85 | BE38: 1.1 | BF38: 3.801327111 | BG38: 0.3801327111 | BH38: 96.59861106 | BI38: 94.39869483 | BJ38: 0 | BK38: 0 | BL38: 0 | BM38: 0 | BN38: 0 | BO38: 0 | BR38: Max | BS38: Min | BT38: cP (ft)
S39: High Pt on Crown | T39: Yes | U39: =IF($T$39="No",0,IF($U$12>$U$11,$T$12,$T$11-($G$22*$M$19*$M$17))) -> 43.84270035 | V39: =IF($T$39="No",0,$E$22) -> 32 | W39: 32 | X39: =IF($T$39="No",0,IF($U$12>=$U$11,$U$12,$U$11-($G$22*$M$20))) -> 96.75299338 | Y39: =IF($T$39="","",IF($U$39<$B$14,(($U$39-$B$13)*$AB$31)+$C$13,IF($U$39<$B$15,(($U$39-$B$14)*$AB$32)+$C$14,IF($U$39<$B$16,(($U$39-$B$15)*$AB$33)+$C$15,IF($U$39<$B$17,(($U$39-$B$16)*$AB$34)+$C$16,IF($U$39<$B$18,(($U$39-$B$17)*$AB$35)+$C$17,IF($U$39<$B$19,(($U$39-$B$18)*$AB$36)+$C$18))))))) -> 97.06169557 | AI39: Free internet tilted cylinder calculator: | AM39: http://planetcalc.com/1442/ | AT39: Free internet tilted cylinder calculator: | AX39: http://planetcalc.com/1442/ | BC39: 30 | BD39: 2.95 | BE39: 1.033333333 | BF39: 3.354522822 | BG39: 0.3354522822 | BH39: 96.53281958 | BI39: 94.46623161 | BJ39: 0 | BK39: 0 | BL39: 0 | BM39: 0 | BN39: 0 | BO39: 0 | BR39: =MAX($BS$45:$BS$245) -> 5.44 | BS39: =MIN($BS$45:$BS$245) -> 0 | BT39: =IF($BS$43=0,0,IF(AND($BS$39=0,$BR$39=$E$22),($BR$39+$BS$39)/2,IF($BS$39=0,$BR$39-((1/3)*($BR$39-$BS$39)),IF($BR$39=$E$22,$BR$39-((2/3)*($BR$39-$BS$39)),($BR$39+$BS$39)/2)))) -> 3.626666667
S40: Low Pt on Bottom | T40: Yes | U40: =IF($T$40="No",0,IF($U$13<=$U$14,$T$13,$T$14-($G$22*$M$19*$M$17))) -> 58.36191964 | V40: 0 | W40: 0 | X40: =IF($T$40="No",0,IF($U$13<=$U$14,$U$13,$U$14-($G$22*$M$20))) -> 94.47382039 | Y40: =IF($T$40="","",IF($U$40<$B$14,(($U$40-$B$13)*$AB$31)+$C$13,IF($U$40<$B$15,(($U$40-$B$14)*$AB$32)+$C$14,IF($U$40<$B$16,(($U$40-$B$15)*$AB$33)+$C$15,IF($U$40<$B$17,(($U$40-$B$16)*$AB$34)+$C$16,IF($U$40<$B$18,(($U$40-$B$17)*$AB$35)+$C$17,IF($U$40<$B$19,(($U$40-$B$18)*$AB$36)+$C$18))))))) -> 95.1362307 | AA40: =IF(OR($B$25=0,$B$25=180,$B$25=360),($U$11-$U$12)/0.001,IF($X$38=$X$39,1E-25,($U$11-$U$12)/($T$11-$T$12))) -> -0.019222578 | AB40: =IF(OR($B$25=0,$B$25=180,$B$25=360),9999,IF($X$38=$X$39,1E-25,($U$12-$U$13)/($T$12-$T$13))) -> 252.4031895 | BC40: Total | BG40: =SUM(BG10:BG39) -> 40.83721384 | BL40: =SUM($BL$10:$BL$39) -> 0 | BO40: =SUM($BO$10:$BO$39) -> 0.1134262664
S41: High Pt on Bottom | T41: Yes | U41: =IF($T$41="No",0,IF($U$13>$U$14,$T$13,$T$14-($G$22*$M$19*$M$17))) -> 43.83477682 | V41: =IF($T$41="No",0,$E$22) -> 32 | W41: 32 | X41: =IF($T$41="No",0,IF($U$13>=$U$14,$U$13,$U$14-($G$22*$M$20))) -> 94.75306953 | Y41: =IF($T$41="","",IF($U$41<$B$14,(($U$41-$B$13)*$AB$31)+$C$13,IF($U$41<$B$15,(($U$41-$B$14)*$AB$32)+$C$14,IF($U$41<$B$16,(($U$41-$B$15)*$AB$33)+$C$15,IF($U$41<$B$17,(($U$41-$B$16)*$AB$34)+$C$16,IF($U$41<$B$18,(($U$41-$B$17)*$AB$35)+$C$17,IF($U$41<$B$19,(($U$41-$B$18)*$AB$36)+$C$18))))))) -> 97.06281241 | AS41: Average | AT41: =IF(AT42=0,0,AVERAGE(AT45:AT245)) -> 0 | AU41: =IF(AU42=0,0,AVERAGE(AU45:AU245)) -> 0.1583893648
S42: Low Pt on Centerline | T42: Yes | U42: =IF($T$42="No",0,AVERAGE($U$38,$U$40)) -> 58.3658814 | V42: 0 | W42: 0 | X42: =IF($T$42="No",0,AVERAGE($X$38,$X$40)) -> 95.47378232 | Y42: =IF($T$42="","",IF($U$42<$B$14,(($U$42-$B$13)*$AB$31)+$C$13,IF($U$42<$B$15,(($U$42-$B$14)*$AB$32)+$C$14,IF($U$42<$B$16,(($U$42-$B$15)*$AB$33)+$C$15,IF($U$42<$B$17,(($U$42-$B$16)*$AB$34)+$C$16,IF($U$42<$B$18,(($U$42-$B$17)*$AB$35)+$C$17,IF($U$42<$B$19,(($U$42-$B$18)*$AB$36)+$C$18))))))) -> 95.13578223 | AI42: Log Partial Area Calculations | AS42: Max | AT42: =MAX(AT45:AT245) -> 0 | AU42: =MAX(AU45:AU245) -> 0.3087021946 | AY42: Total | AZ42: Total | BA42: Total | BB42: Total | BC42: Total | BE42: Total | BG42: Total | BH42: Total | BI42: Average | BK42: Average | BL42: Average | BM42: Average | BN42: Average | BO42: Total | BP42: Total | BQ42: Total | BR42: Average | BS42: Average
S43: High Pt on Centerline | T43: Yes | U43: =IF($T$42="No",0,AVERAGE($U$39,$U$41)) -> 43.83873858 | V43: =IF($T$43="No",0,$E$22) -> 32 | W43: 32 | X43: =IF($T$42="No",0,AVERAGE($X$39,$X$41)) -> 95.75303145 | Y43: =IF($T$43="","",IF($U$43<$B$14,(($U$43-$B$13)*$AB$31)+$C$13,IF($U$43<$B$15,(($U$43-$B$14)*$AB$32)+$C$14,IF($U$43<$B$16,(($U$43-$B$15)*$AB$33)+$C$15,IF($U$43<$B$17,(($U$43-$B$16)*$AB$34)+$C$16,IF($U$43<$B$18,(($U$43-$B$17)*$AB$35)+$C$17,IF($U$43<$B$19,(($U$43-$B$18)*$AB$36)+$C$18))))))) -> 97.06225399 | AI43: Log Parameters | AP43: Soil Parameters | AY43: =SUM(AY45:AY245) -> 5.52 | AZ43: =SUM($AZ$45:$AZ$245) -> 0 | BA43: =SUM($BA$45:$BA$245) -> 0 | BB43: =SUM($BB$45:$BB$245) -> 0 | BC43: =SUM($BC$45:$BC$245) -> 1.724568535 | BE43: =SUM($BE$45:$BE$245) -> 20.66391418 | BG43: =SUM($BG$45:$BG$245) -> 0 | BH43: =SUM($BH$45:$BH$245) -> 26.48 | BI43: =IF(SUM($BI$45:$BI$245)=0,0,AVERAGE($BI$45:$BI$245)) -> 18.8 | BK43: =IF(SUM($BK$45:$BK$245)=0,0,AVERAGE($BK$45:$BK$245)) -> 0 | BL43: =IF(SUM($BL$45:$BL$245)=0,0,AVERAGE($BL$45:$BL$245)) -> 0 | BM43: =IF(SUM($BM$45:$BM$245)=0,0,AVERAGE($BM$45:$BM$245)) -> 5.66110357 | BN43: =IF(SUM($BN$45:$BN$245)=0,0,AVERAGE($BN$45:$BN$245)) -> 0.1195196753 | BO43: =SUM(BO45:BO245) -> 32 | BP43: =SUM($BP$45:$BP$245) -> 9.68 | BQ43: =SUM($BQ$45:$BQ$245) -> 22.32 | BR43: =IF(SUM($BR$45:$BR$245)=0,0,AVERAGE($BR$45:$BR$245)) -> 16 | BS43: =IF(SUM($BS$45:$BS$245)=0,0,AVERAGE($BS$45:$BS$245)) -> 2.72
AI44: Point | AJ44: Distance | AK44: Zone | AL44: xcrown (ft) | AM44: ycrown (ft) | AN44: xbottom (ft) | AO44: ybottom (ft) | AP44: ysoil (ft) | AQ44: db,dry,crown (ft) | AR44: db,sat,crown (ft) | AS44: db,crown (ft) | AT44: db,crown,bed (ft) | AU44: db,crown,bank (ft) | AV44: db,dry,bottom (ft) | AW44: db,sat,bottom (ft) | AX44: db,bottom (ft) | AY44: LT,em (ft) | AZ44: Vbed,dry (ft3) | BA44: Vbed,sat (ft3) | BB44: Vbank,dry (ft3) | BC44: Vbank,sat (ft3) | BD44: hb,TS (ft) | BE44: ATSp,em (ft2) | BF44: dTSp,dry,em (ft) | BG44: ATSp,dry,em (ft2) | BH44: LT,ex (ft) | BI44: cD (ft) | BJ44: hT↑bed,ex,wet (ft) | BK44: CL (ft) | BL44: cL (ft) | BM44: zT,CL↓WSE | BN44: CW | BO44: LTf,tot (ft) | BP44: LTf,bed (ft) | BQ44: LTf,banks (ft) | BR44: cF (ft) | BS44: csoil (ft)
